Workbook

Sheet spis treści
B1: BUDŻETY JEDNOSTEK SAMORZĄDU TERYTORIALNEGO W WOJEWÓDZTWIE DOLNOŚLĄSKIM W 2013 R.
B2: BUDGETS OF LOCAL SELF-GOVERNMENT ENTITIES IN DOLNOŚLĄSKIE VOIVODSHIP IN 2013
B3: I. TABLICE PRZEGLĄDOWE Review tables
B4: Tabl. 1. Dochody, wydatki i wynik finansowy jednostek samorządu terytorialnego
B5: Revenue, expenditure and financial result of local self-government entities
B6: Tabl. 2. Dochody i wydatki jednostek samorządu terytorialnego na 1 mieszkańca
B7: Revenue and expenditure of local self-government entities per capita
B8: Tabl. 3. Budżety jednostek samorządu terytorialnego województwa dolnośląskiego na tle kraju w 2013 r. | K8: =I8/H8*100 -> 
B9: Budgets of local self-governnment entities of Dolnośląskie voivodship against the background of Poland in 2013
B10: II. BUDŻETY JEDNOSTEK SAMORZĄDU TERYTORIALNEGO Budgets of local self‐government entities
B11: Tabl. 4. Dochody jednostek samorządu terytorialnego według rodzajów
B12: Revenue of local self-government entities by types
B13: Tabl. 5. Dochody jednostek samorządu terytorialnego według działów
B14: Revenue of local self-government entities by divisions
B15: Tabl. 6. Wydatki jednostek samorządu terytorialnego według rodzajów
B16: Expenditure of local self-government entities by types
B17: Tabl. 7. Wydatki jednostek samorządu terytorialnego według działów
B18: Expenditure of local self-government entities by divisions
B19: III. BUDŻETY GMIN Gminas budgets
B20: Tabl. 8. Dochody budżetów gmin według rodzajów oraz według podregionów i powiatów
B21: Revenue of gminas budgets by types as well as subregions and powiats
B22: Tabl. 9. Struktura dochodów budżetów gmin według rodzajów oraz według podregionów i powiatów
B23: Structure of revenue of gminas budgets by types as well as subregions and powiats
B24: Tabl. 10. Dochody budżetów gmin według działów oraz według podregionów i powiatów
B25: Revenue of gminas budgets by divisions as well as subregions and powiats
B26: Tabl. 11. Struktura dochodów budżetów gmin według działów oraz według podregionów i powiatów
B27: Structure of revenue of gminas budgets by divisions as well as subregions and powiats
B28: Tabl. 12. Wydatki budżetów gmin według rodzajów oraz według podregionów i powiatów
B29: Expenditure of gminas budgets by types as well as subregions and powiats
B30: Tabl. 13. Struktura wydatków budżetów gmin według rodzajów oraz według podregionów i powiatów
B31: Structure of expenditure of gminas budgets by types as well as subregions and powiats
B32: Tabl. 14. Wydatki budżetów gmin według działów oraz według podregionów i powiatów
B33: Expenditure of gminas budgets by divisions as well as subregions and powiats
B34: Tabl. 15. Struktura wydatków budżetów gmin a według działów oraz według podregionów i powiatów
B35: Structure of expenditure of gminas budgets a by divisions as well as subregions and powiats
B36: Tabl. 16. Dochody i wydatki budżetów gmin na 1 mieszkańca
B37: Revenue and expenditure of gminas budgets per capita
B38: Tabl. 17. Dochody, wydatki i wynik finansowy budżetów gmin
B39: Revenue, expenditure and financial results of gminas budgets
B40: IV. BUDŻETY POWIATÓW Powiats budgets
B41: Tabl. 18. Dochody budżetów powiatów według rodzajów
B42: Revenue of powiats budgets by types
B43: Tabl. 19. Dochody budżetów powiatów według działów
B44: Revenue of powiats budgets by divisions
B45: Tabl. 20. Wydatki budżetów powiatów według rodzajów
B46: Expenditure of powiats budgets by types
B47: Tabl. 21. Wydatki budżetów powiatów według działów
B48: Expenditure of powiats budgets by divisions
B49: Tabl. 22. Dochody i wydatki budżetów powiatów na 1 mieszkańca
B50: Revenue and expenditure of powiats budgets per capita
B51: Tabl. 23. Dochody, wydatki i wynik finansowy budżetów powiatów
B52: Revenue, expenditure and financial results of powiats budgets
B53: V. BUDŻETY MIAST NA PRAWACH POWIATU Cities with status budgets
B54: Tabl. 24. Dochody budżetów miast na prawach powiatu według rodzajów
B55: Revenue of cities with status budgets by types
B56: Tabl. 25. Dochody budżetów miast na prawach powiatu według działów
B57: Revenue of cities with status budgets by divisions
B58: Tabl. 26. Wydatki budżetów miast na prawach powiatu według rodzajów
B59: Expenditure of cities with status budgets by types
B60: Tabl. 27. Wydatki budżetów miast na prawach powiatu według działów
B61: Expenditure of cities with status budgets by divisions
B62: Tabl. 28. Dochody i wydatki budżetów miast na prawach powiatu na 1 mieszkańca
B63: Revenue and expenditure of cities with powiat status budgets per capita
B64: Tabl. 29. Dochody, wydatki i wynik finansowy budżetów miast na prawach powiatu
B65: Revenue, expenditure and financial results of cities with powiat status budgets
B66: VI. BUDŻET WOJEWÓDZTWA Voivodship budget
B67: Tabl. 30. Dochody budżetu województwa według rodzajów
B68: Revenue of voivodship by types
B69: Tabl. 31. Dochody budżetu województwa według działów
B70: Revenue of voivodship budget by divisions
B71: Tabl. 32. Wydatki budżetu województwa według rodzajów
B72: Expenditure of voivodship budget by types
B73: Tabl. 33. Wydatki budżetu województwa według działów
B74: Expenditure of voivodship budget by divisions
B75: Tabl. 34. Dochody i wydatki budżetu województwa na 1 mieszkańca
B76: Revenue and expenditure of voivodship budget per capita
B77: Tabl. 35. Dochody, wydatki i wynik finansowy budżetu województwa
B78: Revenue, expenditure and financial result of voivodship budget

Sheet Tabl. 1.
B4: Tabl. 1. Dochody, wydatki i wynik finansowy jednostek samorzadu terytorialnego
B5: Revenues, expenditures and financial result of local self-government entities
B6: WYSZCZEGÓLNIENIE | C6: 2007 | D6: 2008 | E6: 2009 | F6: 2010 | G6: 2011 | H6: 2012 | I6: 2013 | J6: SPECIFICATION
B7: DOCHODY w tys. zł REVENUE in thous. zl
B8: OGÓŁEM | C8: 10698117 | D8: 11205063.9 | E8: 11968476.9 | F8: 12782620.19 | G8: 13856723.66 | H8: 14620741.86 | I8: 14853936.04 | J8: T O T A L
B9: Gminy a ………….....……..……………. | C9: 5010737.5 | D9: 5286642.1 | E9: 5409411.6 | F9: 6034815.128 | G9: 6326394.707 | H9: 6634836.572 | I9: 6477720.21 | J9: Gminasa
B10: Powiaty | C10: 1411747.5 | D10: 1590204.2 | E10: 1691723.5 | F10: 1905104.793 | G10: 2079721.038 | H10: 1944519.513 | I10: 1881676.178 | J10: Powiats
B11: Miasta na prawach powiatu | C11: 3295839.9 | D11: 3248377.4 | E11: 3363515.7 | F11: 3829407.489 | G11: 4216464.453 | H11: 4367184.177 | I11: 4868100.226 | J11: Cities with powiat status
B12: Województwo | C12: 979792.1 | D12: 1079840.2 | E12: 1503826.1 | F12: 1013292.777 | G12: 1234143.461 | H12: 1674201.599 | I12: 1626439.423 | J12: Voivodship
B13: WYDATKI w tys. zł EXPENDITURE in thous. zl
B14: OGÓŁEM | C14: 10417899.6 | D14: 11917438.1 | E14: 13630155.1 | F14: 14027112.77 | G14: 14692796.67 | H14: 14695196.86 | I14: 14645089.55 | J14: T O T A L
B15: Gminy a ……......………………….….… | C15: 4842420.2 | D15: 5445439.3 | E15: 5890294.8 | F15: 6716508.937 | G15: 6628339.052 | H15: 6595255.268 | I15: 6419477.846 | J15: Gminasa
B16: Powiaty | C16: 1422745 | D16: 1619367.3 | E16: 1848576.4 | F16: 2008061.053 | G16: 2110504.241 | H16: 1920551.169 | I16: 1870169.706 | J16: Powiats
B17: Miasta na prawach powiatu | C17: 3275219.7 | D17: 3846447.4 | E17: 4300940.1 | F17: 3999167.451 | G17: 4437043.414 | H17: 4492160.165 | I17: 4767156.593 | J17: Cities with powiat status
B18: Województwo | C18: 877514.7 | D18: 1006184.1 | E18: 1590343.8 | F18: 1303375.329 | G18: 1516909.961 | H18: 1687230.26 | I18: 1588285.409 | J18: Voivodship
B19: WYNIK FINANSOWY deficyt (-) / nadwyżka (+) w tys. zł FINANCIAL RESULT deficit (-) / surplus (+) in thous. zl
B20: OGÓŁEM | C20: 280217.4 | D20: -712374.2 | E20: -1661678.2 | F20: -1244492.582 | G20: -836073.0094 | H20: -74455.00071 | I20: =I8-I14 -> 208846.4822 | J20: T O T A L
B21: Gminy a ……………......……..………… | C21: 168317.3 | D21: -158797.2 | E21: -480883.2 | F21: -681693.8085 | G21: -301944.3448 | H21: 39581.30413 | I21: =I9-I15 -> 58242.36416 | J21: Gminasa
B22: Powiaty | C22: -10997.5 | D22: -29163.1 | E22: -156852.9 | F22: -102956.2599 | G22: -30783.20284 | H22: 23968.34466 | I22: 11506.47171 | J22: Powiats
B23: Miasta na prawach powiatu | C23: 20620.2 | D23: -598070 | E23: -937424.4 | F23: -169759.9616 | G23: -220578.9618 | H23: -124975.9883 | I23: 100943.6328 | J23: Cities with powiat status
B24: Województwo | C24: 102277.4 | D24: 73656.1 | E24: -86517.7 | F24: -290082.5522 | G24: -282766.5 | H24: -13028.66121 | I24: 38154.01353 | J24: Voivodship
B25: DOCHODY w % REVENUE in %
B26: OGÓŁEM | C26: 100 | D26: 100 | E26: 100 | F26: 100 | G26: 100 | H26: 100 | I26: 100 | J26: T O T A L
B27: Gminy a …………………......…..……… | C27: 46.83756497 | D27: 47.18082955 | E27: 45.19715955 | F27: 47.21109631 | G27: 45.65577595 | H27: 45.3796164 | I27: =I9/I$8*100 -> 43.6094527 | J27: Gminasa
B28: Powiaty | C28: 13.19622416 | D28: 14.19183518 | E28: 14.13482696 | F28: 14.90386764 | G28: 15.00875019 | H28: 13.2997322 | I28: =I10/I$8*100 -> 12.6678624 | J28: Powiats
B29: Miasta na prawach powiatu | C29: 30.80766363 | D29: 28.99026216 | E29: 28.10312229 | F29: 29.95792281 | G29: 30.42901451 | H29: 29.86978512 | I29: 32.77313309 | J29: Cities with powiat status
B30: Województwo | C30: 9.158547247 | D30: 9.637073109 | E30: 12.56489119 | F30: 7.927113235 | G30: 8.90645936 | H30: 11.45086628 | I30: 10.94955181 | J30: Voivodship
B31: WYDATKI w % EXPENDITURE in %
B32: OGÓŁEM | C32: 100 | D32: 100 | E32: 100 | F32: 100 | G32: 100 | H32: 100 | I32: 100 | J32: T O T A L
B33: Gminy a ……………..……......………… | C33: 46.48173227 | D33: 45.69303616 | E33: 43.21517075 | F33: 47.88233364 | G33: 45.11284816 | H33: 44.88034648 | I33: =I15/I$14*100 -> 43.83365375 | J33: Gminasa
B34: Powiaty | C34: 13.65673557 | D34: 13.58821658 | E34: 13.5624018 | F34: 14.31556933 | G34: 14.36421049 | H34: 13.06924423 | I34: =I16/I$14*100 -> 12.7699438 | J34: Powiats
B35: Miasta na prawach powiatu | C35: 31.43838802 | D35: 32.27579088 | E35: 31.55459398 | F35: 28.51026805 | G35: 30.19876688 | H35: 30.5689009 | I35: 32.55122869 | J35: Cities with powiat status
B36: Województwo | C36: 8.423144143 | D36: 8.442956377 | E36: 11.66783348 | F36: 9.291828976 | G36: 10.32417446 | H36: 11.48150839 | I36: 10.84517376 | J36: Voivodship
B38: a Bez gmin mających również status miast na prawach powiatu.
B39: a Excluding gminas which are also cities with powiat status.

Sheet Tabl. 2.
B4: Tabl. 2. Dochody i wydatki jednostek samorzadu terytorialnego na 1 mieszkańca
B5: Revenues and expenditures of local self-government entities per capita
B6: WYSZCZEGÓLNIENIE | C6: 2007 | D6: 2008 | E6: 2009 | F6: 2010 | G6: 2011 | H6: 2012 | I6: 2013 | J6: SPECIFICATION
B7: GMINY a GMINAS a
B8: Dochody ogółem w zł | C8: 2438.83 | D8: 2573.88 | E8: 2632.43 | F8: 2934.9 | G8: 3015.04555 | H8: 3162.36 | I8: 3276.85358 | J8: Total revenues
B9: poprzedni rok = 100 | C9: 112.6168267 | D9: 105.5374913 | E9: 102.2747758 | F9: 111.4901441 | G9: 102.7307762 | H9: 104.8859776 | I9: =I8/H8*100 -> 103.6205106 | J9: previous year = 100
B10: Wydatki ogółem w zł | C10: 2356.91 | D10: 2651.19 | E10: 2866.44 | F10: 3266.43 | G10: 3158.94678 | H10: 3143.5 | I10: 3247.3908 | J10: Total expenditures
B11: poprzedni rok = 100 | C11: 105.79018 | D11: 112.4858395 | E11: 108.1189956 | F11: 113.9542429 | G11: 96.70945895 | H11: 99.51101487 | I11: =I10/H10*100 -> 103.3049404 | J11: previous year = 100
B12: POWIATY POWIATS
B13: Dochody ogółem w zł | C13: 687.13 | D13: 774.21 | E13: 823.26 | F13: 926.51 | G13: 991.15752 | H13: 926.82 | I13: 951.8746 | J13: Total revenues
B14: poprzedni rok = 100 | C14: 109.8213144 | D14: 112.6730022 | E14: 106.3354904 | F14: 112.5416029 | G14: 106.9775307 | H14: 93.50885014 | I14: =I13/H13*100 -> 102.7032865 | J14: previous year = 100
B15: Wydatki ogółem w zł | C15: 692.48 | D15: 788.41 | E15: 899.59 | F15: 976.58 | G15: 1005.82824 | H15: 915.39 | I15: 946.05387 | J15: Total expenditures
B16: poprzedni rok = 100 | C16: 105.3922837 | D16: 113.8531077 | E16: 114.1017998 | F16: 108.5583432 | G16: 102.9949661 | H16: 91.00858015 | I16: =I15/H15*100 -> 103.3498148 | J16: previous year = 100
B17: MIASTA NA PRAWACH POWIATU CITIES WITH POWIAT STATUS
B18: Dochody ogółem w zł | C18: 3994.01 | D18: 3947.6 | E18: 4093.22 | F18: 4664.9 | G18: 5157.56541 | H18: 5344.2 | I18: 5210.79325 | J18: Total revenues
B19: poprzedni rok = 100 | C19: 110.4761193 | D19: 98.83800992 | E19: 103.6888236 | F19: 113.9665105 | G19: 110.5611141 | H19: 103.6186568 | I19: =I18/H18*100 -> 97.50370963 | J19: previous year = 100
B20: Wydatki ogółem w zł | C20: 3969.03 | D20: 4674.41 | E20: 5234.02 | F20: 4871.7 | G20: 5427.37687 | H20: 5497.14 | I20: 5102.74363 | J20: Total expenditures
B21: poprzedni rok = 100 | C21: 117.6877163 | D21: 117.7721005 | E21: 111.9717783 | F21: 93.07759619 | G21: 111.406221 | H21: =H20/F20*100 -> 112.838229 | I21: =I20/H20*100 -> 92.82542613 | J21: previous year = 100
B22: WOJEWÓDZTWO VOIVODSHIP
B23: Dochody ogółem w zł | C23: 340.23 | D23: 375.36 | E23: 522.77 | F23: 352.19 | G23: 423.25994 | H23: 574.2919 | I23: 558.71325 | J23: Total revenues
B24: poprzedni rok = 100 | C24: 136.4248767 | D24: 110.3253681 | E24: 139.2716326 | F24: 67.3699715 | G24: 120.1794316 | H24: 135.6830273 | I24: =I23/H23*100 -> 97.28732897 | J24: previous year = 100
B25: Wydatki ogółem w zł | C25: 304.72 | D25: 349.75 | E25: 552.85 | F25: 453.01 | G25: 520.23711 | H25: 578.76 | I25: 545.60662 | J25: Total expenditures
B26: poprzedni rok = 100 | C26: 110.5099006 | D26: 114.7775007 | E26: 158.07005 | F26: 81.94085195 | G26: 114.840094 | H26: 111.2492725 | I26: =I25/H25*100 -> 94.27165319 | J26: previous year = 100
B28: a Bez gmin mających również status miast na prawach powiatu.
B29: a Excluding gminas which are also cities with powiat status.

Sheet Tabl. 3.
B4: Tabl. 3. Budżety jednostek samorządu terytorialnego województwa dolnośląskiego na tle kraju w 2013 r.
B5: Budgets of local self-governnment entities of Dolnośląskie voivodship against the background of Poland in 2013
B6: WYSZCZEGÓLNIENIE | C6: Polska Poland | E6: Województwo dolnośląskie Dolnoślaskie voivodship | H6: SPECIFICATION
C7: w tys. zł in thous. zl | D7: 2012=100 | E7: w tys. zł in thous. zl | F7: Polska=100 Poland=100 | G7: 2012=100
B10: OGÓŁEM T O T A L
B11: Dochody | C11: 183458280.7 | D11: 103.407176 | E11: 14853936.04 | F11: 8.096628824 | G11: 101.5949545 | H11: Revenue
B12: w tym: | H12: of which:
B13: Dochody własne | C13: 91801712.08 | D13: 105.4078737 | E13: 8505809.749 | F13: 9.265415162 | G13: 102.0982444 | H13: Oown revenue
B14: Dotacje celowe a ………............………… | C14: 40399480.28 | D14: 101.8541539 | E14: 3067383.222 | F14: 7.592630403 | G14: 99.5998574 | H14: Appropriated allocationsa
B15: Subwencja ogólna | C15: 51257088.36 | D15: 101.1835114 | E15: 3280743.064 | F15: 6.400564623 | G15: 102.2028622 | H15: General subsidies
B16: w tym część oświatowa | C16: 39509195 | D16: 100.8888924 | E16: 2632552.289 | F16: 6.663138262 | G16: 100.6609583 | H16: of which educational subsidies
B18: Wydatki | C18: 183838643.4 | D18: 101.872651 | E18: 14645089.55 | F18: 7.966273728 | G18: 99.65902254 | H18: Expenditure
B19: w tym: | H19: of which:
B20: wydatki bieżące | C20: 148831936.9 | D20: 102.7541205 | E20: 11809319.9 | F20: 7.93466789 | G20: 103.9314753 | H20: current expenditure
B21: wydatki majątkowe | C21: 35006706.58 | D21: 98.28794796 | E21: 2835769.65 | F21: 8.100646782 | G21: 85.09194104 | H21: property expenditure
B22: w tym inwestycyjne b ………..........… | C22: 33497402.75 | D22: 97.37311675 | E22: 2627515.656 | F22: 7.843938456 | G22: 89.0389178 | H22: of which inwestment b
B23: GMINY c GMINAS c
B24: Dochody | C24: 80043418.25 | D24: 102.0864607 | E24: 6477720.21 | F24: 8.092758095 | G24: 97.63194826 | H24: Revenue
B25: w tym: | H25: of which:
B26: dochody własne | C26: 38545968.57 | D26: 105.5390625 | E26: 3799469.775 | F26: 9.856983533 | G26: 99.18698188 | H26: own revenue
B27: dotacje celowe a ……........….......…….… | C27: 16704348.14 | D27: 96.91920843 | E27: 1208458.036 | F27: 7.234392059 | G27: 92.75253939 | H27: appropriated allocationsa
B28: subwencja ogólna | C28: 24793101.53 | D28: 100.5837811 | E28: 1469792.399 | F28: 5.928231276 | G28: 97.89875768 | H28: general subsidies
B29: w tym część oświatowa | C29: 18114714.62 | D29: 100.0766113 | E29: 1138214.1 | F29: 6.28336755 | G29: 96.57440064 | H29: of which educational subsidies
B31: Wydatki | C31: 79442532.58 | D31: 101.2117414 | E31: 6419477.846 | F31: 8.080656088 | G31: 97.3347897 | H31: Expenditure
B32: w tym: | H32: of which:
B33: wydatki bieżące | C33: 66270297.57 | D33: 103.0545505 | E33: 5247282.424 | F33: 7.918000395 | G33: 98.8124896 | H33: current expenditure
B34: wydatki majątkowe | C34: 13172235.01 | D34: 92.85780742 | E34: 1172195.422 | F34: 8.898986554 | G34: 91.22768357 | H34: property expenditure
B35: w tym inwestycyjne b ……….........… | C35: 12859882.47 | D35: 92.80054897 | E35: 1116089.87 | F35: 8.678849686 | G35: 92.47529259 | H35: of which inwestment b
B36: POWIATY POWIATS
B37: Dochody | C37: 23077562.59 | D37: 102.4626441 | E37: 1881676.178 | F37: 8.153704146 | G37: 96.76818179 | H37: Revenue
B38: w tym: | H38: of which:
B39: dochody własne | C39: 6893849.651 | D39: 104.2581723 | E39: 601481.1244 | F39: 8.724894723 | G39: 97.42749099 | H39: own revenue
B40: dotacje celowe a ……….....….…......…… | C40: 5906167.301 | D40: 103.8174727 | E40: 494738.0484 | F40: 8.376634509 | G40: 98.27024616 | H40: appropriated allocationsa
B41: subwencja ogólna | C41: 10277545.64 | D41: 100.5470821 | E41: 785457.005 | F41: 7.642456991 | G41: 95.35598381 | H41: general subsidies
B42: w tym część oświatowa | C42: 8024325.862 | D42: 100.3974628 | E42: 637668.228 | F42: 7.946689092 | G42: 94.3735243 | H42: of which educational subsidies
B44: Wydatki | C44: 22916546.05 | D44: 101.9576953 | E44: 1870169.706 | F44: 8.160783488 | G44: 97.37671854 | H44: Expenditure
B45: w tym: | H45: of which:
B46: wydatki bieżące | C46: 20062433.39 | D46: 101.9677258 | E46: 1670338.412 | F46: 8.325701968 | G46: 96.44568032 | H46: current expenditure
B47: wydatki majątkowe | C47: 2854112.659 | D47: 101.8872439 | E47: 199831.2944 | F47: 7.001520902 | G47: 105.9238301 | H47: property expenditure
B48: w tym inwestycyjne b ……..........…… | C48: 2827631.432 | D48: 101.8907174 | E48: 197826.2944 | F48: 6.99618388 | G48: 107.356338 | H48: of which inwestment b
B49: MIASTA NA PRAWACH POWIATU CITIES WITH POWIAT STATUS
B50: Dochody | C50: 64216582.91 | D50: 104.8485029 | E50: 4868100.226 | F50: 7.580752517 | G50: 111.4700005 | H50: Revenue
B51: w tym: | H51: of which:
B52: dochody własne | C52: 40058805.53 | D52: 107.0873651 | E52: 3340248.864 | F52: 8.338363612 | G52: 112.7001919 | H52: own revenue
B53: dotacje celowe a ………...............……… | C53: 10610581.52 | D53: 100.4881078 | E53: 688133.0898 | F53: 6.485347561 | G53: 104.0581452 | H53: appropriated allocationsa
B54: subwencja ogólna | C54: 13547195.86 | D54: 102.0090635 | E54: 839718.272 | F54: 6.198465576 | G54: 113.1617296 | H54: general subsidies
B55: w tym część oświatowa | C55: 12590497.86 | D55: 102.3975627 | E55: 786351.517 | F55: 6.245595095 | G55: 113.5255002 | H55: of which educational subsidies
B57: Wydatki | C57: 64952560.45 | D57: 101.9170409 | E57: 4767156.593 | F57: 7.339443679 | G57: 106.1216969 | H57: Expenditure
B58: w tym: | H58: of which:
B59: wydatki bieżące | C59: 52534500.68 | D59: 102.901063 | E59: 3921321.096 | F59: 7.464277846 | G59: 114.1695819 | H59: current expenditure
B60: wydatki majątkowe | C60: 12418059.77 | D60: 97.95426773 | E60: 845835.4969 | F60: 6.811333756 | G60: 79.98338051 | H60: property expenditure
B61: w tym inwestycyjne b ……..........…… | C61: 11455393.42 | D61: 94.64670992 | E61: 720696.0558 | F61: 6.291325223 | G61: 75.9999845 | H61: of which inwestment b
B62: WOJEWÓDZTWO VOIVODSHIP
B63: Dochody | C63: 16120716.97 | D63: 105.806123 | E63: 1626439.423 | F63: 10.08912585 | G63: 97.14716695 | H63: Revenue
B64: w tym: | H64: of which:
B65: dochody własne | C65: 6303088.325 | D65: 96.24398393 | E65: 764609.9862 | F65: 12.13071984 | G65: 83.18277313 | H65: own revenue
B66: dotacje celowe a ………...............……… | C66: 7178383.312 | D66: 116.1422648 | E66: 676054.0485 | F66: 9.417915136 | G66: 110.4520441 | H66: appropriated allocationsa
B67: subwencja ogólna | C67: 2639245.329 | D67: 105.3028962 | E67: 185775.388 | F67: 7.038958673 | G67: 129.9768155 | H67: general subsidies
B68: w tym część oświatowa | C68: 779656.657 | D68: 100.9932939 | E68: 70318.444 | F68: 9.01915521 | G68: 102.9129758 | H68: of which educational subsidies
B70: Wydatki | C70: 16527004.35 | D70: 104.8633681 | E70: 1588285.409 | F70: 9.610243788 | G70: 94.13566401 | H70: Expenditure
B71: w tym: | H71: of which:
B72: wydatki bieżące | C72: 9964705.206 | D72: 101.5970287 | E72: 970377.9724 | F72: 9.738150325 | G72: 109.5584569 | H72: current expenditure
B73: wydatki majątkowe | C73: 6562299.147 | D73: 110.2454384 | E73: 617907.4367 | F73: 9.416020557 | G73: 77.09261145 | H73: property expenditure
B74: w tym inwestycyjne b ……….........… | C74: 6354495.43 | D74: 112.1701808 | E74: 592903.4367 | F74: 9.330456576 | G74: 96.95677251 | H74: of which inwestment b
B76: a Łącznie z dotacjami z paragrafów 200 i 620 klasyfikacji dochodów i wydatków budżetowych (w 2009 r. określanymi jako dotacje rozwojowe). b Łącznie z dotacjami na finansowanie zadań inwestycyjnych zakładów budżetowych, gospodarstw pomocniczych, środków specjalnych i funduszy celowych. c Bez gmin mających również status miast na prawach powiatu.
B77: a Including allocations from paragraphs 200 and 620 of the classification of the budget revenue and expenditure (in 2009 defined as development allocations). b Including allocations for financing investment tasks of budgetary establishments, auxiliary units, special funds and appropriated funds. c Excluding gminas which are also cities with powiat status.

Sheet Tabl. 4.
B4: Tabl. 4. Dochody jednostek samorządu terytorialnego według rodzajów
B5: Revenue of local self-government entities by types
B6: WYSZCZEGÓLNIENIE | D6: Ogółem Total | F6: Gminy a Gminas a | H6: Powiaty Powiats | J6: Miasta na prawach powiatu Cities with powiat status | L6: Województwo Voivodship | N6: SPECIFICATION
D9: w tys. zł in thous. zl | E9: w % in % | F9: w tys. zł in thous. zl | G9: w % in % | H9: w tys. zł in thous. zl | I9: w % in % | J9: w tys. zł in thous. zl | K9: w % in % | L9: w tys. zł in thous. zl | M9: w % in %
B10: OGÓŁEM | C10: 2012 | D10: 14620741.86 | E10: 100 | F10: 6634836.572 | G10: 100 | H10: 1944519.513 | I10: 100 | J10: 4367184.177 | K10: 100 | L10: 1674201.599 | M10: 100 | N10: T O T A L
C11: 2013 | D11: 14853936.04 | E11: 100 | F11: 6477720.21 | G11: 100 | H11: 1881676.178 | I11: 100 | J11: 4868100.226 | K11: 100 | L11: 1626439.423 | M11: 100
B13: Dochody własne | D13: 8505809.749 | E13: 57.2630024 | F13: 3799469.775 | G13: 58.65443 | H13: 601481.1244 | I13: 31.96518 | J13: 3340248.864 | K13: 68.61504 | L13: 764609.9862 | M13: 47.01128 | N13: Own revenue
B14: Podatek od osób prawnych | D14: 782921.2958 | E14: 5.270800237 | F14: 150180.6586 | G14: 2.31842 | H14: 31262.2421 | I14: 1.6614 | J14: 96475.57042 | K14: 1.98179 | L14: 505002.8247 | M14: 31.04959 | N14: Corporate income tax
B15: Podatek od osób fizycznych | D15: 2575878.02 | E15: 17.34138355 | F15: 1115247.555 | G15: 17.21667 | H15: 306150.38 | I15: 16.27009 | J15: 1070830.706 | K15: 21.99689 | L15: 83649.379 | M15: 5.1431 | N15: Personal income tax
B16: Podatek rolny | D16: 151947.6266 | E16: 1.022945206 | F16: 149840.3283 | G16: 2.31316 | H16: - | I16: - | J16: 2107.29836 | K16: 0.04329 | L16: - | M16: - | N16: Agricultural tax
B17: Podatek leśny | D17: 12354.94372 | E17: 0.08317622811 | F17: 12203.27104 | G17: 0.18839 | H17: - | I17: - | J17: 151.67268 | K17: 0.00312 | L17: - | M17: - | N17: Forest tax
B18: Podatek od nieruchomości | D18: 1696884.245 | E18: 11.42380202 | F18: 1175584.075 | G18: 18.14811 | H18: - | I18: - | J18: 521300.1699 | K18: 10.70849 | L18: - | M18: - | N18: Tax on real estate
B19: Podatek od środków transportowych | D19: 56979.30627 | E19: 0.3835973585 | F19: 37572.23562 | G19: 0.58002 | H19: - | I19: - | J19: 19407.07065 | K19: 0.39866 | L19: - | M19: - | N19: Tax on means of transport
B20: Podatek od działalności gospodarczej | D20: 5430.02934 | E20: 0.03655616482 | F20: 3035.40054 | G20: 0.04686 | H20: - | I20: - | J20: 2394.6288 | K20: 0.04919 | L20: - | M20: - | N20: Tax on economic activity
B21: Podatek od spadków i darowizn | D21: 17416.97672 | E21: 0.1172549597 | F21: 6819.1528 | G21: 0.10527 | H21: - | I21: - | J21: 10597.82392 | K21: 0.2177 | L21: - | M21: - | N21: Tax on inheritances and donations
B22: Podatek od czynności cywilnoprawnych | D22: 126141.4276 | E22: 0.8492121369 | F22: 58498.69776 | G22: 0.90308 | H22: - | I22: - | J22: 67642.72986 | K22: 1.38951 | L22: - | M22: - | N22: Tax on civil law transactions
B23: Wpływy z opłaty skarbowej | D23: 36616.46036 | E23: 0.2465101524 | F23: 17937.85825 | G23: 0.27692 | H23: - | I23: - | J23: 18678.60211 | K23: 0.38369 | L23: - | M23: - | N23: Stamp duty
B24: Wpływy z opłaty eksploatacyjnej | D24: 91775.00022 | E24: 0.6178497066 | F24: 91730.78322 | G24: 1.4161 | H24: - | I24: - | J24: 44.217 | K24: 0.00091 | L24: - | M24: - | N24: Exploitation fee
B25: Wpływy z opłaty targowej | D25: 11928.3979 | E25: 0.08030462681 | F25: 9894.0047 | G25: 0.15274 | H25: - | I25: - | J25: 2034.3932 | K25: 0.04179 | L25: - | M25: - | N25: Market fee
B26: Dochody z majątku | D26: 884371.97 | E26: 5.953788732 | F26: 325760.4101 | G26: 5.02894 | H26: 27394.91413 | I26: 1.45588 | J26: 523101.172 | K26: 10.74549 | L26: 8115.4737 | M26: 0.49897 | N26: Revenue from property
B27: w tym dochody z wynajmu i dzierżawy oraz innych umów o podobnym | N27: of which income from renting and leasing as well as agreements with a similar
B28: charakterze | D28: 358267.9458 | E28: 2.411939468 | F28: 137539.5864 | G28: 2.12327 | H28: 7203.75069 | I28: 0.38284 | J28: 211744.8622 | K28: 4.34964 | L28: 1779.74645 | M28: 0.10943 | N28: character
B29: Pozostałe dochody | D29: 2055164.05 | E29: 13.83582133 | F29: 645165.3444 | G29: 9.95976 | H29: 236673.5881 | I29: 12.57781 | J29: 1005482.809 | K29: 20.65452 | L29: 167842.3088 | M29: 10.31962 | N29: Other revenue
B30: w tym środki na dofinansowanie własnych | N30: of which funds for additional financing of
B31: zadań ze źródeł pozabudżetowych | D31: 83935.72711 | E31: 0.5650739771 | F31: 48449.91314 | G31: 0.74795 | H31: 5230.46889 | I31: 0.27797 | J31: 15712.81759 | K31: 0.32277 | L31: 14542.52749 | M31: 0.89413 | N31: own tasks from non-budgetary sources
B32: Dotacje celowe b ………………………......…………………….. | D32: 3067383.222 | E32: 20.65030585 | F32: 1208458.036 | G32: 18.65561 | H32: 494738.0484 | I32: 26.29241 | J32: 688133.0898 | K32: 14.13556 | L32: 676054.0485 | M32: 41.56651 | N32: Appropriated allocations b
B33: w tym: | N33: of which:
B34: Z budżetu państwa | D34: 1975073.571 | E34: 13.29663441 | F34: 981803.0458 | G34: 15.15661 | H34: 439546.6358 | I34: 23.35931 | J34: 357978.8388 | K34: 7.35356 | L34: 195745.0503 | M34: 12.03519 | N34: From the state budget
B35: na zadania: | N35: for tasks:
B36: z zakresu administracji rządowej | D36: 1203389.172 | E36: 8.101483468 | F36: 556302.101 | G36: 8.58793 | H36: 246840.8886 | I36: 13.11814 | J36: 228252.6603 | K36: 4.68874 | L36: 171993.5223 | M36: 10.57485 | N36: for government administration asks
B37: własne | D37: 541329.3434 | E37: 3.644349499 | F37: 329217.7157 | G37: 5.08231 | H37: 113145.9599 | I37: 6.01304 | J37: 90839.13294 | K37: 1.86601 | L37: 8126.53488 | M37: 0.49965 | N37: for own tasks
B38: realizowane na podstawie porozumień z organami | N38: realized on the basis of agreements with
B39: administracji rządowej | D39: 3196.46492 | E39: 0.02151931254 | F39: 1335.08693 | G39: 0.02061 | H39: 937.8099 | I39: 0.04984 | J39: 863.65089 | K39: 0.01774 | L39: 59.9172 | M39: 0.00368 | N39: government administration authorities
B40: Otrzymane z państwowych funduszy celowych | D40: 47884.60729 | E40: 0.3223698229 | F40: 25366.53752 | G40: 0.3916 | H40: 11647.37332 | I40: 0.61899 | J40: 3305.72549 | K40: 0.06791 | L40: 7564.97096 | M40: 0.46512 | N40: Received from appropriated funds
B41: Na zadania realizowane na podstawie porozumień | N41: For tasks realized on the basis of agreements
B42: między jednostkami samorządu terytorialnego | D42: 121458.6465 | E42: 0.8176866133 | F42: 40884.79433 | G42: 0.63116 | H42: 47417.69262 | I42: 2.51997 | J42: 29763.85139 | K42: 0.61141 | L42: 3392.30818 | M42: 0.20857 | N42: between localself‐government entities
B43: Subwencja ogólna | D43: 3280743.064 | E43: 22.08669174 | F43: 1469792.399 | G43: 22.68996 | H43: 785457.005 | I43: 41.74241 | J43: 839718.272 | K43: 17.2494 | L43: 185775.388 | M43: 11.42221 | N43: General subsidies from the state budget
B44: Cześć wyrównawcza | D44: 439213.986 | E44: 2.956886208 | F44: 300543.589 | G44: 4.63965 | H44: 95021.472 | I44: 5.04983 | J44: 6347.859 | K44: 0.1304 | L44: 37301.066 | M44: 2.29342 | N44: Compensatory part
B45: Cześć oświatowa | D45: 2632552.289 | E45: 17.72292733 | F45: 1138214.1 | G45: 17.57121 | H45: 637668.228 | I45: 33.88831 | J45: 786351.517 | K45: 16.15315 | L45: 70318.444 | M45: 4.32346 | N45: Educational part
B46: Część rekompensująca | D46: 2791.186 | E46: 0.01879088474 | F46: 2311.944 | G46: 0.03569 | H46: - | I46: - | J46: 479.242 | K46: 0.00984 | L46: - | M46: - | N46: Offsetting part
B47: Cześć równoważąca | D47: 103300.413 | E47: 0.695441348 | F47: 15181.263 | G47: 0.23436 | H47: 47385.739 | I47: 2.51827 | J47: 40733.411 | K47: 0.83674 | L47: - | M47: - | N47: Balancing part
B48: Cześć regionalna | D48: 78155.878 | E48: 0.5261627478 | F48: - | G48: - | H48: - | I48: - | J48: - | K48: - | L48: 78155.878 | M48: 4.80534 | N48: Regional part
B49: Uzupełnienie subwencji ogólnej | D49: 24729.312 | E49: 0.1664832267 | F49: 13541.503 | G49: 0.20905 | H49: 5381.566 | I49: 0.286 | J49: 5806.243 | K49: 0.11927 | L49: - | M49: - | N49: Supplement of general subsidy part
B51: a Bez dochodów gmin mających również status miasta na prawach powiatu. b Łącznie z dotacjami z paragrafów 200 i 620 klasyfikacji dochodów i wydatków budżetowych.
B52: b,c Including allocations not included in further division: b from paragraphs 200 and 620 of the classification of the budget revenue and expenditure.

Sheet Tabl. 5.
B4: Tabl. 5. Dochody jednostek samorządu terytorialnego według działów
B5: Revenue of local self-government entities by divisions
B6: WYSZCZEGÓLNIENIE | D6: Ogółem Total | F6: Gminy a Gminas a | H6: Powiaty Powiats | J6: Miasta na prawach powiatu Cities with powiat status | L6: Województwo Voivodship | N6: SPECIFICATION
D9: w tys. zł in thous. zl | E9: w % in % | F9: w tys. zł in thous. zl | G9: w % in % | H9: w tys. zł in thous. zl | I9: w % in % | J9: w tys. zł in thous. zl | K9: w % in % | L9: w tys. zł in thous. zl | M9: w % in %
B10: OGÓŁEM | C10: 2012 | D10: =F10+H10+J10+L10 -> 14620741.86 | E10: 100 | F10: 6634836.572 | G10: 100 | H10: 1944519.513 | I10: 100 | J10: 4367184.177 | K10: 100 | L10: 1674201.599 | M10: 100 | N10: T O T A L
C11: 2013 | D11: 14853936.04 | E11: 100 | F11: 6477720.21 | G11: 100 | H11: 1881676.178 | I11: 100 | J11: 4868100.226 | K11: 100 | L11: 1626439.423 | M11: 100
B13: w tym: | N13: of which:
B14: Rolnictwo i łowiectwo | D14: 373802.1135 | E14: 2.516518939 | F14: 107351.1902 | G14: 1.657237 | H14: 17344.12819 | I14: 0.921738 | J14: 297.25761 | K14: 0.006106 | L14: 248809.5375 | M14: 15.297805 | N14: Agriculture and hunting
B15: Leśnictwo | D15: 3172.61144 | E15: 0.02135872561 | F15: 660.0824 | G15: 0.01019 | H15: 2227.11914 | I15: 0.118358 | J15: 285.4099 | K15: 0.005862 | L15: - | M15: - | N15: Forestry
B16: Wytwarzanie i zaopatrywanie
B17: w energię elektryczną, gaz, wodę | D17: 21231.49609 | E17: 0.1429351523 | F17: 20990.32102 | G17: 0.324038 | H17: - | I17: - | J17: - | K17: - | L17: 241.17507 | M17: 0.014828 | N17: Electricity, gas and water supply
B18: Transport i łączność | D18: 1060956.825 | E18: 7.142597238 | F18: 165343.1757 | G18: 2.55249 | H18: 97203.39235 | I18: 5.165787 | J18: 420642.4499 | K18: 8.640792 | L18: 377767.8071 | M18: 23.226675 | N18: Transport and communication
B19: Turystyka | D19: 34323.83565 | E19: 0.2310756931 | F19: 12783.70934 | G19: 0.197348 | H19: 383.96875 | I19: 0.020405 | J19: 13703.48268 | K19: 0.281495 | L19: 7452.67488 | M19: 0.45822 | N19: Tourism
B20: Gospodarka mieszkaniowa | D20: 1096608.905 | E20: 7.382614965 | F20: 387609.084 | G20: 5.983726 | H20: 37375.73076 | I20: 1.986299 | J20: 665192.957 | K20: 13.664323 | L20: 6431.1329 | M20: 0.395411 | N20: Dwelling economy
B21: Działalność usługowa | D21: 73773.07548 | E21: 0.4966567468 | F21: 7424.87048 | G21: 0.114621 | H21: 33048.02002 | I21: 1.756307 | J21: 31589.28479 | K21: 0.648903 | L21: 1710.90019 | M21: 0.105192 | N21: Service activity
B22: Administracja publiczna | D22: 194008.8115 | E22: 1.306110455 | F22: 60467.65437 | G22: 0.933471 | H22: 21943.39508 | I22: 1.166162 | J22: 69960.07566 | K22: 1.437112 | L22: 41637.6864 | M22: 2.560051 | N22: Public administration
B23: Bezpieczeństwo publiczne | N23: Public safety and
B24: i ochrona przeciwpożarowa | D24: 192492.5959 | E24: 1.295902954 | F24: 11101.17717 | G24: 0.171374 | H24: 100909.3272 | I24: 5.362736 | J24: 80469.57551 | K24: 1.652997 | L24: 12.51609 | M24: 0.000769 | N24: fire care
B25: Dochody od osób prawnych | N25: Corporate income tax
B26: i od osób fizycznych | D26: 5884649.05 | E26: 39.61676579 | F26: 2966137.56 | G26: 45.789837 | H26: 384873.3728 | I26: 20.453751 | J26: 1943584.247 | K26: 39.924902 | L26: 590053.8705 | M26: 36.278871 | N26: and personal income tax
B27: Różne rozliczenia | D27: 3672067.048 | E27: 24.72117181 | F27: 1554135.272 | G27: 23.992009 | H27: 790747.589 | I27: 42.023574 | J27: 1074688.087 | K27: 22.076129 | L27: 252496.0994 | M27: 15.524469 | N27: Different settlements
B28: Oświata i wychowanie | D28: 299157.7888 | E28: 2.013996748 | F28: 112378.305 | G28: 1.734843 | H28: 49516.40311 | I28: 2.631505 | J28: 89573.84956 | K28: 1.840016 | L28: 47689.23105 | M28: 2.932124 | N28: Education
B29: Ochrona zdrowia | D29: 136379.7744 | E29: 0.9181389637 | F29: 12634.28962 | G29: 0.195042 | H29: 106522.741 | I29: 5.661055 | J29: 14426.54472 | K29: 0.296348 | L29: 2796.19908 | M29: 0.171921 | N29: Health care
B30: Pomoc społeczna | D30: 1133883.321 | E30: 7.633554621 | F30: 686375.4526 | G30: 10.595941 | H30: 189355.0737 | I30: 10.063106 | J30: 251343.0871 | K30: 5.163063 | L30: 6809.70734 | M30: 0.418688 | N30: Social welfare
B31: Pozostałe zadania w zakresie | N31: Other tasks in sphere
B32: polityki społecznej | D32: 70573.31916 | E32: 0.4751152758 | F32: 12448.32559 | G32: 0.192171 | H32: 28566.92453 | I32: 1.518163 | J32: 18473.09027 | K32: 0.379472 | L32: 11084.97877 | M32: 0.681548 | N32: of social policy
B33: Edukacyjna opieka wychowawcza | D33: 48813.73627 | E33: 0.3286249258 | F33: 27003.33948 | G33: 0.416864 | H33: 11217.64426 | I33: 0.596151 | J33: 8665.71513 | K33: 0.17801 | L33: 1927.0374 | M33: 0.118481 | N33: Educational care
B34: Gospodarka komunalna i ochrona | N34: Municipal economy
B35: środowiska | D35: 322348.2314 | E35: 2.170119964 | F35: 224613.4108 | G35: 3.467476 | H35: 7111.46598 | I35: 0.377932 | J35: 90027.89216 | K35: 1.849343 | L35: 595.46246 | M35: 0.036611 | N35: and environmental protection
B36: Kultura i ochrona dziedzictwa
B37: narodowego | D37: 136032.7919 | E37: 0.9158030003 | F37: 49655.64345 | G37: 0.76656 | H37: 391.40118 | I37: 0.0208 | J37: 80304.95575 | K37: 1.649615 | L37: 5680.7915 | M37: 0.349277 | N37: Culture and national heritage
B38: Kultura fizyczna i sport | D38: 69248.98887 | E38: 0.4661995898 | F38: 54180.6929 | G38: 0.836416 | H38: 2262.11351 | I38: 0.120218 | J38: 12773.71386 | K38: 0.262396 | L38: 32.4686 | M38: 0.001996 | N38: Physical education and sport
B40: a Bez dochodów gmin mających również status miasta na prawach powiatu.
B41: a Excluding revenue of gminas which are also cities with powiat status.

Sheet Tabl. 6.
B4: Tabl. 6. Wydatki jednostek samorządu terytorialnego według rodzajów
B5: Expenditure of local self-government entities by types
B6: WYSZCZEGÓLNIENIE | D6: Ogółem Total | F6: Gminy a Gminas a | H6: Powiaty Powiats | J6: Miasta na prawach powiatu Cities with powiat status | L6: Województwo Voivodship | N6: SPECIFICATION
D9: w tys. zł in thous. zl | E9: w % in % | F9: w tys. zł in thous. zl | G9: w % in % | H9: w tys. zł in thous. zl | I9: w % in % | J9: w tys. zł in thous. zl | K9: w % in % | L9: w tys. zł in thous. zl | M9: w % in %
B10: OGÓŁEM | C10: 2012 | D10: 14695196.86 | E10: 100 | F10: 6595255.268 | G10: 100 | H10: 1920551.169 | I10: 100 | J10: 4492160.165 | K10: 100 | L10: 1687230.26 | M10: 100 | N10: T O T A L
C11: 2013 | D11: 14645089.55 | E11: 100,0 | F11: 6419477.846 | G11: 100 | H11: 1870169.706 | I11: 100 | J11: 4767156.593 | K11: 100 | L11: 1588285.409 | M11: 100
B13: Wydatki bieżące | D13: 11809319.9 | E13: 80.63672032 | F13: 5247282.424 | G13: 81.74002 | H13: 1670338.412 | I13: 89.3148 | J13: 3921321.096 | K13: 82.25702 | L13: 970377.9724 | M13: 61.09594 | N13: Current expenditure
B14: w tym: | N14: of which:
B15: Dotacje | D15: 1339233.474 | E15: 9.144590542 | F15: 444157.4144 | G15: 6.9189 | H15: 127417.1344 | I15: 6.81313 | J15: 406587.7076 | K15: 8.52894 | L15: 361071.2178 | M15: 22.7334 | N15: Allocations
B16: w tym dotacje dla zakładów budżetowych, go- ospodarstw pomocniczych, środków spcjal- | N16: of which allocations for budgetary establish- ments, auxiliary units, special funds and
B17: nych i funduszy celowych | D17: 57252.18491 | E17: 0.3909309308 | F17: 38596.00374 | G17: 0.60123 | H17: - | I17: - | J17: 18656.18117 | K17: 0.39135 | L17: - | M17: - | N17: appropriated funds
B18: Świadczenia na rzecz osób fizycznych | D18: 1132179.776 | E18: 7.730780834 | F18: 780013.9995 | G18: 12.15074 | H18: 71350.09705 | I18: 3.81517 | J18: 269920.1774 | K18: 5.66208 | L18: 10895.50239 | M18: 0.68599 | N18: Benefits for natural persons
B19: Wydatki bieżące jednostek budżetowych | D19: 8838443.338 | E19: 60.35089991 | F19: 3831547.238 | G19: 59.68628 | H19: 1415707.354 | I19: 75.69941 | J19: 3094120.269 | K19: 64.90494 | L19: 497068.4774 | M19: 31.29592 | N19: Current expenditure of budgetary entities
B20: w tym: | N20: of which:
B21: wynagrodzenia | D21: 4164106.507 | E21: 28.43346564 | F21: 1895100.521 | G21: 29.5211 | H21: 825370.1218 | I21: 44.13343 | J21: 1255181.167 | K21: 26.32977 | L21: 188454.697 | M21: 11.86529 | N21: wages and salaries
B22: składki na obowiązkowe ubezpieczenia | N22: contributions to compulsory social
B23: społeczne i Fundusz Pracy | D23: 749115.9446 | E23: 5.115133928 | F23: 358114.187 | G23: 5.57856 | H23: 136771.8141 | I23: 7.31334 | J23: 222385.3486 | K23: 4.66495 | L23: 31844.59491 | M23: 2.00497 | N23: security and the Labour Fund
B24: zakup materiałów i usług | D24: 3128445.149 | E24: 21.36173451 | F24: 1307461.141 | G24: 20.36709 | H24: 307407.1361 | I24: 16.43739 | J24: 1269813.123 | K24: 26.6367 | L24: 243763.7491 | M24: 15.3476 | N24: purchase of materials and services
B25: Obsługa długu publicznego | D25: 259393.0336 | E25: 1.771194588 | F25: 108715.7497 | G25: 1.69353 | H25: 31706.45312 | I25: 1.69538 | J25: 92578.26999 | K25: 1.942 | L25: 26392.56084 | M25: 1.6617 | N25: Public debt servicing
B26: Wydatki majątkowe | D26: 2835769.65 | E26: 19.36327968 | F26: 1172195.422 | G26: 18.25998 | H26: 199831.2944 | I26: 10.6852 | J26: 845835.4969 | K26: 17.74298 | L26: 617907.4367 | M26: 38.90406 | N26: Property expenditure
B27: w tym inwestycyjne b …………………...........……….. | D27: 2627515.656 | E27: 17.94127408 | F27: 1116089.87 | G27: 17.38599 | H27: 197826.2944 | I27: 10.57799 | J27: 720696.0558 | K27: 15.11794 | L27: 592903.4367 | M27: 37.32978 | N27: of which investment expenditure b
B29: a Bez wydatków gmin mających również status miasta na prawach powiatu. b Łącznie z dotacjami na finansowanie zadań inwestycyjnych zakładów budżetowych, gospodarstw pomocniczych, środków specjalnych i funduszy celowych.
B30: a Excluding expenditure of gminas which are also cities with powiat status. b Including allocations for financing investment tasks of budgetary establishments, auxiliary units, special funds and appropriated funds.

Sheet Tabl. 7.
B4: Tabl. 7. Wydatki jednostek samorządu terytorialnego według działów
B5: Expenditure of local self-government entities by divisions
B6: WYSZCZEGÓLNIENIE | D6: Ogółem Total | F6: Gminy a Gminas a | H6: Powiaty Powiats | J6: Miasta na prawach powiatu Cities with powiat status | L6: Wojewódz- two Voivodship | N6: SPECIFICATION
D9: w tys. zł in thous. zl | E9: w % in % | F9: w tys. zł in thous. zl | G9: w % in % | H9: w tys. zł in thous. zl | I9: w % in % | J9: w tys. zł in thous. zl | K9: w % in % | L9: w tys. zł in thous. zl | M9: w % in %
B10: OGÓŁEM | C10: 2012 | D10: =F10+H10+J10+L10 -> 14695196.86 | E10: 100 | F10: 6595255.268 | G10: 100 | H10: 1920551.169 | I10: 100 | J10: 4492160.165 | K10: 100 | L10: 1687230.26 | M10: 100 | N10: T O T A L
C11: 2013 | D11: 14645089.55 | E11: 100 | F11: 6419477.846 | G11: 100 | H11: 1870169.706 | I11: 100 | J11: 4767156.593 | K11: 100 | L11: 1588285.409 | M11: 100
B12: w tym: | N12: of which:
B13: Rolnictwo i łowiectwo | D13: 417948.0904 | E13: 2.853844552 | F13: 133545.4257 | G13: 2.080316 | H13: 18873.38177 | I13: 1.00918 | J13: 588.68716 | K13: 0.012348 | L13: 264940.5958 | M13: 16.680918 | N13: Agriculture and hunting
B14: Leśnictwo | D14: 3983.2289 | E14: 0.02719839224 | F14: 436.4831 | G14: 0.006799 | H14: 2853.3521 | I14: 0.152571 | J14: 693.3937 | K14: 0.014545 | L14: - | M14: - | N14: Forestry
B15: Wytwarzanie i zaopatrywanie
B16: w energię elektryczną, gaz, wodę | D16: 44162.15137 | E16: 0.3015492067 | F16: 43397.32483 | G16: 0.676025 | H16: - | I16: - | J16: 33.948 | K16: 0.000712 | L16: 730.87854 | M16: 0.046016 | N16: Electricity, gas and water supply
B17: Transport i łączność | D17: 2099684.757 | E17: 14.33712474 | F17: 518926.7754 | G17: 8.083629 | H17: 205579.0214 | I17: 10.992532 | J17: 731294.2843 | K17: 15.340261 | L17: 643884.6758 | M17: 40.539607 | N17: Transport and communication
B18: Turystyka | D18: 75244.85607 | E18: 0.5137889789 | F18: 19901.63299 | G18: 0.310019 | H18: 506.40596 | I18: 0.027078 | J18: 44609.92021 | K18: 0.935776 | L18: 10226.89691 | M18: 0.643895 | N18: Tourism
B19: Gospodarka mieszkaniowa | D19: 689664.1508 | E19: 4.709183568 | F19: 302004.4985 | G19: 4.704502 | H19: 22353.97896 | I19: 1.195291 | J19: 362672.8751 | K19: 7.607739 | L19: 2632.79824 | M19: 0.165763 | N19: Dwelling economy
B20: Działalność usługowa | D20: 148347.9846 | E20: 1.012953755 | F20: 29231.28364 | G20: 0.455352 | H20: 38856.53655 | I20: 2.077701 | J20: 73681.68797 | K20: 1.54561 | L20: 6578.47643 | M20: 0.414187 | N20: Service activity
B21: Administracja publiczna | D21: 1342584.011 | E21: 9.167468767 | F21: 710759.1214 | G21: 11.071914 | H21: 195610.4861 | I21: 10.459504 | J21: 313763.0927 | K21: 6.581766 | L21: 122451.3105 | M21: 7.709654 | N21: Public administration
B22: Bezpieczeństwo publiczne
B23: i ochrona przeciwpożarowa | D23: 287070.6203 | E23: 1.960183441 | F23: 78612.3889 | G23: 1.224591 | H23: 102398.4944 | I23: 5.475358 | J23: 103455.9686 | K23: 2.170181 | L23: 2603.76838 | M23: 0.163935 | N23: Public safety and fire care
B24: Dochody od osób prawnych | N24: Corporate income tax
B25: i od osób fizycznych | D25: 93.21494 | E25: 0.0006364927962 | F25: 48.05852 | G25: 0.000748 | H25: 44.36461 | I25: 0.002372 | J25: 0.79181 | K25: 1.6e-05 | L25: - | M25: - | N25: and personal income tax
B26: Różne rozliczenia | D26: 541277.8944 | E26: 3.695968485 | F26: 64509.73373 | G26: 1.004906 | H26: 23350.60961 | I26: 1.248582 | J26: 379453.1581 | K26: 7.959737 | L26: 73964.393 | M26: 4.65687 | N26: Different settlements
B27: Obsługa długu publicznego b ……..........…………… | D27: 259762.7131 | E27: 1.773718844 | F27: 109082.4291 | G27: 1.699241 | H27: 31709.45312 | I27: 1.695538 | J27: 92578.26999 | K27: 1.942001 | L27: 26392.56084 | M27: 1.661701 | N27: Public debt servicing b
B28: Oświata i wychowanie | D28: 4057943.571 | E28: 27.70856099 | F28: 2091739.003 | G28: 32.584254 | H28: 568076.1416 | I28: 30.375646 | J28: 1270018.15 | K28: 26.640999 | L28: 128110.2772 | M28: 8.065948 | N28: Education
B29: Ochrona zdrowia | D29: 272996.9521 | E29: 1.864085236 | F29: 67206.69678 | G29: 1.046918 | H29: 105141.1835 | I29: 5.622012 | J29: 42186.54215 | K29: 0.884941 | L29: 58462.52968 | M29: 3.680857 | N29: Health care
B30: Pomoc społeczna | D30: 1744374.207 | E30: 11.91098354 | F30: 929894.7938 | G30: 14.48552 | H30: 320118.3326 | I30: 17.117074 | J30: 480478.4179 | K30: 10.07893 | L30: 13882.66245 | M30: 0.874065 | N30: Social welfare
B31: Pozostałe zadania w zakresie
B32: polityki społecznej | D32: 208605.6282 | E32: 1.424406641 | F32: 28709.57318 | G32: 0.447225 | H32: 73958.67367 | I32: 3.95465 | J32: 76221.28149 | K32: 1.598883 | L32: 29716.09986 | M32: 1.870954 | N32: Other tasks in sphere of social policy
B33: Edukacyjna opieka wychowawcza | D33: 361892.9517 | E33: 2.471087325 | F33: 79822.14444 | G33: 1.243436 | H33: 146790.2362 | I33: 7.849032 | J33: 115619.0629 | K33: 2.425325 | L33: 19661.5081 | M33: 1.237907 | N33: Educational care
B34: Gospodarka komunalna | N34: Municipal economy
B35: i ochrona środowiska | D35: 953176.6855 | E35: 6.508507046 | F35: 655588.4493 | G35: 10.212488 | H35: 1527.73629 | I35: 0.081689 | J35: 294878.4653 | K35: 6.185625 | L35: 1182.03465 | M35: 0.074422 | N35: and environmental protection
B36: Kultura i ochrona
B37: dziedzictwa narodowego | D37: 758142.201 | E37: 5.176767259 | F37: 337855.3148 | G37: 5.262971 | H37: 2997.63454 | I37: 0.160286 | J37: 318449.4347 | K37: 6.68007 | L37: 98839.81696 | M37: 6.223051 | N37: Culture and national heritage
B38: Kultura fizyczna i sport | D38: 288836.2569 | E38: 1.972239609 | F38: 203339.0978 | G38: 3.167533 | H38: 8232.69914 | I38: 0.440211 | J38: 63279.58495 | K38: 1.327407 | L38: 13984.87502 | M38: 0.880501 | N38: Physical education and sport
B40: a Bez wydatków gmin mających również status miasta na prawach powiatu. b Obejmuje wydatki na obsługę długu publicznego oraz wydatki bieżące jednostek budżetowych związane z tą obsługą.
B41: a Excluding expenditure of gminas which are also cities with powiat status. b Includes public debt servicing and current expenditure of budgetary entities connected with this servicing.

Sheet Tabl. 8.
B4: Tabl. 8. Dochody budżetów gmin a według rodzajów oraz według podregionów i powiatów
B5: Revenue of gminas budgets a by types as well as subregions and powiats
B6: WYSZCZEGÓLNIENIE SPECIFICATION | D6: Ogółem Grand total | E6: Dochody własne Own revenue | H6: Dotacje celowe b Appropriated allocations b | K6: Subwencja ogólna General subsidies
E7: razem total | F7: w tym udział w podatku dochodowym of which share in income tax | H7: razem total | I7: w tym of which | K7: razem total | L7: w tym na zadania oświatowe of which for educational tasks
F8: od osób prawnych corporate income tax | G8: od osób fizycznych personal income tax | I8: z budżetu państwa from state budget | J8: z funduszy celowych from appropriated funds
D9: w tys. zł in thous. zl
B10: OGÓŁEM | C10: 2012 | D10: 6634836.572 | E10: 3830613.356 | F10: 235737.503 | G10: 1113317.995 | H10: 1302884.043 | I10: 960766.9137 | J10: 12338.28794 | K10: 1501339.173 | L10: 1178587.796
B11: TOTAL | C11: 2013 | D11: 6477720.21 | E11: 3799469.775 | F11: 150180.6586 | G11: 1115247.555 | H11: 1208458.036 | I11: 981803.0458 | J11: 25366.53752 | K11: 1469792.399 | L11: 1138214.1
B13: Gminy miejskie | D13: 2135723.111 | E13: 1337972.378 | F13: 58459.05223 | G13: 458760.902 | H13: 381493.5814 | I13: 288890.9451 | J13: 14388.74665 | K13: 416257.152 | L13: 359895.992
B14: Urban gminas
B15: Gminy miejsko-wiejskie | D15: 2457167.366 | E15: 1411301.239 | F15: 78886.4148 | G15: 366034.407 | H15: 472908.4733 | I15: 404743.6647 | J15: 5479.43165 | K15: 572957.654 | L15: 417881.335
B16: Urban-rural gminas
B17: Gminy wiejskie | D17: 1884829.732 | E17: 1050196.158 | F17: 12835.19152 | G17: 290452.246 | H17: 354055.981 | I17: 288168.4359 | J17: 5498.35922 | K17: 480577.593 | L17: 360436.773
B18: Rural gminas
B19: PODREGION JELENIOGÓRSKI | D19: 1672723.459 | E19: 914791.1292 | F19: 12780.1306 | G19: 243473.199 | H19: 378323.4222 | I19: 320191.7971 | J19: 14194.2293 | K19: 379608.908 | L19: 282465.374
B20: SUBREGION
B21: POWIAT BOLESŁAWIECKI | D21: 288216.6126 | E21: 178730.8467 | F21: 1702.68086 | G21: 45531.8 | H21: 45288.53286 | I21: 37898.34907 | J21: 421.82916 | K21: 64197.233 | L21: 55583.633
B22: Gminy miejskie:
B23: Urban gminas:
B24: Bolesławiec | D24: 130223.5993 | E24: 87488.89938 | F24: 1298.91905 | G24: 25093.605 | H24: 20953.26794 | I24: 14767.40275 | J24: 30 | K24: 21781.432 | L24: 21494.18
B25: Gminy miejsko-wiejskie:
B26: Urban-rural gminas:
B27: Nowogrodziec | D27: 38303.59485 | E27: 16566.67129 | F27: 120.93595 | G27: 4385.394 | H27: 6545.12056 | I27: 6048.1962 | J27: 81.6 | K27: 15191.803 | L27: 11864.344
B28: Gminy wiejskie:
B29: Rural gminas:
B30: Bolesławiec | D30: 40170.02247 | E30: 27375.60661 | F30: 132.94509 | G30: 7279.596 | H30: 5939.47886 | I30: 5421.75067 | J30: 254.1 | K30: 6854.937 | L30: 5027.042
B31: Gromadka | D31: 22705.60892 | E31: 14554.52517 | F31: 7.0205 | G31: 2015.498 | H31: 3329.75575 | I31: 3147.48807 | J31: 22.12916 | K31: 4821.328 | L31: 3828.232
B32: Osiecznica | D32: 28139.25393 | E32: 15666.39365 | F32: 139.38318 | G32: 3209.679 | H32: 3696.07128 | I32: 3688.67291 | J32: - | K32: 8776.789 | L32: 7298.248
B33: Warta Bolesławiecka | D33: 28674.53306 | E33: 17078.75059 | F33: 3.47709 | G33: 3548.028 | H33: 4824.83847 | I33: 4824.83847 | J33: 34 | K33: 6770.944 | L33: 6071.587
B34: POWIAT JAWORSKI | D34: 155368.7636 | E34: 75320.88713 | F34: 738.0519 | G34: 22718.211 | H34: 39956.68448 | I34: 31587.3389 | J34: 52.105 | K34: 40091.192 | L34: 27005.436
B35: Gminy miejskie:
B36: Urban gminas:
B37: Jawor | D37: 65563.61506 | E37: 38985.7291 | F37: 667.53631 | G37: 13154.315 | H37: 13487.30096 | I37: 8713.4529 | J37: 52.105 | K37: 13090.585 | L37: 10944.5
B38: Gminy miejsko-wiejskie:
B39: Urban-rural gminas:
B40: Bolków | D40: 29895.72951 | E40: 11528.94712 | F40: 41.60165 | G40: 3646.63 | H40: 7658.45539 | I40: 7278.02501 | J40: - | K40: 10708.327 | L40: 5049.747
B41: Gminy wiejskie:
B42: Rural gminas:
B43: Męcinka | D43: 17243.26792 | E43: 8218.85841 | F43: 0.94731 | G43: 1616.295 | H43: 4593.15051 | I43: 4006.04001 | J43: - | K43: 4431.259 | L43: 3537.624
B44: Mściwojów | D44: 16681.31961 | E44: 6244.76259 | F44: 11.31301 | G44: 1466.979 | H44: 7295.55502 | I44: 6557.19086 | J44: - | K44: 3141.002 | L44: 2076.108
B45: Paszowice | D45: 13582.08188 | E45: 5258.83511 | F45: 4.61686 | G45: 1323.368 | H45: 3917.23077 | I45: 2145.04324 | J45: - | K45: 4406.016 | L45: 2475.001
B46: Wądroże Wielkie | D46: 12402.74963 | E46: 5083.7548 | F46: 12.03676 | G46: 1510.624 | H46: 3004.99183 | I46: 2887.58688 | J46: - | K46: 4314.003 | L46: 2922.456
B47: POWIAT JELENIOGÓRSKI | D47: 226250.5369 | E47: 132957.6739 | F47: 737.54327 | G47: 30983.508 | H47: 51718.34997 | I47: 40301.63501 | J47: 18.50955 | K47: 41574.513 | L47: 32138.626
B48: Gminy miejskie:
B49: Urban gminas:
B50: Karpacz | D50: 36526.16795 | E50: 22898.1897 | F50: 164.28844 | G50: 2680.706 | H50: 10044.38825 | I50: 3503.95144 | J50: - | K50: 3583.59 | L50: 3378.802
B51: Kowary | D51: 29330.2171 | E51: 15503.21153 | F51: 101.74809 | G51: 4863.226 | H51: 6719.28057 | I51: 6064.83471 | J51: - | K51: 7107.725 | L51: 4793.268
B52: Piechowice | D52: 19242.78025 | E52: 12510.44051 | F52: 90.21516 | G52: 3487.316 | H52: 4634.24074 | I52: 3125.61418 | J52: 3.50955 | K52: 2098.099 | L52: 2098.099
B53: Szklarska Poręba | D53: 32987.44819 | E53: 25116.39058 | F53: 126.4267 | G53: 3245.818 | H53: 5313.43861 | I53: 5008.5886 | J53: 15 | K53: 2557.619 | L53: 2557.619
B54: Gminy wiejskie:
B55: Rural gminas:
B56: Janowice Wielkie | D56: 15345.76908 | E56: 6382.80384 | F56: 9.46298 | G56: 1869.961 | H56: 5128.81424 | I56: 5123.4784 | J56: - | K56: 3834.151 | L56: 2040.159
B57: Jeżów Sudecki | D57: 21851.35731 | E57: 13247.56866 | F57: 24.70272 | G57: 4084.937 | H57: 3677.97165 | I57: 3310.46522 | J57: - | K57: 4925.817 | L57: 3109.411
B58: Mysłakowice | D58: 30538.05686 | E58: 16864.91204 | F58: 110.87375 | G58: 4863.948 | H58: 6775.34182 | I58: 6386.11427 | J58: - | K58: 6897.803 | L58: 6751.837
B59: Podgórzyn | D59: 23730.69816 | E59: 13073.80846 | F59: 36.59341 | G59: 4021.835 | H59: 6102.2797 | I59: 4714.32697 | J59: - | K59: 4554.61 | L59: 3886.309
B60: Stara Kamienica | D60: 16698.04195 | E60: 7360.34856 | F60: 73.23202 | G60: 1865.761 | H60: 3322.59439 | I60: 3064.26122 | J60: - | K60: 6015.099 | L60: 3523.122
B61: POWIAT KAMIENNOGÓRSKI | D61: 131761.0342 | E61: 62372.48871 | F61: 540.33777 | G61: 18779.578 | H61: 28895.74653 | I61: 26951.57822 | J61: 180.68362 | K61: 40492.799 | L61: 25231.384
B62: Gminy miejskie:
B63: Urban gminas:
B64: Kamienna Góra | D64: 56731.5424 | E64: 31239.37279 | F64: 453.29278 | G64: 9353.286 | H64: 10955.05661 | I64: 10760.57005 | J64: 20.33362 | K64: 14537.113 | L64: 10135.607
B65: Gminy miejsko-wiejskie:
B66: Urban-rural gminas:
B67: Lubawka | D67: 34073.84628 | E67: 13367.80396 | F67: 35.66343 | G67: 4470.805 | H67: 9294.98032 | I67: 7941.06242 | J67: 160.35 | K67: 11411.062 | L67: 5964.088
B68: Gminy wiejskie:
B69: Rural gminas:
B70: Kamienna Góra | D70: 27432.70958 | E70: 12696.64191 | F70: 33.88821 | G70: 3471.833 | H70: 5471.51867 | I70: 5161.58761 | J70: - | K70: 9264.549 | L70: 6079.259
B71: Marciszów | D71: 13522.93598 | E71: 5068.67005 | F71: 17.49335 | G71: 1483.654 | H71: 3174.19093 | I71: 3088.35814 | J71: - | K71: 5280.075 | L71: 3052.43
B72: POWIAT LUBAŃSKI | D72: 199421.0757 | E72: 90134.11225 | F72: 875.21982 | G72: 26447.07 | H72: 62880.28749 | I72: 58624.60894 | J72: 636 | K72: 46406.676 | L72: 33879.932
B73: Gminy miejskie:
B74: Urban gminas:
B75: Lubań | D75: 58452.31294 | E75: 35188.50988 | F75: 653.66421 | G75: 13555.897 | H75: 10620.36206 | I75: 9404.06253 | J75: 4 | K75: 12643.441 | L75: 11011.958
B76: Świeradów-Zdrój | D76: 25397.06035 | E76: 15146.16154 | F76: 44.44733 | G76: 2041.756 | H76: 6837.48881 | I76: 6174.27227 | J76: - | K76: 3413.41 | L76: 3344.226
B77: Gminy miejsko-wiejskie:
B78: Urban-rural gminas:
B79: Leśna | D79: 38466.81101 | E79: 12881.30768 | F79: 51.52542 | G79: 3210.388 | H79: 14877.31633 | I79: 13945.46197 | J79: 632 | K79: 10708.187 | L79: 6971.391
B80: Olszyna | D80: 38185.27273 | E80: 8512.70885 | F80: 92.87617 | G80: 2328.045 | H80: 22352.67488 | I80: 22223.72563 | J80: - | K80: 7319.889 | L80: 4464.213
B81: Gminy wiejskie:
B82: Rural gminas:
B83: Lubań | D83: 19540.57009 | E83: 8424.28159 | F83: 30.28577 | G83: 2194.094 | H83: 3985.0435 | I83: 3930.42891 | J83: - | K83: 7131.245 | L83: 4466.741
B84: Platerówka | D84: 4544.05128 | E84: 2532.99226 | F84: 0.09277 | G84: 667.602 | H84: 962.44602 | I84: 961.32606 | J84: - | K84: 1048.613 | L84: 788.486
B85: Siekierczyn | D85: 14834.99734 | E85: 7448.15045 | F85: 2.32815 | G85: 2449.288 | H85: 3244.95589 | I85: 1985.33157 | J85: - | K85: 4141.891 | L85: 2832.917
B86: POWIAT LWÓWECKI | D86: 146402.4477 | E86: 65330.59282 | F86: 467.50927 | G86: 17451.523 | H86: 34803.19484 | I86: 33065.80449 | J86: - | K86: 46268.66 | L86: 29663.635
B87: Gminy miejsko-wiejskie:
B88: Urban-rural gminas:
B89: Gryfów Śląski | D89: 25810.94702 | E89: 10520.70167 | F89: 92.44842 | G89: 4023.737 | H89: 7297.25835 | I89: 7220.7469 | J89: - | K89: 7992.987 | L89: 4613.158
B90: Lubomierz | D90: 22379.44483 | E90: 6530.7458 | F90: 5.15148 | G90: 1574.569 | H90: 5579.60803 | I90: 4835.08434 | J90: - | K90: 10269.091 | L90: 5942.8
B91: Lwówek Śląski | D91: 53923.77386 | E91: 29060.72222 | F91: 319.03447 | G91: 7296.105 | H91: 11717.37364 | I91: 11580.04271 | J91: - | K91: 13145.678 | L91: 9429.283
B92: Mirsk | D92: 31904.65344 | E92: 14665.68269 | F92: 30.39228 | G92: 3021.161 | H92: 6773.54675 | I92: 6200.30971 | J92: - | K92: 10465.424 | L92: 7398.256
B93: Wleń | D93: 12383.62851 | E93: 4552.74044 | F93: 20.48262 | G93: 1535.951 | H93: 3435.40807 | I93: 3229.62083 | J93: - | K93: 4395.48 | L93: 2280.138
B94: POWIAT ZGORZELECKI | D94: 372042.9047 | E94: 234648.8717 | F94: 7083.48069 | G94: 60946.971 | H94: 73521.84501 | I94: 56201.40392 | J94: 12528.18677 | K94: 63872.188 | L94: 53423.632
B95: Gminy miejskie:
B96: Urban gminas:
B97: Zawidów | D97: 11847.05743 | E97: 5501.42488 | F97: 40.0268 | G97: 2560.569 | H97: 2410.81155 | I97: 2397.49155 | J97: - | K97: 3934.821 | L97: 3199.545
B98: Zgorzelec | D98: 102697.4539 | E98: 53516.59381 | F98: 1097.2958 | G98: 25389.517 | H98: 33871.03313 | I98: 24936.98364 | J98: 12528.18677 | K98: 15309.827 | L98: 15162.198
B99: Gminy miejsko-wiejskie:
B100: Urban-rural gminas:
B101: Bogatynia | D101: 151042.8182 | E101: 120573.69 | F101: 5619.08312 | G101: 19532.641 | H101: 13290.99017 | I101: 11186.83992 | J101: - | K101: 17178.138 | L101: 15317.357
B102: Pieńsk | D102: 26953.26422 | E102: 14337.65963 | F102: 78.79463 | G102: 3277.866 | H102: 5000.18459 | I102: 4945.20362 | J102: - | K102: 7615.42 | L102: 4697.908
B103: Węgliniec | D103: 26255.15466 | E103: 10440.75576 | F103: 23.12003 | G103: 3409.675 | H103: 6161.8979 | I103: 4963.27273 | J103: - | K103: 9652.501 | L103: 6411.462
B104: Gminy wiejskie:
B105: Rural gminas:
B106: Sulików | D106: 20968.08444 | E106: 12031.43225 | F106: 106.3626 | G106: 2896.722 | H106: 4117.83819 | I106: 3829.11013 | J106: - | K106: 4818.814 | L106: 4188.919
B107: Zgorzelec | D107: 32279.07183 | E107: 18247.31535 | F107: 118.79771 | G107: 3879.981 | H107: 8669.08948 | I107: 3942.50233 | J107: - | K107: 5362.667 | L107: 4446.243
B108: POWIAT ZŁOTORYJSKI | D108: 153260.084 | E108: 75295.656 | F108: 635.30702 | G108: 20614.538 | H108: 41258.78104 | I108: 35561.07858 | J108: 356.9152 | K108: 36705.647 | L108: 25539.096
B109: Gminy miejskie:
B110: Urban gminas:
B111: Wojcieszów | D111: 17327.02768 | E111: 7001.27893 | F111: 163.90658 | G111: 1409.12 | H111: 6845.25675 | I111: 6185.1599 | J111: - | K111: 3480.492 | L111: 2394.873
B112: Złotoryja | D112: 47269.42098 | E112: 29010.99768 | F112: 258.60806 | G112: 10328.328 | H112: 9813.3413 | I112: 8638.05242 | J112: - | K112: 8445.082 | L112: 6402.699
B113: Gminy miejsko-wiejskie:
B114: Urban-rural gminas:
B115: Świerzawa | D115: 24826.0886 | E115: 9041.91423 | F115: 114.53779 | G115: 2319.941 | H115: 8078.98137 | I115: 6882.09449 | J115: 326.5152 | K115: 7705.193 | L115: 4923.897
B116: Gminy wiejskie:
B117: Rural gminas:
B118: Pielgrzymka | D118: 18808.28435 | E118: 7351.60056 | F118: 0.75196 | G118: 1466.556 | H118: 5672.80979 | I118: 4688.92103 | J118: - | K118: 5783.874 | L118: 3482.116
B119: Zagrodno | D119: 20939.63091 | E119: 11420.38101 | F119: -6.91315 | G119: 1833.184 | H119: 4262.0179 | I119: 4134.2309 | J119: - | K119: 5257.232 | L119: 3302.903
B120: Złotoryja | D120: 24089.63152 | E120: 11469.48359 | F120: 104.41578 | G120: 3257.409 | H120: 6586.37393 | I120: 5032.61984 | J120: 30.4 | K120: 6033.774 | L120: 5032.608
B121: PODREGION LEGNICKO-GŁOGOWSKI | D121: 1380324.183 | E121: 917420.0663 | F121: 105582.0721 | G121: 254358.544 | H121: 190197.5427 | I121: 158819.5305 | J121: 499.01689 | K121: 272706.574 | L121: 226628.921
B122: SUBREGION
B123: POWIAT GŁOGOWSKI | D123: 314728.7163 | E123: 220767.0066 | F123: 16631.20626 | G123: 68022.409 | H123: 40595.72776 | I123: 31826.4318 | J123: 235.23076 | K123: 53365.982 | L123: 48513.904
B124: Gminy miejskie:
B125: Urban gminas:
B126: Głogów | D126: 227144.6832 | E126: 165515.4964 | F126: 16292.90655 | G126: 55171.512 | H126: 27386.55577 | I126: 20289.50246 | J126: 215.93076 | K126: 34242.631 | L126: 33775.825
B127: Gminy wiejskie:
B128: Rural gminas:
B129: Głogów | D129: 19533.88199 | E129: 12764.18823 | F129: 76.71741 | G129: 4831.269 | H129: 2914.99576 | I129: 2581.40611 | J129: 8.3 | K129: 3854.698 | L129: 3314.708
B130: Jerzmanowa | D130: 31999.93232 | E130: 26344.23827 | F130: 7.28982 | G130: 4027.594 | H130: 1849.29905 | I130: 1583.13091 | J130: 2 | K130: 3806.395 | L130: 3481.167
B131: Kotla | D131: 14690.25376 | E131: 6689.83734 | F131: 67.51846 | G131: 1977.597 | H131: 3493.18142 | I131: 2720.62321 | J131: 9 | K131: 4507.235 | L131: 3413.047
B132: Pęcław | D132: 8498.60513 | E132: 3226.36001 | F132: 2.24988 | G132: 739.082 | H132: 2268.35412 | I132: 2041.96512 | J132: - | K132: 3003.891 | L132: 1845.563
B133: Żukowice | D133: 12861.35995 | E133: 6226.88631 | F133: 184.52414 | G133: 1275.355 | H133: 2683.34164 | I133: 2609.80399 | J133: - | K133: 3951.132 | L133: 2683.594
B134: POWIAT GÓROWSKI | D134: 118570.5009 | E134: 46180.27469 | F134: 772.29655 | G134: 12380.555 | H134: 34471.88923 | I134: 31837.21219 | J134: 68 | K134: 37918.337 | L134: 24657.167
B135: Gminy miejsko-wiejskie:
B136: Urban-rural gminas:
B137: Góra | D137: 68606.78657 | E137: 27108.24036 | F137: 599.62676 | G137: 7797.4 | H137: 22603.18521 | I137: 20543.35568 | J137: - | K137: 18895.361 | L137: 12863.876
B138: Wąsosz | D138: 23522.17895 | E138: 10329.57262 | F138: 106.13083 | G138: 2345.243 | H138: 4694.83833 | I138: 4529.79978 | J138: 68 | K138: 8497.768 | L138: 5737.322
B139: Gminy wiejskie:
B140: Rural gminas:
B141: Jemielno | D141: 11145.50014 | E141: 3755.13207 | F141: 23.9105 | G141: 766.001 | H141: 3287.34507 | I141: 3184.80311 | J141: - | K141: 4103.023 | L141: 2102.001
B142: Niechlów | D142: 15296.03526 | E142: 4987.32964 | F142: 42.62846 | G142: 1471.911 | H142: 3886.52062 | I142: 3579.25362 | J142: - | K142: 6422.185 | L142: 3953.968
B143: POWIAT LEGNICKI | D143: 167420.6401 | E143: 92351.68553 | F143: 913.61148 | G143: 26749.357 | H143: 31282.70652 | I143: 26865.37939 | J143: 136.51413 | K143: 43786.248 | L143: 32291.627
B144: Gminy miejskie:
B145: Urban gminas:
B146: Chojnów | D146: 38109.74746 | E146: 18699.64758 | F146: 514.48923 | G146: 7254.55 | H146: 7533.80188 | I146: 6285.83475 | J146: 19.1 | K146: 11876.298 | L146: 8269.575
B147: Gminy miejsko-wiejskie:
B148: Urban-rural gminas:
B149: Prochowice | D149: 22847.15873 | E149: 13164.13195 | F149: 119.29233 | G149: 3160.258 | H149: 3696.87178 | I149: 3588.20228 | J149: - | K149: 5986.155 | L149: 5326.666
B150: Gminy wiejskie:
B151: Rural gminas:
B152: Chojnów | D152: 25166.55909 | E152: 13272.03842 | F152: 73.06018 | G152: 3834.819 | H152: 5271.00667 | I152: 5049.67153 | J152: - | K152: 6623.514 | L152: 3728.917
B153: Krotoszyce | D153: 12398.32698 | E153: 6976.43712 | F153: 33.9987 | G153: 1271.469 | H153: 3038.95786 | I153: 1554.22617 | J153: - | K153: 2382.932 | L153: 1956.086
B154: Kunice | D154: 20114.76822 | E154: 12949.34108 | F154: 16.52767 | G154: 5311.905 | H154: 2688.43014 | I154: 2292.32938 | J154: 83.77 | K154: 4476.997 | L154: 3859.352
B155: Legnickie Pole | D155: 22878.74676 | E155: 16232.71313 | F155: 22.53373 | G155: 2225.42 | H155: 2992.80363 | I155: 2465.91587 | J155: 24.64413 | K155: 3653.23 | L155: 3083.493
B156: Miłkowice | D156: 17041.73252 | E156: 7656.23651 | F156: 132.67456 | G156: 2905.776 | H156: 3747.71901 | I156: 3442.48886 | J156: - | K156: 5637.777 | L156: 3944.356
B157: Ruja | D157: 8863.60029 | E157: 3401.13974 | F157: 1.03508 | G157: 785.16 | H157: 2313.11555 | I157: 2186.71055 | J157: 9 | K157: 3149.345 | L157: 2123.182
B158: POWIAT LUBIŃSKI | D158: 410899.1147 | E158: 280707.3279 | F158: 28711.14834 | G158: 100465.633 | H158: 44903.02978 | I158: 38430.14341 | J158: 59.272 | K158: 85288.757 | L158: 81657.071
B159: Gminy miejskie:
B160: Urban gminas:
B161: Lubin | D161: 278406.0206 | E161: 184526.5167 | F161: 25245.5794 | G161: 76555.285 | H161: 27838.10189 | I161: 23545.6032 | J161: - | K161: 66041.402 | L161: 66041.402
B162: Gminy miejsko-wiejskie:
B163: Urban-rural gminas:
B164: Ścinawa | D164: 27957.1684 | E164: 12858.03347 | F164: 68.75247 | G164: 5304.122 | H164: 7021.16893 | I164: 6834.15473 | J164: 10 | K164: 8077.966 | L164: 5093.767
B165: Gminy wiejskie:
B166: Rural gminas:
B167: Lubin | D167: 54619.87241 | E167: 43702.87424 | F167: 68.52964 | G167: 14196.571 | H167: 5895.10317 | I167: 4777.55901 | J167: 49.272 | K167: 5021.895 | L167: 4738.641
B168: Rudna | D168: 49916.05326 | E168: 39619.90347 | F168: 3328.28683 | G168: 4409.655 | H168: 4148.65579 | I168: 3272.82647 | J168: - | K168: 6147.494 | L168: 5783.261
B169: POWIAT POLKOWICKI | D169: 368705.211 | E169: 277413.7716 | F169: 58553.80949 | G169: 46740.59 | H169: 38944.18937 | I169: 29860.36375 | J169: - | K169: 52347.25 | L169: 39509.152
B170: Gminy miejsko-wiejskie:
B171: Urban-rural gminas:
B172: Chocianów | D172: 34433.73743 | E172: 17898.67183 | F172: 53.40197 | G172: 9101.691 | H172: 7793.0856 | I172: 6952.89077 | J172: - | K172: 8741.98 | L172: 6728.576
B173: Polkowice | D173: 245555.2407 | E173: 211833.8154 | F173: 58369.9751 | G173: 25875.743 | H173: 12449.14928 | I173: 8908.30196 | J173: - | K173: 21272.276 | L173: 15057.008
B174: Przemków | D174: 26350.31945 | E174: 9796.50947 | F174: 80.13612 | G174: 4835.818 | H174: 7929.67498 | I174: 4531.65693 | J174: - | K174: 8624.135 | L174: 5995.035
B175: Gminy wiejskie:
B176: Rural gminas:
B177: Gaworzyce | D177: 12682.05352 | E177: 4741.27164 | F177: 2.88234 | G177: 1838.445 | H177: 2949.04388 | I177: 2527.07466 | J177: - | K177: 4991.738 | L177: 3186.901
B178: Grębocice | D178: 28883.50931 | E178: 19821.83204 | F178: 42.70088 | G178: 2241.289 | H178: 4123.78527 | I178: 3466.42107 | J178: - | K178: 4937.892 | L178: 4792.182
B179: Radwanice | D179: 20800.3506 | E179: 13321.67124 | F179: 4.71308 | G179: 2847.604 | H179: 3699.45036 | I179: 3474.01836 | J179: - | K179: 3779.229 | L179: 3749.45
B180: PODREGION WAŁBRZYSKI | D180: 1629487.066 | E180: 890301.9314 | F180: 11895.76455 | G180: 275057.27 | H180: 343347.9895 | I180: 271998.5314 | J180: 2722.26842 | K180: 395837.145 | L180: 285991.697
B181: SUBREGION
B182: POWIAT DZIERŻONIOWSKI | D182: 296490.4374 | E182: 154845.5448 | F182: 2157.11289 | G182: 47288.142 | H182: 66613.65259 | I182: 49604.84634 | J182: 20.57256 | K182: 75031.24 | L182: 48870.207
B183: Gminy miejskie:
B184: Urban gminas:
B185: Bielawa | D185: 98721.53954 | E185: 48349.84023 | F185: 540.53058 | G185: 14003.797 | H185: 24738.14631 | I185: 18360.10033 | J185: 3.5 | K185: 25633.553 | L185: 14771.702
B186: Dzierżoniów | D186: 93496.71014 | E186: 60061.00001 | F186: 1429.06432 | G186: 18839.165 | H186: 14661.31813 | I186: 12586.00363 | J186: 2.78106 | K186: 18774.392 | L186: 15977.974
B187: Pieszyce | D187: 22107.57359 | E187: 10119.63959 | F187: 63.91915 | G187: 3995.306 | H187: 5682.694 | I187: 4261.67778 | J187: 14.2915 | K187: 6305.24 | L187: 2994.94
B188: Piława Górna | D188: 15819.37009 | E188: 8361.5804 | F188: 24.18043 | G188: 2181.148 | H188: 3158.90869 | I188: 2810.00665 | J188: - | K188: 4298.881 | L188: 2749.803
B189: Gminy miejsko-wiejskie:
B190: Urban-rural gminas:
B191: Niemcza | D191: 15087.973 | E191: 7113.14737 | F191: 13.01717 | G191: 1829.232 | H191: 3180.38363 | I191: 2674.89674 | J191: - | K191: 4794.442 | L191: 3177.377
B192: Gminy wiejskie:
B193: Rural gminas:
B194: Dzierżoniów | D194: 24954.76419 | E194: 11557.89385 | F194: 22.00757 | G194: 3313.103 | H194: 6425.82834 | I194: 4834.2978 | J194: - | K194: 6971.042 | L194: 4003.952
B195: Łagiewniki | D195: 26302.50681 | E195: 9282.44332 | F195: 64.39367 | G195: 3126.391 | H195: 8766.37349 | I195: 4077.86341 | J195: - | K195: 8253.69 | L195: 5194.459
B196: POWIAT KŁODZKI | D196: 489264.7019 | E196: 252754.9566 | F196: 2630.00422 | G196: 73695.446 | H196: 114009.5293 | I196: 91718.68337 | J196: 765.26025 | K196: 122500.216 | L196: 80704.821
B197: Gminy miejskie:
B198: Urban gminas:
B199: Duszniki-Zdrój | D199: 17463.90362 | E199: 11436.94014 | F199: 82.14721 | G199: 2175.812 | H199: 2437.53148 | I199: 2398.43647 | J199: - | K199: 3589.432 | L199: 3445.676
B200: Kłodzko | D200: 78289.94665 | E200: 50102.81213 | F200: 967.36832 | G200: 17115.638 | H200: 14161.63652 | I200: 11239.31709 | J200: 12 | K200: 14025.498 | L200: 13149.219
B201: Kudowa-Zdrój | D201: 31865.88833 | E201: 18493.22769 | F201: 190.6664 | G201: 3952.442 | H201: 7129.18964 | I201: 4832.95681 | J201: 21 | K201: 6243.471 | L201: 4641.155
B202: Nowa Ruda | D202: 51224.49047 | E202: 26736.28402 | F202: 138.56952 | G202: 12569.322 | H202: 9641.45745 | I202: 8534.931 | J202: - | K202: 14846.749 | L202: 8916.458
B203: Polanica-Zdrój | D203: 28578.81737 | E203: 20507.17628 | F203: 213.55591 | G203: 3431.425 | H203: 4986.46509 | I203: 3431.15556 | J203: - | K203: 3085.176 | L203: 3025.456
B204: Gminy miejsko-wiejskie:
... 145 more rows

Sheet Tabl. 9.
B4: Tabl. 9. Struktura dochodów budżetów gmin a według rodzajów oraz według podregionów i powiatów
B5: Structure of revenue of gminas budgets a by types as well as subregions and powiats
B6: WYSZCZEGÓLNIENIE SPECIFICATION | D6: Ogółem Grand total | E6: Dochody własne Own revenue | H6: Dotacje celowe b Appropriated allocations b | K6: Subwencja ogólna General subsidies
E7: razem total | F7: w tym udział w podatku dochodowym of which share in income tax | H7: razem total | I7: w tym of which | K7: razem total | L7: w tym na zadania oświatowe of which for educational tasks
F8: od osób prawnych corporate income tax | G8: od osób fizycznych personal income tax | I8: z budżetu państwa from state budget | J8: z funduszy celowych from appropriated funds
D9: w % in %
B10: OGÓŁEM | C10: 2012 | D10: 100 | E10: 57.73486 | F10: 3.55303 | G10: 16.77989 | H10: 19.63702 | I10: 14.48064 | J10: 0.18596 | K10: 22.62813 | L10: 17.76363
B11: TOTAL | C11: 2013 | D11: 100 | E11: 58.65443 | F11: 2.31842 | G11: 17.21667 | H11: 18.65561 | I11: 15.15661 | J11: 0.3916 | K11: 22.68996 | L11: 17.57121
B13: Gminy miejskie | D13: 100 | E13: 62.64728 | F13: 2.7372 | G13: 21.48035 | H13: 17.8625 | I13: 13.52661 | J13: 0.67372 | K13: 19.49022 | L13: 16.85125
B14: Urban gminas
B15: Gminy miejsko-wiejskie | D15: 100 | E15: 57.43611 | F15: 3.21046 | G15: 14.8966 | H15: 19.24608 | I15: 16.47196 | J15: 0.223 | K15: 23.31781 | L15: 17.00663
B16: Urban-rural gminas
B17: Gminy wiejskie | D17: 100 | E17: 55.71836 | F17: 0.68097 | G17: 15.41 | H17: 18.78451 | I17: 15.28883 | J17: 0.29172 | K17: 25.49714 | L17: 19.12304
B18: Rural gminas
B19: PODREGION JELENIOGÓRSKI | D19: 100 | E19: 54.68872 | F19: 0.76403 | G19: 14.5555 | H19: 22.61721 | I19: 19.14194 | J19: 0.84857 | K19: 22.69406 | L19: 16.88656
B20: SUBREGION
B21: POWIAT BOLESŁAWIECKI | D21: 100 | E21: 62.01268 | F21: 0.59076 | G21: 15.79777 | H21: 15.71337 | I21: 13.14926 | J21: 0.14636 | K21: 22.27395 | L21: 19.28537
B22: Gminy miejskie:
B23: Urban gminas:
B24: Bolesławiec | D24: 100 | E24: 67.1836 | F24: 0.99745 | G24: 19.26963 | H24: 16.09022 | I24: 11.34004 | J24: 0.02304 | K24: 16.72618 | L24: 16.5056
B25: Gminy miejsko-wiejskie:
B26: Urban-rural gminas:
B27: Nowogrodziec | D27: 100 | E27: 43.25096 | F27: 0.31573 | G27: 11.44904 | H27: 17.08748 | I27: 15.79015 | J27: 0.21303 | K27: 39.66156 | L27: 30.97449
B28: Gminy wiejskie:
B29: Rural gminas:
B30: Bolesławiec | D30: 100 | E30: 68.14934 | F30: 0.33096 | G30: 18.12196 | H30: 14.78585 | I30: 13.49701 | J30: 0.63256 | K30: 17.06481 | L30: 12.51441
B31: Gromadka | D31: 100 | E31: 64.10101 | F31: 0.03092 | G31: 8.87665 | H31: 14.6649 | I31: 13.86216 | J31: 0.09746 | K31: 21.23408 | L31: 16.86029
B32: Osiecznica | D32: 100 | E32: 55.67452 | F32: 0.49533 | G32: 11.40641 | H32: 13.13493 | I32: 13.10864 | J32: - | K32: 31.19055 | L32: 25.93618
B33: Warta Bolesławiecka | D33: 100 | E33: 59.56069 | F33: 0.01213 | G33: 12.37345 | H33: 16.82621 | I33: 16.82621 | J33: 0.11857 | K33: 23.61309 | L33: 21.17414
B34: POWIAT JAWORSKI | D34: 100 | E34: 48.47878 | F34: 0.47503 | G34: 14.62212 | H34: 25.71732 | I34: 20.33056 | J34: 0.03354 | K34: 25.80389 | L34: 17.38151
B35: Gminy miejskie:
B36: Urban gminas:
B37: Jawor | D37: 100 | E37: 59.46245 | F37: 1.01815 | G37: 20.06344 | H37: 20.57132 | I37: 13.29007 | J37: 0.07947 | K37: 19.96623 | L37: 16.69295
B38: Gminy miejsko-wiejskie:
B39: Urban-rural gminas:
B40: Bolków | D40: 100 | E40: 38.56386 | F40: 0.13916 | G40: 12.19783 | H40: 25.61722 | I40: 24.3447 | J40: - | K40: 35.81892 | L40: 16.8912
B41: Gminy wiejskie:
B42: Rural gminas:
B43: Męcinka | D43: 100 | E43: 47.66416 | F43: 0.00549 | G43: 9.37348 | H43: 26.63736 | I43: 23.23249 | J43: - | K43: 25.69849 | L43: 20.51597
B44: Mściwojów | D44: 100 | E44: 37.43566 | F44: 0.06782 | G44: 8.79414 | H44: 43.73488 | I44: 39.30859 | J44: - | K44: 18.82946 | L44: 12.44571
B45: Paszowice | D45: 100 | E45: 38.71892 | F45: 0.03399 | G45: 9.74348 | H45: 28.84117 | I45: 15.79318 | J45: - | K45: 32.43992 | L45: 18.22255
B46: Wądroże Wielkie | D46: 100 | E46: 40.98893 | F46: 0.09705 | G46: 12.17975 | H46: 24.22843 | I46: 23.28183 | J46: - | K46: 34.78263 | L46: 23.56297
B47: POWIAT JELENIOGÓRSKI | D47: 100 | E47: 58.76568 | F47: 0.32599 | G47: 13.69434 | H47: 22.85888 | I47: 17.81284 | J47: 0.00818 | K47: 18.37543 | L47: 14.20488
B48: Gminy miejskie:
B49: Urban gminas:
B50: Karpacz | D50: 100 | E50: 62.68982 | F50: 0.44978 | G50: 7.33914 | H50: 27.49916 | I50: 9.59299 | J50: - | K50: 9.81102 | L50: 9.25036
B51: Kowary | D51: 100 | E51: 52.85747 | F51: 0.34691 | G51: 16.58094 | H51: 22.90907 | I51: 20.67777 | J51: - | K51: 24.23346 | L51: 16.34242
B52: Piechowice | D52: 100 | E52: 65.01368 | F52: 0.46883 | G52: 18.12272 | H52: 24.08301 | I52: 16.24305 | J52: 0.01824 | K52: 10.9033 | L52: 10.9033
B53: Szklarska Poręba | D53: 100 | E53: 76.13923 | F53: 0.38326 | G53: 9.83955 | H53: 16.10746 | I53: 15.18332 | J53: 0.04547 | K53: 7.75331 | L53: 7.75331
B54: Gminy wiejskie:
B55: Rural gminas:
B56: Janowice Wielkie | D56: 100 | E56: 41.59325 | F56: 0.06167 | G56: 12.18552 | H56: 33.42168 | I56: 33.38691 | J56: - | K56: 24.98507 | L56: 13.2946
B57: Jeżów Sudecki | D57: 100 | E57: 60.62584 | F57: 0.11305 | G57: 18.6942 | H57: 16.83178 | I57: 15.14993 | J57: - | K57: 22.54238 | L57: 14.22983
B58: Mysłakowice | D58: 100 | E58: 55.22588 | F58: 0.36307 | G58: 15.9275 | H58: 22.18655 | I58: 20.91199 | J58: - | K58: 22.58756 | L58: 22.10958
B59: Podgórzyn | D59: 100 | E59: 55.09239 | F59: 0.1542 | G59: 16.94782 | H59: 25.71471 | I59: 19.86594 | J59: - | K59: 19.1929 | L59: 16.37672
B60: Stara Kamienica | D60: 100 | E60: 44.07911 | F60: 0.43857 | G60: 11.17353 | H60: 19.89811 | I60: 18.35102 | J60: - | K60: 36.02278 | L60: 21.09901
B61: POWIAT KAMIENNOGÓRSKI | D61: 100 | E61: 47.33758 | F61: 0.41009 | G61: 14.25276 | H61: 21.93042 | I61: 20.45489 | J61: 0.13713 | K61: 30.732 | L61: 19.14935
B62: Gminy miejskie:
B63: Urban gminas:
B64: Kamienna Góra | D64: 100 | E64: 55.06526 | F64: 0.79901 | G64: 16.48692 | H64: 19.31035 | I64: 18.96753 | J64: 0.03584 | K64: 25.62439 | L64: 17.86591
B65: Gminy miejsko-wiejskie:
B66: Urban-rural gminas:
B67: Lubawka | D67: 100 | E67: 39.23186 | F67: 0.10467 | G67: 13.12093 | H67: 27.27893 | I67: 23.30545 | J67: 0.4706 | K67: 33.48921 | L67: 17.50342
B68: Gminy wiejskie:
B69: Rural gminas:
B70: Kamienna Góra | D70: 100 | E70: 46.28286 | F70: 0.12353 | G70: 12.65582 | H70: 19.94524 | I70: 18.81545 | J70: - | K70: 33.77191 | L70: 22.16062
B71: Marciszów | D71: 100 | E71: 37.48202 | F71: 0.12936 | G71: 10.97139 | H71: 23.47265 | I71: 22.83793 | J71: - | K71: 39.04533 | L71: 22.57224
B72: POWIAT LUBAŃSKI | D72: 100 | E72: 45.19789 | F72: 0.43888 | G72: 13.26192 | H72: 31.53142 | I72: 29.3974 | J72: 0.31892 | K72: 23.2707 | L72: 16.98914
B73: Gminy miejskie:
B74: Urban gminas:
B75: Lubań | D75: 100 | E75: 60.20037 | F75: 1.11829 | G75: 23.19138 | H75: 18.16928 | I75: 16.08844 | J75: 0.00684 | K75: 21.63035 | L75: 18.83922
B76: Świeradów-Zdrój | D76: 100 | E76: 59.63746 | F76: 0.17501 | G76: 8.03934 | H76: 26.92236 | I76: 24.31097 | J76: - | K76: 13.44018 | L76: 13.16777
B77: Gminy miejsko-wiejskie:
B78: Urban-rural gminas:
B79: Leśna | D79: 100 | E79: 33.48681 | F79: 0.13395 | G79: 8.34586 | H79: 38.67572 | I79: 36.25323 | J79: 1.64297 | K79: 27.83747 | L79: 18.12313
B80: Olszyna | D80: 100 | E80: 22.29317 | F80: 0.24323 | G80: 6.09671 | H80: 58.53742 | I80: 58.19973 | J80: - | K80: 19.1694 | L80: 11.69093
B81: Gminy wiejskie:
B82: Rural gminas:
B83: Lubań | D83: 100 | E83: 43.11175 | F83: 0.15499 | G83: 11.2284 | H83: 20.39369 | I83: 20.1142 | J83: - | K83: 36.49456 | L83: 22.85881
B84: Platerówka | D84: 100 | E84: 55.74304 | F84: 0.00204 | G84: 14.69178 | H84: 21.18035 | I84: 21.1557 | J84: - | K84: 23.07661 | L84: 17.35205
B85: Siekierczyn | D85: 100 | E85: 50.20662 | F85: 0.01569 | G85: 16.5102 | H85: 21.87365 | I85: 13.38276 | J85: - | K85: 27.91973 | L85: 19.09617
B86: POWIAT LWÓWECKI | D86: 100 | E86: 44.62398 | F86: 0.31933 | G86: 11.92024 | H86: 23.77228 | I86: 22.58555 | J86: - | K86: 31.60375 | L86: 20.26171
B87: Gminy miejsko-wiejskie:
B88: Urban-rural gminas:
B89: Gryfów Śląski | D89: 100 | E89: 40.76062 | F89: 0.35818 | G89: 15.58927 | H89: 28.27195 | I89: 27.97552 | J89: - | K89: 30.96743 | L89: 17.87287
B90: Lubomierz | D90: 100 | E90: 29.18189 | F90: 0.02302 | G90: 7.03578 | H90: 24.93184 | I90: 21.60502 | J90: - | K90: 45.88626 | L90: 26.55472
B91: Lwówek Śląski | D91: 100 | E91: 53.89223 | F91: 0.59164 | G91: 13.53041 | H91: 21.72951 | I91: 21.47484 | J91: - | K91: 24.37826 | L91: 17.48632
B92: Mirsk | D92: 100 | E92: 45.96722 | F92: 0.09526 | G92: 9.46934 | H92: 21.23059 | I92: 19.43387 | J92: - | K92: 32.80219 | L92: 23.18864
B93: Wleń | D93: 100 | E93: 36.76419 | F93: 0.1654 | G93: 12.40308 | H93: 27.74153 | I93: 26.07976 | J93: - | K93: 35.49428 | L93: 18.41252
B94: POWIAT ZGORZELECKI | D94: 100 | E94: 63.07038 | F94: 1.90394 | G94: 16.3817 | H94: 19.76166 | I94: 15.10616 | J94: 3.3674 | K94: 17.16796 | L94: 14.35954
B95: Gminy miejskie:
B96: Urban gminas:
B97: Zawidów | D97: 100 | E97: 46.43706 | F97: 0.33786 | G97: 21.61354 | H97: 20.34945 | I97: 20.23702 | J97: - | K97: 33.21349 | L97: 27.00709
B98: Zgorzelec | D98: 100 | E98: 52.11093 | F98: 1.06847 | G98: 24.72264 | H98: 32.98138 | I98: 24.28199 | J98: 12.19912 | K98: 14.9077 | L98: 14.76395
B99: Gminy miejsko-wiejskie:
B100: Urban-rural gminas:
B101: Bogatynia | D101: 100 | E101: 79.82749 | F101: 3.72019 | G101: 12.93186 | H101: 8.79949 | I101: 7.4064 | J101: - | K101: 11.37303 | L101: 10.14107
B102: Pieńsk | D102: 100 | E102: 53.19452 | F102: 0.29234 | G102: 12.1613 | H102: 18.55131 | I102: 18.34733 | J102: - | K102: 28.25417 | L102: 17.42983
B103: Węgliniec | D103: 100 | E103: 39.7665 | F103: 0.08806 | G103: 12.98669 | H103: 23.46929 | I103: 18.90399 | J103: - | K103: 36.76421 | L103: 24.41982
B104: Gminy wiejskie:
B105: Rural gminas:
B106: Sulików | D106: 100 | E106: 57.37974 | F106: 0.50726 | G106: 13.81491 | H106: 19.6386 | I106: 18.26161 | J106: - | K106: 22.98166 | L106: 19.9776
B107: Zgorzelec | D107: 100 | E107: 56.52986 | F107: 0.36803 | G107: 12.02011 | H107: 26.85669 | I107: 12.2138 | J107: - | K107: 16.61345 | L107: 13.77438
B108: POWIAT ZŁOTORYJSKI | D108: 100 | E108: 49.12933 | F108: 0.41453 | G108: 13.45069 | H108: 26.92076 | I108: 23.20309 | J108: 0.23288 | K108: 23.94991 | L108: 16.66389
B109: Gminy miejskie:
B110: Urban gminas:
B111: Wojcieszów | D111: 100 | E111: 40.40669 | F111: 0.94596 | G111: 8.1325 | H111: 39.50624 | I111: 35.6966 | J111: - | K111: 20.08707 | L111: 13.8216
B112: Złotoryja | D112: 100 | E112: 61.37371 | F112: 0.54709 | G112: 21.84991 | H112: 20.76044 | I112: 18.27408 | J112: - | K112: 17.86585 | L112: 13.54512
B113: Gminy miejsko-wiejskie:
B114: Urban-rural gminas:
B115: Świerzawa | D115: 100 | E115: 36.42102 | F115: 0.46136 | G115: 9.34477 | H115: 32.5423 | I115: 27.72122 | J115: 1.31521 | K115: 31.03668 | L115: 19.83356
B116: Gminy wiejskie:
B117: Rural gminas:
B118: Pielgrzymka | D118: 100 | E118: 39.08703 | F118: 0.004 | G118: 7.79739 | H118: 30.16123 | I118: 24.93008 | J118: - | K118: 30.75174 | L118: 18.51374
B119: Zagrodno | D119: 100 | E119: 54.53955 | F119: -0.03301 | G119: 8.75461 | H119: 20.35383 | I119: 19.74357 | J119: - | K119: 25.10661 | L119: 15.77345
B120: Złotoryja | D120: 100 | E120: 47.6117 | F120: 0.43345 | G120: 13.52204 | H120: 27.34112 | I120: 20.89123 | J120: 0.1262 | K120: 25.04718 | L120: 20.89118
B121: PODREGION LEGNICKO-GŁOGOWSKI | D121: 100 | E121: 66.4641 | F121: 7.64908 | G121: 18.42745 | H121: 13.77919 | I121: 11.50596 | J121: 0.03615 | K121: 19.7567 | L121: 16.41853
B122: SUBREGION
B123: POWIAT GŁOGOWSKI | D123: 100 | E123: 70.14517 | F123: 5.2843 | G123: 21.61303 | H123: 12.89864 | I123: 10.11234 | J123: 0.07474 | K123: 16.95618 | L123: 15.41451
B124: Gminy miejskie:
B125: Urban gminas:
B126: Głogów | D126: 100 | E126: 72.86787 | F126: 7.17292 | G126: 24.28915 | H126: 12.05688 | I126: 8.93241 | J126: 0.09506 | K126: 15.07525 | L126: 14.86974
B127: Gminy wiejskie:
B128: Rural gminas:
B129: Głogów | D129: 100 | E129: 65.34384 | F129: 0.39274 | G129: 24.73276 | H129: 14.92277 | I129: 13.21502 | J129: 0.04249 | K129: 19.73339 | L129: 16.96902
B130: Jerzmanowa | D130: 100 | E130: 82.32592 | F130: 0.02278 | G130: 12.58626 | H130: 5.77907 | I130: 4.94729 | J130: 0.00625 | K130: 11.89501 | L130: 10.87867
B131: Kotla | D131: 100 | E131: 45.53929 | F131: 0.45961 | G131: 13.46197 | H131: 23.7789 | I131: 18.51992 | J131: 0.06127 | K131: 30.6818 | L131: 23.23341
B132: Pęcław | D132: 100 | E132: 37.96341 | F132: 0.02647 | G132: 8.69651 | H132: 26.6909 | I132: 24.02706 | J132: - | K132: 35.34569 | L132: 21.71607
B133: Żukowice | D133: 100 | E133: 48.41546 | F133: 1.43472 | G133: 9.91618 | H133: 20.86359 | I133: 20.29182 | J133: - | K133: 30.72095 | L133: 20.86555
B134: POWIAT GÓROWSKI | D134: 100 | E134: 38.94752 | F134: 0.65134 | G134: 10.44151 | H134: 29.07291 | I134: 26.85087 | J134: 0.05735 | K134: 31.97957 | L134: 20.79536
B135: Gminy miejsko-wiejskie:
B136: Urban-rural gminas:
B137: Góra | D137: 100 | E137: 39.51248 | F137: 0.87401 | G137: 11.36535 | H137: 32.94599 | I137: 29.94362 | J137: - | K137: 27.54153 | L137: 18.75015
B138: Wąsosz | D138: 100 | E138: 43.91418 | F138: 0.45119 | G138: 9.97035 | H138: 19.9592 | I138: 19.25757 | J138: 0.28909 | K138: 36.12662 | L138: 24.39112
B139: Gminy wiejskie:
B140: Rural gminas:
B141: Jemielno | D141: 100 | E141: 33.69191 | F141: 0.21453 | G141: 6.87274 | H141: 29.49482 | I141: 28.57479 | J141: - | K141: 36.81327 | L141: 18.85964
B142: Niechlów | D142: 100 | E142: 32.60537 | F142: 0.27869 | G142: 9.62283 | H142: 25.40868 | I142: 23.39988 | J142: - | K142: 41.98595 | L142: 25.84963
B143: POWIAT LEGNICKI | D143: 100 | E143: 55.16147 | F143: 0.5457 | G143: 15.97734 | H143: 18.6851 | I143: 16.04664 | J143: 0.08154 | K143: 26.15343 | L143: 19.28772
B144: Gminy miejskie:
B145: Urban gminas:
B146: Chojnów | D146: 100 | E146: 49.06789 | F146: 1.35002 | G146: 19.03594 | H146: 19.7687 | I146: 16.49403 | J146: 0.05012 | K146: 31.16341 | L146: 21.69937
B147: Gminy miejsko-wiejskie:
B148: Urban-rural gminas:
B149: Prochowice | D149: 100 | E149: 57.61825 | F149: 0.52213 | G149: 13.83217 | H149: 16.18088 | I149: 15.70525 | J149: - | K149: 26.20087 | L149: 23.31435
B150: Gminy wiejskie:
B151: Rural gminas:
B152: Chojnów | D152: 100 | E152: 52.7368 | F152: 0.29031 | G152: 15.23776 | H152: 20.94449 | I152: 20.06501 | J152: - | K152: 26.31871 | L152: 14.81695
B153: Krotoszyce | D153: 100 | E153: 56.26918 | F153: 0.27422 | G153: 10.25517 | H153: 24.51103 | I153: 12.53577 | J153: - | K153: 19.21979 | L153: 15.77702
B154: Kunice | D154: 100 | E154: 64.37728 | F154: 0.08217 | G154: 26.40799 | H154: 13.36545 | I154: 11.39625 | J154: 0.41646 | K154: 22.25726 | L154: 19.18666
B155: Legnickie Pole | D155: 100 | E155: 70.95106 | F155: 0.09849 | G155: 9.72702 | H155: 13.08115 | I155: 10.77819 | J155: 0.10772 | K155: 15.96779 | L155: 13.47754
B156: Miłkowice | D156: 100 | E156: 44.9264 | F156: 0.77853 | G156: 17.05094 | H156: 21.99142 | I156: 20.20035 | J156: - | K156: 33.08218 | L156: 23.14528
B157: Ruja | D157: 100 | E157: 38.37199 | F157: 0.01168 | G157: 8.85825 | H157: 26.09679 | I157: 24.67068 | J157: 0.10154 | K157: 35.53122 | L157: 23.95395
B158: POWIAT LUBIŃSKI | D158: 100 | E158: 68.31539 | F158: 6.9874 | G158: 24.45019 | H158: 10.92799 | I158: 9.3527 | J158: 0.01442 | K158: 20.75662 | L158: 19.87278
B159: Gminy miejskie:
B160: Urban gminas:
B161: Lubin | D161: 100 | E161: 66.27964 | F161: 9.0679 | G161: 27.49771 | H161: 9.9991 | I161: 8.45729 | J161: - | K161: 23.72125 | L161: 23.72125
B162: Gminy miejsko-wiejskie:
B163: Urban-rural gminas:
B164: Ścinawa | D164: 100 | E164: 45.9919 | F164: 0.24592 | G164: 18.97231 | H164: 25.11402 | I164: 24.44509 | J164: 0.03577 | K164: 28.89408 | L164: 18.2199
B165: Gminy wiejskie:
B166: Rural gminas:
B167: Lubin | D167: 100 | E167: 80.01277 | F167: 0.12547 | G167: 25.99159 | H167: 10.79296 | I167: 8.74692 | J167: 0.09021 | K167: 9.19426 | L167: 8.67567
B168: Rudna | D168: 100 | E168: 79.37307 | F168: 6.66777 | G168: 8.83414 | H168: 8.31127 | I168: 6.55666 | J168: - | K168: 12.31567 | L168: 11.58597
B169: POWIAT POLKOWICKI | D169: 100 | E169: 75.23999 | F169: 15.88093 | G169: 12.67695 | H169: 10.56242 | I169: 8.09871 | J169: - | K169: 14.19759 | L169: 10.71565
B170: Gminy miejsko-wiejskie:
B171: Urban-rural gminas:
B172: Chocianów | D172: 100 | E172: 51.98004 | F172: 0.15509 | G172: 26.43248 | H172: 22.63212 | I172: 20.19209 | J172: - | K172: 25.38783 | L172: 19.54065
B173: Polkowice | D173: 100 | E173: 86.26728 | F173: 23.77061 | G173: 10.53765 | H173: 5.0698 | I173: 3.62782 | J173: - | K173: 8.66293 | L173: 6.13182
B174: Przemków | D174: 100 | E174: 37.17795 | F174: 0.30412 | G174: 18.35203 | H174: 30.09328 | I174: 17.19773 | J174: - | K174: 32.72877 | L174: 22.75128
B175: Gminy wiejskie:
B176: Rural gminas:
B177: Gaworzyce | D177: 100 | E177: 37.38568 | F177: 0.02273 | G177: 14.49643 | H177: 23.25368 | I177: 19.92638 | J177: - | K177: 39.36064 | L177: 25.12922
B178: Grębocice | D178: 100 | E178: 68.62681 | F178: 0.14784 | G178: 7.75975 | H178: 14.2773 | I178: 12.00138 | J178: - | K178: 17.09589 | L178: 16.59141
B179: Radwanice | D179: 100 | E179: 64.04542 | F179: 0.02266 | G179: 13.69017 | H179: 17.78552 | I179: 16.70173 | J179: - | K179: 18.16906 | L179: 18.0259
B180: PODREGION WAŁBRZYSKI | D180: 100 | E180: 54.63694 | F180: 0.73003 | G180: 16.87999 | H180: 21.07092 | I180: 16.69228 | J180: 0.16706 | K180: 24.29213 | L180: 17.55103
B181: SUBREGION
B182: POWIAT DZIERŻONIOWSKI | D182: 100 | E182: 52.22615 | F182: 0.72755 | G182: 15.9493 | H182: 22.46739 | I182: 16.73067 | J182: 0.00694 | K182: 25.30646 | L182: 16.48289
B183: Gminy miejskie:
B184: Urban gminas:
B185: Bielawa | D185: 100 | E185: 48.97598 | F185: 0.54753 | G185: 14.18515 | H185: 25.05851 | I185: 18.59787 | J185: 0.00355 | K185: 25.96551 | L185: 14.963
B186: Dzierżoniów | D186: 100 | E186: 64.23862 | F186: 1.52846 | G186: 20.14955 | H186: 15.68111 | I186: 13.46144 | J186: 0.00297 | K186: 20.08027 | L186: 17.08934
B187: Pieszyce | D187: 100 | E187: 45.77454 | F187: 0.28913 | G187: 18.07211 | H187: 25.70474 | I187: 19.277 | J187: 0.06465 | K187: 28.52072 | L187: 13.54712
B188: Piława Górna | D188: 100 | E188: 52.8566 | F188: 0.15285 | G188: 13.78783 | H188: 19.96861 | I188: 17.76308 | J188: - | K188: 27.17479 | L188: 17.38251
B189: Gminy miejsko-wiejskie:
B190: Urban-rural gminas:
B191: Niemcza | D191: 100 | E191: 47.14449 | F191: 0.08628 | G191: 12.12378 | H191: 21.07893 | I191: 17.72867 | J191: - | K191: 31.77658 | L191: 21.05901
B192: Gminy wiejskie:
B193: Rural gminas:
B194: Dzierżoniów | D194: 100 | E194: 46.31538 | F194: 0.08819 | G194: 13.27643 | H194: 25.74991 | I194: 19.37224 | J194: - | K194: 27.93471 | L194: 16.04484
B195: Łagiewniki | D195: 100 | E195: 35.2911 | F195: 0.24482 | G195: 11.88629 | H195: 33.32904 | I195: 15.50371 | J195: - | K195: 31.37986 | L195: 19.74891
B196: POWIAT KŁODZKI | D196: 100 | E196: 51.66017 | F196: 0.53754 | G196: 15.06249 | H196: 23.30222 | I196: 18.74623 | J196: 0.15641 | K196: 25.03762 | L196: 16.49512
B197: Gminy miejskie:
B198: Urban gminas:
B199: Duszniki-Zdrój | D199: 100 | E199: 65.48902 | F199: 0.47038 | G199: 12.45891 | H199: 13.95754 | I199: 13.73368 | J199: - | K199: 20.55343 | L199: 19.73027
B200: Kłodzko | D200: 100 | E200: 63.99648 | F200: 1.23562 | G200: 21.86186 | H200: 18.0887 | I200: 14.35602 | J200: 0.01533 | K200: 17.91481 | L200: 16.79554
B201: Kudowa-Zdrój | D201: 100 | E201: 58.03456 | F201: 0.59834 | G201: 12.40336 | H201: 22.37248 | I201: 15.16655 | J201: 0.0659 | K201: 19.59296 | L201: 14.56465
B202: Nowa Ruda | D202: 100 | E202: 52.19434 | F202: 0.27051 | G202: 24.53772 | H202: 18.82197 | I202: 16.66182 | J202: - | K202: 28.98369 | L202: 17.40663
B203: Polanica-Zdrój | D203: 100 | E203: 71.75656 | F203: 0.74725 | G203: 12.00688 | H203: 17.44812 | I203: 12.00594 | J203: - | K203: 10.79532 | L203: 10.58636
B204: Gminy miejsko-wiejskie:
... 145 more rows

Sheet Tabl. 10.
B4: Tabl. 10. Dochody budżetów gmin a według działów oraz według podregionów i powiatów
B5: Revenue of gminas budgets a by divisions as well as subregions and powiats
B6: WYSZCZEGÓLNIENIE SPECIFICATION | D6: Ogółem Total | E6: W tym Of which
E7: transport i łączność transport and communication | F7: gospodarka mieszkaniowa dwelling economy | G7: działalność usługowa service activity | H7: administracja publiczna public administration | I7: oświata i wychowanie education | J7: ochrona zdrowia health care | K7: pomoc społeczna social welfare | L7: gospodarka komunalna i ochrona środowiska municipal economy and environmental protection | M7: kultura i ochrona dziedzictwa narodowego culture and national heritage | N7: kultura fizyczna physical education
D9: w tys. zł in thous. zl
B10: OGÓŁEM | C10: 2012 | D10: 6634836.572 | E10: 190175.5276 | F10: 432082.95 | G10: 7639.75765 | H10: 70655.90742 | I10: 107631.5204 | J10: 3468.33979 | K10: 724298.3064 | L10: 221118.4729 | M10: 68149.86457 | N10: 66061.09329
B11: TOTAL | C11: 2013 | D11: 6477720.21 | E11: 165343.1757 | F11: 387609.084 | G11: 7424.87048 | H11: 60467.65437 | I11: 112378.305 | J11: 12634.28962 | K11: 686375.4526 | L11: 224613.4108 | M11: 49655.64345 | N11: 54180.6929
B13: Gminy miejskie | D13: 2135723.111 | E13: 62122.17629 | F13: 197481.4975 | G13: 4222.03367 | H13: 15866.08169 | I13: 44021.04813 | J13: 1325.38506 | K13: 216298.7239 | L13: 85073.20382 | M13: 11746.14949 | N13: 28666.17813
B14: Urban gminas
B15: Gminy miejsko-wiejskie | D15: 2457167.366 | E15: 62904.40246 | F15: 138918.2904 | G15: 2489.13702 | H15: 22025.97672 | I15: 42049.33016 | J15: 10800.71635 | K15: 273462.3329 | L15: 84744.13462 | M15: 16950.8439 | N15: 16400.03972
B16: Urban-rural gminas
B17: Gminy wiejskie | D17: 1884829.732 | E17: 40316.59698 | F17: 51209.29613 | G17: 713.69979 | H17: 22575.59596 | I17: 26307.92676 | J17: 508.18821 | K17: 196614.3958 | L17: 54796.07235 | M17: 20958.65006 | N17: 9114.47505
B18: Rural gminas
B19: PODREGION JELENIOGÓRSKI | D19: 1672723.459 | E19: 78589.66386 | F19: 94355.42749 | G19: 1929.7368 | H19: 17257.33992 | I19: 26354.52193 | J19: 214.14705 | K19: 204270.837 | L19: 71523.92755 | M19: 12650.43467 | N19: 26778.97861
B20: SUBREGION
B21: POWIAT BOLESŁAWIECKI | D21: 288216.6126 | E21: 4729.85213 | F21: 20420.27593 | G21: 103.82342 | H21: 2727.33283 | I21: 4093.13266 | J21: 9.04174 | K21: 31762.74568 | L21: 13862.61066 | M21: 2645.60077 | N21: 2554.77208
B22: Gminy miejskie:
B23: Urban gminas:
B24: Bolesławiec | D24: 130223.5993 | E24: 2849.64221 | F24: 17761.38923 | G24: 34.33475 | H24: 1139.78079 | I24: 2277.14852 | J24: 7.40074 | K24: 14184.11966 | L24: 5826.5592 | M24: 2480.82122 | N24: 1364.10963
B25: Gminy miejsko-wiejskie:
B26: Urban-rural gminas:
B27: Nowogrodziec | D27: 38303.59485 | E27: 84.8936 | F27: 1000.87684 | G27: 1.8 | H27: 226.90214 | I27: 302.26212 | J27: 0.011 | K27: 5062.89168 | L27: 1082.91916 | M27: 90.9731 | N27: 158.8281
B28: Gminy wiejskie:
B29: Rural gminas:
B30: Bolesławiec | D30: 40170.02247 | E30: 170.09012 | F30: 672.56007 | G30: 28.9062 | H30: 396.71253 | I30: 900.094 | J30: 1.63 | K30: 4005.34656 | L30: 4492.61287 | M30: 26.0106 | N30: 254.90539
B31: Gromadka | D31: 22705.60892 | E31: 202.56 | F31: 530.37442 | G31: 4.62963 | H31: 78.702 | I31: 252.33329 | J31: - | K31: 2636.21124 | L31: 1859.97958 | M31: - | N31: -
B32: Osiecznica | D32: 28139.25393 | E32: 634.405 | F32: 241.1839 | G32: 7.77324 | H32: 811.3473 | I32: 180.18443 | J32: - | K32: 2788.01102 | L32: 564.0372 | M32: 37.04465 | N32: 503.83096
B33: Warta Bolesławiecka | D33: 28674.53306 | E33: 788.2612 | F33: 213.89147 | G33: 26.3796 | H33: 73.88807 | I33: 181.1103 | J33: - | K33: 3086.16552 | L33: 36.50265 | M33: 10.7512 | N33: 273.098
B34: POWIAT JAWORSKI | D34: 155368.7636 | E34: 5065.01424 | F34: 4069.80291 | G34: 233.07781 | H34: 760.24141 | I34: 4504.10125 | J34: 4.95074 | K34: 19304.71577 | L34: 12314.36678 | M34: 1495.69085 | N34: 143.13558
B35: Gminy miejskie:
B36: Urban gminas:
B37: Jawor | D37: 65563.61506 | E37: 188.26518 | F37: 1824.68999 | G37: 228.12781 | H37: 155.24226 | I37: 3999.55582 | J37: 4.94754 | K37: 7192.51598 | L37: 8914.81964 | M37: 260.36854 | N37: 0.05
B38: Gminy miejsko-wiejskie:
B39: Urban-rural gminas:
B40: Bolków | D40: 29895.72951 | E40: 588.88 | F40: 1381.21961 | G40: 1.2 | H40: 195.22235 | I40: 171.42168 | J40: - | K40: 5444.59228 | L40: 1301.129 | M40: 170.376 | N40: 12.761
B41: Gminy wiejskie:
B42: Rural gminas:
B43: Męcinka | D43: 17243.26792 | E43: 1375.42126 | F43: 134.93292 | G43: - | H43: 113.37054 | I43: 38.90454 | J43: - | K43: 1981.86998 | L43: 284.12592 | M43: 532.21635 | N43: -
B44: Mściwojów | D44: 16681.31961 | E44: 2301.53242 | F44: 388.37704 | G44: - | H44: 95.35506 | I44: 44.19607 | J44: - | K44: 1611.18158 | L44: 708.38891 | M44: 60.00618 | N44: -
B45: Paszowice | D45: 13582.08188 | E45: 221.529 | F45: 180.88196 | G45: 3.75 | H45: 64.78841 | I45: 106.52565 | J45: - | K45: 1395.21743 | L45: 851.08719 | M45: 463.74206 | N45: 0.1
B46: Wądroże Wielkie | D46: 12402.74963 | E46: 389.38638 | F46: 159.70139 | G46: - | H46: 136.26279 | I46: 143.49749 | J46: 0.0032 | K46: 1679.33852 | L46: 254.81612 | M46: 8.98172 | N46: 130.22458
B47: POWIAT JELENIOGÓRSKI | D47: 226250.5369 | E47: 17423.66498 | F47: 19340.97795 | G47: 368.06674 | H47: 1373.2374 | I47: 3419.92882 | J47: 175.41042 | K47: 27207.03994 | L47: 8215.32851 | M47: 2971.25228 | N47: 1023.66137
B48: Gminy miejskie:
B49: Urban gminas:
B50: Karpacz | D50: 36526.16795 | E50: 8026.27397 | F50: 4057.0381 | G50: 17.63168 | H50: 101.25105 | I50: 372.20249 | J50: - | K50: 1267.02283 | L50: 1431.02283 | M50: 49.70739 | N50: 218.884
B51: Kowary | D51: 29330.2171 | E51: 259.026 | F51: 2147.04211 | G51: 85.11112 | H51: 151.46351 | I51: 384.36204 | J51: 6 | K51: 5344.74652 | L51: 844.81989 | M51: 31.25737 | N51: 439.92382
B52: Piechowice | D52: 19242.78025 | E52: 381.10185 | F52: 1266.98382 | G52: 85.7874 | H52: 109.51106 | I52: 340.41087 | J52: - | K52: 2608.47034 | L52: 781.13057 | M52: 45.70708 | N52: 3.50955
B53: Szklarska Poręba | D53: 32987.44819 | E53: 2281.54462 | F53: 7194.17063 | G53: 68.31397 | H53: 482.00548 | I53: 242.33155 | J53: 6.50435 | K53: 2497.7261 | L53: 1692.76979 | M53: 0.56268 | N53: 320
B54: Gminy wiejskie:
B55: Rural gminas:
B56: Janowice Wielkie | D56: 15345.76908 | E56: 2990.45548 | F56: 1176.27447 | G56: 5.382 | H56: 69.59263 | I56: 906.69515 | J56: - | K56: 1658.41261 | L56: 253.62836 | M56: 9.26909 | N56: 12.859
B57: Jeżów Sudecki | D57: 21851.35731 | E57: 351.97637 | F57: 270.30707 | G57: 4.7 | H57: 53.31476 | I57: 39.84048 | J57: - | K57: 2802.36896 | L57: 422.77875 | M57: 2388.49568 | N57: 22.73
B58: Mysłakowice | D58: 30538.05686 | E58: 1522.7874 | F58: 1174.22961 | G58: 79.21054 | H58: 109.53585 | I58: 469.37767 | J58: 162.90607 | K58: 4370.72699 | L58: 1453.10627 | M58: - | N58: 5.755
B59: Podgórzyn | D59: 23730.69816 | E59: 1162.49929 | F59: 1113.55691 | G59: 16.93 | H59: 218.41774 | I59: 384.58049 | J59: - | K59: 4084.4831 | L59: 1041.89955 | M59: 71.98854 | N59: -
B60: Stara Kamienica | D60: 16698.04195 | E60: 448 | F60: 941.37523 | G60: 5.00003 | H60: 78.14532 | I60: 280.12808 | J60: - | K60: 2573.08249 | L60: 294.1725 | M60: 374.26445 | N60: -
B61: POWIAT KAMIENNOGÓRSKI | D61: 131761.0342 | E61: 8447.21245 | F61: 10384.64315 | G61: 48.25531 | H61: 1309.77939 | I61: 1482.4151 | J61: 7.3 | K61: 18412.73265 | L61: 2188.92007 | M61: 1275.73133 | N61: 803.18868
B62: Gminy miejskie:
B63: Urban gminas:
B64: Kamienna Góra | D64: 56731.5424 | E64: 2060.52769 | F64: 7555.98967 | G64: 2.116 | H64: 631.58228 | I64: 673.10162 | J64: - | K64: 7931.25978 | L64: 980.03386 | M64: 345.0348 | N64: 599.62609
B65: Gminy miejsko-wiejskie:
B66: Urban-rural gminas:
B67: Lubawka | D67: 34073.84628 | E67: 5450.04476 | F67: 964.56876 | G67: 4 | H67: 250.8475 | I67: 297.14664 | J67: 7.3 | K67: 4247.77104 | L67: 41.2508 | M67: 864.10507 | N67: 182.763
B68: Gminy wiejskie:
B69: Rural gminas:
B70: Kamienna Góra | D70: 27432.70958 | E70: 936.64 | F70: 1526.08457 | G70: 11.452 | H70: 270.78003 | I70: 422.31435 | J70: - | K70: 3599.12156 | L70: 732.20591 | M70: 48.97579 | N70: -
B71: Marciszów | D71: 13522.93598 | E71: - | F71: 338.00015 | G71: 30.68731 | H71: 156.56958 | I71: 89.85249 | J71: - | K71: 2634.58027 | L71: 435.4295 | M71: 17.61567 | N71: 20.79959
B72: POWIAT LUBAŃSKI | D72: 199421.0757 | E72: 19032.97393 | F72: 10831.43523 | G72: 134.65081 | H72: 1620.90746 | I72: 3976.43736 | J72: 0.77738 | K72: 30382.16912 | L72: 9196.13677 | M72: 644.05008 | N72: 1821.83663
B73: Gminy miejskie:
B74: Urban gminas:
B75: Lubań | D75: 58452.31294 | E75: 1.73261 | F75: 4336.52848 | G75: 19.6371 | H75: 471.92722 | I75: 1777.24407 | J75: - | K75: 7013.53764 | L75: 2422.68066 | M75: 49.899 | N75: 315.91613
B76: Świeradów-Zdrój | D76: 25397.06035 | E76: 2666.409 | F76: 4057.89979 | G76: 32.12214 | H76: 102.32223 | I76: 398.70243 | J76: 0.7598 | K76: 2169.49193 | L76: 1693.40588 | M76: 5.05 | N76: 2.044
B77: Gminy miejsko-wiejskie:
B78: Urban-rural gminas:
B79: Leśna | D79: 38466.81101 | E79: 1717.14168 | F79: 1149.7216 | G79: - | H79: 496.39601 | I79: 759.97312 | J79: 0.01758 | K79: 8931.06106 | L79: 1904.66003 | M79: 471.25134 | N79: 1451.7645
B80: Olszyna | D80: 38185.27273 | E80: 14036.45174 | F80: 882.67768 | G80: - | H80: 327.03682 | I80: 488.55185 | J80: - | K80: 7441.71015 | L80: 1636.09431 | M80: - | N80: -
B81: Gminy wiejskie:
B82: Rural gminas:
B83: Lubań | D83: 19540.57009 | E83: 611.2389 | F83: 115.75468 | G83: 40.05666 | H83: 154.06236 | I83: 151.5969 | J83: - | K83: 2515.63581 | L83: 103.13389 | M83: 110.61543 | N83: 0.0044
B84: Platerówka | D84: 4544.05128 | E84: - | F84: 27.25292 | G84: 6.646 | H84: 24.302 | I84: 140.68187 | J84: - | K84: 677.67995 | L84: 91.70998 | M84: 7.23431 | N84: -
B85: Siekierczyn | D85: 14834.99734 | E85: - | F85: 261.60008 | G85: 36.18891 | H85: 44.86082 | I85: 259.68712 | J85: - | K85: 1633.05258 | L85: 1344.45202 | M85: - | N85: 52.1076
B86: POWIAT LWÓWECKI | D86: 146402.4477 | E86: 8632.72849 | F86: 2725.70746 | G86: 192.91648 | H86: 859.53097 | I86: 1916.69536 | J86: 7.57898 | K86: 21370.1847 | L86: 4236.62547 | M86: 2373.68532 | N86: 1683.06715
B87: Gminy miejsko-wiejskie:
B88: Urban-rural gminas:
B89: Gryfów Śląski | D89: 25810.94702 | E89: 2178.92698 | F89: 702.78964 | G89: 2.332 | H89: 180.77232 | I89: 342.31289 | J89: 6.80898 | K89: 4511.9296 | L89: 46.10218 | M89: 0.00018 | N89: -
B90: Lubomierz | D90: 22379.44483 | E90: 758.957 | F90: 295.57669 | G90: 1.5 | H90: 118.64224 | I90: 110.2088 | J90: - | K90: 3106.3577 | L90: 1696.81477 | M90: 494.43979 | N90: -
B91: Lwówek Śląski | D91: 53923.77386 | E91: 3554.72906 | F91: 1184.54459 | G91: 171.50684 | H91: 258.66991 | I91: 960.56123 | J91: 0.77 | K91: 6642.58337 | L91: 1155.03998 | M91: 805.3919 | N91: 356.94361
B92: Mirsk | D92: 31904.65344 | E92: 1340.11545 | F92: 376.19078 | G92: 17.57764 | H92: 188.24777 | I92: 419.29914 | J92: - | K92: 5033.91129 | L92: 1126.41244 | M92: 735.48136 | N92: 1326.12354
B93: Wleń | D93: 12383.62851 | E93: 800 | F93: 166.60576 | G93: - | H93: 113.19873 | I93: 84.3133 | J93: - | K93: 2075.40274 | L93: 212.2561 | M93: 338.37209 | N93: -
B94: POWIAT ZGORZELECKI | D94: 372042.9047 | E94: 6527.59762 | F94: 15165.2761 | G94: 726.06838 | H94: 6824.83288 | I94: 5340.87405 | J94: 9.08779 | K94: 33666.8099 | L94: 16790.41239 | M94: 801.58312 | N94: 17506.60702
B95: Gminy miejskie:
B96: Urban gminas:
B97: Zawidów | D97: 11847.05743 | E97: 720.153 | F97: 347.81221 | G97: - | H97: 41.80056 | I97: 214.04505 | J97: - | K97: 1059.96323 | L97: 845.45592 | M97: - | N97: 45.93372
B98: Zgorzelec | D98: 102697.4539 | E98: 1878.8438 | F98: 1558.9568 | G98: 571.06064 | H98: 2665.12754 | I98: 1751.44661 | J98: 4.25489 | K98: 9770.1672 | L98: 5873.57465 | M98: 116.93591 | N98: 15368.49739
B99: Gminy miejsko-wiejskie:
B100: Urban-rural gminas:
B101: Bogatynia | D101: 151042.8182 | E101: 2164.4711 | F101: 10185.15649 | G101: 35.67 | H101: 3614.11453 | I101: 787.72626 | J101: 4.817 | K101: 9432.06726 | L101: 6208.98882 | M101: 19.83308 | N101: 785.28149
B102: Pieńsk | D102: 26953.26422 | E102: 132.63445 | F102: 1178.78648 | G102: 3.2 | H102: 177.46232 | I102: 202.74858 | J102: - | K102: 4319.78371 | L102: 2692.38481 | M102: 36.2297 | N102: 5.37321
B103: Węgliniec | D103: 26255.15466 | E103: 283.15915 | F103: 969.71412 | G103: 89.25918 | H103: 82.09688 | I103: 274.99037 | J103: 0.0159 | K103: 3689.82859 | L103: 159.33371 | M103: 29.32 | N103: 1124.8
B104: Gminy wiejskie:
B105: Rural gminas:
B106: Sulików | D106: 20968.08444 | E106: 535.43602 | F106: 397.3733 | G106: 26.87856 | H106: 98.38595 | I106: 598.71812 | J106: - | K106: 2756.12476 | L106: 466.40525 | M106: 28.75568 | N106: 172.32121
B107: Zgorzelec | D107: 32279.07183 | E107: 812.9001 | F107: 527.4767 | G107: - | H107: 145.8451 | I107: 1511.19906 | J107: - | K107: 2638.87515 | L107: 544.26923 | M107: 570.50875 | N107: 4.4
B108: POWIAT ZŁOTORYJSKI | D108: 153260.084 | E108: 8730.62002 | F108: 11417.30876 | G108: 122.87785 | H108: 1781.47758 | I108: 1620.93733 | J108: - | K108: 22164.43922 | L108: 4719.5269 | M108: 442.84092 | N108: 1242.7101
B109: Gminy miejskie:
B110: Urban gminas:
B111: Wojcieszów | D111: 17327.02768 | E111: 3618.57521 | F111: 1287.0156 | G111: 32.48036 | H111: 56.99713 | I111: 272.56144 | J111: - | K111: 2511.14073 | L111: 930.71465 | M111: 15.39557 | N111: 7.1
B112: Złotoryja | D112: 47269.42098 | E112: 1408.2969 | F112: 7241.7647 | G112: 90.39749 | H112: 255.70495 | I112: 548.51822 | J112: - | K112: 6294.18698 | L112: 2221.03369 | M112: 88.89236 | N112: 797.58349
B113: Gminy miejsko-wiejskie:
B114: Urban-rural gminas:
B115: Świerzawa | D115: 24826.0886 | E115: 2163.67437 | F115: 672.01774 | G115: - | H115: 1064.95822 | I115: 315.98054 | J115: - | K115: 4193.70233 | L115: 557.53083 | M115: 260.06013 | N115: 25
B116: Gminy wiejskie:
B117: Rural gminas:
B118: Pielgrzymka | D118: 18808.28435 | E118: 1079.30854 | F118: 1233.45413 | G118: - | H118: 61.97784 | I118: 269.75923 | J118: - | K118: 2934.7716 | L118: 626.27817 | M118: 7.44735 | N118: -
B119: Zagrodno | D119: 20939.63091 | E119: - | F119: 219.40349 | G119: - | H119: 276.06015 | I119: 52.92071 | J119: - | K119: 2813.36321 | L119: 361.77249 | M119: 23.58451 | N119: -
B120: Złotoryja | D120: 24089.63152 | E120: 460.765 | F120: 763.6531 | G120: - | H120: 65.77929 | I120: 161.19719 | J120: - | K120: 3417.27437 | L120: 22.19707 | M120: 47.461 | N120: 413.02661
B121: PODREGION LEGNICKO-GŁOGOWSKI | D121: 1380324.183 | E121: 16502.79156 | F121: 51375.2675 | G121: 656.45861 | H121: 17900.17126 | I121: 24679.15343 | J121: 866.70001 | K121: 119405.4372 | L121: 35480.28578 | M121: 8461.1631 | N121: 2417.35518
B122: SUBREGION
B123: POWIAT GŁOGOWSKI | D123: 314728.7163 | E123: 2728.14104 | F123: 12862.3621 | G123: 82.57493 | H123: 1602.94658 | I123: 5465.49885 | J123: 431.21131 | K123: 27480.33803 | L123: 13265.73402 | M123: 2860.22984 | N123: 350.88033
B124: Gminy miejskie:
B125: Urban gminas:
B126: Głogów | D126: 227144.6832 | E126: 1635.79201 | F126: 12021.43562 | G126: 53.93496 | H126: 1112.78507 | I126: 4797.10489 | J126: 429.92431 | K126: 19341.33493 | L126: 10553.50585 | M126: 1418.4326 | N126: 262.05538
B127: Gminy wiejskie:
B128: Rural gminas:
B129: Głogów | D129: 19533.88199 | E129: 142.62542 | F129: 185.41074 | G129: 4.66 | H129: 62.99538 | I129: 135.58177 | J129: - | K129: 1964.75198 | L129: 1383.36579 | M129: 274.55 | N129: 30.507
B130: Jerzmanowa | D130: 31999.93232 | E130: 49.3884 | F130: 76.67109 | G130: 11.48 | H130: 221.58022 | I130: 239.6875 | J130: - | K130: 1282.17956 | L130: 543.31288 | M130: 38.73511 | N130: 11.49226
B131: Kotla | D131: 14690.25376 | E131: 437.70606 | F131: 123.48462 | G131: 11.49997 | H131: 64.23446 | I131: 201.54549 | J131: - | K131: 1615.70659 | L131: 590.3608 | M131: 793.65832 | N131: 14.24269
B132: Pęcław | D132: 8498.60513 | E132: 0.11971 | F132: 258.67501 | G132: - | H132: 70.28431 | I132: 12.84075 | J132: - | K132: 1573.11433 | L132: 6.91481 | M132: 246.238 | N132: 20.547
B133: Żukowice | D133: 12861.35995 | E133: 462.50944 | F133: 196.68502 | G133: 1 | H133: 71.06714 | I133: 78.73845 | J133: 1.287 | K133: 1703.25064 | L133: 188.27389 | M133: 88.61581 | N133: 12.036
B134: POWIAT GÓROWSKI | D134: 118570.5009 | E134: 2459.25118 | F134: 4372.59399 | G134: 3 | H134: 463.87295 | I134: 1481.42913 | J134: 0.3927 | K134: 22090.72992 | L134: 4283.93744 | M134: 254.45511 | N134: 115.42352
B135: Gminy miejsko-wiejskie:
B136: Urban-rural gminas:
B137: Góra | D137: 68606.78657 | E137: 2234.81302 | F137: 3597.25223 | G137: 3 | H137: 287.1287 | I137: 1116.85581 | J137: - | K137: 13587.65244 | L137: 1286.23998 | M137: 40.80511 | N137: 72.99805
B138: Wąsosz | D138: 23522.17895 | E138: 123.70407 | F138: 489.80295 | G138: - | H138: 85.46409 | I138: 176.62297 | J138: - | K138: 3450.36425 | L138: 2032.91431 | M138: 7.385 | N138: 6.483
B139: Gminy wiejskie:
B140: Rural gminas:
B141: Jemielno | D141: 11145.50014 | E141: 100.73409 | F141: 244.11194 | G141: - | H141: 33.39125 | I141: 103.21636 | J141: 0.3927 | K141: 2239.46363 | L141: 686.00947 | M141: - | N141: -
B142: Niechlów | D142: 15296.03526 | E142: - | F142: 41.42687 | G142: - | H142: 57.88891 | I142: 84.73399 | J142: - | K142: 2813.2496 | L142: 278.77368 | M142: 206.265 | N142: 35.94247
B143: POWIAT LEGNICKI | D143: 167420.6401 | E143: 311.00467 | F143: 8524.63833 | G143: 263.56385 | H143: 1563.5805 | I143: 4249.13334 | J143: 20.98471 | K143: 20312.56719 | L143: 3546.69102 | M143: 565.06948 | N143: 321.49208
B144: Gminy miejskie:
B145: Urban gminas:
B146: Chojnów | D146: 38109.74746 | E146: - | F146: 1316.77405 | G146: 181.80747 | H146: 299.9803 | I146: 3086.64806 | J146: - | K146: 4551.19404 | L146: 1125.48839 | M146: 129.98521 | N146: -
B147: Gminy miejsko-wiejskie:
B148: Urban-rural gminas:
B149: Prochowice | D149: 22847.15873 | E149: 59.64418 | F149: 1363.50993 | G149: 68.71638 | H149: 373.6698 | I149: 415.17535 | J149: - | K149: 2816.53306 | L149: 811.93237 | M149: 0.5691 | N149: -
B150: Gminy wiejskie:
B151: Rural gminas:
B152: Chojnów | D152: 25166.55909 | E152: 2.52 | F152: 854.99368 | G152: - | H152: 204.45671 | I152: 175.09111 | J152: 2.69117 | K152: 3748.2961 | L152: 134.59211 | M152: 35 | N152: 0.13854
B153: Krotoszyce | D153: 12398.32698 | E153: 1.095 | F153: 148.7497 | G153: - | H153: 306.40695 | I153: 270.86447 | J153: 17.975 | K153: 1218.24664 | L153: 369.58899 | M153: 71.432 | N153: -
B154: Kunice | D154: 20114.76822 | E154: 129.99999 | F154: 242.26935 | G154: 3.04 | H154: 161.4813 | I154: 8.46248 | J154: 0.31854 | K154: 1734.72886 | L154: 463.22332 | M154: - | N154: 321.174
B155: Legnickie Pole | D155: 22878.74676 | E155: 78.3705 | F155: 4137.5751 | G155: 10 | H155: 74.83327 | I155: 113.12046 | J155: - | K155: 1845.96107 | L155: 424.92751 | M155: - | N155: -
B156: Miłkowice | D156: 17041.73252 | E156: 39.375 | F156: 434.46111 | G156: - | H156: 71.45195 | I156: 96.7603 | J156: - | K156: 2779.31415 | L156: 1.90906 | M156: 248.30517 | N156: -
B157: Ruja | D157: 8863.60029 | E157: - | F157: 26.30541 | G157: - | H157: 71.30022 | I157: 83.01111 | J157: - | K157: 1618.29327 | L157: 215.02927 | M157: 79.778 | N157: 0.17954
B158: POWIAT LUBIŃSKI | D158: 410899.1147 | E158: 6888.93365 | F158: 15676.78752 | G158: 70.7332 | H158: 11307.42909 | I158: 8280.9424 | J158: 78.37351 | K158: 28440.85176 | L158: 7696.35938 | M158: 3671.9302 | N158: 757.80713
B159: Gminy miejskie:
B160: Urban gminas:
B161: Lubin | D161: 278406.0206 | E161: 4523.7817 | F161: 12421.33935 | G161: 12.5 | H161: 833.95319 | I161: 6969.38474 | J161: 65.98178 | K161: 18573.13361 | L161: 5045.1595 | M161: 2934.04892 | N161: 0.02063
B162: Gminy miejsko-wiejskie:
B163: Urban-rural gminas:
B164: Ścinawa | D164: 27957.1684 | E164: 535.72602 | F164: 659.03689 | G164: - | H164: 158.26727 | I164: 592.49983 | J164: 11.78 | K164: 4502.07601 | L164: 947.09328 | M164: 15.089 | N164: 10.11403
B165: Gminy wiejskie:
B166: Rural gminas:
B167: Lubin | D167: 54619.87241 | E167: 1409.28606 | F167: 735.38185 | G167: 6.0231 | H167: 62.34452 | I167: 417.12309 | J167: 0.44916 | K167: 3087.10347 | L167: 1007.64656 | M167: 1.97708 | N167: 747.67247
B168: Rudna | D168: 49916.05326 | E168: 420.13987 | F168: 1861.02943 | G168: 52.2101 | H168: 10252.86411 | I168: 301.93474 | J168: 0.16257 | K168: 2278.53867 | L168: 696.46004 | M168: 720.8152 | N168: -
B169: POWIAT POLKOWICKI | D169: 368705.211 | E169: 4115.46102 | F169: 9938.88556 | G169: 236.58663 | H169: 2962.34214 | I169: 5202.14971 | J169: 335.73778 | K169: 21080.95028 | L169: 6687.56392 | M169: 1109.47847 | N169: 871.75212
B170: Gminy miejsko-wiejskie:
B171: Urban-rural gminas:
B172: Chocianów | D172: 34433.73743 | E172: 1441.82463 | F172: 902.59136 | G172: 3 | H172: 152.71202 | I172: 483.31922 | J172: - | K172: 4548.96811 | L172: 381.82262 | M172: - | N172: 4.978
B173: Polkowice | D173: 245555.2407 | E173: 834.20211 | F173: 7399.09957 | G173: 216.48939 | H173: 2351.00114 | I173: 3366.68243 | J173: 335.71984 | K173: 7109.66348 | L173: 3765.6462 | M173: 155.07773 | N173: 337.99364
B174: Przemków | D174: 26350.31945 | E174: 130.56674 | F174: 941.86693 | G174: 14.75444 | H174: 210.80354 | I174: 469.29687 | J174: - | K174: 3779.70997 | L174: 2322.47795 | M174: 140.745 | N174: 30.02044
B175: Gminy wiejskie:
B176: Rural gminas:
B177: Gaworzyce | D177: 12682.05352 | E177: 261.81805 | F177: 530.90081 | G177: - | H177: 69.02 | I177: 161.5888 | J177: - | K177: 1793.36163 | L177: 59.94066 | M177: 387.60117 | N177: 46
B178: Grębocice | D178: 28883.50931 | E178: 524.88314 | F178: 71.05196 | G178: 2.3428 | H178: 89.80964 | I178: 570.36479 | J178: 0.01794 | K178: 2133.80492 | L178: 121.81454 | M178: 198.80008 | N178: 126.90004
B179: Radwanice | D179: 20800.3506 | E179: 922.16635 | F179: 93.37493 | G179: - | H179: 88.9958 | I179: 150.8976 | J179: - | K179: 1715.44217 | L179: 35.86195 | M179: 227.25449 | N179: 325.86
B180: PODREGION WAŁBRZYSKI | D180: 1629487.066 | E180: 49846.32754 | F180: 132461.1608 | G180: 3012.58167 | H180: 15355.34276 | I180: 28198.96731 | J180: 11116.7468 | K180: 193685.1645 | L180: 56590.98212 | M180: 10074.55899 | N180: 12733.53335
B181: SUBREGION
B182: POWIAT DZIERŻONIOWSKI | D182: 296490.4374 | E182: 17902.34331 | F182: 33115.15896 | G182: 188.59118 | H182: 2878.23726 | I182: 3949.76327 | J182: 2.45532 | K182: 35933.42633 | L182: 7450.5688 | M182: 2320.76042 | N182: 2311.09593
B183: Gminy miejskie:
B184: Urban gminas:
B185: Bielawa | D185: 98721.53954 | E185: 13697.58095 | F185: 12097.49403 | G185: 95.08691 | H185: 656.48571 | I185: 1662.82184 | J185: - | K185: 10811.40221 | L185: 2589.83048 | M185: 0.23599 | N185: 1939.5961
B186: Dzierżoniów | D186: 93496.71014 | E186: 1001.74204 | F186: 15813.47133 | G186: 62.66206 | H186: 1608.56106 | I186: 651.03844 | J186: 0.01698 | K186: 10637.87054 | L186: 1481.91631 | M186: 626.79971 | N186: 2.09991
B187: Pieszyce | D187: 22107.57359 | E187: - | F187: 1228.80499 | G187: - | H187: 124.06231 | I187: 146.19611 | J187: - | K187: 3881.33741 | L187: 9.17076 | M187: 1065.27807 | N187: 41.14
B188: Piława Górna | D188: 15819.37009 | E188: 0.357 | F188: 1332.80622 | G188: 9.731 | H188: 94.20317 | I188: 245.86586 | J188: - | K188: 2515.31476 | L188: 27.10118 | M188: - | N188: -
B189: Gminy miejsko-wiejskie:
B190: Urban-rural gminas:
B191: Niemcza | D191: 15087.973 | E191: 35.72879 | F191: 595.92079 | G191: 15.13888 | H191: 239.00322 | I191: 167.27278 | J191: - | K191: 2231.18469 | L191: 142.94546 | M191: - | N191: -
B192: Gminy wiejskie:
B193: Rural gminas:
B194: Dzierżoniów | D194: 24954.76419 | E194: 781.0309 | F194: 1147.11972 | G194: 1.85 | H194: 87.2844 | I194: 152.53564 | J194: 0.00098 | K194: 3362.60506 | L194: 1032.40122 | M194: 628.44665 | N194: 38.45992
B195: Łagiewniki | D195: 26302.50681 | E195: 2385.90363 | F195: 899.54188 | G195: 4.12233 | H195: 68.63739 | I195: 924.0326 | J195: 2.43736 | K195: 2493.71166 | L195: 2167.20339 | M195: - | N195: 289.8
B196: POWIAT KŁODZKI | D196: 489264.7019 | E196: 10323.02804 | F196: 35788.4637 | G196: 981.4442 | H196: 5191.83917 | I196: 10929.20802 | J196: 10184.4897 | K196: 60377.48643 | L196: 19482.7963 | M196: 2561.06622 | N196: 2555.3907
B197: Gminy miejskie:
B198: Urban gminas:
B199: Duszniki-Zdrój | D199: 17463.90362 | E199: 7.0471 | F199: 2369.0959 | G199: 28.73 | H199: 421.14368 | I199: 553.73702 | J199: - | K199: 1659.4372 | L199: 308.93372 | M199: - | N199: 436.00329
B200: Kłodzko | D200: 78289.94665 | E200: 16.04589 | F200: 7642.82937 | G200: 234.07284 | H200: 556.02634 | I200: 3187.01194 | J200: 0.10012 | K200: 10205.03411 | L200: 5148.18762 | M200: 87.33963 | N200: -
B201: Kudowa-Zdrój | D201: 31865.88833 | E201: 1207.7519 | F201: 4073.99692 | G201: 84.48372 | H201: 182.0349 | I201: 513.57418 | J201: 0.16618 | K201: 2741.29539 | L201: 2367.90568 | M201: 27.76751 | N201: 108.02775
B202: Nowa Ruda | D202: 51224.49047 | E202: 358.16655 | F202: 2572.02584 | G202: 377.4876 | H202: 764.03761 | I202: 486.90854 | J202: - | K202: 7760.33391 | L202: 58.059 | M202: 8 | N202: 622.47487
B203: Polanica-Zdrój | D203: 28578.81737 | E203: 3.33476 | F203: 3304.16953 | G203: 49.256 | H203: 134.33238 | I203: 547.0789 | J203: - | K203: 1927.61505 | L203: 2288.40346 | M203: 435.24872 | N203: 5.56407
B204: Gminy miejsko-wiejskie:
B205: Urban-rural gminas:
... 144 more rows

Sheet Tabl. 11.
B4: Tabl. 11. Struktura dochodów budżetów gmin a według działów oraz według podregionów i powiatów
B5: Structure of revenue of gminas budgets a by divisions as well as subregions and powiats
B6: WYSZCZEGÓLNIENIE SPECIFICATION | D6: Ogółem Total | E6: W tym Of which
E7: transport i łączność transport and communication | F7: gospodarka mieszkaniowa dwelling economy | G7: działalność usługowa service activity | H7: administracja publiczna public administration | I7: oświata i wychowanie education | J7: ochrona zdrowia health care | K7: pomoc społeczna social welfare | L7: gospodarka komunalna i ochrona środowiska municipal economy and environmental protection | M7: kultura i ochrona dziedzictwa narodowego culture and national heritage | N7: kultura fizyczna physical education
D9: w % in %
B10: OGÓŁEM | C10: 2012 | D10: 100 | E10: 2.866318 | F10: 6.512337 | G10: 0.115146 | H10: 1.064923 | I10: 1.622218 | J10: 0.052274 | K10: 10.916596 | L10: 3.332689 | M10: 1.027152 | N10: 0.99567
B11: TOTAL | C11: 2013 | D11: 100 | E11: 2.55249 | F11: 5.983726 | G11: 0.114621 | H11: 0.933471 | I11: 1.734843 | J11: 0.195042 | K11: 10.595941 | L11: 3.467476 | M11: 0.76656 | N11: 0.836416
B13: Gminy miejskie | D13: 100 | E13: 2.908718 | F13: 9.246587 | G13: 0.197686 | H13: 0.74289 | I13: 2.061177 | J13: 0.062057 | K13: 10.127657 | L13: 3.983344 | M13: 0.549984 | N13: 1.342223
B14: Urban gminas
B15: Gminy miejsko-wiejskie | D15: 100 | E15: 2.560037 | F15: 5.653594 | G15: 0.101301 | H15: 0.896397 | I15: 1.711292 | J15: 0.439559 | K15: 11.129169 | L15: 3.448854 | M15: 0.689853 | N15: 0.667436
B16: Urban-rural gminas
B17: Gminy wiejskie | D17: 100 | E17: 2.139004 | F17: 2.716918 | G17: 0.037865 | H17: 1.197752 | I17: 1.395772 | J17: 0.026962 | K17: 10.431414 | L17: 2.907216 | M17: 1.111965 | N17: 0.48357
B18: Rural gminas
B19: PODREGION JELENIOGÓRSKI | D19: 100 | E19: 4.698305 | F19: 5.640826 | G19: 0.115364 | H19: 1.031691 | I19: 1.575545 | J19: 0.012802 | K19: 12.211871 | L19: 4.275896 | M19: 0.756277 | N19: 1.60092
B20: SUBREGION
B21: POWIAT BOLESŁAWIECKI | D21: 100 | E21: 1.641075 | F21: 7.085044 | G21: 0.036022 | H21: 0.946278 | I21: 1.420158 | J21: 0.003137 | K21: 11.020442 | L21: 4.809788 | M21: 0.91792 | N21: 0.886406
B22: Gminy miejskie:
B23: Urban gminas:
B24: Bolesławiec | D24: 100 | E24: 2.188268 | F24: 13.639147 | G24: 0.026365 | H24: 0.875249 | I24: 1.748645 | J24: 0.005683 | K24: 10.892126 | L24: 4.474272 | M24: 1.905047 | N24: 1.047513
B25: Gminy miejsko-wiejskie:
B26: Urban-rural gminas:
B27: Nowogrodziec | D27: 100 | E27: 0.221633 | F27: 2.61301 | G27: 0.004699 | H27: 0.592378 | I27: 0.789122 | J27: 2.8e-05 | K27: 13.217797 | L27: 2.827199 | M27: 0.237505 | N27: 0.414655
B28: Gminy wiejskie:
B29: Rural gminas:
B30: Bolesławiec | D30: 100 | E30: 0.423425 | F30: 1.674283 | G30: 0.071959 | H30: 0.987583 | I30: 2.24071 | J30: 0.004057 | K30: 9.970984 | L30: 11.183993 | M30: 0.064751 | N30: 0.634566
B31: Gromadka | D31: 100 | E31: 0.892114 | F31: 2.335874 | G31: 0.020389 | H31: 0.346619 | I31: 1.111325 | J31: 0 | K31: 11.610396 | L31: 8.191718 | M31: 0 | N31: 0
B32: Osiecznica | D32: 100 | E32: 2.254519 | F32: 0.857108 | G32: 0.027624 | H32: 2.883329 | I32: 0.640331 | J32: 0 | K32: 9.907906 | L32: 2.004449 | M32: 0.131647 | N32: 1.790491
B33: Warta Bolesławiecka | D33: 100 | E33: 2.748994 | F33: 0.745928 | G33: 0.091996 | H33: 0.257678 | I33: 0.631606 | J33: 0 | K33: 10.76274 | L33: 0.127299 | M33: 0.037493 | N33: 0.952406
B34: POWIAT JAWORSKI | D34: 100 | E34: 3.259995 | F34: 2.619447 | G34: 0.150015 | H34: 0.489314 | I34: 2.898974 | J34: 0.003186 | K34: 12.425094 | L34: 7.925896 | M34: 0.962671 | N34: 0.092126
B35: Gminy miejskie:
B36: Urban gminas:
B37: Jawor | D37: 100 | E37: 0.287148 | F37: 2.783083 | G37: 0.347948 | H37: 0.236781 | I37: 6.100267 | J37: 0.007546 | K37: 10.970285 | L37: 13.597205 | M37: 0.397123 | N37: 7.6e-05
B38: Gminy miejsko-wiejskie:
B39: Urban-rural gminas:
B40: Bolków | D40: 100 | E40: 1.969779 | F40: 4.620123 | G40: 0.004013 | H40: 0.65301 | I40: 0.573398 | J40: 0 | K40: 18.211939 | L40: 4.352223 | M40: 0.5699 | N40: 0.042685
B41: Gminy wiejskie:
B42: Rural gminas:
B43: Męcinka | D43: 100 | E43: 7.976569 | F43: 0.782525 | G43: 0 | H43: 0.657477 | I43: 0.225621 | J43: 0 | K43: 11.493586 | L43: 1.647749 | M43: 3.086516 | N43: 0
B44: Mściwojów | D44: 100 | E44: 13.797064 | F44: 2.328215 | G44: 0 | H44: 0.571627 | I44: 0.264943 | J44: 0 | K44: 9.658597 | L44: 4.246599 | M44: 0.35972 | N44: 0
B45: Paszowice | D45: 100 | E45: 1.631038 | F45: 1.331769 | G45: 0.027609 | H45: 0.477013 | I45: 0.78431 | J45: 0 | K45: 10.272485 | L45: 6.266249 | M45: 3.414366 | N45: 0.000736
B46: Wądroże Wielkie | D46: 100 | E46: 3.139516 | F46: 1.287628 | G46: 0 | H46: 1.098649 | I46: 1.156981 | J46: 2.5e-05 | K46: 13.54005 | L46: 2.054513 | M46: 0.072417 | N46: 1.049965
B47: POWIAT JELENIOGÓRSKI | D47: 100 | E47: 7.701049 | F47: 8.548478 | G47: 0.162681 | H47: 0.606954 | I47: 1.511567 | J47: 0.077529 | K47: 12.025182 | L47: 3.631075 | M47: 1.313257 | N47: 0.452445
B48: Gminy miejskie:
B49: Urban gminas:
B50: Karpacz | D50: 100 | E50: 21.974037 | F50: 11.107209 | G50: 0.048271 | H50: 0.277201 | I50: 1.019002 | J50: 0 | K50: 3.468808 | L50: 3.917801 | M50: 0.136087 | N50: 0.599252
B51: Kowary | D51: 100 | E51: 0.883137 | F51: 7.320239 | G51: 0.290182 | H51: 0.516407 | I51: 1.310464 | J51: 0.020456 | K51: 18.222662 | L51: 2.880373 | M51: 0.10657 | N51: 1.499899
B52: Piechowice | D52: 100 | E52: 1.980492 | F52: 6.584203 | G52: 0.445816 | H52: 0.569102 | I52: 1.769031 | J52: 0 | K52: 13.555579 | L52: 4.059343 | M52: 0.237528 | N52: 0.018238
B53: Szklarska Poręba | D53: 100 | E53: 6.916402 | F53: 21.808812 | G53: 0.20709 | H53: 1.461178 | I53: 0.734617 | J53: 0.019717 | K53: 7.571746 | L53: 5.131557 | M53: 0.001705 | N53: 0.970065
B54: Gminy wiejskie:
B55: Rural gminas:
B56: Janowice Wielkie | D56: 100 | E56: 19.487165 | F56: 7.665138 | G56: 0.035071 | H56: 0.453497 | I56: 5.908437 | J56: 0 | K56: 10.806969 | L56: 1.652757 | M56: 0.060401 | N56: 0.083795
B57: Jeżów Sudecki | D57: 100 | E57: 1.610775 | F57: 1.237026 | G57: 0.021508 | H57: 0.243988 | I57: 0.182324 | J57: 0 | K57: 12.82469 | L57: 1.934793 | M57: 10.930651 | N57: 0.10402
B58: Mysłakowice | D58: 100 | E58: 4.986523 | F58: 3.845135 | G58: 0.259383 | H58: 0.358686 | I58: 1.537025 | J58: 0.533452 | K58: 14.312393 | L58: 4.758345 | M58: 0 | N58: 0.018845
B59: Podgórzyn | D59: 100 | E59: 4.898715 | F59: 4.692474 | G59: 0.071342 | H59: 0.920401 | I59: 1.620603 | J59: 0 | K59: 17.211811 | L59: 4.390513 | M59: 0.303356 | N59: 0
B60: Stara Kamienica | D60: 100 | E60: 2.682949 | F60: 5.637638 | G60: 0.029943 | H60: 0.46799 | I60: 1.67761 | J60: 0 | K60: 15.409486 | L60: 1.761718 | M60: 2.241367 | N60: 0
B61: POWIAT KAMIENNOGÓRSKI | D61: 100 | E61: 6.411009 | F61: 7.881422 | G61: 0.036623 | H61: 0.994056 | I61: 1.125078 | J61: 0.00554 | K61: 13.974338 | L61: 1.66128 | M61: 0.968215 | N61: 0.609579
B62: Gminy miejskie:
B63: Urban gminas:
B64: Kamienna Góra | D64: 100 | E64: 3.632067 | F64: 13.318851 | G64: 0.003729 | H64: 1.113282 | I64: 1.186468 | J64: 0 | K64: 13.980335 | L64: 1.727493 | M64: 0.608188 | N64: 1.056953
B65: Gminy miejsko-wiejskie:
B66: Urban-rural gminas:
B67: Lubawka | D67: 100 | E67: 15.994803 | F67: 2.830818 | G67: 0.011739 | H67: 0.736187 | I67: 0.872066 | J67: 0.021424 | K67: 12.466367 | L67: 0.121062 | M67: 2.535977 | N67: 0.536373
B68: Gminy wiejskie:
B69: Rural gminas:
B70: Kamienna Góra | D70: 100 | E70: 3.414318 | F70: 5.56301 | G70: 0.041745 | H70: 0.987069 | I70: 1.539455 | J70: 0 | K70: 13.119817 | L70: 2.669098 | M70: 0.17853 | N70: 0
B71: Marciszów | D71: 100 | E71: 0 | F71: 2.499458 | G71: 0.226927 | H71: 1.157807 | I71: 0.664445 | J71: 0 | K71: 19.482309 | L71: 3.219933 | M71: 0.130265 | N71: 0.153809
B72: POWIAT LUBAŃSKI | D72: 100 | E72: 9.544113 | F72: 5.431439 | G72: 0.06752 | H72: 0.812806 | I72: 1.99399 | J72: 0.000389 | K72: 15.235184 | L72: 4.611416 | M72: 0.322959 | N72: 0.913562
B73: Gminy miejskie:
B74: Urban gminas:
B75: Lubań | D75: 100 | E75: 0.002964 | F75: 7.418916 | G75: 0.033595 | H75: 0.807371 | I75: 3.040502 | J75: 0 | K75: 11.998734 | L75: 4.144713 | M75: 0.085367 | N75: 0.540468
B76: Świeradów-Zdrój | D76: 100 | E76: 10.498888 | F76: 15.977832 | G76: 0.126479 | H76: 0.40289 | I76: 1.569876 | J76: 0.002991 | K76: 8.542295 | L76: 6.667723 | M76: 0.019884 | N76: 0.008048
B77: Gminy miejsko-wiejskie:
B78: Urban-rural gminas:
B79: Leśna | D79: 100 | E79: 4.463956 | F79: 2.988866 | G79: 0 | H79: 1.290452 | I79: 1.975659 | J79: 4.5e-05 | K79: 23.217575 | L79: 4.951437 | M79: 1.225085 | N79: 3.77407
B80: Olszyna | D80: 100 | E80: 36.758809 | F80: 2.311565 | G80: 0 | H80: 0.856447 | I80: 1.279424 | J80: 0 | K80: 19.48843 | L80: 4.284621 | M80: 0 | N80: 0
B81: Gminy wiejskie:
B82: Rural gminas:
B83: Lubań | D83: 100 | E83: 3.12805 | F83: 0.592381 | G83: 0.204992 | H83: 0.788423 | I83: 0.775805 | J83: 0 | K83: 12.873912 | L83: 0.527793 | M83: 0.56608 | N83: 2.2e-05
B84: Platerówka | D84: 100 | E84: 0 | F84: 0.599749 | G84: 0.146257 | H84: 0.534809 | I84: 3.095956 | J84: 0 | K84: 14.913562 | L84: 2.018242 | M84: 0.159203 | N84: 0
B85: Siekierczyn | D85: 100 | E85: 0 | F85: 1.763398 | G85: 0.243942 | H85: 0.302398 | I85: 1.750503 | J85: 0 | K85: 11.008108 | L85: 9.062704 | M85: 0 | N85: 0.351247
B86: POWIAT LWÓWECKI | D86: 100 | E86: 5.896573 | F86: 1.86179 | G86: 0.131771 | H86: 0.587101 | I86: 1.309196 | J86: 0.005176 | K86: 14.596876 | L86: 2.893821 | M86: 1.621342 | N86: 1.149616
B87: Gminy miejsko-wiejskie:
B88: Urban-rural gminas:
B89: Gryfów Śląski | D89: 100 | E89: 8.441871 | F89: 2.722835 | G89: 0.009034 | H89: 0.70037 | I89: 1.326231 | J89: 0.02638 | K89: 17.480682 | L89: 0.178614 | M89: 0 | N89: 0
B90: Lubomierz | D90: 100 | E90: 3.391312 | F90: 1.32075 | G90: 0.006702 | H90: 0.530139 | I90: 0.492455 | J90: 0 | K90: 13.880405 | L90: 7.582023 | M90: 2.209347 | N90: 0
B91: Lwówek Śląski | D91: 100 | E91: 6.592137 | F91: 2.196701 | G91: 0.318054 | H91: 0.479695 | I91: 1.781331 | J91: 0.001427 | K91: 12.318469 | L91: 2.141986 | M91: 1.493574 | N91: 0.661941
B92: Mirsk | D92: 100 | E92: 4.200376 | F92: 1.179109 | G92: 0.055094 | H92: 0.590032 | I92: 1.314225 | J92: 0 | K92: 15.777984 | L92: 3.530558 | M92: 2.305247 | N92: 4.15652
B93: Wleń | D93: 100 | E93: 6.460142 | F93: 1.345371 | G93: 0 | H93: 0.914099 | I93: 0.680844 | J93: 0 | K93: 16.759245 | L93: 1.714005 | M93: 2.732414 | N93: 0
B94: POWIAT ZGORZELECKI | D94: 100 | E94: 1.754528 | F94: 4.076216 | G94: 0.195157 | H94: 1.83442 | I94: 1.435553 | J94: 0.002442 | K94: 9.049174 | L94: 4.513031 | M94: 0.215454 | N94: 4.705534
B95: Gminy miejskie:
B96: Urban gminas:
B97: Zawidów | D97: 100 | E97: 6.078749 | F97: 2.935853 | G97: 0 | H97: 0.352834 | I97: 1.806735 | J97: 0 | K97: 8.947059 | L97: 7.136421 | M97: 0 | N97: 0.387722
B98: Zgorzelec | D98: 100 | E98: 1.829494 | F98: 1.518009 | G98: 0.556061 | H98: 2.595125 | I98: 1.705443 | J98: 0.004143 | K98: 9.513543 | L98: 5.719299 | M98: 0.113864 | N98: 14.964828
B99: Gminy miejsko-wiejskie:
B100: Urban-rural gminas:
B101: Bogatynia | D101: 100 | E101: 1.433018 | F101: 6.743224 | G101: 0.023615 | H101: 2.392774 | I101: 0.521525 | J101: 0.003189 | K101: 6.244631 | L101: 4.110747 | M101: 0.01313 | N101: 0.519906
B102: Pieńsk | D102: 100 | E102: 0.49209 | F102: 4.373446 | G102: 0.011872 | H102: 0.658407 | I102: 0.752222 | J102: 0 | K102: 16.02694 | L102: 9.989086 | M102: 0.134416 | N102: 0.019935
B103: Węgliniec | D103: 100 | E103: 1.078489 | F103: 3.693423 | G103: 0.339968 | H103: 0.312688 | I103: 1.047376 | J103: 6e-05 | K103: 14.05373 | L103: 0.606866 | M103: 0.111673 | N103: 4.284111
B104: Gminy wiejskie:
B105: Rural gminas:
B106: Sulików | D106: 100 | E106: 2.553576 | F106: 1.895134 | G106: 0.128187 | H106: 0.469217 | I106: 2.855378 | J106: 0 | K106: 13.14438 | L106: 2.224357 | M106: 0.13714 | N106: 0.821826
B107: Zgorzelec | D107: 100 | E107: 2.51835 | F107: 1.634113 | G107: 0 | H107: 0.451825 | I107: 4.681668 | J107: 0 | K107: 8.175189 | L107: 1.686136 | M107: 1.767426 | N107: 0.013631
B108: POWIAT ZŁOTORYJSKI | D108: 100 | E108: 5.696603 | F108: 7.449629 | G108: 0.080176 | H108: 1.162388 | I108: 1.057638 | J108: 0 | K108: 14.461977 | L108: 3.079423 | M108: 0.288947 | N108: 0.81085
B109: Gminy miejskie:
B110: Urban gminas:
B111: Wojcieszów | D111: 100 | E111: 20.883992 | F111: 7.427792 | G111: 0.187454 | H111: 0.328949 | I111: 1.573042 | J111: 0 | K111: 14.492622 | L111: 5.371461 | M111: 0.088852 | N111: 0.040976
B112: Złotoryja | D112: 100 | E112: 2.979297 | F112: 15.320189 | G112: 0.191238 | H112: 0.540952 | I112: 1.160408 | J112: 0 | K112: 13.315557 | L112: 4.698669 | M112: 0.188054 | N112: 1.687313
B113: Gminy miejsko-wiejskie:
B114: Urban-rural gminas:
B115: Świerzawa | D115: 100 | E115: 8.715325 | F115: 2.706901 | G115: 0 | H115: 4.289673 | I115: 1.272776 | J115: 0 | K115: 16.89232 | L115: 2.245745 | M115: 1.047527 | N115: 0.1007
B116: Gminy wiejskie:
B117: Rural gminas:
B118: Pielgrzymka | D118: 100 | E118: 5.738474 | F118: 6.558036 | G118: 0 | H118: 0.329524 | I118: 1.434257 | J118: 0 | K118: 15.603611 | L118: 3.329799 | M118: 0.039596 | N118: 0
B119: Zagrodno | D119: 100 | E119: 0 | F119: 1.04779 | G119: 0 | H119: 1.318362 | I119: 0.252729 | J119: 0 | K119: 13.435591 | L119: 1.727692 | M119: 0.11263 | N119: 0
B120: Złotoryja | D120: 100 | E120: 1.91271 | F120: 3.170048 | G120: 0 | H120: 0.27306 | I120: 0.669155 | J120: 0 | K120: 14.185664 | L120: 0.092143 | M120: 0.197018 | N120: 1.714541
B121: PODREGION LEGNICKO-GŁOGOWSKI | D121: 100 | E121: 1.195573 | F121: 3.721971 | G121: 0.047558 | H121: 1.296809 | I121: 1.787924 | J121: 0.062789 | K121: 8.650535 | L121: 2.570431 | M121: 0.612983 | N121: 0.175129
B122: SUBREGION
B123: POWIAT GŁOGOWSKI | D123: 100 | E123: 0.866823 | F123: 4.086809 | G123: 0.026236 | H123: 0.50931 | I123: 1.736574 | J123: 0.13701 | K123: 8.731436 | L123: 4.214974 | M123: 0.908792 | N123: 0.111486
B124: Gminy miejskie:
B125: Urban gminas:
B126: Głogów | D126: 100 | E126: 0.720154 | F126: 5.292413 | G126: 0.023744 | H126: 0.489901 | I126: 2.111915 | J126: 0.189273 | K126: 8.514984 | L126: 4.64616 | M126: 0.624462 | N126: 0.115369
B127: Gminy wiejskie:
B128: Rural gminas:
B129: Głogów | D129: 100 | E129: 0.730143 | F129: 0.949175 | G129: 0.023855 | H129: 0.322492 | I129: 0.694085 | J129: 0 | K129: 10.058174 | L129: 7.081878 | M129: 1.405506 | N129: 0.156174
B130: Jerzmanowa | D130: 100 | E130: 0.154339 | F130: 0.239597 | G130: 0.035875 | H130: 0.692439 | I130: 0.749025 | J130: 0 | K130: 4.006819 | L130: 1.697856 | M130: 0.121047 | N130: 0.035913
B131: Kotla | D131: 100 | E131: 2.979567 | F131: 0.840588 | G131: 0.078282 | H131: 0.437259 | I131: 1.371967 | J131: 0 | K131: 10.998493 | L131: 4.018724 | M131: 5.402618 | N131: 0.096953
B132: Pęcław | D132: 100 | E132: 0.001408 | F132: 3.043734 | G132: 0 | H132: 0.827009 | I132: 0.151092 | J132: 0 | K132: 18.510264 | L132: 0.081364 | M132: 2.897393 | N132: 0.241769
B133: Żukowice | D133: 100 | E133: 3.596116 | F133: 1.52927 | G133: 0.007775 | H133: 0.552563 | I133: 0.612209 | J133: 0.010006 | K133: 13.243161 | L133: 1.463872 | M133: 0.689008 | N133: 0.093582
B134: POWIAT GÓROWSKI | D134: 100 | E134: 2.074083 | F134: 3.687758 | G134: 0.00253 | H134: 0.391221 | I134: 1.249407 | J134: 0.000331 | K134: 18.630881 | L134: 3.612987 | M134: 0.214602 | N134: 0.097345
B135: Gminy miejsko-wiejskie:
B136: Urban-rural gminas:
B137: Góra | D137: 100 | E137: 3.257422 | F137: 5.243289 | G137: 0.004372 | H137: 0.418513 | I137: 1.627908 | J137: 0 | K137: 19.805114 | L137: 1.874799 | M137: 0.059476 | N137: 0.1064
B138: Wąsosz | D138: 100 | E138: 0.525903 | F138: 2.082302 | G138: 0 | H138: 0.363334 | I138: 0.750878 | J138: 0 | K138: 14.668557 | L138: 8.642542 | M138: 0.031395 | N138: 0.027561
B139: Gminy wiejskie:
B140: Rural gminas:
B141: Jemielno | D141: 100 | E141: 0.903809 | F141: 2.190228 | G141: 0 | H141: 0.299594 | I141: 0.926081 | J141: 0.003523 | K141: 20.092984 | L141: 6.155035 | M141: 0 | N141: 0
B142: Niechlów | D142: 100 | E142: 0 | F142: 0.270834 | G142: 0 | H142: 0.378456 | I142: 0.55396 | J142: 0 | K142: 18.392018 | L142: 1.822522 | M142: 1.348486 | N142: 0.234978
B143: POWIAT LEGNICKI | D143: 100 | E143: 0.185762 | F143: 5.091748 | G143: 0.157426 | H143: 0.933923 | I143: 2.537998 | J143: 0.012534 | K143: 12.132654 | L143: 2.118431 | M143: 0.337514 | N143: 0.192026
B144: Gminy miejskie:
B145: Urban gminas:
B146: Chojnów | D146: 100 | E146: 0 | F146: 3.455215 | G146: 0.477062 | H146: 0.787148 | I146: 8.099366 | J146: 0 | K146: 11.942335 | L146: 2.953282 | M146: 0.341081 | N146: 0
B147: Gminy miejsko-wiejskie:
B148: Urban-rural gminas:
B149: Prochowice | D149: 100 | E149: 0.261057 | F149: 5.967962 | G149: 0.300765 | H149: 1.635519 | I149: 1.817185 | J149: 0 | K149: 12.327716 | L149: 3.553756 | M149: 0.00249 | N149: 0
B150: Gminy wiejskie:
B151: Rural gminas:
B152: Chojnów | D152: 100 | E152: 0.010013 | F152: 3.39734 | G152: 0 | H152: 0.812414 | I152: 0.695729 | J152: 0.010693 | K152: 14.893955 | L152: 0.534805 | M152: 0.139073 | N152: 0.00055
B153: Krotoszyce | D153: 100 | E153: 0.008831 | F153: 1.199756 | G153: 0 | H153: 2.471357 | I153: 2.184685 | J153: 0.144979 | K153: 9.825895 | L153: 2.980958 | M153: 0.576142 | N153: 0
B154: Kunice | D154: 100 | E154: 0.646291 | F154: 1.204435 | G154: 0.015113 | H154: 0.802799 | I154: 0.04207 | J154: 0.001583 | K154: 8.624155 | L154: 2.302901 | M154: 0 | N154: 1.596707
B155: Legnickie Pole | D155: 100 | E155: 0.342547 | F155: 18.084797 | G155: 0.043708 | H155: 0.327086 | I155: 0.494434 | J155: 0 | K155: 8.068453 | L155: 1.857302 | M155: 0 | N155: 0
B156: Miłkowice | D156: 100 | E156: 0.23105 | F156: 2.549395 | G156: 0 | H156: 0.419276 | I156: 0.567784 | J156: 0 | K156: 16.30887 | L156: 0.011202 | M156: 1.457041 | N156: 0
B157: Ruja | D157: 100 | E157: 0 | F157: 0.29678 | G157: 0 | H157: 0.804416 | I157: 0.936539 | J157: 0 | K157: 18.257741 | L157: 2.425981 | M157: 0.900063 | N157: 0.002025
B158: POWIAT LUBIŃSKI | D158: 100 | E158: 1.676551 | F158: 3.81524 | G158: 0.017214 | H158: 2.751874 | I158: 2.015322 | J158: 0.019073 | K158: 6.921614 | L158: 1.873053 | M158: 0.893633 | N158: 0.184426
B159: Gminy miejskie:
B160: Urban gminas:
B161: Lubin | D161: 100 | E161: 1.624886 | F161: 4.461591 | G161: 0.004489 | H161: 0.299545 | I161: 2.503316 | J161: 0.023699 | K161: 6.671239 | L161: 1.812158 | M161: 1.053874 | N161: 7e-06
B162: Gminy miejsko-wiejskie:
B163: Urban-rural gminas:
B164: Ścinawa | D164: 100 | E164: 1.916238 | F164: 2.357309 | G164: 0 | H164: 0.566106 | I164: 2.119312 | J164: 0.042135 | K164: 16.103476 | L164: 3.387658 | M164: 0.053971 | N164: 0.036176
B165: Gminy wiejskie:
B166: Rural gminas:
B167: Lubin | D167: 100 | E167: 2.58017 | F167: 1.346363 | G167: 0.011027 | H167: 0.114142 | I167: 0.763683 | J167: 0.000822 | K167: 5.651978 | L167: 1.844835 | M167: 0.003619 | N167: 1.368865
B168: Rudna | D168: 100 | E168: 0.841692 | F168: 3.728318 | G168: 0.104595 | H168: 20.540213 | I168: 0.604885 | J168: 0.000325 | K168: 4.564741 | L168: 1.395262 | M168: 1.444054 | N168: 0
B169: POWIAT POLKOWICKI | D169: 100 | E169: 1.116192 | F169: 2.695618 | G169: 0.064166 | H169: 0.803444 | I169: 1.410923 | J169: 0.091058 | K169: 5.717562 | L169: 1.813796 | M169: 0.300912 | N169: 0.236436
B170: Gminy miejsko-wiejskie:
B171: Urban-rural gminas:
B172: Chocianów | D172: 100 | E172: 4.187244 | F172: 2.621241 | G172: 0.008712 | H172: 0.443495 | I172: 1.403621 | J172: 0 | K172: 13.210788 | L172: 1.108861 | M172: 0 | N172: 0.014456
B173: Polkowice | D173: 100 | E173: 0.33972 | F173: 3.013211 | G173: 0.088163 | H173: 0.957422 | I173: 1.371048 | J173: 0.136718 | K173: 2.895341 | L173: 1.533523 | M173: 0.063153 | N173: 0.137644
B174: Przemków | D174: 100 | E174: 0.495503 | F174: 3.574404 | G174: 0.055993 | H174: 0.800003 | I174: 1.780991 | J174: 0 | K174: 14.344076 | L174: 8.813851 | M174: 0.53413 | N174: 0.113928
B175: Gminy wiejskie:
B176: Rural gminas:
B177: Gaworzyce | D177: 100 | E177: 2.064476 | F177: 4.186236 | G177: 0 | H177: 0.544233 | I177: 1.274153 | J177: 0 | K177: 14.14094 | L177: 0.472641 | M177: 3.056296 | N177: 0.362717
B178: Grębocice | D178: 100 | E178: 1.817241 | F178: 0.245994 | G178: 0.008111 | H178: 0.310937 | I178: 1.974707 | J178: 6.2e-05 | K178: 7.387623 | L178: 0.421744 | M178: 0.688282 | N178: 0.439351
B179: Radwanice | D179: 100 | E179: 4.433417 | F179: 0.44891 | G179: 0 | H179: 0.427857 | I179: 0.725457 | J179: 0 | K179: 8.247179 | L179: 0.17241 | M179: 1.092551 | N179: 1.566608
B180: PODREGION WAŁBRZYSKI | D180: 100 | E180: 3.059019 | F180: 8.129009 | G180: 0.184879 | H180: 0.942342 | I180: 1.730542 | J180: 0.682223 | K180: 11.886265 | L180: 3.472932 | M180: 0.618265 | N180: 0.781444
B181: SUBREGION
B182: POWIAT DZIERŻONIOWSKI | D182: 100 | E182: 6.038084 | F182: 11.169047 | G182: 0.063607 | H182: 0.970769 | I182: 1.332172 | J182: 0.000828 | K182: 12.11959 | L182: 2.51292 | M182: 0.782743 | N182: 0.779484
B183: Gminy miejskie:
B184: Urban gminas:
B185: Bielawa | D185: 100 | E185: 13.874966 | F185: 12.254158 | G185: 0.096318 | H185: 0.664987 | I185: 1.684355 | J185: 0 | K185: 10.951411 | L185: 2.623369 | M185: 0.000239 | N185: 1.964714
B186: Dzierżoniów | D186: 100 | E186: 1.071419 | F186: 16.913398 | G186: 0.06702 | H186: 1.720446 | I186: 0.696322 | J186: 1.8e-05 | K186: 11.377801 | L186: 1.584992 | M186: 0.670397 | N186: 0.002245
B187: Pieszyce | D187: 100 | E187: 0 | F187: 5.558298 | G187: 0 | H187: 0.561175 | I187: 0.661294 | J187: 0 | K187: 17.556596 | L187: 0.041482 | M187: 4.818611 | N187: 0.18609
B188: Piława Górna | D188: 100 | E188: 0.002256 | F188: 8.425153 | G188: 0.061513 | H188: 0.595492 | I188: 1.554207 | J188: 0 | K188: 15.90022 | L188: 0.171316 | M188: 0 | N188: 0
B189: Gminy miejsko-wiejskie:
B190: Urban-rural gminas:
B191: Niemcza | D191: 100 | E191: 0.236803 | F191: 3.949641 | G191: 0.100337 | H191: 1.584064 | I191: 1.108649 | J191: 0 | K191: 14.787835 | L191: 0.947413 | M191: 0 | N191: 0
B192: Gminy wiejskie:
B193: Rural gminas:
B194: Dzierżoniów | D194: 100 | E194: 3.129786 | F194: 4.596796 | G194: 0.007413 | H194: 0.34977 | I194: 0.611248 | J194: 3e-06 | K194: 13.474801 | L194: 4.13709 | M194: 2.518343 | N194: 0.154118
B195: Łagiewniki | D195: 100 | E195: 9.071012 | F195: 3.419985 | G195: 0.015672 | H195: 0.260953 | I195: 3.513097 | J195: 0.009266 | K195: 9.480889 | L195: 8.239531 | M195: 0 | N195: 1.101796
B196: POWIAT KŁODZKI | D196: 100 | E196: 2.109906 | F196: 7.314744 | G196: 0.200595 | H196: 1.061151 | I196: 2.233802 | J196: 2.08159 | K196: 12.340454 | L196: 3.982056 | M196: 0.523452 | N196: 0.522292
B197: Gminy miejskie:
B198: Urban gminas:
B199: Duszniki-Zdrój | D199: 100 | E199: 0.040352 | F199: 13.565672 | G199: 0.16451 | H199: 2.411509 | I199: 3.170751 | J199: 0 | K199: 9.502097 | L199: 1.768984 | M199: 0 | N199: 2.496596
B200: Kłodzko | D200: 100 | E200: 0.020495 | F200: 9.76221 | G200: 0.298981 | H200: 0.710214 | I200: 4.07078 | J200: 0.000127 | K200: 13.034922 | L200: 6.575796 | M200: 0.111559 | N200: 0
B201: Kudowa-Zdrój | D201: 100 | E201: 3.790108 | F201: 12.784821 | G201: 0.265122 | H201: 0.571253 | I201: 1.611673 | J201: 0.000521 | K201: 8.602601 | L201: 7.430847 | M201: 0.087138 | N201: 0.339007
B202: Nowa Ruda | D202: 100 | E202: 0.699209 | F202: 5.021086 | G202: 0.736927 | H202: 1.491547 | I202: 0.950538 | J202: 0 | K202: 15.149655 | L202: 0.113342 | M202: 0.015617 | N202: 1.215189
B203: Polanica-Zdrój | D203: 100 | E203: 0.011668 | F203: 11.561603 | G203: 0.172351 | H203: 0.470041 | I203: 1.914281 | J203: 0 | K203: 6.744908 | L203: 8.007341 | M203: 1.522976 | N203: 0.019469
B204: Gminy miejsko-wiejskie:
B205: Urban-rural gminas:
... 144 more rows

Sheet Tabl. 12.
B4: Tabl. 12. Wydatki budżetów gmin a według rodzajów oraz według podregionów i powiatów
B5: Expenditure of gminas budgets a by types as well as subregions and powiats
B6: WYSZCZEGÓLNIENIE SPECIFICATION | D6: Ogółem Total | E6: Wydatki majątkowe Property expenditure | G6: Wydatki bieżace Current expenditure
E7: razem total | F7: w tym inwestycyjne b of which investment expenditure b | G7: razem total | H7: w tym of which
H8: dotacje allocations | J8: świadczenia na rzecz osób fizycznych benefits for natural persons | K8: wydatki bieżące jednostek budżetowych current expenditures of budgetary entities | O8: na obsługę długu publicznego on public dept servicing | P8: pozostałe others
H9: razem total | I9: w tym dla zakładów budżetowych, gospodarstw pomocniczych, funduszy celowych of which for budgetary establishments, auxiliary units and appropriated funds | K9: razem total | L9: w tym of which
L10: wynagrodzenia wages and salaries | M10: składki na ubezpieczenia społeczne i Fundusz Pracy contributions to social security and the Labour Fund | N10: zakup materiałów i usług purchase of materials and services
D11: w tys. zł in thous. zl
B12: OGÓŁEM | C12: 2012 | D12: 6595255.268 | E12: 1284911.966 | F12: 1206906.016 | G12: 5310343.303 | H12: 437544.256 | I12: 39635.38797 | J12: 812266.1047 | K12: 3839401.118 | L12: 1924224.459 | M12: 352989.2135 | N12: 1300495.225 | O12: 147849.7407 | P12: 1635438.495
B13: TOTAL | C13: 2013 | D13: 6419477.846 | E13: 1172195.422 | F13: 1116089.87 | G13: 5247282.424 | H13: 444157.4144 | I13: 38596.00374 | J13: 780013.9995 | K13: 3831547.238 | L13: 1895100.521 | M13: 358114.187 | N13: 1307461.141 | O13: 108715.7497 | P13: 1661147.225
B15: Gminy miejskie | D15: 2105023.904 | E15: 342681.5151 | F15: 317645.8582 | G15: 1762342.389 | H15: 168021.5872 | I15: 10084.43077 | J15: 237186.4306 | K15: 1316949.859 | L15: 641619.8226 | M15: 118902.5653 | N15: 484578.8299 | O15: 37681.18734 | P15: 558927.0205
B16: Urban gminas
B17: Gminy miejsko-wiejskie | D17: 2451858.473 | E17: 448962.6757 | F17: 428968.5972 | G17: 2002895.797 | H17: 159024.0586 | I17: 16623.99584 | J17: 310138.5539 | K17: 1434808.782 | L17: 713690.8533 | M17: 135440.6898 | N17: 477452.6771 | O17: 44374.22763 | P17: 640216.6832
B18: Urban-rural gminas
B19: Gminy wiejskie | D19: 1862595.468 | E19: 380551.2314 | F19: 369475.4141 | G19: 1482044.237 | H19: 117111.7686 | I19: 11887.57713 | J19: 232689.015 | K19: 1079788.597 | L19: 539789.8448 | M19: 103770.9318 | N19: 345429.6337 | O19: 26660.3347 | P19: 462003.5215
B20: Rural gminas
B21: PODREGION JELENIOGÓRSKI | D21: 1624438.084 | E21: 302162.0245 | F21: 291653.6886 | G21: 1322276.059 | H21: 98268.85754 | I21: 8049.50072 | J21: 227872.171 | K21: 952569.2396 | L21: 476038.945 | M21: 88991.50828 | N21: 319530.7331 | O21: 25986.71488 | P21: 405108.6557
B22: SUBREGION
B23: POWIAT BOLESŁAWIECKI | D23: 272826.2141 | E23: 53057.28774 | F23: 49943.28774 | G23: 219768.9263 | H23: 20151.18947 | I23: 471.434 | J23: 34435.86661 | K23: 161183.0607 | L23: 78127.86081 | M23: 14452.8687 | N23: 56151.24058 | O23: 3603.51517 | P23: 68994.58293
B24: Gminy miejskie:
B25: Urban gminas:
B26: Bolesławiec | D26: 122924.4023 | E26: 21163.76064 | F26: 20963.76064 | G26: 101760.6417 | H26: 9933.65659 | I26: - | J26: 13866.7161 | K26: 75145.75859 | L26: 34969.80258 | M26: 6058.44889 | N26: 30276.05517 | O26: 2696.38639 | P26: 34235.63116
B27: Gminy miejsko-wiejskie:
B28: Urban-rural gminas:
B29: Nowogrodziec | D29: 38146.00819 | E29: 5549.66958 | F29: 3928.66958 | G29: 32596.33861 | H29: 1660.51458 | I29: - | J29: 6168.43002 | K29: 24347.25271 | L29: 14100.60676 | M29: 2711.89802 | N29: 5928.7703 | O29: 387.8078 | P29: 7565.5806
B30: Gminy wiejskie:
B31: Rural gminas:
B32: Bolesławiec | D32: 40093.22667 | E32: 12331.6124 | F32: 12331.6124 | G32: 27761.61427 | H32: 4429.32146 | I32: - | J32: 4490.15173 | K32: 18795.55258 | L32: 8226.62894 | M32: 1618.52767 | N32: 6116.16518 | O32: - | P32: 8996.98447
B33: Gromadka | D33: 20992.11228 | E33: 5180.15381 | F33: 5180.15381 | G33: 15811.95847 | H33: 766.31407 | I33: 100 | J33: 2934.49956 | K33: 11803.91013 | L33: 5721.77054 | M33: 1104.80524 | N33: 3464.49884 | O33: 297.30927 | P33: 4985.71797
B34: Osiecznica | D34: 25348.68189 | E34: 3440.41412 | F34: 3440.41412 | G34: 21908.26777 | H34: 1191.02302 | I34: 117.882 | J34: 3354.63131 | K34: 17064.38635 | L34: 8214.28237 | M34: 1653.41859 | N34: 5655.62189 | O34: 222.01171 | P34: 7272.90077
B35: Warta Bolesławiecka | D35: 25321.7827 | E35: 5391.67719 | F35: 4098.67719 | G35: 19930.10551 | H35: 2170.35975 | I35: 253.552 | J35: 3621.43789 | K35: 14026.20038 | L35: 6894.76962 | M35: 1305.77029 | N35: 4710.1292 | O35: - | P35: 5937.76796
B36: POWIAT JAWORSKI | D36: 147181.5518 | E36: 21952.08189 | F36: 21952.08189 | G36: 125229.4699 | H36: 9056.72323 | I36: 1734.14653 | J36: 21825.74721 | K36: 91473.14583 | L36: 51068.85586 | M36: 9508.91487 | N36: 24768.22324 | O36: 2676.27364 | P36: 31092.48073
B37: Gminy miejskie:
B38: Urban gminas:
B39: Jawor | D39: 62828.41341 | E39: 6759.77547 | F39: 6759.77547 | G39: 56068.63794 | H39: 5764.37016 | I39: 1126.334 | J39: 8365.33746 | K39: 40767.50932 | L39: 23940.76313 | M39: 4355.00808 | N39: 10645.20341 | O39: 1149.33099 | P39: 12493.82812
B40: Gminy miejsko-wiejskie:
B41: Urban-rural gminas:
B42: Bolków | D42: 28580.33203 | E42: 3556.02499 | F42: 3556.02499 | G42: 25024.30704 | H42: 1491.50916 | I42: 175.92227 | J42: 5849.69479 | K42: 17163.98274 | L42: 9560.24332 | M42: 1842.56543 | N42: 4459.71163 | O42: 481.79986 | P42: 5798.49448
B43: Gminy wiejskie:
B44: Rural gminas:
B45: Męcinka | D45: 16846.32673 | E45: 3463.61422 | F45: 3463.61422 | G45: 13382.71251 | H45: 371.08633 | I45: - | J45: 2393.69104 | K45: 10261.96191 | L45: 4737.48269 | M45: 893.97842 | N45: 3763.17901 | O45: 320.24713 | P45: 4666.2269
B46: Mściwojów | D46: 15528.66222 | E46: 5574.5354 | F46: 5574.5354 | G46: 9954.12682 | H46: 445.77233 | I46: 102.44726 | J46: 1767.24712 | K46: 7401.88674 | L46: 3982.88851 | M46: 762.16304 | N46: 1984.61975 | O46: 306.06468 | P46: 2689.99114
B47: Paszowice | D47: 11801.03637 | E47: 1472.37467 | F47: 1472.37467 | G47: 10328.6617 | H47: 407.35292 | I47: - | J47: 1612.18478 | K47: 8112.2805 | L47: 4455.34339 | M47: 849.3262 | N47: 2098.46073 | O47: 167.94604 | P47: 2836.50837
B48: Wądroże Wielkie | D48: 11596.78105 | E48: 1125.75714 | F48: 1125.75714 | G48: 10471.02391 | H48: 576.63233 | I48: 329.443 | J48: 1837.59202 | K48: 7765.52462 | L48: 4392.13482 | M48: 805.8737 | N48: 1817.04871 | O48: 250.88494 | P48: 2607.43172
B49: POWIAT JELENIOGÓRSKI | D49: 215223.1333 | E49: 38232.51421 | F49: 37571.77832 | G49: 176990.6191 | H49: 14971.13313 | I49: 73.75 | J49: 30936.55745 | K49: 126203.6659 | L49: 58119.09324 | M49: 10633.3524 | N49: 48572.79595 | O49: 4263.77513 | P49: 58064.24562
B50: Gminy miejskie:
B51: Urban gminas:
B52: Karpacz | D52: 34332.90256 | E52: 12150.48108 | F52: 12144.74519 | G52: 22182.42148 | H52: 1779.62592 | I52: - | J52: 1900.27691 | K52: 17697.40551 | L52: 7679.64465 | M52: 1343.40941 | N52: 7453.43001 | O52: 518.6566 | P52: 8960.80799
B53: Kowary | D53: 29555.75225 | E53: 2733.90687 | F53: 2733.90687 | G53: 26821.84538 | H53: 3318.16795 | I53: - | J53: 6075.41437 | K53: 16975.55567 | L53: 7665.69307 | M53: 1379.85037 | N53: 7011.36973 | O53: 416.01131 | P53: 7966.70831
B54: Piechowice | D54: 17621.09999 | E54: 1244.62524 | F54: 1239.62524 | G54: 16376.47475 | H54: 1211.1519 | I54: - | J54: 2787.93395 | K54: 11993.99136 | L54: 5756.71031 | M54: 1042.3605 | N54: 4632.16878 | O54: 379.93754 | P54: 5198.38055
B55: Szklarska Poręba | D55: 30023.45954 | E55: 5922.37029 | F55: 5472.37029 | G55: 24101.08925 | H55: 3676.74111 | I55: 25 | J55: 2720.68846 | K55: 17192.54802 | L55: 6731.54659 | M55: 1192.42181 | N55: 7773.57695 | O55: 444.15612 | P55: 9333.10926
B56: Gminy wiejskie:
B57: Rural gminas:
B58: Janowice Wielkie | D58: 14744.26975 | E58: 4322.78188 | F58: 4322.78188 | G58: 10421.48787 | H58: 597.42755 | I58: - | J58: 1877.0121 | K58: 7407.70983 | L58: 3294.73118 | M58: 602.78889 | N58: 2980.91421 | O58: 404.99025 | P58: 3644.5379
B59: Jeżów Sudecki | D59: 19778.58714 | E59: 4608.05529 | F59: 4608.05529 | G59: 15170.53185 | H59: 1343.10834 | I59: - | J59: 3043.01835 | K59: 10334.29482 | L59: 4867.05046 | M59: 916.55881 | N59: 3513.94923 | O59: 432.57434 | P59: 4568.22155
B60: Mysłakowice | D60: 29467.89203 | E60: 1962.98754 | F60: 1962.98754 | G60: 27504.90449 | H60: 1308.50455 | I60: - | J60: 5394.5289 | K60: 20320.70088 | L60: 9780.73546 | M60: 1878.24164 | N60: 7031.35114 | O60: 431.07497 | P60: 8711.81897
B61: Podgórzyn | D61: 22923.47912 | E61: 2427.33792 | F61: 2427.33792 | G61: 20496.1412 | H61: 1278.64726 | I61: - | J61: 4350.61258 | K61: 14220.07483 | L61: 6778.36118 | M61: 1258.7241 | N61: 5322.90536 | O61: 631.40029 | P61: 6198.39579
B62: Stara Kamienica | D62: 16775.69089 | E62: 2859.9681 | F62: 2659.9681 | G62: 13915.72279 | H62: 457.75855 | I62: 48.75 | J62: 2787.07183 | K62: 10061.38495 | L62: 5564.62034 | M62: 1018.99687 | N62: 2853.13054 | O62: 604.97371 | P62: 3482.2653
B63: POWIAT KAMIENNOGÓRSKI | D63: 126557.6155 | E63: 17152.69336 | F63: 16652.69336 | G63: 109404.9222 | H63: 5602.30567 | I63: 250 | J63: 20156.38323 | K63: 81413.24372 | L63: 42389.51475 | M63: 8196.32383 | N63: 26500.66807 | O63: 2174.62425 | P63: 30885.77044
B64: Gminy miejskie:
B65: Urban gminas:
B66: Kamienna Góra | D66: 54424.44228 | E66: 4818.92543 | F66: 4318.92543 | G66: 49605.51685 | H66: 2772.01781 | I66: - | J66: 8286.25963 | K66: 37184.87886 | L66: 18598.44355 | M66: 3485.9653 | N66: 13465.49352 | O66: 1352.76055 | P66: 15110.07001
B67: Gminy miejsko-wiejskie:
B68: Urban-rural gminas:
B69: Lubawka | D69: 31763.84174 | E69: 7363.06597 | F69: 7363.06597 | G69: 24400.77577 | H69: 1692.62033 | I69: 250 | J69: 4737.6552 | K69: 17581.44599 | L69: 10022.33266 | M69: 1977.03755 | N69: 4523.79659 | O69: 385.06954 | P69: 5586.06049
B70: Gminy wiejskie:
B71: Rural gminas:
B72: Kamienna Góra | D72: 27746.13305 | E72: 3706.94766 | F72: 3706.94766 | G72: 24039.18539 | H72: 1057.43965 | I72: - | J72: 4107.16329 | K72: 18669.10482 | L72: 9083.01423 | M72: 1879.11425 | N72: 6587.9964 | O72: 198.35089 | P72: 7714.10308
B73: Marciszów | D73: 12623.19846 | E73: 1263.7543 | F73: 1263.7543 | G73: 11359.44416 | H73: 80.22788 | I73: - | J73: 3025.30511 | K73: 7977.81405 | L73: 4685.72431 | M73: 854.20673 | N73: 1923.38156 | O73: 238.44327 | P73: 2475.53686
B74: POWIAT LUBAŃSKI | D74: 196394.6336 | E74: 41073.82494 | F74: 38903.82494 | G74: 155320.8087 | H74: 6940.6842 | I74: - | J74: 33970.87547 | K74: 111342.7939 | L74: 55966.15776 | M74: 10392.18575 | N74: 35612.7782 | O74: 2729.16388 | P74: 45321.17516
B75: Gminy miejskie:
B76: Urban gminas:
B77: Lubań | D77: 55182.90557 | E77: 5493.35534 | F77: 3323.35534 | G77: 49689.55023 | H77: 3413.52362 | I77: - | J77: 7680.46836 | K77: 37539.81754 | L77: 20487.41937 | M77: 3659.45838 | N77: 11253.02545 | O77: 1023.21354 | P77: 13425.46696
B78: Świeradów-Zdrój | D78: 26421.74564 | E78: 7288.09243 | F78: 7288.09243 | G78: 19133.65321 | H78: 401.1781 | I78: - | J78: 2671.02917 | K78: 15217.41731 | L78: 6178.63525 | M78: 1152.6892 | N78: 5891.41509 | O78: 808.46666 | P78: 7921.65483
B79: Gminy miejsko-wiejskie:
B80: Urban-rural gminas:
B81: Leśna | D81: 39710.41604 | E81: 8643.83637 | F81: 8643.83637 | G81: 31066.57967 | H81: 1211.89616 | I81: - | J81: 10059.74921 | K81: 19433.94327 | L81: 9095.13645 | M81: 1743.92901 | N81: 6378.50126 | O81: 337.15852 | P81: 8618.71032
B82: Olszyna | D82: 37429.97452 | E82: 14899.22728 | F82: 14899.22728 | G82: 22530.74724 | H82: 437.0967 | I82: - | J82: 7948.6068 | K82: 13807.15426 | L82: 6546.59509 | M82: 1236.99129 | N82: 5311.43037 | O82: 263.76495 | P82: 6097.69241
B83: Gminy wiejskie:
B84: Rural gminas:
B85: Lubań | D85: 18820.52195 | E85: 2791.56143 | F85: 2791.56143 | G85: 16028.96052 | H85: 853.459 | I85: - | J85: 2955.12737 | K85: 12024.89232 | L85: 6622.01224 | M85: 1262.43821 | N85: 3166.02108 | O85: 148.86715 | P85: 4186.49011
B86: Platerówka | D86: 4641.31537 | E86: 157.47045 | F86: 157.47045 | G86: 4483.84492 | H86: 81.03662 | I86: - | J86: 737.68827 | K86: 3635.24404 | L86: 1917.24146 | M86: 373.53171 | N86: 1015.02942 | O86: 14.18761 | P86: 1360.15925
B87: Siekierczyn | D87: 14187.75451 | E87: 1800.28164 | F87: 1800.28164 | G87: 12387.47287 | H87: 542.494 | I87: - | J87: 1918.20629 | K87: 9684.32513 | L87: 5119.1179 | M87: 963.14795 | N87: 2597.35553 | O87: 133.50545 | P87: 3711.00128
B88: POWIAT LWÓWECKI | D88: 138269.9299 | E88: 20279.71178 | F88: 20219.71178 | G88: 117990.2182 | H88: 6419.28424 | I88: 480.25787 | J88: 23478.87992 | K88: 85690.39831 | L88: 42685.16476 | M88: 8037.5584 | N88: 29759.0189 | O88: 2069.808 | P88: 35299.52284
B89: Gminy miejsko-wiejskie:
B90: Urban-rural gminas:
B91: Gryfów Śląski | D91: 23089.99877 | E91: 534.17313 | F91: 534.17313 | G91: 22555.82564 | H91: 1352.55339 | I91: - | J91: 4871.48763 | K91: 15876.0991 | L91: 7591.047 | M91: 1377.80727 | N91: 6031.9561 | O91: 364.05452 | P91: 6998.87583
B92: Lubomierz | D92: 20995.82872 | E92: 1297.48277 | F92: 1297.48277 | G92: 19698.34595 | H92: 984.39415 | I92: 301.12384 | J92: 3618.52866 | K92: 14679.72772 | L92: 7641.43937 | M92: 1362.39196 | N92: 4770.14436 | O92: 325.17519 | P92: 5766.41662
B93: Lwówek Śląski | D93: 48134.41756 | E93: 6679.18824 | F93: 6619.18824 | G93: 41455.22932 | H93: 2772.59371 | I93: - | J93: 6813.32116 | K93: 30918.72012 | L93: 14432.01737 | M93: 2687.04387 | N93: 11954.68026 | O93: 883.12415 | P93: 13867.12906
B94: Mirsk | D94: 33126.51011 | E94: 9194.68583 | F94: 9194.68583 | G94: 23931.82428 | H94: 652.35676 | I94: 90.02916 | J94: 5817.26635 | K94: 17091.94445 | L94: 8961.29968 | M94: 1791.77399 | N94: 5338.84393 | O94: 296.43845 | P94: 6412.68905
B95: Wleń | D95: 12923.17478 | E95: 2574.18181 | F95: 2574.18181 | G95: 10348.99297 | H95: 657.38623 | I95: 89.10487 | J95: 2358.27612 | K95: 7123.90692 | L95: 4059.36134 | M95: 818.54131 | N95: 1663.39425 | O95: 201.01569 | P95: 2254.41228
B96: POWIAT ZGORZELECKI | D96: 378747.2765 | E96: 86658.77003 | F96: 82838.17003 | G96: 292088.5065 | H96: 27014.88373 | I96: 4052.39432 | J96: 39015.19588 | K96: 205158.6659 | L96: 103813.0817 | M96: 19443.90555 | N96: 67078.38337 | O96: 6158.99254 | P96: 96641.95758
B97: Gminy miejskie:
B98: Urban gminas:
B99: Zawidów | D99: 11432.53592 | E99: 1820.45664 | F99: 1820.45664 | G99: 9612.07928 | H99: 463.139 | I99: - | J99: 1440.40798 | K99: 7446.79114 | L99: 4538.64313 | M99: 859.75635 | N99: 1682.43906 | O99: 224.34442 | P99: 2085.7884
B100: Zgorzelec | D100: 112165.2168 | E100: 40427.18021 | F100: 38724.38021 | G100: 71738.03662 | H100: 9183.19891 | I100: 450 | J100: 11072.90953 | K100: 48979.71692 | L100: 26411.10783 | M100: 5033.85374 | N100: 15216.7898 | O100: 2211.31849 | P100: 17825.64812
B101: Gminy miejsko-wiejskie:
B102: Urban-rural gminas:
B103: Bogatynia | D103: 146527.2956 | E103: 22321.62358 | F103: 20221.62358 | G103: 124205.672 | H103: 11084.29783 | I103: 3336.326 | J103: 10930.34145 | K103: 85999.52211 | L103: 41079.82109 | M103: 7504.66148 | N103: 31109.75181 | O103: 2130.00903 | P103: 51476.5411
B104: Pieńsk | D104: 28428.22894 | E104: 7362.78028 | F104: 7362.78028 | G104: 21065.44866 | H104: 1025.25748 | I104: - | J104: 4567.23904 | K104: 14991.29638 | L104: 7952.10658 | M104: 1563.59845 | N104: 4343.97831 | O104: 387.98857 | P104: 5568.76905
B105: Węgliniec | D105: 26059.95381 | E105: 5197.46959 | F105: 5197.46959 | G105: 20862.48422 | H105: 1612.57322 | I105: 266.06832 | J105: 4387.49903 | K105: 14501.87254 | L105: 8313.9079 | M105: 1627.84208 | N105: 3284.90073 | O105: 304.98463 | P105: 4615.67736
B106: Gminy wiejskie:
B107: Rural gminas:
B108: Sulików | D108: 21335.51848 | E108: 1720.47607 | F108: 1702.67607 | G108: 19615.04241 | H108: 788.98306 | I108: - | J108: 3347.03195 | K108: 15107.21481 | L108: 6719.82421 | M108: 1265.10771 | N108: 4908.87538 | O108: 296.97763 | P108: 7197.11785
B109: Zgorzelec | D109: 32798.52696 | E109: 7808.78366 | F109: 7808.78366 | G109: 24989.7433 | H109: 2857.43423 | I109: - | J109: 3269.7669 | K109: 18132.25196 | L109: 8797.67096 | M109: 1589.08574 | N109: 6531.64828 | O109: 603.36977 | P109: 7872.4157
B110: POWIAT ZŁOTORYJSKI | D110: 149237.7289 | E110: 23755.14056 | F110: 23572.14056 | G110: 125482.5884 | H110: 8112.65387 | I110: 987.518 | J110: 24052.66525 | K110: 90104.26544 | L110: 43869.21613 | M110: 8326.39878 | N110: 31087.62476 | O110: 2310.56227 | P110: 38808.92036
B111: Gminy miejskie:
B112: Urban gminas:
B113: Wojcieszów | D113: 17193.65344 | E113: 1985.76076 | F113: 1985.76076 | G113: 15207.89268 | H113: 226.8 | I113: - | J113: 2703.51701 | K113: 12071.68986 | L113: 4145.35204 | M113: 667.13604 | N113: 6440.31035 | O113: 181.12953 | P113: 7283.95806
B114: Złotoryja | D114: 46340.71907 | E114: 5774.25114 | F114: 5774.25114 | G114: 40566.46793 | H114: 2903.3227 | I114: - | J114: 6101.44115 | K114: 30304.98043 | L114: 14642.20792 | M114: 2813.10698 | N114: 11720.20346 | O114: 1221.91743 | P114: 12884.47175
B115: Gminy miejsko-wiejskie:
B116: Urban-rural gminas:
B117: Świerzawa | D117: 25257.24122 | E117: 5089.20255 | F117: 5089.20255 | G117: 20168.03867 | H117: 1029.98195 | I117: - | J117: 4709.40925 | K117: 13492.8153 | L117: 6842.81697 | M117: 1365.45869 | N117: 4328.17976 | O117: 274.18583 | P117: 5946.18598
B118: Gminy wiejskie:
B119: Rural gminas:
B120: Pielgrzymka | D120: 19279.65679 | E120: 4023.68301 | F120: 3840.68301 | G120: 15255.97378 | H120: 813.86857 | I120: - | J120: 3382.12622 | K120: 10759.01295 | L120: 5546.83245 | M120: 1011.45631 | N120: 2432.45918 | O120: 275.68743 | P120: 4226.0028
B121: Zagrodno | D121: 17564.01092 | E121: 3113.95901 | F121: 3113.95901 | G121: 14450.05191 | H121: 837.9169 | I121: 281.536 | J121: 3187.24264 | K121: 10268.05883 | L121: 5369.33433 | M121: 988.35495 | N121: 2907.17795 | O121: 104.23309 | P121: 3961.95258
B122: Złotoryja | D122: 23602.44749 | E122: 3768.28409 | F122: 3768.28409 | G122: 19834.1634 | H122: 2300.76375 | I122: 705.982 | J122: 3968.92898 | K122: 13207.70807 | L122: 7322.67242 | M122: 1480.88581 | N122: 3259.29406 | O122: 253.40896 | P122: 4506.34919
B123: PODREGION LEGNICKO-GŁOGOWSKI | D123: 1392708.319 | E123: 252497.4811 | F123: 238326.7322 | G123: 1140210.838 | H123: 100614.5188 | I123: 12583.06212 | J123: 138029.9466 | K123: 832323.6742 | L123: 420894.9183 | M123: 78620.21843 | N123: 281121.6844 | O123: 19197.64759 | P123: 382846.3903
B124: SUBREGION
B125: POWIAT GŁOGOWSKI | D125: 342748.7584 | E125: 87094.76563 | F125: 83277.26563 | G125: 255653.9928 | H125: 25386.19926 | I125: 3063.03345 | J125: 31799.05068 | K125: 191114.6109 | L125: 93677.31564 | M125: 17391.96614 | N125: 68631.17055 | O125: 4936.07917 | P125: 82463.38186
B126: Gminy miejskie:
B127: Urban gminas:
B128: Głogów | D128: 253831.5301 | E128: 68488.00059 | F128: 64670.50059 | G128: 185343.5295 | H128: 21505.72413 | I128: 3063.03345 | J128: 22508.50802 | K128: 137253.3768 | L128: 68330.09435 | M128: 12603.17393 | N128: 50817.3971 | O128: 3980.40107 | P128: 56415.628
B129: Gminy wiejskie:
B130: Rural gminas:
B131: Głogów | D131: 20118.71569 | E131: 2875.67274 | F131: 2875.67274 | G131: 17243.04295 | H131: 1345.88417 | I131: - | J131: 2338.1763 | K131: 13332.47319 | L131: 6081.06032 | M131: 1143.24709 | N131: 5170.78339 | O131: 215.29101 | P131: 6119.38406
B132: Jerzmanowa | D132: 33523.42481 | E132: 10604.31103 | F132: 10604.31103 | G132: 22919.11378 | H132: 1379.28375 | I132: - | J132: 1639.37369 | K132: 17462.75431 | L132: 7413.89356 | M132: 1363.57664 | N132: 6236.62621 | O132: 184.36882 | P132: 10938.61732
B133: Kotla | D133: 15362.92428 | E133: 2812.57353 | F133: 2812.57353 | G133: 12550.35075 | H133: 498.40519 | I133: - | J133: 1744.73298 | K133: 10102.07592 | L133: 5169.3761 | M133: 994.29584 | N133: 2877.35852 | O133: 175.88315 | P133: 3967.65749
B134: Pęcław | D134: 8066.40797 | E134: 633.2308 | F134: 633.2308 | G134: 7433.17717 | H134: 355.9977 | I134: - | J134: 1759.69636 | K134: 5019.41202 | L134: 2533.18477 | M134: 499.44705 | N134: 1197.96461 | O134: 285.49177 | P134: 1999.35952
B135: Żukowice | D135: 11845.75554 | E135: 1680.97694 | F135: 1680.97694 | G135: 10164.7786 | H135: 300.90432 | I135: - | J135: 1808.56333 | K135: 7944.5187 | L135: 4149.70654 | M135: 788.22559 | N135: 2331.04072 | O135: 94.64335 | P135: 3022.73547
B136: POWIAT GÓROWSKI | D136: 120145.2869 | E136: 20174.39457 | F136: 20174.39457 | G136: 99970.89229 | H136: 3457.24664 | I136: 278.01638 | J136: 24824.2134 | K136: 69469.53543 | L136: 39042.40715 | M136: 7745.6736 | N136: 16509.05295 | O136: 2016.54683 | P136: 22883.43349
B137: Gminy miejsko-wiejskie:
B138: Urban-rural gminas:
B139: Góra | D139: 67451.6478 | E139: 11085.43227 | F139: 11085.43227 | G139: 56366.21553 | H139: 1739.84294 | I139: - | J139: 14571.96672 | K139: 38781.46066 | L139: 21862.5374 | M139: 4319.07319 | N139: 9293.53426 | O139: 1170.71806 | P139: 12702.07722
B140: Wąsosz | D140: 26708.03387 | E140: 6649.07262 | F140: 6649.07262 | G140: 20058.96125 | H140: 842.58298 | I140: 229.1519 | J140: 4310.0463 | K140: 14489.24952 | L140: 8109.2442 | M140: 1605.69958 | N140: 3584.47606 | O140: 388.50101 | P140: 4802.88718
B141: Gminy wiejskie:
B142: Rural gminas:
B143: Jemielno | D143: 10678.50719 | E143: 1015.7987 | F143: 1015.7987 | G143: 9662.70849 | H143: 338.87896 | I143: - | J143: 2675.05237 | K143: 6370.70499 | L143: 3555.58936 | M143: 721.08468 | N143: 1435.2853 | O143: 264.60427 | P143: 2106.12767
B144: Niechlów | D144: 15307.098 | E144: 1424.09098 | F144: 1424.09098 | G144: 13883.00702 | H144: 535.94176 | I144: 48.86448 | J144: 3267.14801 | K144: 9828.12026 | L144: 5515.03619 | M144: 1099.81615 | N144: 2195.75733 | O144: 192.72349 | P144: 3272.34142
B145: POWIAT LEGNICKI | D145: 167524.5008 | E145: 24413.10585 | F145: 24413.10585 | G145: 143111.3949 | H145: 11335.30684 | I145: 2442.85496 | J145: 23983.03432 | K145: 105158.9536 | L145: 53738.61778 | M145: 9994.06427 | N145: 33703.41559 | O145: 2436.20246 | P145: 41623.49846
B146: Gminy miejskie:
B147: Urban gminas:
B148: Chojnów | D148: 36681.50801 | E148: 3266.63217 | F148: 3266.63217 | G148: 33414.87584 | H148: 1753.49325 | I148: - | J148: 4995.89781 | K148: 26431.99666 | L148: 15653.99495 | M148: 2862.48312 | N148: 6726.00824 | O148: 225.24206 | P148: 7923.76465
B149: Gminy miejsko-wiejskie:
B150: Urban-rural gminas:
B151: Prochowice | D151: 22757.52682 | E151: 2893.60625 | F151: 2893.60625 | G151: 19863.92057 | H151: 1300.31844 | I151: - | J151: 3282.8667 | K151: 14936.06771 | L151: 7890.81061 | M151: 1528.54486 | N151: 4684.47132 | O151: 332.97672 | P151: 5528.40324
B152: Gminy wiejskie:
B153: Rural gminas:
B154: Chojnów | D154: 24415.02784 | E154: 2002.9538 | F154: 2002.9538 | G154: 22412.07404 | H154: 2439.80971 | I154: 496.51 | J154: 4806.88057 | K154: 14563.49304 | L154: 7626.59427 | M154: 1337.47933 | N154: 4130.22721 | O154: 565.07438 | P154: 5636.23578
B155: Krotoszyce | D155: 10829.71575 | E155: 1035.34848 | F155: 1035.34848 | G155: 9794.36727 | H155: 306.26714 | I155: - | J155: 1322.85945 | K155: 8031.60047 | L155: 3618.73827 | M155: 692.47017 | N155: 2664.26377 | O155: 103.96479 | P155: 3750.06745
B156: Kunice | D156: 21235.68359 | E156: 3430.00389 | F156: 3430.00389 | G156: 17805.6797 | H156: 1605.1864 | I156: - | J156: 2322.49677 | K156: 13415.66977 | L156: 5806.59993 | M156: 1132.64648 | N156: 5678.44324 | O156: 442.54651 | P156: 6496.20361
B157: Legnickie Pole | D157: 21777.59057 | E157: 5342.64188 | F157: 5342.64188 | G157: 16434.94869 | H157: 1779.55536 | I157: 1016.2 | J157: 2274.49227 | K157: 12126.4858 | L157: 4962.41247 | M157: 914.88521 | N157: 5336.26508 | O157: 207.88026 | P157: 6295.72312
B158: Miłkowice | D158: 20070.01202 | E158: 4762.69748 | F158: 4762.69748 | G158: 15307.31454 | H158: 2116.4875 | I158: 930.14496 | J158: 3184.95571 | K158: 9593.02895 | L158: 5039.59756 | M158: 956.41952 | N158: 2792.59358 | O158: 391.95459 | P158: 3617.89966
B159: Ruja | D159: 9757.4362 | E159: 1679.2219 | F159: 1679.2219 | G159: 8078.2143 | H159: 34.18904 | I159: - | J159: 1792.58504 | K159: 6060.61122 | L159: 3139.86972 | M159: 569.13558 | N159: 1691.14315 | O159: 166.56315 | P159: 2375.20095
B160: POWIAT LUBIŃSKI | D160: 391938.1953 | E160: 44583.30503 | F160: 42297.79613 | G160: 347354.8902 | H160: 34470.79625 | I160: 5076.80231 | J160: 31102.43127 | K160: 268079.8002 | L160: 141414.6096 | M160: 26041.0867 | N160: 87235.52138 | O160: 4985.56322 | P160: 109340.4032
B161: Gminy miejskie:
B162: Urban gminas:
B163: Lubin | D163: 260080.1098 | E163: 18551.06461 | F163: 16265.55571 | G163: 241529.0452 | H163: 19487.52762 | I163: 100 | J163: 19407.93488 | K163: 198035.9424 | L163: 108228.9599 | M163: 19881.40693 | N163: 60560.30776 | O163: 4094.96294 | P163: 70428.25286
B164: Gminy miejsko-wiejskie:
B165: Urban-rural gminas:
B166: Ścinawa | D166: 27999.46843 | E166: 3743.09566 | F166: 3743.09566 | G166: 24256.37277 | H166: 1373.583 | I166: 100 | J166: 4821.70153 | K166: 17520.26668 | L166: 9039.22897 | M166: 1568.05245 | N166: 5582.49945 | O166: 470.35719 | P166: 6983.44963
B167: Gminy wiejskie:
B168: Rural gminas:
B169: Lubin | D169: 56393.19246 | E169: 11314.78065 | F169: 11314.78065 | G169: 45078.41181 | H169: 7899.88094 | I169: 3309.74419 | J169: 3718.5503 | K169: 27926.56176 | L169: 14510.9742 | M169: 2668.8654 | N169: 9134.88388 | O169: 420.24309 | P169: 15859.89788
B170: Rudna | D170: 47465.4246 | E170: 10974.36411 | F170: 10974.36411 | G170: 36491.06049 | H170: 5709.80469 | I170: 1567.05812 | J170: 3154.24456 | K170: 24597.02936 | L170: 9635.44652 | M170: 1922.76192 | N170: 11957.83029 | O170: - | P170: 16068.8028
B171: POWIAT POLKOWICKI | D171: 370351.5777 | E171: 76231.91006 | F171: 68164.17006 | G171: 294119.6676 | H171: 25964.96979 | I171: 1722.35502 | J171: 26321.21698 | K171: 198500.774 | L171: 93021.96806 | M171: 17447.42772 | N171: 75042.52389 | O171: 4823.25591 | P171: 126535.6733
B172: Gminy miejsko-wiejskie:
B173: Urban-rural gminas:
B174: Chocianów | D174: 36490.83636 | E174: 6413.2626 | F174: 6263.2626 | G174: 30077.57376 | H174: 2025.63207 | I174: 862.614 | J174: 5101.92383 | K174: 21680.00559 | L174: 12841.10514 | M174: 2465.04744 | N174: 4848.58415 | O174: 855.62064 | P174: 6788.24464
B175: Polkowice | D175: 245461.4755 | E175: 51738.18687 | F175: 43838.24687 | G175: 193723.2886 | H175: 20378.73844 | I175: - | J175: 10040.04486 | K175: 125395.3179 | L175: 53377.4403 | M175: 9879.34675 | N175: 55558.98881 | O175: 1557.95171 | P175: 98485.23734
B176: Przemków | D176: 25042.70797 | E176: 2273.3363 | F176: 2255.5363 | G176: 22769.37167 | H176: 802.7447 | I176: 219.08888 | J176: 4213.6797 | K176: 15334.99629 | L176: 9110.55107 | M176: 1748.76981 | N176: 2828.61073 | O176: 2152.96141 | P176: 4740.66498
B177: Gminy wiejskie:
B178: Rural gminas:
B179: Gaworzyce | D179: 13064.04626 | E179: 2210.73022 | F179: 2210.73022 | G179: 10853.31604 | H179: 529.87693 | I179: - | J179: 2100.49021 | K179: 8133.67641 | L179: 3925.69169 | M179: 751.74455 | N179: 2546.58543 | O179: 76.30519 | P179: 3469.20747
B180: Grębocice | D180: 30016.57751 | E180: 7430.55974 | F180: 7430.55974 | G180: 22586.01777 | H180: 1685.37923 | I180: 511.15214 | J180: 2792.28911 | K180: 16996.15711 | L180: 7857.85957 | M180: 1522.51867 | N180: 5959.63093 | O180: 16.88981 | P180: 8710.45471
B181: Radwanice | D181: 20275.93412 | E181: 6165.83433 | F181: 6165.83433 | G181: 14110.09979 | H181: 542.59842 | I181: 129.5 | J181: 2072.78927 | K181: 10960.62075 | L181: 5909.32029 | M181: 1080.0005 | N181: 3300.12384 | O181: 163.52715 | P181: 4341.86416
B182: PODREGION WAŁBRZYSKI | D182: 1600291.838 | E182: 245677.5852 | F182: 230639.5914 | G182: 1354614.252 | H182: 117552.5876 | I182: 7770.4386 | J182: 216897.9446 | K182: 986414.2835 | L182: 466253.6708 | M182: 88997.56082 | N182: 356946.1557 | O182: 31883.7403 | P182: 433023.1904
B183: SUBREGION
B184: POWIAT DZIERŻONIOWSKI | D184: 285607.3786 | E184: 41590.92256 | F184: 34122.32256 | G184: 244016.456 | H184: 31205.39601 | I184: 3212.4131 | J184: 38677.89411 | K184: 168161.8978 | L184: 75011.90338 | M184: 14496.3131 | N184: 67513.97477 | O184: 5462.10858 | P184: 79160.89125
B185: Gminy miejskie:
B186: Urban gminas:
B187: Bielawa | D187: 95134.9625 | E187: 12857.86829 | F187: 9327.36829 | G187: 82277.09421 | H187: 9971.81002 | I187: 2145.06552 | J187: 10460.41211 | K187: 59580.35383 | L187: 19005.81416 | M187: 3709.8258 | N187: 33403.90396 | O187: 2134.64373 | P187: 36994.11048
B188: Dzierżoniów | D188: 86204.63158 | E188: 10788.26959 | F188: 8078.26959 | G188: 75416.36199 | H188: 13472.0637 | I188: 849.9978 | J188: 12166.39061 | K188: 47842.53513 | L188: 23955.48223 | M188: 4649.67879 | N188: 16908.40335 | O188: 1810.27831 | P188: 19362.02999
B189: Pieszyce | D189: 22778.1665 | E189: 3824.07284 | F189: 3424.07284 | G189: 18954.09366 | H189: 2786.24316 | I189: 100 | J189: 4353.95313 | K189: 11342.0102 | L189: 5996.39274 | M189: 1093.56722 | N189: 3608.31436 | O189: 463.57146 | P189: 4259.93233
B190: Piława Górna | D190: 15312.06719 | E190: 1738.32299 | F190: 1738.32299 | G190: 13573.7442 | H190: 844.23738 | I190: - | J190: 2670.132 | K190: 9875.19701 | L190: 5077.73525 | M190: 934.86018 | N190: 3334.95684 | O190: 175.32268 | P190: 3871.45671
B191: Gminy miejsko-wiejskie:
B192: Urban-rural gminas:
B193: Niemcza | D193: 15525.31578 | E193: 1106.72701 | F193: 392.12701 | G193: 14418.58877 | H193: 1272.04671 | I193: - | J193: 2399.8442 | K193: 10399.92596 | L193: 5251.45513 | M193: 968.19901 | N193: 2624.52197 | O193: 256.63854 | P193: 4269.80551
B194: Gminy wiejskie:
B195: Rural gminas:
B196: Dzierżoniów | D196: 25912.44766 | E196: 5083.69803 | F196: 5040.19803 | G196: 20828.74963 | H196: 1700.33644 | I196: - | J196: 3709.11327 | K196: 14943.35024 | L196: 7991.5647 | M196: 1610.33252 | N196: 3902.05625 | O196: 392.86547 | P196: 5424.53723
B197: Łagiewniki | D197: 24739.78734 | E197: 6191.96381 | F197: 6121.96381 | G197: 18547.82353 | H197: 1158.6586 | I197: 117.34978 | J197: 2918.04879 | K197: 14178.52545 | L197: 7733.45917 | M197: 1529.84958 | N197: 3731.81804 | O197: 228.78839 | P197: 4979.019
B198: POWIAT KŁODZKI | D198: 474040.2049 | E198: 62988.8608 | F198: 59615.2608 | G198: 411051.3441 | H198: 35083.35542 | I198: 1389.14275 | J198: 67913.43994 | K198: 296103.153 | L198: 137131.4496 | M198: 26150.92544 | N198: 102951.7506 | O198: 11349.56609 | P198: 133421.1096
B199: Gminy miejskie:
B200: Urban gminas:
B201: Duszniki-Zdrój | D201: 17925.95782 | E201: 2481.32757 | F201: 2481.32757 | G201: 15444.63025 | H201: 1477.14614 | I201: - | J201: 2199.95858 | K201: 11321.24099 | L201: 5611.61407 | M201: 986.90974 | N201: 4101.66203 | O201: 417.32905 | P201: 4751.67267
B202: Kłodzko | D202: 78389.09325 | E202: 6271.34615 | F202: 3421.34615 | G202: 72117.7471 | H202: 8909.31237 | I202: - | J202: 11030.62213 | K202: 50219.17347 | L202: 25158.65858 | M202: 4791.77782 | N202: 17942.31231 | O202: 1855.14626 | P202: 20372.22994
B203: Kudowa-Zdrój | D203: 34741.34517 | E203: 6730.64987 | F203: 6730.64987 | G203: 28010.6953 | H203: 2089.78388 | I203: - | J203: 3532.07183 | K203: 21678.51072 | L203: 9195.39118 | M203: 1701.71506 | N203: 9570.65102 | O203: 692.59316 | P203: 10799.14019
B204: Nowa Ruda | D204: 49611.8573 | E204: 2407.75699 | F204: 2407.75699 | G204: 47204.10031 | H204: 4027.44896 | I204: 500 | J204: 8489.94703 | K204: 33354.54184 | L204: 16171.82475 | M204: 3233.6675 | N204: 11876.92432 | O204: 1300.04225 | P204: 13981.16982
... 147 more rows

Sheet Tabl. 13.
B4: Tabl. 13. Struktura wydatków budżetów gmin a według rodzajów oraz według podregionów i powiatów
B5: Structure of expenditure of gminas budgets a by types as well as subregions and powiats
B6: WYSZCZEGÓLNIENIE SPECIFICATION | D6: Ogółem Grand total | E6: Wydatki majątkowe Property expenditure | G6: Wydatki bieżace Current expenditure
E7: razem total | F7: w tym inwestycyjne b of which investment expenditure b | G7: razem total | H7: w tym of which
H8: dotacje allocations | J8: świadczenia na rzecz osób fizycznych benefits for natural persons | K8: wydatki bieżące jednostek budżetowych current expenditures of budgetary entities | O8: na obsługę długu publicznego on public dept servicing | P8: pozostałe others
H9: razem total | I9: w tym dla zakładów budżetowych, gospodarstw pomocniczych, funduszy celowych of which for budgetary establishments, auxiliary units and appropriated funds | K9: razem total | L9: w tym of which
L10: wynagrodzenia wages and salaries | M10: składki na ubezpieczenia społeczne i Fundusz Pracy contributions to compulsory social security and the Labour Fund | N10: zakup materiałów i usług for purchases materials and services
D11: w % in %
B12: OGÓŁEM | C12: 2012 | D12: 100 | E12: 19.48237 | F12: 18.29961 | G12: 80.51763 | H12: 6.63423 | I12: 0.60097 | J12: 12.31592 | K12: 58.21459 | L12: 29.17589 | M12: 5.35217 | N12: 19.71865 | O12: 2.24176 | P12: 24.7972
B13: TOTAL | C13: 2013 | D13: 100 | E13: 18.25998 | F13: 17.38599 | G13: 81.74002 | H13: 6.9189 | I13: 0.60123 | J13: 12.15074 | K13: 59.68628 | L13: 29.5211 | M13: 5.57856 | N13: 20.36709 | O13: 1.69353 | P13: 25.87667
B15: Gminy miejskie | D15: 100 | E15: 16.27922 | F15: 15.08989 | G15: 83.72078 | H15: 7.98193 | I15: 0.47906 | J15: 11.26764 | K15: 62.56223 | L15: 30.48041 | M15: 5.64851 | N15: 23.02011 | O15: 1.79006 | P15: 26.55205
B16: Urban gminas
B17: Gminy miejsko-wiejskie | D17: 100 | E17: 18.31112 | F17: 17.49565 | G17: 81.68888 | H17: 6.48586 | I17: 0.67802 | J17: 12.64912 | K17: 58.51923 | L17: 29.10816 | M17: 5.524 | N17: 19.47309 | O17: 1.80982 | P17: 26.11149
B18: Urban-rural gminas
B19: Gminy wiejskie | D19: 100 | E19: 20.43123 | F19: 19.83659 | G19: 79.56877 | H19: 6.28756 | I19: 0.63823 | J19: 12.49273 | K19: 57.97226 | L19: 28.98052 | M19: 5.57131 | N19: 18.54561 | O19: 1.43135 | P19: 24.80429
B20: Rural gminas
B21: PODREGION JELENIOGÓRSKI | D21: 100 | E21: 18.60102 | F21: 17.95413 | G21: 81.39898 | H21: 6.04941 | I21: 0.49553 | J21: 14.02775 | K21: 58.63992 | L21: 29.30484 | M21: 5.47829 | N21: 19.67023 | O21: 1.59974 | P21: 24.93839
B22: SUBREGION
B23: POWIAT BOLESŁAWIECKI | D23: 100 | E23: 19.44728 | F23: 18.3059 | G23: 80.55272 | H23: 7.38609 | I23: 0.1728 | J23: 12.62191 | K23: 59.07902 | L23: 28.63649 | M23: 5.29746 | N23: 20.58132 | O23: 1.32081 | P23: 25.28884
B24: Gminy miejskie:
B25: Urban gminas:
B26: Bolesławiec | D26: 100 | E26: 17.21689 | F26: 17.05419 | G26: 82.78311 | H26: 8.08111 | I26: - | J26: 11.28069 | K26: 61.13169 | L26: 28.44822 | M26: 4.9286 | N26: 24.62982 | O26: 2.19353 | P26: 27.85096
B27: Gminy miejsko-wiejskie:
B28: Urban-rural gminas:
B29: Nowogrodziec | D29: 100 | E29: 14.54849 | F29: 10.29903 | G29: 85.45151 | H29: 4.35305 | I29: - | J29: 16.17058 | K29: 63.82648 | L29: 36.96483 | M29: 7.10926 | N29: 15.54231 | O29: 1.01664 | P29: 19.83322
B30: Gminy wiejskie:
B31: Rural gminas:
B32: Bolesławiec | D32: 100 | E32: 30.75735 | F32: 30.75735 | G32: 69.24265 | H32: 11.04756 | I32: - | J32: 11.19928 | K32: 46.87962 | L32: 20.51875 | M32: 4.03691 | N32: 15.25486 | O32: - | P32: 22.44016
B33: Gromadka | D33: 100 | E33: 24.67667 | F33: 24.67667 | G33: 75.32333 | H33: 3.65049 | I33: 0.47637 | J33: 13.97906 | K33: 56.23022 | L33: 27.25676 | M33: 5.26295 | N33: 16.50381 | O33: 1.41629 | P33: 23.75043
B34: Osiecznica | D34: 100 | E34: 13.57236 | F34: 13.57236 | G34: 86.42764 | H34: 4.69856 | I34: 0.46504 | J34: 13.23395 | K34: 67.31863 | L34: 32.40517 | M34: 6.5227 | N34: 22.31131 | O34: 0.87583 | P34: 28.69144
B35: Warta Bolesławiecka | D35: 100 | E35: 21.29264 | F35: 16.18637 | G35: 78.70736 | H35: 8.57112 | I35: 1.00132 | J35: 14.30167 | K35: 55.39184 | L35: 27.22861 | M35: 5.15671 | N35: 18.6011 | O35: - | P35: 23.44925
B36: POWIAT JAWORSKI | D36: 100 | E36: 14.91497 | F36: 14.91497 | G36: 85.08503 | H36: 6.15344 | I36: 1.17824 | J36: 14.82913 | K36: 62.14987 | L36: 34.69786 | M36: 6.46067 | N36: 16.82835 | O36: 1.81835 | P36: 21.12526
B37: Gminy miejskie:
B38: Urban gminas:
B39: Jawor | D39: 100 | E39: 10.75911 | F39: 10.75911 | G39: 89.24089 | H39: 9.17478 | I39: 1.79271 | J39: 13.31458 | K39: 64.88706 | L39: 38.10499 | M39: 6.93159 | N39: 16.94329 | O39: 1.82932 | P39: 19.88563
B40: Gminy miejsko-wiejskie:
B41: Urban-rural gminas:
B42: Bolków | D42: 100 | E42: 12.44221 | F42: 12.44221 | G42: 87.55779 | H42: 5.21866 | I42: 0.61554 | J42: 20.46755 | K42: 60.05523 | L42: 33.45043 | M42: 6.44697 | N42: 15.60413 | O42: 1.68577 | P42: 20.28841
B43: Gminy wiejskie:
B44: Rural gminas:
B45: Męcinka | D45: 100 | E45: 20.56006 | F45: 20.56006 | G45: 79.43994 | H45: 2.20277 | I45: - | J45: 14.20898 | K45: 60.91513 | L45: 28.12175 | M45: 5.30667 | N45: 22.33828 | O45: 1.90099 | P45: 27.69878
B46: Mściwojów | D46: 100 | E46: 35.89836 | F46: 35.89836 | G46: 64.10164 | H46: 2.87064 | I46: 0.65973 | J46: 11.38055 | K46: 47.66597 | L46: 25.64863 | M46: 4.9081 | N46: 12.78037 | O46: 1.97097 | P46: 17.32275
B47: Paszowice | D47: 100 | E47: 12.47666 | F47: 12.47666 | G47: 87.52334 | H47: 3.45184 | I47: - | J47: 13.66138 | K47: 68.7421 | L47: 37.75383 | M47: 7.19705 | N47: 17.782 | O47: 1.42315 | P47: 24.0361
B48: Wądroże Wielkie | D48: 100 | E48: 9.7075 | F48: 9.7075 | G48: 90.2925 | H48: 4.97235 | I48: 2.84081 | J48: 15.84571 | K48: 66.96276 | L48: 37.87374 | M48: 6.94912 | N48: 15.66856 | O48: 2.1634 | P48: 22.4841
B49: POWIAT JELENIOGÓRSKI | D49: 100 | E49: 17.76413 | F49: 17.45713 | G49: 82.23587 | H49: 6.9561 | I49: 0.03427 | J49: 14.37418 | K49: 58.63852 | L49: 27.00411 | M49: 4.94062 | N49: 22.56858 | O49: 1.9811 | P49: 26.97863
B50: Gminy miejskie:
B51: Urban gminas:
B52: Karpacz | D52: 100 | E52: 35.39019 | F52: 35.37349 | G52: 64.60981 | H52: 5.18344 | I52: - | J52: 5.53486 | K52: 51.54649 | L52: 22.36818 | M52: 3.91289 | N52: 21.70929 | O52: 1.51067 | P52: 26.09977
B53: Kowary | D53: 100 | E53: 9.25 | F53: 9.25 | G53: 90.75 | H53: 11.22681 | I53: - | J53: 20.55578 | K53: 57.43571 | L53: 25.93638 | M53: 4.66864 | N53: 23.72252 | O53: 1.40755 | P53: 26.95485
B54: Piechowice | D54: 100 | E54: 7.06327 | F54: 7.03489 | G54: 92.93673 | H54: 6.8733 | I54: - | J54: 15.82157 | K54: 68.06608 | L54: 32.66942 | M54: 5.91541 | N54: 26.28763 | O54: 2.15615 | P54: 29.50089
B55: Szklarska Poręba | D55: 100 | E55: 19.72581 | F55: 18.22698 | G55: 80.27419 | H55: 12.24623 | I55: 0.08327 | J55: 9.06188 | K55: 57.26371 | L55: 22.42096 | M55: 3.97163 | N55: 25.89168 | O55: 1.47936 | P55: 31.08606
B56: Gminy wiejskie:
B57: Rural gminas:
B58: Janowice Wielkie | D58: 100 | E58: 29.31839 | F58: 29.31839 | G58: 70.68161 | H58: 4.05193 | I58: - | J58: 12.73045 | K58: 50.24128 | L58: 22.34584 | M58: 4.08829 | N58: 20.21744 | O58: 2.74676 | P58: 24.71833
B59: Jeżów Sudecki | D59: 100 | E59: 23.2982 | F59: 23.2982 | G59: 76.7018 | H59: 6.79072 | I59: - | J59: 15.38542 | K59: 52.24991 | L59: 24.60768 | M59: 4.6341 | N59: 17.76643 | O59: 2.18708 | P59: 23.0968
B60: Mysłakowice | D60: 100 | E60: 6.66145 | F60: 6.66145 | G60: 93.33855 | H60: 4.44044 | I60: - | J60: 18.30646 | K60: 68.95879 | L60: 33.19116 | M60: 6.37386 | N60: 23.86106 | O60: 1.46286 | P60: 29.56377
B61: Podgórzyn | D61: 100 | E61: 10.58887 | F61: 10.58887 | G61: 89.41113 | H61: 5.57789 | I61: - | J61: 18.97885 | K61: 62.0328 | L61: 29.56951 | M61: 5.49098 | N61: 23.22032 | O61: 2.75438 | P61: 27.03951
B62: Stara Kamienica | D62: 100 | E62: 17.04829 | F62: 15.85609 | G62: 82.95171 | H62: 2.7287 | I62: 0.2906 | J62: 16.61375 | K62: 59.97598 | L62: 33.17074 | M62: 6.07425 | N62: 17.00753 | O62: 3.60625 | P62: 20.75781
B63: POWIAT KAMIENNOGÓRSKI | D63: 100 | E63: 13.55327 | F63: 13.15819 | G63: 86.44673 | H63: 4.42668 | I63: 0.19754 | J63: 15.92665 | K63: 64.329 | L63: 33.49424 | M63: 6.47636 | N63: 20.93961 | O63: 1.71829 | P63: 24.40451
B64: Gminy miejskie:
B65: Urban gminas:
B66: Kamienna Góra | D66: 100 | E66: 8.85434 | F66: 7.93564 | G66: 91.14566 | H66: 5.09333 | I66: - | J66: 15.22525 | K66: 68.32386 | L66: 34.17296 | M66: 6.40515 | N66: 24.74163 | O66: 2.48558 | P66: 27.76339
B67: Gminy miejsko-wiejskie:
B68: Urban-rural gminas:
B69: Lubawka | D69: 100 | E69: 23.18065 | F69: 23.18065 | G69: 76.81935 | H69: 5.32876 | I69: 0.78706 | J69: 14.91525 | K69: 55.3505 | L69: 31.55265 | M69: 6.22418 | N69: 14.24197 | O69: 1.21229 | P69: 17.58622
B70: Gminy wiejskie:
B71: Rural gminas:
B72: Kamienna Góra | D72: 100 | E72: 13.36023 | F72: 13.36023 | G72: 86.63977 | H72: 3.81112 | I72: - | J72: 14.80265 | K72: 67.28543 | L72: 32.73614 | M72: 6.77253 | N72: 23.74384 | O72: 0.71488 | P72: 27.80244
B73: Marciszów | D73: 100 | E73: 10.01136 | F73: 10.01136 | G73: 89.98864 | H73: 0.63556 | I73: - | J73: 23.96623 | K73: 63.19962 | L73: 37.11994 | M73: 6.76696 | N73: 15.23688 | O73: 1.88893 | P73: 19.61101
B74: POWIAT LUBAŃSKI | D74: 100 | E74: 20.91392 | F74: 19.80901 | G74: 79.08608 | H74: 3.53405 | I74: - | J74: 17.29725 | K74: 56.6934 | L74: 28.49679 | M74: 5.29148 | N74: 18.13327 | O74: 1.38963 | P74: 23.07659
B75: Gminy miejskie:
B76: Urban gminas:
B77: Lubań | D77: 100 | E77: 9.95481 | F77: 6.02244 | G77: 90.04519 | H77: 6.18584 | I77: - | J77: 13.9182 | K77: 68.02798 | L77: 37.12639 | M77: 6.63151 | N77: 20.39223 | O77: 1.85422 | P77: 24.32903
B78: Świeradów-Zdrój | D78: 100 | E78: 27.58369 | F78: 27.58369 | G78: 72.41631 | H78: 1.51836 | I78: - | J78: 10.10921 | K78: 57.59429 | L78: 23.38466 | M78: 4.36265 | N78: 22.2976 | O78: 3.05985 | P78: 29.98157
B79: Gminy miejsko-wiejskie:
B80: Urban-rural gminas:
B81: Leśna | D81: 100 | E81: 21.76718 | F81: 21.76718 | G81: 78.23282 | H81: 3.05183 | I81: - | J81: 25.33277 | K81: 48.93916 | L81: 22.90365 | M81: 4.39162 | N81: 16.06254 | O81: 0.84904 | P81: 21.7039
B82: Olszyna | D82: 100 | E82: 39.8056 | F82: 39.8056 | G82: 60.1944 | H82: 1.16777 | I82: - | J82: 21.23594 | K82: 36.88796 | L82: 17.49025 | M82: 3.30481 | N82: 14.19031 | O82: 0.70469 | P82: 16.29093
B83: Gminy wiejskie:
B84: Rural gminas:
B85: Lubań | D85: 100 | E85: 14.83254 | F85: 14.83254 | G85: 85.16746 | H85: 4.53473 | I85: - | J85: 15.70162 | K85: 63.89245 | L85: 35.18506 | M85: 6.70777 | N85: 16.82217 | O85: 0.79098 | P85: 22.24428
B86: Platerówka | D86: 100 | E86: 3.3928 | F86: 3.3928 | G86: 96.6072 | H86: 1.74598 | I86: - | J86: 15.89395 | K86: 78.32357 | L86: 41.30815 | M86: 8.04797 | N86: 21.86943 | O86: 0.30568 | P86: 29.30547
B87: Siekierczyn | D87: 100 | E87: 12.68898 | F87: 12.68898 | G87: 87.31102 | H87: 3.82368 | I87: - | J87: 13.52015 | K87: 68.25834 | L87: 36.08124 | M87: 6.78859 | N87: 18.30702 | O87: 0.94099 | P87: 26.15637
B88: POWIAT LWÓWECKI | D88: 100 | E88: 14.66675 | F88: 14.62336 | G88: 85.33325 | H88: 4.64257 | I88: 0.34733 | J88: 16.98047 | K88: 61.97327 | L88: 30.87089 | M88: 5.81295 | N88: 21.52241 | O88: 1.49693 | P88: 25.52943
B89: Gminy miejsko-wiejskie:
B90: Urban-rural gminas:
B91: Gryfów Śląski | D91: 100 | E91: 2.31344 | F91: 2.31344 | G91: 97.68656 | H91: 5.85775 | I91: - | J91: 21.09783 | K91: 68.75747 | L91: 32.87591 | M91: 5.96712 | N91: 26.12367 | O91: 1.57668 | P91: 30.31129
B92: Lubomierz | D92: 100 | E92: 6.17972 | F92: 6.17972 | G92: 93.82028 | H92: 4.68852 | I92: 1.43421 | J92: 17.23451 | K92: 69.91735 | L92: 36.39504 | M92: 6.48887 | N92: 22.71949 | O92: 1.54876 | P92: 27.46458
B93: Lwówek Śląski | D93: 100 | E93: 13.87612 | F93: 13.75147 | G93: 86.12388 | H93: 5.76011 | I93: - | J93: 14.15478 | K93: 64.23412 | L93: 29.98274 | M93: 5.58238 | N93: 24.83603 | O93: 1.8347 | P93: 28.80918
B94: Mirsk | D94: 100 | E94: 27.75628 | F94: 27.75628 | G94: 72.24372 | H94: 1.96929 | I94: 0.27177 | J94: 17.56076 | K94: 51.59597 | L94: 27.05175 | M94: 5.40888 | N94: 16.11653 | O94: 0.89487 | P94: 19.35818
B95: Wleń | D95: 100 | E95: 19.91911 | F95: 19.91911 | G95: 80.08089 | H95: 5.08688 | I95: 0.6895 | J95: 18.24843 | K95: 55.12505 | L95: 31.41149 | M95: 6.3339 | N95: 12.87141 | O95: 1.55547 | P95: 17.44472
B96: POWIAT ZGORZELECKI | D96: 100 | E96: 22.88037 | F96: 21.87162 | G96: 77.11963 | H96: 7.13269 | I96: 1.06995 | J96: 10.30112 | K96: 54.16769 | L96: 27.40959 | M96: 5.13374 | N96: 17.71059 | O96: 1.62615 | P96: 25.51621
B97: Gminy miejskie:
B98: Urban gminas:
B99: Zawidów | D99: 100 | E99: 15.92347 | F99: 15.92347 | G99: 84.07653 | H99: 4.05106 | I99: - | J99: 12.5992 | K99: 65.13683 | L99: 39.69936 | M99: 7.52026 | N99: 14.71624 | O99: 1.96233 | P99: 18.24432
B100: Zgorzelec | D100: 100 | E100: 36.04253 | F100: 34.52441 | G100: 63.95747 | H100: 8.18721 | I100: 0.40119 | J100: 9.87196 | K100: 43.66747 | L100: 23.54661 | M100: 4.48789 | N100: 13.56641 | O100: 1.97148 | P100: 15.89231
B101: Gminy miejsko-wiejskie:
B102: Urban-rural gminas:
B103: Bogatynia | D103: 100 | E103: 15.23376 | F103: 13.80058 | G103: 84.76624 | H103: 7.56466 | I103: 2.27693 | J103: 7.45959 | K103: 58.69181 | L103: 28.03561 | M103: 5.12168 | N103: 21.23137 | O103: 1.45366 | P103: 35.13103
B104: Pieńsk | D104: 100 | E104: 25.89954 | F104: 25.89954 | G104: 74.10046 | H104: 3.60648 | I104: - | J104: 16.06586 | K104: 52.73384 | L104: 27.97257 | M104: 5.50016 | N104: 15.28051 | O104: 1.3648 | P104: 19.58887
B105: Węgliniec | D105: 100 | E105: 19.94428 | F105: 19.94428 | G105: 80.05572 | H105: 6.18794 | I105: 1.02099 | J105: 16.83617 | K105: 55.64811 | L105: 31.903 | M105: 6.24653 | N105: 12.60517 | O105: 1.17032 | P105: 17.71176
B106: Gminy wiejskie:
B107: Rural gminas:
B108: Sulików | D108: 100 | E108: 8.06391 | F108: 7.98048 | G108: 91.93609 | H108: 3.69798 | I108: - | J108: 15.68761 | K108: 70.80782 | L108: 31.49595 | M108: 5.92959 | N108: 23.008 | O108: 1.39194 | P108: 33.73303
B109: Zgorzelec | D109: 100 | E109: 23.80834 | F109: 23.80834 | G109: 76.19166 | H109: 8.71208 | I109: - | J109: 9.96925 | K109: 55.28374 | L109: 26.82337 | M109: 4.84499 | N109: 19.91446 | O109: 1.83962 | P109: 24.00235
B110: POWIAT ZŁOTORYJSKI | D110: 100 | E110: 15.91765 | F110: 15.79503 | G110: 84.08235 | H110: 5.43606 | I110: 0.66171 | J110: 16.11701 | K110: 60.37633 | L110: 29.39553 | M110: 5.57929 | N110: 20.83094 | O110: 1.54824 | P110: 26.00476
B111: Gminy miejskie:
B112: Urban gminas:
B113: Wojcieszów | D113: 100 | E113: 11.54938 | F113: 11.54938 | G113: 88.45062 | H113: 1.31909 | I113: - | J113: 15.72392 | K113: 70.21015 | L113: 24.10978 | M113: 3.88013 | N113: 37.45749 | O113: 1.05347 | P113: 42.36423
B114: Złotoryja | D114: 100 | E114: 12.46043 | F114: 12.46043 | G114: 87.53957 | H114: 6.26517 | I114: - | J114: 13.16648 | K114: 65.39601 | L114: 31.59685 | M114: 6.07049 | N114: 25.29137 | O114: 2.63681 | P114: 27.80378
B115: Gminy miejsko-wiejskie:
B116: Urban-rural gminas:
B117: Świerzawa | D117: 100 | E117: 20.14948 | F117: 20.14948 | G117: 79.85052 | H117: 4.07797 | I117: - | J117: 18.64578 | K117: 53.42157 | L117: 27.0925 | M117: 5.40621 | N117: 17.13639 | O117: 1.08557 | P117: 23.5425
B118: Gminy wiejskie:
B119: Rural gminas:
B120: Pielgrzymka | D120: 100 | E120: 20.8701 | F120: 19.92091 | G120: 79.1299 | H120: 4.22139 | I120: - | J120: 17.54246 | K120: 55.805 | L120: 28.77039 | M120: 5.24624 | N120: 12.61671 | O120: 1.42994 | P120: 21.91949
B121: Zagrodno | D121: 100 | E121: 17.7292 | F121: 17.7292 | G121: 82.2708 | H121: 4.77065 | I121: 1.60291 | J121: 18.14644 | K121: 58.46079 | L121: 30.57009 | M121: 5.62716 | N121: 16.5519 | O121: 0.59345 | P121: 22.55722
B122: Złotoryja | D122: 100 | E122: 15.96565 | F122: 15.96565 | G122: 84.03435 | H122: 9.74799 | I122: 2.99114 | J122: 16.81575 | K122: 55.95906 | L122: 31.02506 | M122: 6.27429 | N122: 13.80914 | O122: 1.07366 | P122: 19.09272
B123: PODREGION LEGNICKO-GŁOGOWSKI | D123: 100 | E123: 18.12996 | F123: 17.11247 | G123: 81.87004 | H123: 7.22438 | I123: 0.9035 | J123: 9.9109 | K123: 59.76296 | L123: 30.22133 | M123: 5.64513 | N123: 20.18525 | O123: 1.37844 | P123: 27.48934
B124: SUBREGION
B125: POWIAT GŁOGOWSKI | D125: 100 | E125: 25.41067 | F125: 24.29688 | G125: 74.58933 | H125: 7.40665 | I125: 0.89367 | J125: 9.27766 | K125: 55.75939 | L125: 27.33119 | M125: 5.07426 | N125: 20.02375 | O125: 1.44015 | P125: 24.05943
B126: Gminy miejskie:
B127: Urban gminas:
B128: Głogów | D128: 100 | E128: 26.98168 | F128: 25.47773 | G128: 73.01832 | H128: 8.47244 | I128: 1.20672 | J128: 8.8675 | K128: 54.07263 | L128: 26.91947 | M128: 4.96517 | N128: 20.02013 | O128: 1.56813 | P128: 22.22562
B129: Gminy wiejskie:
B130: Rural gminas:
B131: Głogów | D131: 100 | E131: 14.29352 | F131: 14.29352 | G131: 85.70648 | H131: 6.68971 | I131: - | J131: 11.6219 | K131: 66.26901 | L131: 30.22589 | M131: 5.68251 | N131: 25.70136 | O131: 1.0701 | P131: 30.41638
B132: Jerzmanowa | D132: 100 | E132: 31.63254 | F132: 31.63254 | G132: 68.36746 | H132: 4.11439 | I132: - | J132: 4.89023 | K132: 52.0912 | L132: 22.11556 | M132: 4.06753 | N132: 18.60379 | O132: 0.54997 | P132: 32.62977
B133: Kotla | D133: 100 | E133: 18.30754 | F133: 18.30754 | G133: 81.69246 | H133: 3.24421 | I133: - | J133: 11.35678 | K133: 65.7562 | L133: 33.64839 | M133: 6.47205 | N133: 18.72924 | O133: 1.14485 | P133: 25.82619
B134: Pęcław | D134: 100 | E134: 7.85022 | F134: 7.85022 | G134: 92.14978 | H134: 4.41334 | I134: - | J134: 21.81512 | K134: 62.22611 | L134: 31.40412 | M134: 6.19169 | N134: 14.85128 | O134: 3.53927 | P134: 24.78624
B135: Żukowice | D135: 100 | E135: 14.19054 | F135: 14.19054 | G135: 85.80946 | H135: 2.54019 | I135: - | J135: 15.26761 | K135: 67.06637 | L135: 35.03117 | M135: 6.65408 | N135: 19.67828 | O135: 0.79896 | P135: 25.51746
B136: POWIAT GÓROWSKI | D136: 100 | E136: 16.79167 | F136: 16.79167 | G136: 83.20833 | H136: 2.87755 | I136: 0.2314 | J136: 20.66183 | K136: 57.82127 | L136: 32.496 | M136: 6.44692 | N136: 13.74091 | O136: 1.67842 | P136: 19.04647
B137: Gminy miejsko-wiejskie:
B138: Urban-rural gminas:
B139: Góra | D139: 100 | E139: 16.43464 | F139: 16.43464 | G139: 83.56536 | H139: 2.57939 | I139: - | J139: 21.60357 | K139: 57.4952 | L139: 32.41216 | M139: 6.40321 | N139: 13.77807 | O139: 1.73564 | P139: 18.83138
B140: Wąsosz | D140: 100 | E140: 24.8954 | F140: 24.8954 | G140: 75.1046 | H140: 3.15479 | I140: 0.85799 | J140: 16.13764 | K140: 54.25053 | L140: 30.36257 | M140: 6.01205 | N140: 13.42097 | O140: 1.45462 | P140: 17.98293
B141: Gminy wiejskie:
B142: Rural gminas:
B143: Jemielno | D143: 100 | E143: 9.51255 | F143: 9.51255 | G143: 90.48745 | H143: 3.17347 | I143: - | J143: 25.05081 | K143: 59.65913 | L143: 33.29669 | M143: 6.75267 | N143: 13.44088 | O143: 2.47791 | P143: 19.72305
B144: Niechlów | D144: 100 | E144: 9.30347 | F144: 9.30347 | G144: 90.69653 | H144: 3.50126 | I144: 0.31923 | J144: 21.34401 | K144: 64.20629 | L144: 36.02927 | M144: 7.18501 | N144: 14.3447 | O144: 1.25905 | P144: 21.37793
B145: POWIAT LEGNICKI | D145: 100 | E145: 14.57286 | F145: 14.57286 | G145: 85.42714 | H145: 6.76636 | I145: 1.45821 | J145: 14.31614 | K145: 62.77228 | L145: 32.07806 | M145: 5.96573 | N145: 20.1185 | O145: 1.45424 | P145: 24.84622
B146: Gminy miejskie:
B147: Urban gminas:
B148: Chojnów | D148: 100 | E148: 8.90539 | F148: 8.90539 | G148: 91.09461 | H148: 4.78032 | I148: - | J148: 13.61966 | K148: 72.0581 | L148: 42.67544 | M148: 7.80361 | N148: 18.33624 | O148: 0.61405 | P148: 21.60152
B149: Gminy miejsko-wiejskie:
B150: Urban-rural gminas:
B151: Prochowice | D151: 100 | E151: 12.71494 | F151: 12.71494 | G151: 87.28506 | H151: 5.7138 | I151: - | J151: 14.42541 | K151: 65.63133 | L151: 34.67341 | M151: 6.71666 | N151: 20.58427 | O151: 1.46315 | P151: 24.29264
B152: Gminy wiejskie:
B153: Rural gminas:
B154: Chojnów | D154: 100 | E154: 8.20377 | F154: 8.20377 | G154: 91.79623 | H154: 9.99307 | I154: 2.03362 | J154: 19.6882 | K154: 59.64971 | L154: 31.23729 | M154: 5.4781 | N154: 16.91674 | O154: 2.31445 | P154: 23.08511
B155: Krotoszyce | D155: 100 | E155: 9.56026 | F155: 9.56026 | G155: 90.43974 | H155: 2.82803 | I155: - | J155: 12.21509 | K155: 74.16262 | L155: 33.4149 | M155: 6.39417 | N155: 24.60142 | O155: 0.96 | P155: 34.62757
B156: Kunice | D156: 100 | E156: 16.15208 | F156: 16.15208 | G156: 83.84792 | H156: 7.55891 | I156: - | J156: 10.93676 | K156: 63.17513 | L156: 27.3436 | M156: 5.33369 | N156: 26.7401 | O156: 2.08398 | P156: 30.59098
B157: Legnickie Pole | D157: 100 | E157: 24.53275 | F157: 24.53275 | G157: 75.46725 | H157: 8.1715 | I157: 4.66626 | J157: 10.44419 | K157: 55.68332 | L157: 22.78678 | M157: 4.20104 | N157: 24.50347 | O157: 0.95456 | P157: 28.90918
B158: Miłkowice | D158: 100 | E158: 23.73042 | F158: 23.73042 | G158: 76.26958 | H158: 10.54552 | I158: 4.6345 | J158: 15.86923 | K158: 47.79782 | L158: 25.11009 | M158: 4.76542 | N158: 13.91426 | O158: 1.95294 | P158: 18.0264
B159: Ruja | D159: 100 | E159: 17.20966 | F159: 17.20966 | G159: 82.79034 | H159: 0.35039 | I159: - | J159: 18.37148 | K159: 62.11274 | L159: 32.17925 | M159: 5.83284 | N159: 17.33184 | O159: 1.70704 | P159: 24.34247
B160: POWIAT LUBIŃSKI | D160: 100 | E160: 11.37509 | F160: 10.79196 | G160: 88.62491 | H160: 8.79496 | I160: 1.29531 | J160: 7.93554 | K160: 68.39849 | L160: 36.08084 | M160: 6.64418 | N160: 22.25747 | O160: 1.27203 | P160: 27.89736
B161: Gminy miejskie:
B162: Urban gminas:
B163: Lubin | D163: 100 | E163: 7.13283 | F163: 6.25406 | G163: 92.86717 | H163: 7.49289 | I163: 0.03845 | J163: 7.46229 | K163: 76.14421 | L163: 41.6137 | M163: 7.64434 | N163: 23.28525 | O163: 1.5745 | P163: 27.07945
B164: Gminy miejsko-wiejskie:
B165: Urban-rural gminas:
B166: Ścinawa | D166: 100 | E166: 13.36845 | F166: 13.36845 | G166: 86.63155 | H166: 4.90575 | I166: 0.35715 | J166: 17.22069 | K166: 62.57357 | L166: 32.28357 | M166: 5.60029 | N166: 19.93788 | O166: 1.67988 | P166: 24.94137
B167: Gminy wiejskie:
B168: Rural gminas:
B169: Lubin | D169: 100 | E169: 20.06409 | F169: 20.06409 | G169: 79.93591 | H169: 14.00857 | I169: 5.86905 | J169: 6.59397 | K169: 49.52116 | L169: 25.73178 | M169: 4.7326 | N169: 16.19856 | O169: 0.7452 | P169: 28.12378
B170: Rudna | D170: 100 | E170: 23.12075 | F170: 23.12075 | G170: 76.87925 | H170: 12.0294 | I170: 3.30147 | J170: 6.64535 | K170: 51.82094 | L170: 20.29993 | M170: 4.05087 | N170: 25.19272 | O170: - | P170: 33.8537
B171: POWIAT POLKOWICKI | D171: 100 | E171: 20.58366 | F171: 18.40526 | G171: 79.41634 | H171: 7.0109 | I171: 0.46506 | J171: 7.10709 | K171: 53.59793 | L171: 25.11721 | M171: 4.71104 | N171: 20.26251 | O171: 1.30235 | P171: 34.16637
B172: Gminy miejsko-wiejskie:
B173: Urban-rural gminas:
B174: Chocianów | D174: 100 | E174: 17.57499 | F174: 17.16393 | G174: 82.42501 | H174: 5.55107 | I174: 2.36392 | J174: 13.98138 | K174: 59.41219 | L174: 35.18994 | M174: 6.75525 | N174: 13.28713 | O174: 2.34475 | P174: 18.6026
B175: Polkowice | D175: 100 | E175: 21.07793 | F175: 17.85952 | G175: 78.92207 | H175: 8.30221 | I175: - | J175: 4.09027 | K175: 51.08554 | L175: 21.74575 | M175: 4.02481 | N175: 22.6345 | O175: 0.6347 | P175: 40.12248
B176: Przemków | D176: 100 | E176: 9.07784 | F176: 9.00676 | G176: 90.92216 | H176: 3.2055 | I176: 0.87486 | J176: 16.82597 | K176: 61.23538 | L176: 36.38006 | M176: 6.98315 | N176: 11.29515 | O176: 8.59716 | P176: 18.93032
B177: Gminy wiejskie:
B178: Rural gminas:
B179: Gaworzyce | D179: 100 | E179: 16.92225 | F179: 16.92225 | G179: 83.07775 | H179: 4.05599 | I179: - | J179: 16.0784 | K179: 62.26001 | L179: 30.04959 | M179: 5.7543 | N179: 19.49308 | O179: 0.58409 | P179: 26.55538
B180: Grębocice | D180: 100 | E180: 24.75485 | F180: 24.75485 | G180: 75.24515 | H180: 5.61483 | I180: 1.7029 | J180: 9.30249 | K180: 56.62257 | L180: 26.1784 | M180: 5.07226 | N180: 19.85447 | O180: 0.05627 | P180: 29.01881
B181: Radwanice | D181: 100 | E181: 30.40962 | F181: 30.40962 | G181: 69.59038 | H181: 2.67607 | I181: 0.63869 | J181: 10.2229 | K181: 54.05729 | L181: 29.1445 | M181: 5.32651 | N181: 16.27606 | O181: 0.80651 | P181: 21.41388
B182: PODREGION WAŁBRZYSKI | D182: 100 | E182: 15.35205 | F182: 14.41235 | G182: 84.64795 | H182: 7.3457 | I182: 0.48556 | J182: 13.55365 | K182: 61.63965 | L182: 29.13554 | M182: 5.56133 | N182: 22.30507 | O182: 1.99237 | P182: 27.05901
B183: SUBREGION
B184: POWIAT DZIERŻONIOWSKI | D184: 100 | E184: 14.56227 | F184: 11.94728 | G184: 85.43773 | H184: 10.92598 | I184: 1.12477 | J184: 13.54233 | K184: 58.8787 | L184: 26.26399 | M184: 5.07561 | N184: 23.63874 | O184: 1.91245 | P184: 27.71668
B185: Gminy miejskie:
B186: Urban gminas:
B187: Bielawa | D187: 100 | E187: 13.5154 | F187: 9.80435 | G187: 86.4846 | H187: 10.48175 | I187: 2.25476 | J187: 10.99534 | K187: 62.62719 | L187: 19.97774 | M187: 3.89954 | N187: 35.11212 | O187: 2.24381 | P187: 38.88593
B188: Dzierżoniów | D188: 100 | E188: 12.51472 | F188: 9.37104 | G188: 87.48528 | H188: 15.628 | I188: 0.98602 | J188: 14.11338 | K188: 55.4988 | L188: 27.78909 | M188: 5.39377 | N188: 19.61426 | O188: 2.09998 | P188: 22.46054
B189: Pieszyce | D189: 100 | E189: 16.78833 | F189: 15.03226 | G189: 83.21167 | H189: 12.23208 | I189: 0.43902 | J189: 19.11459 | K189: 49.79334 | L189: 26.32518 | M189: 4.80094 | N189: 15.84111 | O189: 2.03516 | P189: 18.70182
B190: Piława Górna | D190: 100 | E190: 11.35263 | F190: 11.35263 | G190: 88.64737 | H190: 5.51354 | I190: - | J190: 17.43809 | K190: 64.49291 | L190: 33.16166 | M190: 6.10538 | N190: 21.77993 | O190: 1.145 | P190: 25.2837
B191: Gminy miejsko-wiejskie:
B192: Urban-rural gminas:
B193: Niemcza | D193: 100 | E193: 7.12853 | F193: 2.52573 | G193: 92.87147 | H193: 8.19337 | I193: - | J193: 15.45762 | K193: 66.98689 | L193: 33.82511 | M193: 6.23626 | N193: 16.90479 | O193: 1.65303 | P193: 27.50221
B194: Gminy wiejskie:
B195: Rural gminas:
B196: Dzierżoniów | D196: 100 | E196: 19.61875 | F196: 19.45088 | G196: 80.38125 | H196: 6.56185 | I196: - | J196: 14.31402 | K196: 57.66862 | L196: 30.84064 | M196: 6.21451 | N196: 15.05862 | O196: 1.51613 | P196: 20.9341
B197: Łagiewniki | D197: 100 | E197: 25.02836 | F197: 24.74542 | G197: 74.97164 | H197: 4.68338 | I197: 0.47434 | J197: 11.79496 | K197: 57.31062 | L197: 31.2592 | M197: 6.18376 | N197: 15.08428 | O197: 0.92478 | P197: 20.12555
B198: POWIAT KŁODZKI | D198: 100 | E198: 13.28766 | F198: 12.57599 | G198: 86.71234 | H198: 7.40092 | I198: 0.29304 | J198: 14.32651 | K198: 62.46372 | L198: 28.92823 | M198: 5.5166 | N198: 21.71794 | O198: 2.39422 | P198: 28.14553
B199: Gminy miejskie:
B200: Urban gminas:
B201: Duszniki-Zdrój | D201: 100 | E201: 13.84209 | F201: 13.84209 | G201: 86.15791 | H201: 8.24026 | I201: - | J201: 12.27247 | K201: 63.15557 | L201: 31.3044 | M201: 5.50548 | N201: 22.88113 | O201: 2.32807 | P201: 26.50722
B202: Kłodzko | D202: 100 | E202: 8.00028 | F202: 4.36457 | G202: 91.99972 | H202: 11.3655 | I202: - | J202: 14.07163 | K202: 64.06398 | L202: 32.09459 | M202: 6.11281 | N202: 22.88879 | O202: 2.36659 | P202: 25.9886
B203: Kudowa-Zdrój | D203: 100 | E203: 19.3736 | F203: 19.3736 | G203: 80.6264 | H203: 6.01526 | I203: - | J203: 10.16677 | K203: 62.39974 | L203: 26.46815 | M203: 4.89824 | N203: 27.5483 | O203: 1.99357 | P203: 31.0844
B204: Nowa Ruda | D204: 100 | E204: 4.85319 | F204: 4.85319 | G204: 95.14681 | H204: 8.11792 | I204: 1.00782 | J204: 17.11274 | K204: 67.23099 | L204: 32.59669 | M204: 6.51793 | N204: 23.93969 | O204: 2.62043 | P204: 28.18111
... 147 more rows

Sheet Tabl.14.
B4: Tabl. 14. Wydatki budżetów gmin a według działów oraz według podregionów i powiatów
B5: Expenditure of gminas budgets a by divisions as well as subregions and powiats
B6: WYSZCZEGÓLNIENIE SPECIFICATION | D6: Ogółem Total | E6: W tym Of which
E7: transport i łączność transport and communication | F7: gospodarka mieszkaniowa dwelling economy | G7: działalność usługowa service activity | H7: administracja publiczna public administration | I7: oświata i wychowanie education | J7: ochrona zdrowia health care | K7: pomoc społeczna social welfare | L7: gospodarka komunalna i ochrona środowiska municipal economy and environmental protection | M7: kultura i ochrona dziedzictwa narodowego culture and national heritage | N7: kultura fizyczna physical education
D9: w tys. zł in thous. zl
B10: OGÓLEM | C10: 2012 | D10: 6595255.268 | E10: 577474.5593 | F10: 375061.4871 | G10: 25933.16964 | H10: 703071.984 | I10: 2109261.158 | J10: 54583.21271 | K10: 969027.765 | L10: 605981.5066 | M10: 350146.8522 | N10: 226812.2539
B11: TOTAL | C11: 2013 | D11: 6419477.846 | E11: 518926.7754 | F11: 302004.4985 | G11: 29231.28364 | H11: 710759.1214 | I11: 2091739.003 | J11: 67206.69678 | K11: 929894.7938 | L11: 655588.4493 | M11: 337855.3148 | N11: 203339.0978
B13: Gminy miejskie | D13: 2105023.904 | E13: 179335.7655 | F13: 137995.9677 | G13: 8684.91826 | H13: 209595.3867 | I13: 673637.7798 | J13: 18217.95472 | K13: 317679.1101 | L13: 221470.5452 | M13: 111888.156 | N13: 94361.90053
B14: Urban gminas
B15: Gminy miejsko-wiejskie | D15: 2451858.473 | E15: 185164.154 | F15: 116515.0432 | G15: 14474.15336 | H15: 267918.7124 | I15: 789718.6929 | J15: 37078.39929 | K15: 360556.7971 | L15: 236226.9202 | M15: 112556.8277 | N15: 74641.60046
B16: Urban-rural gminas
B17: Gminy wiejskie | D17: 1862595.468 | E17: 154426.8558 | F17: 47493.48755 | G17: 6072.21202 | H17: 233245.0223 | I17: 628382.5302 | J17: 11910.34277 | K17: 251658.8866 | L17: 197890.9839 | M17: 113410.3312 | N17: 34335.59681
B18: Rural gminas
B19: PODREGION JELENIOGÓRSKI | D19: 1624438.084 | E19: 139897.8141 | F19: 77853.91883 | G19: 5917.8852 | H19: 186116.3987 | I19: 488536.6029 | J19: 16966.64589 | K19: 267121.3663 | L19: 155291.7862 | M19: 81370.05649 | N19: 58306.76075
B20: SUBREGION
B21: POWIAT BOLESŁAWIECKI | D21: 272826.2141 | E21: 23342.32083 | F21: 15482.69134 | G21: 671.15878 | H21: 31134.32248 | I21: 87133.78892 | J21: 2198.81472 | K21: 42097.28072 | L21: 24955.02842 | M21: 27055.93926 | N21: 6507.93781
B22: Gminy miejskie:
B23: Urban gminas:
B24: Bolesławiec | D24: 122924.4023 | E24: 12620.03491 | F24: 12834.24217 | G24: 243.25527 | H24: 12069.2023 | I24: 32968.47819 | J24: 1159.15774 | K24: 20109.44677 | L24: 7064.31274 | M24: 16507.58527 | N24: 2157.79595
B25: Gminy miejsko-wiejskie:
B26: Urban-rural gminas:
B27: Nowogrodziec | D27: 38146.00819 | E27: 1685.81322 | F27: 1012.43863 | G27: 56.20575 | H27: 4311.71591 | I27: 16407.51137 | J27: 541.59526 | K27: 6686.38616 | L27: 2366.37891 | M27: 1301.29393 | N27: 434.68046
B28: Gminy wiejskie:
B29: Rural gminas:
B30: Bolesławiec | D30: 40093.22667 | E30: 2368.20311 | F30: 535.37741 | G30: 187.65024 | H30: 6330.45421 | I30: 12816.52031 | J30: 144.48137 | K30: 4659.2454 | L30: 5697.3398 | M30: 6085.97429 | N30: 411.70946
B31: Gromadka | D31: 20992.11228 | E31: 1938.22571 | F31: 334.49456 | G31: 8.856 | H31: 3095.94811 | I31: 5831.19871 | J31: 83.05913 | K31: 3389.56417 | L31: 4264.64479 | M31: 756.56636 | N31: 410.48554
B32: Osiecznica | D32: 25348.68189 | E32: 2263.28313 | F32: 706.21591 | G32: 93.89546 | H32: 2304.84541 | I32: 10381.75873 | J32: 159.07298 | K32: 3448.13117 | L32: 1343.45509 | M32: 1011.78228 | N32: 2536.3058
B33: Warta Bolesławiecka | D33: 25321.7827 | E33: 2466.76075 | F33: 59.92266 | G33: 81.29606 | H33: 3022.15654 | I33: 8728.32161 | J33: 111.44824 | K33: 3804.50705 | L33: 4218.89709 | M33: 1392.73713 | N33: 556.9606
B34: POWIAT JAWORSKI | D34: 147181.5518 | E34: 8182.55838 | F34: 2491.53197 | G34: 494.94252 | H34: 16371.33967 | I34: 50165.80257 | J34: 1069.00603 | K34: 27084.39955 | L34: 15943.45589 | M34: 7235.46276 | N34: 2587.40583
B35: Gminy miejskie:
B36: Urban gminas:
B37: Jawor | D37: 62828.41341 | E37: 1162.06768 | F37: 634.77968 | G37: 272.15928 | H37: 5975.82618 | I37: 23295.40841 | J37: 549.49039 | K37: 11454.85165 | L37: 9348.49686 | M37: 3273.11004 | N37: 1745.814
B38: Gminy miejsko-wiejskie:
B39: Urban-rural gminas:
B40: Bolków | D40: 28580.33203 | E40: 960.7282 | F40: 903.69559 | G40: 20.32422 | H40: 2959.712 | I40: 9741.45803 | J40: 252.89227 | K40: 7107.38202 | L40: 3030.42377 | M40: 1326.88549 | N40: 214.5
B41: Gminy wiejskie:
B42: Rural gminas:
B43: Męcinka | D43: 16846.32673 | E43: 2403.25977 | F43: 498.33535 | G43: 88.30392 | H43: 2060.3928 | I43: 4665.63239 | J43: 66.40383 | K43: 2506.63532 | L43: 709.4183 | M43: 965.68014 | N43: 147.798
B44: Mściwojów | D44: 15528.66222 | E44: 2537.76414 | F44: 42.07954 | G44: - | H44: 1880.45422 | I44: 3832.39768 | J44: 88.41722 | K44: 2238.38246 | L44: 1036.09211 | M44: 273.42571 | N44: 36.81878
B45: Paszowice | D45: 11801.03637 | E45: 542.31312 | F45: 272.03181 | G45: 2.63454 | H45: 1918.92486 | I45: 4336.14126 | J45: 47.54109 | K45: 1667.20395 | L45: 1000.52811 | M45: 1153.87909 | N45: 72.67446
B46: Wądroże Wielkie | D46: 11596.78105 | E46: 576.42547 | F46: 140.61 | G46: 111.52056 | H46: 1576.02961 | I46: 4294.7648 | J46: 64.26123 | K46: 2109.94415 | L46: 818.49674 | M46: 242.48229 | N46: 369.80059
B47: POWIAT JELENIOGÓRSKI | D47: 215223.1333 | E47: 26409.85814 | F47: 7827.21934 | G47: 1851.74219 | H47: 28367.24943 | I47: 58762.32734 | J47: 2103.92228 | K47: 35634.16323 | L47: 19491.2338 | M47: 7968.88878 | N47: 3684.53983
B48: Gminy miejskie:
B49: Urban gminas:
B50: Karpacz | D50: 34332.90256 | E50: 12291.16543 | F50: 1697.96105 | G50: 154.53799 | H50: 5824.49735 | I50: 5663.14569 | J50: 539.69686 | K50: 2242.94757 | L50: 3136.74717 | M50: 659.29907 | N50: 162.54081
B51: Kowary | D51: 29555.75225 | E51: 512.89031 | F51: 2971.31988 | G51: 142.03563 | H51: 3422.09472 | I51: 8279.74681 | J51: 147.80349 | K51: 7702.79545 | L51: 3641.73155 | M51: 732.39715 | N51: 275.95267
B52: Piechowice | D52: 17621.09999 | E52: 1333.70791 | F52: 463.3718 | G52: 105.0925 | H52: 2356.81108 | I52: 4874.11007 | J52: 127.51447 | K52: 3310.93938 | L52: 2096.18106 | M52: 352.6 | N52: 95.38364
B53: Szklarska Poręba | D53: 30023.45954 | E53: 2934.47097 | F53: 1202.34737 | G53: 717.37868 | H53: 4379.38601 | I53: 6868.4298 | J53: 775.34662 | K53: 3735.74514 | L53: 2592.76382 | M53: 1187.891 | N53: 1505.03579
B54: Gminy wiejskie:
B55: Rural gminas:
B56: Janowice Wielkie | D56: 14744.26975 | E56: 3459.82208 | F56: 450.96671 | G56: 9.47996 | H56: 1803.51532 | I56: 4737.94335 | J56: 62.39259 | K56: 2095.31949 | L56: 614.56843 | M56: 346.57103 | N56: 89.55448
B57: Jeżów Sudecki | D57: 19778.58714 | E57: 1281.12518 | F57: 38.8307 | G57: 465.96689 | H57: 2016.21133 | I57: 5007.03245 | J57: 70.08733 | K57: 3085.5777 | L57: 934.51852 | M57: 1901.29192 | N57: 282.1454
B58: Mysłakowice | D58: 29467.89203 | E58: 2202.6018 | F58: 579.00699 | G58: 104.99306 | H58: 3815.8186 | I58: 11203.83493 | J58: 151.28805 | K58: 5522.61612 | L58: 3714.97978 | M58: 519.12169 | N58: 199.81915
B59: Podgórzyn | D59: 22923.47912 | E59: 1619.11087 | F59: 194.07074 | G59: 102.68802 | H59: 2865.25847 | I59: 6474.91878 | J59: 156.43004 | K59: 4927.2727 | L59: 2110.20541 | M59: 1093.49435 | N59: 1044.40442
B60: Stara Kamienica | D60: 16775.69089 | E60: 774.96359 | F60: 229.3441 | G60: 49.56946 | H60: 1883.65655 | I60: 5653.16546 | J60: 73.36283 | K60: 3010.94968 | L60: 649.53806 | M60: 1176.22257 | N60: 29.70347
B61: POWIAT KAMIENNOGÓRSKI | D61: 126557.6155 | E61: 10580.12631 | F61: 7985.09486 | G61: 566.53042 | H61: 15241.7808 | I61: 40958.44788 | J61: 798.65 | K61: 23748.57683 | L61: 8331.77146 | M61: 5255.98699 | N61: 4198.01806
B62: Gminy miejskie:
B63: Urban gminas:
B64: Kamienna Góra | D64: 54424.44228 | E64: 3377.09634 | F64: 5792.82738 | G64: 441.18473 | H64: 6662.22482 | I64: 16697.67495 | J64: 350.73927 | K64: 10660.62331 | L64: 3984.81501 | M64: 1515.28265 | N64: 2373.62092
B65: Gminy miejsko-wiejskie:
B66: Urban-rural gminas:
B67: Lubawka | D67: 31763.84174 | E67: 4576.91299 | F67: 992.80651 | G67: 17.12649 | H67: 2887.83053 | I67: 10936.13289 | J67: 300.41106 | K67: 5599.18973 | L67: 2100.91809 | M67: 1112.81863 | N67: 1164.55343
B68: Gminy wiejskie:
B69: Rural gminas:
B70: Kamienna Góra | D70: 27746.13305 | E70: 2502.01458 | F70: 1094.66802 | G70: 72.24347 | H70: 3510.13882 | I70: 9670.62259 | J70: 96.97341 | K70: 4409.11605 | L70: 1519.3213 | M70: 2383.15171 | N70: 603.56425
B71: Marciszów | D71: 12623.19846 | E71: 124.1024 | F71: 104.79295 | G71: 35.97573 | H71: 2181.58663 | I71: 3654.01745 | J71: 50.52626 | K71: 3079.64774 | L71: 726.71706 | M71: 244.734 | N71: 56.27946
B72: POWIAT LUBAŃSKI | D72: 196394.6336 | E72: 22744.55482 | F72: 10494.88875 | G72: 425.79392 | H72: 21763.31081 | I72: 57042.97004 | J72: 1233.47777 | K72: 37691.19844 | L72: 21890.07256 | M72: 5668.65022 | N72: 4347.05843
B73: Gminy miejskie:
B74: Urban gminas:
B75: Lubań | D75: 55182.90557 | E75: 660.66573 | F75: 3545.19571 | G75: 59.55557 | H75: 6757.16662 | I75: 21027.12447 | J75: 551.97422 | K75: 10502.41819 | L75: 6768.12534 | M75: 1701.37672 | N75: 1495.02164
B76: Świeradów-Zdrój | D76: 26421.74564 | E76: 3737.71832 | F76: 2230.39905 | G76: 91.37116 | H76: 3204.76162 | I76: 5751.6554 | J76: 269.77844 | K76: 2953.03071 | L76: 4791.84763 | M76: 622.97415 | N76: 209.31055
B77: Gminy miejsko-wiejskie:
B78: Urban-rural gminas:
B79: Leśna | D79: 39710.41604 | E79: 2210.09695 | F79: 2826.89416 | G79: 24.1837 | H79: 3552.47932 | I79: 10216.81603 | J79: 200.05143 | K79: 10123.51524 | L79: 5190.46335 | M79: 887.31581 | N79: 1919.63498
B80: Olszyna | D80: 37429.97452 | E80: 14599.66784 | F80: 716.16831 | G80: 68.51838 | H80: 2250.60255 | I80: 6914.57039 | J80: 93.97569 | K80: 8308.14317 | L80: 2254.7191 | M80: 431.94341 | N80: 97.3466
B81: Gminy wiejskie:
B82: Rural gminas:
B83: Lubań | D83: 18820.52195 | E83: 1165.88219 | F83: 417.56519 | G83: 138.25179 | H83: 2601.38377 | I83: 6950.17384 | J83: 52.87402 | K83: 3004.116 | L83: 1162.53983 | M83: 1201.69199 | N83: 183.58469
B84: Platerówka | D84: 4641.31537 | E84: 60.57889 | F84: 81.03656 | G84: 2.31848 | H84: 959.37548 | I84: 1651.92527 | J84: 19.118 | K84: 817.44905 | L84: 319.18571 | M84: 329.3034 | N84: 49.63185
B85: Siekierczyn | D85: 14187.75451 | E85: 309.9449 | F85: 677.62977 | G85: 41.59484 | H85: 2437.54145 | I85: 4530.70464 | J85: 45.70597 | K85: 1982.52608 | L85: 1403.1916 | M85: 494.04474 | N85: 392.52812
B86: POWIAT LWÓWECKI | D86: 138269.9299 | E86: 12651.35539 | F86: 3717.34021 | G86: 465.15195 | H86: 13040.00367 | I86: 45981.04036 | J86: 1543.27581 | K86: 25836.24406 | L86: 9365.47274 | M86: 6652.41223 | N86: 1720.87207
B87: Gminy miejsko-wiejskie:
B88: Urban-rural gminas:
B89: Gryfów Śląski | D89: 23089.99877 | E89: 2767.13256 | F89: 317.87636 | G89: 41.97125 | H89: 2640.38807 | I89: 7878.53527 | J89: 433.24383 | K89: 5470.21547 | L89: 1573.33594 | M89: 679.77038 | N89: 117.99674
B90: Lubomierz | D90: 20995.82872 | E90: 1715.62512 | F90: 391.13634 | G90: 3.48 | H90: 2122.08327 | I90: 7356.55037 | J90: 64.17534 | K90: 3782.50356 | L90: 1623.59034 | M90: 635.93693 | N90: 121.2159
B91: Lwówek Śląski | D91: 48134.41756 | E91: 5568.68121 | F91: 2595.23656 | G91: 355.79332 | H91: 4412.18349 | I91: 15926.92517 | J91: 321.90234 | K91: 7913.32151 | L91: 3579.43122 | M91: 2848.88065 | N91: 1077.64458
B92: Mirsk | D92: 33126.51011 | E92: 1433.73565 | F92: 136.71706 | G92: 63.90738 | H92: 2315.55731 | I92: 10583.56265 | J92: 193.0682 | K92: 6125.83863 | L92: 2154.66718 | M92: 1630.25871 | N92: 333.69851
B93: Wleń | D93: 12923.17478 | E93: 1166.18085 | F93: 276.37389 | G93: - | H93: 1549.79153 | I93: 4235.4669 | J93: 530.8861 | K93: 2544.36489 | L93: 434.44806 | M93: 857.56556 | N93: 70.31634
B94: POWIAT ZGORZELECKI | D94: 378747.2765 | E94: 21995.88154 | F94: 19656.43214 | G94: 1087.09051 | H94: 43717.91647 | I94: 105346.5591 | J94: 7370.04982 | K94: 47279.62336 | L94: 42450.76415 | M94: 15274.85844 | N94: 31898.787
B95: Gminy miejskie:
B96: Urban gminas:
B97: Zawidów | D97: 11432.53592 | E97: 1148.99705 | F97: 150.52437 | G97: 19.7944 | H97: 1530.66142 | I97: 4676.9045 | J97: 103.01847 | K97: 1593.26088 | L97: 1320.97467 | M97: 397.227 | N97: 107.72931
B98: Zgorzelec | D98: 112165.2168 | E98: 5170.68889 | F98: 797.37362 | G98: 512.86114 | H98: 9140.39165 | I98: 29400.32199 | J98: 873.91887 | K98: 13432.53265 | L98: 19111.33149 | M98: 3648.85299 | N98: 24394.05162
B99: Gminy miejsko-wiejskie:
B100: Urban-rural gminas:
B101: Bogatynia | D101: 146527.2956 | E101: 12322.65443 | F101: 15019.95677 | G101: 201.57994 | H101: 19012.90141 | I101: 34254.2454 | J101: 5571.14089 | K101: 15551.0846 | L101: 12185.02891 | M101: 5928.96623 | N101: 3640.46686
B102: Pieńsk | D102: 28428.22894 | E102: 338.07386 | F102: 1142.66515 | G102: 31.43603 | H102: 3055.24667 | I102: 7897.1469 | J102: 149.61809 | K102: 4954.25804 | L102: 3121.8188 | M102: 726.35584 | N102: 228.87861
B103: Węgliniec | D103: 26059.95381 | E103: 757.6186 | F103: 886.95073 | G103: 72.78075 | H103: 3386.90577 | I103: 9689.83067 | J103: 115.46253 | K103: 4635.48999 | L103: 2035.51802 | M103: 761.81794 | N103: 2662.89903
B104: Gminy wiejskie:
B105: Rural gminas:
B106: Sulików | D106: 21335.51848 | E106: 801.05527 | F106: 1333.09065 | G106: 23.71055 | H106: 2697.23503 | I106: 7338.53916 | J106: 56 | K106: 3511.00888 | L106: 2937.30594 | M106: 521.4672 | N106: 285.20001
B107: Zgorzelec | D107: 32798.52696 | E107: 1456.79344 | F107: 325.87085 | G107: 224.9277 | H107: 4894.57452 | I107: 12089.5705 | J107: 500.89097 | K107: 3601.98832 | L107: 1738.78632 | M107: 3290.17124 | N107: 579.56156
B108: POWIAT ZŁOTORYJSKI | D108: 149237.7289 | E108: 13991.15872 | F108: 10198.72022 | G108: 355.47491 | H108: 16480.47533 | I108: 43145.66663 | J108: 649.44946 | K108: 27749.88006 | L108: 12863.98719 | M108: 6257.85781 | N108: 3362.14172
B109: Gminy miejskie:
B110: Urban gminas:
B111: Wojcieszów | D111: 17193.65344 | E111: 3766.98045 | F111: 731.12174 | G111: 28.4054 | H111: 1446.06821 | I111: 3606.66864 | J111: 21.13191 | K111: 3074.67966 | L111: 1340.83248 | M111: 233.95853 | N111: 87.9551
B112: Złotoryja | D112: 46340.71907 | E112: 2786.24625 | F112: 5224.94727 | G112: 95.85056 | H112: 5348.4788 | I112: 13187.07887 | J112: 221.52181 | K112: 8478.63585 | L112: 4339.03889 | M112: 1905.60208 | N112: 1864.16549
B113: Gminy miejsko-wiejskie:
B114: Urban-rural gminas:
B115: Świerzawa | D115: 25257.24122 | E115: 3063.71847 | F115: 319.98459 | G115: 22.3929 | H115: 2489.25487 | I115: 7032.34195 | J115: 136.02964 | K115: 4939.44627 | L115: 3328.99227 | M115: 1505.58472 | N115: 101.17589
B116: Gminy wiejskie: | D116: 60446.1152 | E116: 4374.21355 | F116: 3922.66662 | G116: 208.82605 | H116: 7196.67345 | I116: 19319.57717 | J116: 270.7661 | K116: 11257.11828 | L116: 3855.12355 | M116: 2612.71248 | N116: 1308.84524
B117: Rural gminas:
B118: Pielgrzymka | D118: 19279.65679 | E118: 1371.81858 | F118: 2694.34895 | G118: 6.64921 | H118: 2294.68268 | I118: 5752.10095 | J118: 55.66334 | K118: 3585.02093 | L118: 1529.69324 | M118: 407.16958 | N118: 80
B119: Zagrodno | D119: 17564.01092 | E119: 1899.3825 | F119: 313.51778 | G119: 141.1118 | H119: 2281.86085 | I119: 5355.50007 | J119: 128.0158 | K119: 3393.17939 | L119: 1107.53599 | M119: 702.74119 | N119: 157.91412
B120: Złotoryja | D120: 23602.44749 | E120: 1103.01247 | F120: 914.79989 | G120: 61.06504 | H120: 2620.12992 | I120: 8211.97615 | J120: 87.08696 | K120: 4278.91796 | L120: 1217.89432 | M120: 1502.80171 | N120: 1070.93112
B121: PODREGION LEGNICKO-GŁOGOWSKI | D121: 1392708.319 | E121: 99951.89795 | F121: 58262.6544 | G121: 8121.5538 | H121: 140284.1957 | I121: 467348.1385 | J121: 15084.54693 | K121: 172575.7637 | L121: 151100.6545 | M121: 78135.84889 | N121: 38206.82346
B122: SUBREGION
B123: POWIAT GŁOGOWSKI | D123: 342748.7584 | E123: 25103.87933 | F123: 13737.01788 | G123: 1829.62582 | H123: 30802.01401 | I123: 113426.4943 | J123: 3215.33784 | K123: 41947.98403 | L123: 50318.13425 | M123: 20418.56871 | N123: 11966.486
B124: Gminy miejskie:
B125: Urban gminas:
B126: Głogów | D126: 253831.5301 | E126: 20374.2666 | F126: 12976.93267 | G126: 1446.33178 | H126: 16453.26275 | I126: 86460.11324 | J126: 2474.17822 | K126: 31290.93909 | L126: 42182.159 | M126: 14242.34812 | N126: 11042.56067
B127: Gminy wiejskie:
B128: Rural gminas:
B129: Głogów | D129: 20118.71569 | E129: 1017.77409 | F129: 155.99793 | G129: 198.30064 | H129: 2475.30922 | I129: 6118.68794 | J129: 416.57012 | K129: 2492.92303 | L129: 3038.61555 | M129: 676.23364 | N129: 264.34997
B130: Jerzmanowa | D130: 33523.42481 | E130: 2098.17789 | F130: 130.56912 | G130: 92.57963 | H130: 6560.31407 | I130: 9567.54771 | J130: 77.49642 | K130: 2036.86903 | L130: 3020.49692 | M130: 2775.23458 | N130: 469.80043
B131: Kotla | D131: 15362.92428 | E131: 762.60274 | F131: 66.91404 | G131: 56.16996 | H131: 2194.08416 | I131: 4969.09942 | J131: 76.38589 | K131: 1996.23575 | L131: 1191.89734 | M131: 1368.37262 | N131: 33.47936
B132: Pęcław | D132: 8066.40797 | E132: 27.22558 | F132: 195.54444 | G132: 9.65 | H132: 1597.08831 | I132: 2222.08352 | J132: 24.40732 | K132: 1935.81963 | L132: 271.76994 | M132: 790.9455 | N132: 90.05821
B133: Żukowice | D133: 11845.75554 | E133: 823.83243 | F133: 211.05968 | G133: 26.59381 | H133: 1521.9555 | I133: 4088.96252 | J133: 146.29987 | K133: 2195.1975 | L133: 613.1955 | M133: 565.43425 | N133: 66.23736
B134: POWIAT GÓROWSKI | D134: 120145.2869 | E134: 5937.73747 | F134: 3465.07917 | G134: 260.42432 | H134: 11646.37086 | I134: 40488.41893 | J134: 483.57539 | K134: 27756.66245 | L134: 10886.07289 | M134: 5119.75696 | N134: 1664.96915
B135: Gminy miejsko-wiejskie:
B136: Urban-rural gminas:
B137: Góra | D137: 67451.6478 | E137: 4516.29517 | F137: 2735.59374 | G137: 159.5138 | H137: 5239.05078 | I137: 22694.71514 | J137: 274.69812 | K137: 16957.06285 | L137: 3265.99854 | M137: 2475.50198 | N137: 1285.00391
B138: Wąsosz | D138: 26708.03387 | E138: 911.54713 | F138: 438.6186 | G138: 59.17965 | H138: 2816.25386 | I138: 8459.20238 | J138: 114.59355 | K138: 4683.25048 | L138: 6295.92901 | M138: 772.01387 | N138: 223.7559
B139: Gminy wiejskie:
B140: Rural gminas:
B141: Jemielno | D141: 10678.50719 | E141: 65.8437 | F141: 252.99234 | G141: 10.28662 | H141: 1617.7302 | I141: 3389.60871 | J141: 34.12924 | K141: 2587.09219 | L141: 541.72692 | M141: 679.8804 | N141: 34.59772
B142: Niechlów | D142: 15307.098 | E142: 444.05147 | F142: 37.87449 | G142: 31.44425 | H142: 1973.33602 | I142: 5944.8927 | J142: 60.15448 | K142: 3529.25693 | L142: 782.41842 | M142: 1192.36071 | N142: 121.61162
B143: POWIAT LEGNICKI | D143: 167524.5008 | E143: 4379.68467 | F143: 7386.00054 | G143: 552.09045 | H143: 20866.17781 | I143: 56308.9389 | J143: 993.44644 | K143: 26754.21634 | L143: 18850.17935 | M143: 8653.26875 | N143: 2909.60082
B144: Gminy miejskie:
B145: Urban gminas:
B146: Chojnów | D146: 36681.50801 | E146: 202.79748 | F146: 208.67972 | G146: 48.22653 | H146: 4049.48284 | I146: 16581.86555 | J146: 312.25449 | K146: 6627.678 | L146: 5820.99178 | M146: 1782.71901 | N146: 130.53
B147: Gminy miejsko-wiejskie:
B148: Urban-rural gminas:
B149: Prochowice | D149: 22757.52682 | E149: 624.16552 | F149: 1479.876 | G149: 213.90066 | H149: 2588.70377 | I149: 8217.9221 | J149: 139.18299 | K149: 3662.1354 | L149: 2610.22658 | M149: 2021.00488 | N149: 25.10168
B150: Gminy wiejskie:
B151: Rural gminas:
B152: Chojnów | D152: 24415.02784 | E152: 581.63246 | F152: 1148.91531 | G152: 47.48272 | H152: 3639.685 | I152: 8901.4494 | J152: 161.32941 | K152: 4852.05725 | L152: 1186.79764 | M152: 768.39588 | N152: 303.30965
B153: Krotoszyce | D153: 10829.71575 | E153: 228.78583 | F153: 507.08223 | G153: - | H153: 1800.98194 | I153: 3580.05186 | J153: 63.56235 | K153: 1571.8056 | L153: 341.1014 | M153: 377.92304 | N153: 69.55751
B154: Kunice | D154: 21235.68359 | E154: 1777.24638 | F154: 168.42687 | G154: 54.14009 | H154: 2895.42151 | I154: 5819.55496 | J154: 57.68683 | K154: 2234.75305 | L154: 3213.04219 | M154: 1415.66232 | N154: 1067.17907
B155: Legnickie Pole | D155: 21777.59057 | E155: 478.56174 | F155: 3610.71206 | G155: 101.91111 | H155: 2456.96874 | I155: 5008.53671 | J155: 107.45909 | K155: 2379.44269 | L155: 2797.34779 | M155: 734.98172 | N155: 912.03565
B156: Miłkowice | D156: 20070.01202 | E156: 412.42805 | F156: 250.67799 | G156: 78.9657 | H156: 2037.16022 | I156: 5324.27345 | J156: 123.36923 | K156: 3381.23812 | L156: 706.83038 | M156: 1399.04761 | N156: 170.3487
B157: Ruja | D157: 9757.4362 | E157: 74.06721 | F157: 11.63036 | G157: 7.46364 | H157: 1397.77379 | I157: 2875.28487 | J157: 28.60205 | K157: 2045.10623 | L157: 2173.84159 | M157: 153.53429 | N157: 231.53856
B158: POWIAT LUBIŃSKI | D158: 391938.1953 | E158: 32178.03645 | F158: 9954.29958 | G158: 638.86426 | H158: 34949.50637 | I158: 158761.9207 | J158: 3260.2146 | K158: 44573.28566 | L158: 37899.43918 | M158: 29434.0465 | N158: 6972.24375
B159: Gminy miejskie:
B160: Urban gminas:
B161: Lubin | D161: 260080.1098 | E161: 19796.46456 | F161: 6720.5971 | G161: 170.44665 | H161: 21109.07044 | I161: 120817.6877 | J161: 1753.84151 | K161: 30904.322 | L161: 18219.99146 | M161: 18749.97385 | N161: 3160.31408
B162: Gminy miejsko-wiejskie:
B163: Urban-rural gminas:
B164: Ścinawa | D164: 27999.46843 | E164: 887.3078 | F164: 496.95267 | G164: 172.5905 | H164: 2674.38759 | I164: 9572.179 | J164: 244.69021 | K164: 5529.97614 | L164: 3461.13577 | M164: 1535.03502 | N164: 464.53979
B165: Gminy wiejskie:
B166: Rural gminas:
B167: Lubin | D167: 56393.19246 | E167: 6320.35565 | F167: 380.46897 | G167: 261.02291 | H167: 7526.52054 | I167: 16956.18213 | J167: 186.31177 | K167: 4817.52923 | L167: 8526.43502 | M167: 3081.61286 | N167: 2288.41792
B168: Rudna | D168: 47465.4246 | E168: 5173.90844 | F168: 2356.28084 | G168: 34.8042 | H168: 3639.5278 | I168: 11415.87193 | J168: 1075.37111 | K168: 3321.45829 | L168: 7691.87693 | M168: 6067.42477 | N168: 1058.97196
B169: POWIAT POLKOWICKI | D169: 370351.5777 | E169: 32352.56003 | F169: 23720.25723 | G169: 4840.54895 | H169: 42020.12664 | I169: 98362.36554 | J169: 7131.97266 | K169: 31543.61522 | L169: 33146.82881 | M169: 14510.20797 | N169: 14693.52374
B170: Gminy miejsko-wiejskie:
B171: Urban-rural gminas:
B172: Chocianów | D172: 36490.83636 | E172: 3274.68215 | F172: 2789.82984 | G172: 110.19916 | H172: 3704.5133 | I172: 14007.40234 | J172: 217.10925 | K172: 6254.56825 | L172: 1754.49768 | M172: 1578.56302 | N172: 207.27468
B173: Polkowice | D173: 245461.4755 | E173: 21914.08776 | F173: 19152.08784 | G173: 4548.92267 | H173: 28580.6413 | I173: 53061.63155 | J173: 6489.95563 | K173: 13798.81552 | L173: 22121.19024 | M173: 8521.95368 | N173: 11620.48477
B174: Przemków | D174: 25042.70797 | E174: 381.51876 | F174: 627.30743 | G174: 12.74264 | H174: 2223.9619 | I174: 9648.83991 | J174: 74.20358 | K174: 4667.73169 | L174: 2998.66353 | M174: 498.27128 | N174: 243.6562
B175: Gminy wiejskie:
B176: Rural gminas:
B177: Gaworzyce | D177: 13064.04626 | E177: 1006.13806 | F177: 114.6708 | G177: 4.92 | H177: 1883.06911 | I177: 4051.16341 | J177: 66.49361 | K177: 2003.60563 | L177: 1575.64974 | M177: 1611.44943 | N177: 133.37776
B178: Grębocice | D178: 30016.57751 | E178: 3977.25887 | F178: 737.53113 | G178: 75.78403 | H178: 3163.50257 | I178: 11114.25389 | J178: 218.62848 | K178: 2759.69232 | L178: 1238.25933 | M178: 1435.48663 | N178: 1267.27776
B179: Radwanice | D179: 20275.93412 | E179: 1798.87443 | F179: 298.83019 | G179: 87.98045 | H179: 2464.43846 | I179: 6479.07444 | J179: 65.58211 | K179: 2059.20181 | L179: 3458.56829 | M179: 864.48393 | N179: 1221.45257
B180: PODREGION WAŁBRZYSKI | D180: 1600291.838 | E180: 132862.4741 | F180: 94137.61529 | G180: 5674.18607 | H180: 184803.8575 | I180: 487969.1321 | J180: 21212.92995 | K180: 264044.3061 | L180: 145104.3476 | M180: 79510.46517 | N180: 52189.95871
B181: SUBREGION
B182: POWIAT DZIERŻONIOWSKI | D182: 285607.3786 | E182: 30892.43091 | F182: 21765.72975 | G182: 702.13638 | H182: 31963.36602 | I182: 81193.49136 | J182: 1732.78475 | K182: 49472.91547 | L182: 24861.74305 | M182: 15781.87288 | N182: 9700.60428
B183: Gminy miejskie:
B184: Urban gminas:
B185: Bielawa | D185: 95134.9625 | E185: 15987.48257 | F185: 9965.73375 | G185: 210.99925 | H185: 7090.11474 | I185: 23151.12933 | J185: 454.88537 | K185: 14998.05859 | L185: 10072.98317 | M185: 2155.49293 | N185: 5204.37903
B186: Dzierżoniów | D186: 86204.63158 | E186: 5996.23538 | F186: 6788.64328 | G186: 199.83293 | H186: 10924.81522 | I186: 25595.90047 | J186: 723.73364 | K186: 16169.58536 | L186: 6769.38037 | M186: 4908.32787 | N186: 2815.12046
B187: Pieszyce | D187: 22778.1665 | E187: 1659.2602 | F187: 120.523 | G187: 121.95159 | H187: 3056.64413 | I187: 5812.15743 | J187: 128.04496 | K187: 5054.77471 | L187: 1777.7902 | M187: 3599.55139 | N187: 255.26332
B188: Piława Górna | D188: 15312.06719 | E188: 468.77543 | F188: 2680.41542 | G188: 41.664 | H188: 2199.4439 | I188: 4524.43411 | J188: 94.89927 | K188: 3156.27445 | L188: 1094.69482 | M188: 405 | N188: 123.5911
B189: Gminy miejsko-wiejskie:
B190: Urban-rural gminas:
B191: Niemcza | D191: 15525.31578 | E191: 1003.08329 | F191: 1412.51563 | G191: 45.34246 | H191: 2330.58099 | I191: 4804.73143 | J191: 79.19305 | K191: 2820.10656 | L191: 1394.10867 | M191: 377.56684 | N191: 85.53022
B192: Gminy wiejskie:
B193: Rural gminas:
B194: Dzierżoniów | D194: 25912.44766 | E194: 2537.76422 | F194: 415.96148 | G194: 59.9699 | H194: 3177.11363 | I194: 7610.51609 | J194: 97.72392 | K194: 4132.88524 | L194: 2316.86529 | M194: 2826.74127 | N194: 367.41265
B195: Łagiewniki | D195: 24739.78734 | E195: 3239.82982 | F195: 381.93719 | G195: 22.37625 | H195: 3184.65341 | I195: 9694.6225 | J195: 154.30454 | K195: 3141.23056 | L195: 1435.92053 | M195: 1509.19258 | N195: 849.3075
B196: POWIAT KŁODZKI | D196: 474040.2049 | E196: 24354.92815 | F196: 24878.21589 | G196: 1807.12965 | H196: 59594.7237 | I196: 146406.6893 | J196: 13605.71821 | K196: 81893.59966 | L196: 40302.11513 | M196: 25143.72006 | N196: 14940.05116
B197: Gminy miejskie:
B198: Urban gminas:
B199: Duszniki-Zdrój | D199: 17925.95782 | E199: 1032.55895 | F199: 1088.74475 | G199: 78.04237 | H199: 2427.08403 | I199: 5644.70614 | J199: 231.35912 | K199: 2624.55916 | L199: 1495.91898 | M199: 1331.855 | N199: 673.9869
B200: Kłodzko | D200: 78389.09325 | E200: 1464.44819 | F200: 5892.24325 | G200: 159.59696 | H200: 9291.64404 | I200: 26288.56676 | J200: 619.8108 | K200: 13408.56693 | L200: 7204.84653 | M200: 5941.55601 | N200: 3243.3662
B201: Kudowa-Zdrój | D201: 34741.34517 | E201: 2214.41412 | F201: 4016.68551 | G201: 228.87216 | H201: 3968.93548 | I201: 8651.89695 | J201: 336.18023 | K201: 4366.89719 | L201: 5205.77404 | M201: 923.84734 | N201: 2258.57587
B202: Nowa Ruda | D202: 49611.8573 | E202: 1379.19575 | F202: 1393.87192 | G202: 500.30007 | H202: 5827.45991 | I202: 16329.83429 | J202: 481.82503 | K202: 11848.2218 | L202: 3674.95178 | M202: 1954.68583 | N202: 3201.62374
B203: Polanica-Zdrój | D203: 25425.87748 | E203: 2968.18219 | F203: 2187.14113 | G203: 87.58591 | H203: 3008.17227 | I203: 6640.03584 | J203: 294.76961 | K203: 2726.47874 | L203: 4437.91897 | M203: 1366.24582 | N203: 405.75204
B204: Gminy miejsko-wiejskie:
B205: Urban-rural gminas:
... 144 more rows

Sheet Tabl. 15.
B4: Tabl. 15. Struktura wydatków budżetów gmin a według działów oraz według podregionów i powiatów
B5: Structure of expenditure of gminas budgets a by divisions as well as subregions and powiats
B6: WYSZCZEGÓLNIENIE SPECIFICATION | D6: Ogółem Total | E6: W tym Of which
E7: transport i łączność transport and communication | F7: gospodarka mieszkaniowa dwelling economy | G7: działalność usługowa service activity | H7: administracja publiczna public administration | I7: oświata i wychowanie education | J7: ochrona zdrowia health care | K7: pomoc społeczna social welfare | L7: gospodarka komunalna i ochrona środowiska municipal economy and environmental protection | M7: kultura i ochrona dziedzictwa narodowego culture and national heritage | N7: kultura fizyczna physical education
D9: w % in %
B10: OGÓŁEM | C10: 2012 | D10: 100 | E10: 8.755909 | F10: 5.686838 | G10: 0.393209 | H10: 10.660269 | I10: 31.981493 | J10: 0.827613 | K10: 14.692801 | L10: 9.188143 | M10: 5.309072 | N10: 3.439021
B11: TOTAL | C11: 2013 | D11: 100 | E11: 8.083629 | F11: 4.704502 | G11: 0.455352 | H11: 11.071914 | I11: 32.584254 | J11: 1.046918 | K11: 14.48552 | L11: 10.212488 | M11: 5.262971 | N11: 3.167533
B13: Gminy miejskie | D13: 100 | E13: 8.519417 | F13: 6.555553 | G13: 0.41258 | H13: 9.956912 | I13: 32.001431 | J13: 0.865451 | K13: 15.091472 | L13: 10.521046 | M13: 5.315291 | N13: 4.482699
B14: Urban gminas
B15: Gminy miejsko-wiejskie | D15: 100 | E15: 7.551991 | F15: 4.752111 | G15: 0.590333 | H15: 10.927168 | I15: 32.208983 | J15: 1.512256 | K15: 14.705448 | L15: 9.634606 | M15: 4.590673 | N15: 3.044286
B16: Urban-rural gminas
B17: Gminy wiejskie | D17: 100 | E17: 8.290949 | F17: 2.549855 | G17: 0.326008 | H17: 12.52258 | I17: 33.73693 | J17: 0.639448 | K17: 13.511193 | L17: 10.624474 | M17: 6.088833 | N17: 1.843427
B18: Rural gminas
B19: PODREGION JELENIOGÓRSKI | D19: 100 | E19: 8.612074 | F19: 4.792667 | G19: 0.364303 | H19: 11.457278 | I19: 30.07419 | J19: 1.044462 | K19: 16.443924 | L19: 9.559723 | M19: 5.00912 | N19: 3.589349
B20: SUBREGION
B21: POWIAT BOLESŁAWIECKI | D21: 100 | E21: 8.555747 | F21: 5.674928 | G21: 0.246002 | H21: 11.411778 | I21: 31.937469 | J21: 0.805939 | K21: 15.430071 | L21: 9.146858 | M21: 9.916913 | N21: 2.385378
B22: Gminy miejskie:
B23: Urban gminas:
B24: Bolesławiec | D24: 100 | E24: 10.2665 | F24: 10.44076 | G24: 0.19789 | H24: 9.818394 | I24: 26.820124 | J24: 0.942984 | K24: 16.359198 | L24: 5.746875 | M24: 13.429054 | N24: 1.755384
B25: Gminy miejsko-wiejskie:
B26: Urban-rural gminas:
B27: Nowogrodziec | D27: 100 | E27: 4.419369 | F27: 2.654114 | G27: 0.147343 | H27: 11.30319 | I27: 43.012394 | J27: 1.419795 | K27: 17.528403 | L27: 6.203477 | M27: 3.41135 | N27: 1.139517
B28: Gminy wiejskie:
B29: Rural gminas:
B30: Bolesławiec | D30: 100 | E30: 5.906741 | F30: 1.335331 | G30: 0.468034 | H30: 15.789335 | I30: 31.966796 | J30: 0.360363 | K30: 11.621028 | L30: 14.21023 | M30: 15.179557 | N30: 1.02688
B31: Gromadka | D31: 100 | E31: 9.233114 | F31: 1.593429 | G31: 0.042187 | H31: 14.748149 | I31: 27.778046 | J31: 0.395668 | K31: 16.146846 | L31: 20.315462 | M31: 3.60405 | N31: 1.955427
B32: Osiecznica | D32: 100 | E32: 8.928602 | F32: 2.786006 | G32: 0.370415 | H32: 9.092565 | I32: 40.955812 | J32: 0.627539 | K32: 13.602802 | L32: 5.299901 | M32: 3.991459 | N32: 10.005671
B33: Warta Bolesławiecka | D33: 100 | E33: 9.741655 | F33: 0.236644 | G33: 0.321051 | H33: 11.935007 | I33: 34.469617 | J33: 0.440127 | K33: 15.024641 | L33: 16.661137 | M33: 5.500154 | N33: 2.199531
B34: POWIAT JAWORSKI | D34: 100 | E34: 5.5595 | F34: 1.692828 | G34: 0.33628 | H34: 11.123228 | I34: 34.0843 | J34: 0.726317 | K34: 18.402034 | L34: 10.832509 | M34: 4.916012 | N34: 1.757968
B35: Gminy miejskie:
B36: Urban gminas:
B37: Jawor | D37: 100 | E37: 1.849589 | F37: 1.010338 | G37: 0.433178 | H37: 9.511343 | I37: 37.077823 | J37: 0.874588 | K37: 18.23196 | L37: 14.879409 | M37: 5.209601 | N37: 2.778701
B38: Gminy miejsko-wiejskie:
B39: Urban-rural gminas:
B40: Bolków | D40: 100 | E40: 3.361501 | F40: 3.161949 | G40: 0.071112 | H40: 10.355764 | I40: 34.084481 | J40: 0.884847 | K40: 24.868087 | L40: 10.603179 | M40: 4.642652 | N40: 0.750516
B41: Gminy wiejskie:
B42: Rural gminas:
B43: Męcinka | D43: 100 | E43: 14.265779 | F43: 2.958124 | G43: 0.524173 | H43: 12.230516 | I43: 27.69525 | J43: 0.394173 | K43: 14.879417 | L43: 4.211115 | M43: 5.732289 | N43: 0.87733
B44: Mściwojów | D44: 100 | E44: 16.342451 | F44: 0.270979 | G44: - | H44: 12.109569 | I44: 24.679509 | J44: 0.56938 | K44: 14.414522 | L44: 6.672127 | M44: 1.76078 | N44: 0.237102
B45: Paszowice | D45: 100 | E45: 4.59547 | F45: 2.305151 | G45: 0.022324 | H45: 16.260646 | I45: 36.743732 | J45: 0.402855 | K45: 14.127606 | L45: 8.478307 | M45: 9.777777 | N45: 0.615831
B46: Wądroże Wielkie | D46: 100 | E46: 4.970564 | F46: 1.212491 | G46: 0.96165 | H46: 13.590233 | I46: 37.034111 | J46: 0.554129 | K46: 18.194222 | L46: 7.057964 | M46: 2.090944 | N46: 3.188821
B47: POWIAT JELENIOGÓRSKI | D47: 100 | E47: 12.270919 | F47: 3.636792 | G47: 0.860382 | H47: 13.18039 | I47: 27.302979 | J47: 0.977553 | K47: 16.556846 | L47: 9.056291 | M47: 3.702617 | N47: 1.711962
B48: Gminy miejskie:
B49: Urban gminas:
B50: Karpacz | D50: 100 | E50: 35.79996 | F50: 4.945579 | G50: 0.450116 | H50: 16.964768 | I50: 16.494806 | J50: 1.571952 | K50: 6.532938 | L50: 9.136271 | M50: 1.920312 | N50: 0.473425
B51: Kowary | D51: 100 | E51: 1.735331 | F51: 10.053271 | G51: 0.480568 | H51: 11.578438 | I51: 28.013994 | J51: 0.500083 | K51: 26.061916 | L51: 12.321566 | M51: 2.478018 | N51: 0.933668
B52: Piechowice | D52: 100 | E52: 7.568811 | F52: 2.629641 | G52: 0.596401 | H52: 13.374937 | I52: 27.660645 | J52: 0.723646 | K52: 18.789629 | L52: 11.895858 | M52: 2.00101 | N52: 0.541303
B53: Szklarska Poręba | D53: 100 | E53: 9.773926 | F53: 4.004692 | G53: 2.389393 | H53: 14.586546 | I53: 22.876876 | J53: 2.582469 | K53: 12.442753 | L53: 8.635793 | M53: 3.956542 | N53: 5.012865
B54: Gminy wiejskie:
B55: Rural gminas:
B56: Janowice Wielkie | D56: 100 | E56: 23.465537 | F56: 3.058589 | G56: 0.064295 | H56: 12.231974 | I56: 32.134133 | J56: 0.423165 | K56: 14.211076 | L56: 4.168184 | M56: 2.350547 | N56: 0.607384
B57: Jeżów Sudecki | D57: 100 | E57: 6.477334 | F57: 0.196326 | G57: 2.355915 | H57: 10.193909 | I57: 25.31542 | J57: 0.354359 | K57: 15.600597 | L57: 4.7249 | M57: 9.61288 | N57: 1.426519
B58: Mysłakowice | D58: 100 | E58: 7.474582 | F58: 1.964874 | G58: 0.356296 | H58: 12.949072 | I58: 38.020483 | J58: 0.513399 | K58: 18.74113 | L58: 12.606873 | M58: 1.761651 | N58: 0.678091
B59: Podgórzyn | D59: 100 | E59: 7.063111 | F59: 0.846602 | G59: 0.44796 | H59: 12.49923 | I59: 28.245794 | J59: 0.6824 | K59: 21.494436 | L59: 9.205432 | M59: 4.770193 | N59: 4.556046
B60: Stara Kamienica | D60: 100 | E60: 4.619562 | F60: 1.367121 | G60: 0.295483 | H60: 11.228488 | I60: 33.698555 | J60: 0.437316 | K60: 17.94829 | L60: 3.8719 | M60: 7.01147 | N60: 0.177062
B61: POWIAT KAMIENNOGÓRSKI | D61: 100 | E61: 8.359928 | F61: 6.309454 | G61: 0.447646 | H61: 12.043353 | I61: 32.363479 | J61: 0.631056 | K61: 18.765031 | L61: 6.583382 | M61: 4.153038 | N61: 3.31708
B62: Gminy miejskie:
B63: Urban gminas:
B64: Kamienna Góra | D64: 100 | E64: 6.205109 | F64: 10.643797 | G64: 0.810637 | H64: 12.241236 | I64: 30.68047 | J64: 0.644451 | K64: 19.587933 | L64: 7.321737 | M64: 2.784195 | N64: 4.361314
B65: Gminy miejsko-wiejskie:
B66: Urban-rural gminas:
B67: Lubawka | D67: 100 | E67: 14.409192 | F67: 3.125587 | G67: 0.053918 | H67: 9.091565 | I67: 34.429503 | J67: 0.945764 | K67: 17.627558 | L67: 6.614181 | M67: 3.503413 | N67: 3.666286
B68: Gminy wiejskie:
B69: Rural gminas:
B70: Kamienna Góra | D70: 100 | E70: 9.017525 | F70: 3.945299 | G70: 0.260373 | H70: 12.650911 | I70: 34.853947 | J70: 0.349502 | K70: 15.89092 | L70: 5.475794 | M70: 8.58913 | N70: 2.175309
B71: Marciszów | D71: 100 | E71: 0.983129 | F71: 0.830161 | G71: 0.284996 | H71: 17.28236 | I71: 28.946843 | J71: 0.400265 | K71: 24.39673 | L71: 5.756996 | M71: 1.938763 | N71: 0.445841
B72: POWIAT LUBAŃSKI | D72: 100 | E72: 11.581046 | F72: 5.343775 | G72: 0.216805 | H72: 11.081418 | I72: 29.045075 | J72: 0.62806 | K72: 19.191562 | L72: 11.145962 | M72: 2.886356 | N72: 2.21343
B73: Gminy miejskie:
B74: Urban gminas:
B75: Lubań | D75: 100 | E75: 1.197228 | F75: 6.424445 | G75: 0.107923 | H75: 12.245035 | I75: 38.104417 | J75: 1.000263 | K75: 19.032013 | L75: 12.264894 | M75: 3.083159 | N75: 2.709211
B76: Świeradów-Zdrój | D76: 100 | E76: 14.146371 | F76: 8.441527 | G76: 0.345818 | H76: 12.129257 | I76: 21.768642 | J76: 1.021046 | K76: 11.176516 | L76: 18.135999 | M76: 2.357808 | N76: 0.79219
B77: Gminy miejsko-wiejskie:
B78: Urban-rural gminas:
B79: Leśna | D79: 100 | E79: 5.565534 | F79: 7.118772 | G79: 0.0609 | H79: 8.945963 | I79: 25.728302 | J79: 0.503775 | K79: 25.493349 | L79: 13.070785 | M79: 2.234466 | N79: 4.834084
B80: Olszyna | D80: 100 | E80: 39.005283 | F80: 1.913355 | G80: 0.183057 | H80: 6.012834 | I80: 18.47335 | J80: 0.25107 | K80: 22.196496 | L80: 6.023832 | M80: 1.154004 | N80: 0.260076
B81: Gminy wiejskie:
B82: Rural gminas:
B83: Lubań | D83: 100 | E83: 6.194738 | F83: 2.218669 | G83: 0.734579 | H83: 13.822059 | I83: 36.928698 | J83: 0.280938 | K83: 15.961916 | L83: 6.176979 | M83: 6.385008 | N83: 0.975449
B84: Platerówka | D84: 100 | E84: 1.305209 | F84: 1.745982 | G84: 0.049953 | H84: 20.670335 | I84: 35.591747 | J84: 0.411909 | K84: 17.612443 | L84: 6.877052 | M84: 7.095044 | N84: 1.069348
B85: Siekierczyn | D85: 100 | E85: 2.184594 | F85: 4.776159 | G85: 0.293174 | H85: 17.1806 | I85: 31.933909 | J85: 0.32215 | K85: 13.973501 | L85: 9.890159 | M85: 3.482191 | N85: 2.766668
B86: POWIAT LWÓWECKI | D86: 100 | E86: 9.149751 | F86: 2.688466 | G86: 0.336408 | H86: 9.430831 | I86: 33.254548 | J86: 1.116132 | K86: 18.685367 | L86: 6.773325 | M86: 4.811177 | N86: 1.244574
B87: Gminy miejsko-wiejskie:
B88: Urban-rural gminas:
B89: Gryfów Śląski | D89: 100 | E89: 11.984117 | F89: 1.376684 | G89: 0.181772 | H89: 11.435202 | I89: 34.120986 | J89: 1.876326 | K89: 23.690843 | L89: 6.813928 | M89: 2.944003 | N89: 0.511029
B90: Lubomierz | D90: 100 | E90: 8.171266 | F90: 1.862924 | G90: 0.016574 | H90: 10.107166 | I90: 35.038151 | J90: 0.305657 | K90: 18.0155 | L90: 7.732918 | M90: 3.028872 | N90: 0.577333
B91: Lwówek Śląski | D91: 100 | E91: 11.569021 | F91: 5.391644 | G91: 0.739166 | H91: 9.166379 | I91: 33.088434 | J91: 0.668757 | K91: 16.440048 | L91: 7.436323 | M91: 5.918593 | N91: 2.238823
B92: Mirsk | D92: 100 | E92: 4.328061 | F92: 0.412711 | G92: 0.192919 | H92: 6.990043 | I92: 31.948921 | J92: 0.58282 | K92: 18.492254 | L92: 6.504359 | M92: 4.921311 | N92: 1.007345
B93: Wleń | D93: 100 | E93: 9.02395 | F93: 2.138591 | G93: - | H93: 11.992343 | I93: 32.774198 | J93: 4.108016 | K93: 19.688388 | L93: 3.361775 | M93: 6.635873 | N93: 0.54411
B94: POWIAT ZGORZELECKI | D94: 100 | E94: 5.807535 | F94: 5.189854 | G94: 0.287022 | H94: 11.542767 | I94: 27.814473 | J94: 1.945901 | K94: 12.483158 | L94: 11.208203 | M94: 4.032994 | N94: 8.422182
B95: Gminy miejskie:
B96: Urban gminas:
B97: Zawidów | D97: 100 | E97: 10.050237 | F97: 1.316631 | G97: 0.17314 | H97: 13.388642 | I97: 40.908723 | J97: 0.901099 | K97: 13.936198 | L97: 11.55452 | M97: 3.47453 | N97: 0.942304
B98: Zgorzelec | D98: 100 | E98: 4.609886 | F98: 0.710892 | G98: 0.457237 | H98: 8.149042 | I98: 26.211621 | J98: 0.779135 | K98: 11.975666 | L98: 17.038554 | M98: 3.253105 | N98: 21.748321
B99: Gminy miejsko-wiejskie:
B100: Urban-rural gminas:
B101: Bogatynia | D101: 100 | E101: 8.409801 | F101: 10.25062 | G101: 0.137571 | H101: 12.975672 | I101: 23.377381 | J101: 3.802118 | K101: 10.613097 | L101: 8.315876 | M101: 4.046322 | N101: 2.484497
B102: Pieńsk | D102: 100 | E102: 1.189218 | F102: 4.019473 | G102: 0.11058 | H102: 10.747228 | I102: 27.779243 | J102: 0.526301 | K102: 17.427248 | L102: 10.981404 | M102: 2.555051 | N102: 0.80511
B103: Węgliniec | D103: 100 | E103: 2.907213 | F103: 3.4035 | G103: 0.279281 | H103: 12.996591 | I103: 37.182839 | J103: 0.443064 | K103: 17.78779 | L103: 7.810904 | M103: 2.923328 | N103: 10.218356
B104: Gminy wiejskie:
B105: Rural gminas:
B106: Sulików | D106: 100 | E106: 3.754562 | F106: 6.248222 | G106: 0.111131 | H106: 12.641994 | I106: 34.395879 | J106: 0.262473 | K106: 16.456168 | L106: 13.767211 | M106: 2.444127 | N106: 1.336738
B107: Zgorzelec | D107: 100 | E107: 4.441642 | F107: 0.993553 | G107: 0.685785 | H107: 14.923153 | I107: 36.860102 | J107: 1.527175 | K107: 10.982164 | L107: 5.301415 | M107: 10.03146 | N107: 1.767035
B108: POWIAT ZŁOTORYJSKI | D108: 100 | E108: 9.375081 | F108: 6.833875 | G108: 0.238193 | H108: 11.043102 | I108: 28.910696 | J108: 0.435177 | K108: 18.594413 | L108: 8.619795 | M108: 4.193214 | N108: 2.252876
B109: Gminy miejskie:
B110: Urban gminas:
B111: Wojcieszów | D111: 100 | E111: 21.909133 | F111: 4.252276 | G111: 0.165208 | H111: 8.410476 | I111: 20.976743 | J111: 0.122905 | K111: 17.882642 | L111: 7.798415 | M111: 1.360726 | N111: 0.511555
B112: Złotoryja | D112: 100 | E112: 6.012522 | F112: 11.275067 | G112: 0.206838 | H112: 11.541639 | I112: 28.456785 | J112: 0.478028 | K112: 18.296297 | L112: 9.363339 | M112: 4.112154 | N112: 4.022737
B113: Gminy miejsko-wiejskie:
B114: Urban-rural gminas:
B115: Świerzawa | D115: 100 | E115: 12.130059 | F115: 1.266902 | G115: 0.088659 | H115: 9.855608 | I115: 27.842874 | J115: 0.538576 | K115: 19.556554 | L115: 13.180347 | M115: 5.961002 | N115: 0.400581
B116: Gminy wiejskie: | D116: 100 | E116: 7.23655 | F116: 6.489526 | G116: 0.345474 | H116: 11.905932 | I116: 31.961652 | J116: 0.447946 | K116: 18.623394 | L116: 6.377785 | M116: 4.322382 | N116: 2.165309
B117: Rural gminas:
B118: Pielgrzymka | D118: 100 | E118: 7.115368 | F118: 13.975087 | G118: 0.034488 | H118: 11.902092 | I118: 29.835079 | J118: 0.288715 | K118: 18.594837 | L118: 7.934234 | M118: 2.111913 | N118: 0.414945
B119: Zagrodno | D119: 100 | E119: 10.814058 | F119: 1.785001 | G119: 0.803414 | H119: 12.991684 | I119: 30.491327 | J119: 0.728852 | K119: 19.318932 | L119: 6.305712 | M119: 4.001029 | N119: 0.899077
B120: Złotoryja | D120: 100 | E120: 4.673296 | F120: 3.875868 | G120: 0.258723 | H120: 11.101094 | I120: 34.7929 | J120: 0.368974 | K120: 18.129128 | L120: 5.160034 | M120: 6.367143 | N120: 4.537373
B121: PODREGION LEGNICKO-GŁOGOWSKI | D121: 100 | E121: 7.1768 | F121: 4.183406 | G121: 0.583148 | H121: 10.072762 | I121: 33.556785 | J121: 1.083108 | K121: 12.391378 | L121: 10.849411 | M121: 5.610352 | N121: 2.743347
B122: SUBREGION
B123: POWIAT GŁOGOWSKI | D123: 100 | E123: 7.32428 | F123: 4.007897 | G123: 0.533809 | H123: 8.986761 | I123: 33.093188 | J123: 0.938103 | K123: 12.238697 | L123: 14.680763 | M123: 5.957299 | N123: 3.491328
B124: Gminy miejskie:
B125: Urban gminas:
B126: Głogów | D126: 100 | E126: 8.026688 | F126: 5.112419 | G126: 0.569799 | H126: 6.481961 | I126: 34.062006 | J126: 0.974732 | K126: 12.327443 | L126: 16.618171 | M126: 5.610945 | N126: 4.35035
B127: Gminy wiejskie:
B128: Rural gminas:
B129: Głogów | D129: 100 | E129: 5.058842 | F129: 0.775387 | G129: 0.985652 | H129: 12.303515 | I129: 30.412915 | J129: 2.07056 | K129: 12.391064 | L129: 15.103427 | M129: 3.361216 | N129: 1.31395
B130: Jerzmanowa | D130: 100 | E130: 6.258841 | F130: 0.389486 | G130: 0.276163 | H130: 19.569343 | I130: 28.539887 | J130: 0.23117 | K130: 6.075957 | L130: 9.010108 | M130: 8.278493 | N130: 1.401409
B131: Kotla | D131: 100 | E131: 4.963916 | F131: 0.435555 | G131: 0.36562 | H131: 14.281683 | I131: 32.344749 | J131: 0.497209 | K131: 12.993852 | L131: 7.758271 | M131: 8.90698 | N131: 0.217923
B132: Pęcław | D132: 100 | E132: 0.337518 | F132: 2.424182 | G132: 0.119631 | H132: 19.79925 | I132: 27.547373 | J132: 0.302579 | K132: 23.998533 | L132: 3.369156 | M132: 9.805423 | N132: 1.116459
B133: Żukowice | D133: 100 | E133: 6.954663 | F133: 1.781732 | G133: 0.2245 | H133: 12.848108 | I133: 34.518376 | J133: 1.23504 | K133: 18.531511 | L133: 5.176499 | M133: 4.773306 | N133: 0.559165
B134: POWIAT GÓROWSKI | D134: 100 | E134: 4.942131 | F134: 2.884074 | G134: 0.216757 | H134: 9.693572 | I134: 33.699548 | J134: 0.402492 | K134: 23.102581 | L134: 9.060757 | M134: 4.261304 | N134: 1.385796
B135: Gminy miejsko-wiejskie:
B136: Urban-rural gminas:
B137: Góra | D137: 100 | E137: 6.695603 | F137: 4.055636 | G137: 0.236486 | H137: 7.76712 | I137: 33.645901 | J137: 0.407251 | K137: 25.139582 | L137: 4.841984 | M137: 3.670039 | N137: 1.905074
B138: Wąsosz | D138: 100 | E138: 3.413007 | F138: 1.642272 | G138: 0.221579 | H138: 10.544594 | I138: 31.672875 | J138: 0.42906 | K138: 17.534987 | L138: 23.573165 | M138: 2.890567 | N138: 0.837784
B139: Gminy wiejskie:
B140: Rural gminas:
B141: Jemielno | D141: 100 | E141: 0.6166 | F141: 2.369173 | G141: 0.09633 | H141: 15.149404 | I141: 31.742346 | J141: 0.319606 | K141: 24.227096 | L141: 5.073058 | M141: 6.366811 | N141: 0.323993
B142: Niechlów | D142: 100 | E142: 2.900951 | F142: 0.24743 | G142: 0.205422 | H142: 12.89164 | I142: 38.83749 | J142: 0.392984 | K142: 23.056342 | L142: 5.111474 | M142: 7.789593 | N142: 0.794478
B143: POWIAT LEGNICKI | D143: 100 | E143: 2.614354 | F143: 4.408907 | G143: 0.329558 | H143: 12.455597 | I143: 33.61236 | J143: 0.593015 | K143: 15.97033 | L143: 11.252192 | M143: 5.165375 | N143: 1.736821
B144: Gminy miejskie:
B145: Urban gminas:
B146: Chojnów | D146: 100 | E146: 0.55286 | F146: 0.568896 | G146: 0.131473 | H146: 11.039575 | I146: 45.204972 | J146: 0.851258 | K146: 18.068172 | L146: 15.869008 | M146: 4.859993 | N146: 0.355846
B147: Gminy miejsko-wiejskie:
B148: Urban-rural gminas:
B149: Prochowice | D149: 100 | E149: 2.742677 | F149: 6.502798 | G149: 0.939911 | H149: 11.375154 | I149: 36.110787 | J149: 0.611591 | K149: 16.091974 | L149: 11.469728 | M149: 8.880599 | N149: 0.1103
B150: Gminy wiejskie:
B151: Rural gminas:
B152: Chojnów | D152: 100 | E152: 2.382272 | F152: 4.705771 | G152: 0.194481 | H152: 14.90756 | I152: 36.458895 | J152: 0.660779 | K152: 19.87324 | L152: 4.86093 | M152: 3.147225 | N152: 1.242307
B153: Krotoszyce | D153: 100 | E153: 2.112574 | F153: 4.682322 | G153: - | H153: 16.630001 | I153: 33.057671 | J153: 0.586925 | K153: 14.513821 | L153: 3.14968 | M153: 3.489685 | N153: 0.642283
B154: Kunice | D154: 100 | E154: 8.36915 | F154: 0.793131 | G154: 0.254948 | H154: 13.634698 | I154: 27.404603 | J154: 0.27165 | K154: 10.523574 | L154: 15.130392 | M154: 6.666431 | N154: 5.025404
B155: Legnickie Pole | D155: 100 | E155: 2.197496 | F155: 16.579942 | G155: 0.467963 | H155: 11.282096 | I155: 22.99858 | J155: 0.493438 | K155: 10.926106 | L155: 12.845074 | M155: 3.374945 | N155: 4.187954
B156: Miłkowice | D156: 100 | E156: 2.054946 | F156: 1.249017 | G156: 0.393451 | H156: 10.150269 | I156: 26.528501 | J156: 0.614694 | K156: 16.847215 | L156: 3.521823 | M156: 6.970835 | N156: 0.848772
B157: Ruja | D157: 100 | E157: 0.759084 | F157: 0.119194 | G157: 0.076491 | H157: 14.325215 | I157: 29.467626 | J157: 0.29313 | K157: 20.959462 | L157: 22.278819 | M157: 1.57351 | N157: 2.372944
B158: POWIAT LUBIŃSKI | D158: 100 | E158: 8.209977 | F158: 2.539762 | G158: 0.163001 | H158: 8.917096 | I158: 40.506876 | J158: 0.831818 | K158: 11.372529 | L158: 9.669748 | M158: 7.509869 | N158: 1.778914
B159: Gminy miejskie:
B160: Urban gminas:
B161: Lubin | D161: 100 | E161: 7.611679 | F161: 2.584048 | G161: 0.065536 | H161: 8.116372 | I161: 46.454028 | J161: 0.674346 | K161: 11.882616 | L161: 7.00553 | M161: 7.209307 | N161: 1.215131
B162: Gminy miejsko-wiejskie:
B163: Urban-rural gminas:
B164: Ścinawa | D164: 100 | E164: 3.169016 | F164: 1.774864 | G164: 0.616406 | H164: 9.551565 | I164: 34.187002 | J164: 0.87391 | K164: 19.750289 | L164: 12.361433 | M164: 5.482372 | N164: 1.659102
B165: Gminy wiejskie:
B166: Rural gminas:
B167: Lubin | D167: 100 | E167: 11.207657 | F167: 0.674671 | G167: 0.462862 | H167: 13.346505 | I167: 30.067781 | J167: 0.330379 | K167: 8.542749 | L167: 15.119617 | M167: 5.464512 | N167: 4.057968
B168: Rudna | D168: 100 | E168: 10.900373 | F168: 4.964204 | G168: 0.073325 | H168: 7.667745 | I168: 24.050921 | J168: 2.265588 | K168: 6.997637 | L168: 16.20522 | M168: 12.78283 | N168: 2.231038
B169: POWIAT POLKOWICKI | D169: 100 | E169: 8.735634 | F169: 6.404794 | G169: 1.307014 | H169: 11.346009 | I169: 26.559186 | J169: 1.92573 | K169: 8.517208 | L169: 8.950097 | M169: 3.917954 | N169: 3.967452
B170: Gminy miejsko-wiejskie:
B171: Urban-rural gminas:
B172: Chocianów | D172: 100 | E172: 8.973984 | F172: 7.645288 | G172: 0.301991 | H172: 10.1519 | I172: 38.386081 | J172: 0.594969 | K172: 17.140106 | L172: 4.80805 | M172: 4.325916 | N172: 0.568018
B173: Polkowice | D173: 100 | E173: 8.927709 | F173: 7.802482 | G173: 1.853212 | H173: 11.643636 | I173: 21.617091 | J173: 2.643981 | K173: 5.62158 | L173: 9.012082 | M173: 3.471809 | N173: 4.734137
B174: Przemków | D174: 100 | E174: 1.523472 | F174: 2.50495 | G174: 0.050883 | H174: 8.880676 | I174: 38.529538 | J174: 0.296308 | K174: 18.639085 | L174: 11.974198 | M174: 1.989686 | N174: 0.972962
B175: Gminy wiejskie:
B176: Rural gminas:
B177: Gaworzyce | D177: 100 | E177: 7.70158 | F177: 0.877758 | G177: 0.03766 | H177: 14.414133 | I177: 31.01002 | J177: 0.508981 | K177: 15.336792 | L177: 12.060962 | M177: 12.334994 | N177: 1.020952
B178: Grębocice | D178: 100 | E178: 13.250207 | F178: 2.457079 | G178: 0.252473 | H178: 10.539184 | I178: 37.027052 | J178: 0.728359 | K178: 9.193894 | L178: 4.125251 | M178: 4.782312 | N178: 4.221926
B179: Radwanice | D179: 100 | E179: 8.871968 | F179: 1.473817 | G179: 0.433915 | H179: 12.1545 | I179: 31.954505 | J179: 0.323448 | K179: 10.155891 | L179: 17.057504 | M179: 4.263596 | N179: 6.024149
B180: PODREGION WAŁBRZYSKI | D180: 100 | E180: 8.30239 | F180: 5.882527 | G180: 0.354571 | H180: 11.548134 | I180: 30.492508 | J180: 1.325566 | K180: 16.499759 | L180: 9.067367 | M180: 4.968497 | N180: 3.261277
B181: SUBREGION
B182: POWIAT DZIERŻONIOWSKI | D182: 100 | E182: 10.816398 | F182: 7.620856 | G182: 0.245839 | H182: 11.191365 | I182: 28.428359 | J182: 0.606701 | K182: 17.322001 | L182: 8.704867 | M182: 5.525723 | N182: 3.396482
B183: Gminy miejskie:
B184: Urban gminas:
B185: Bielawa | D185: 100 | E185: 16.805054 | F185: 10.475364 | G185: 0.221789 | H185: 7.45269 | I185: 24.335038 | J185: 0.478147 | K185: 15.765033 | L185: 10.588098 | M185: 2.265721 | N185: 5.470521
B186: Dzierżoniów | D186: 100 | E186: 6.955815 | F186: 7.875033 | G186: 0.231812 | H186: 12.673118 | I186: 29.692024 | J186: 0.839553 | K186: 18.757211 | L186: 7.852687 | M186: 5.693809 | N186: 3.265625
B187: Pieszyce | D187: 100 | E187: 7.284432 | F187: 0.529116 | G187: 0.535388 | H187: 13.419184 | I187: 25.516353 | J187: 0.562139 | K187: 22.191315 | L187: 7.804799 | M187: 15.802638 | N187: 1.120649
B188: Piława Górna | D188: 100 | E188: 3.061477 | F188: 17.505248 | G188: 0.272099 | H188: 14.364121 | I188: 29.548159 | J188: 0.619767 | K188: 20.612987 | L188: 7.149229 | M188: 2.644972 | N188: 0.807148
B189: Gminy miejsko-wiejskie:
B190: Urban-rural gminas:
B191: Niemcza | D191: 100 | E191: 6.460952 | F191: 9.098144 | G191: 0.292054 | H191: 15.011488 | I191: 30.947721 | J191: 0.510089 | K191: 18.164568 | L191: 8.979583 | M191: 2.431943 | N191: 0.550908
B192: Gminy wiejskie:
B193: Rural gminas:
B194: Dzierżoniów | D194: 100 | E194: 9.79361 | F194: 1.605257 | G194: 0.231432 | H194: 12.260955 | I194: 29.370116 | J194: 0.377131 | K194: 15.94942 | L194: 8.941128 | M194: 10.908816 | N194: 1.4179
B195: Łagiewniki | D195: 100 | E195: 13.095625 | F195: 1.543817 | G195: 0.090446 | H195: 12.872598 | I195: 39.186361 | J195: 0.62371 | K195: 12.697079 | L195: 5.804094 | M195: 6.100264 | N195: 3.432962
B196: POWIAT KŁODZKI | D196: 100 | E196: 5.137734 | F196: 5.248123 | G196: 0.381218 | H196: 12.57166 | I196: 30.884867 | J196: 2.870161 | K196: 17.275665 | L196: 8.501834 | M196: 5.304132 | N196: 3.151642
B197: Gminy miejskie:
B198: Urban gminas:
B199: Duszniki-Zdrój | D199: 100 | E199: 5.760132 | F199: 6.073565 | G199: 0.435359 | H199: 13.539494 | I199: 31.489007 | J199: 1.290637 | K199: 14.641109 | L199: 8.344987 | M199: 7.429756 | N199: 3.759837
B200: Kłodzko | D200: 100 | E200: 1.868178 | F200: 7.516662 | G200: 0.203595 | H200: 11.853235 | I200: 33.536 | J200: 0.790684 | K200: 17.105143 | L200: 9.191133 | M200: 7.579569 | N200: 4.137522
B201: Kudowa-Zdrój | D201: 100 | E201: 6.374002 | F201: 11.561686 | G201: 0.658788 | H201: 11.424242 | I201: 24.903747 | J201: 0.967666 | K201: 12.569741 | L201: 14.984376 | M201: 2.659215 | N201: 6.501118
B202: Nowa Ruda | D202: 100 | E202: 2.779972 | F202: 2.809553 | G202: 1.008428 | H202: 11.746103 | I202: 32.915184 | J202: 0.971189 | K202: 23.881834 | L202: 7.407406 | M202: 3.939956 | N202: 6.453343
B203: Polanica-Zdrój | D203: 100 | E203: 11.673863 | F203: 8.602028 | G203: 0.344475 | H203: 11.831144 | I203: 26.115267 | J203: 1.159329 | K203: 10.723243 | L203: 17.454339 | M203: 5.373446 | N203: 1.595823
B204: Gminy miejsko-wiejskie:
B205: Urban-rural gminas:
... 144 more rows

Sheet Tabl. 16.
B4: Tabl. 16. Dochody i wydatki budżetów gmin a na 1 mieszkańca
B5: Revenue and expenditure of gminas a budgets per capita
B6: WYSZCZEGÓLNIENIE SPECIFICATION | D6: Dochody Revenue | F6: Wydatki Expenditure
D7: ogółem total | E7: w tym własne of which own | F7: ogółem total | G7: w tym of which
G8: bieżące current | H8: inwestycyjne b investment b
D9: w zł in zl
B10: OGÓŁEM | C10: 2012 | D10: 3162.36289 | E10: 1825.78567 | F10: 3143.49725 | G10: 2531.06952 | H10: 575.24775
B11: TOTAL | C11: 2013 | D11: 3276.85358 | E11: 1922.01975 | F11: 3247.3908 | G11: 2654.41786 | H11: 564.59109
B13: Gminy miejskie | D13: 3097.71559 | E13: 1940.63447 | F13: 3053.18856 | G13: 2556.15321 | H13: 460.72289
B14: Urban gminas
B15: Gminy miejsko-wiejskie | D15: 3357.0245 | E15: 1928.14413 | F15: 3349.7714 | G15: 2736.39083 | H15: 586.06431
B16: Urban-rural gminas
B17: Gminy wiejskie | D17: 3393.57042 | E17: 1890.84168 | F17: 3353.5384 | G17: 2668.36913 | H17: 665.22764
B18: Rural gminas
B19: PODREGION JELENIOGÓRSKI | D19: 3377.33572 | E19: 1847.02184 | F19: 3279.84446 | G19: 2669.75999 | H19: 588.86746
B20: SUBREGION
B21: POWIAT BOLESŁAWIECKI | D21: 3190.81352 | E21: 1978.70899 | F21: 3020.42816 | G21: 2433.03693 | H21: 552.91649
B22: Gminy miejskie:
B23: Urban gminas:
B24: Bolesławiec | D24: 3278.20963 | E24: 2202.41918 | F24: 3094.46185 | G24: 2561.69172 | H24: 527.73539
B25: Gminy miejsko-wiejskie:
B26: Urban-rural gminas:
B27: Nowogrodziec | D27: 2509.73626 | E27: 1085.48495 | F27: 2499.41084 | G27: 2135.78421 | H27: 257.41512
B28: Gminy wiejskie:
B29: Rural gminas:
B30: Bolesławiec | D30: 2889.72178 | E30: 1969.32642 | F30: 2884.1973 | G30: 1997.09476 | H30: 887.10254
B31: Gromadka | D31: 4120.80017 | E31: 2641.47462 | F31: 3809.82074 | G31: 2869.68393 | H31: 940.13681
B32: Osiecznica | D32: 3723.10849 | E32: 2072.82266 | F32: 3353.88752 | G32: 2898.68587 | H32: 455.20166
B33: Warta Bolesławiecka | D33: 3425.05173 | E33: 2039.98454 | F33: 3024.57987 | G33: 2380.56683 | H33: 489.56966
B34: POWIAT JAWORSKI | D34: 2975.3871 | E34: 1442.43148 | F34: 2818.59803 | G34: 2398.20502 | H34: 420.393
B35: Gminy miejskie:
B36: Urban gminas:
B37: Jawor | D37: 2726.81813 | E37: 1621.43275 | F37: 2613.05995 | G37: 2331.91806 | H37: 281.14188
B38: Gminy miejsko-wiejskie:
B39: Urban-rural gminas:
B40: Bolków | D40: 2729.70503 | E40: 1052.67961 | F40: 2609.59935 | G40: 2284.90751 | H40: 324.69184
B41: Gminy wiejskie:
B42: Rural gminas:
B43: Męcinka | D43: 3475.76455 | E43: 1656.69389 | F43: 3395.75221 | G43: 2697.58365 | H43: 698.16856
B44: Mściwojów | D44: 4001.27599 | E44: 1497.9042 | F44: 3724.79305 | G44: 2387.65335 | H44: 1337.1397
B45: Paszowice | D45: 3393.82356 | E45: 1314.05175 | F45: 2948.7847 | G45: 2580.87499 | H45: 367.90971
B46: Wądroże Wielkie | D46: 3032.45712 | E46: 1242.97183 | F46: 2835.39879 | G46: 2560.15255 | H46: 275.24624
B47: POWIAT JELENIOGÓRSKI | D47: 3473.13659 | E47: 2041.01245 | F47: 3303.85664 | G47: 2716.9553 | H47: 576.75849
B48: Gminy miejskie:
B49: Urban gminas:
B50: Karpacz | D50: 7293.56389 | E50: 4572.32222 | F50: 6855.61153 | G50: 4429.39726 | H50: 2425.06893
B51: Kowary | D51: 2530.64858 | E51: 1337.63689 | F51: 2550.10805 | G51: 2314.22307 | H51: 235.88498
B52: Piechowice | D52: 2956.78861 | E52: 1922.31723 | F52: 2707.60602 | G52: 2516.36059 | H52: 190.47714
B53: Szklarska Poręba | D53: 4805.16361 | E53: 3658.6148 | F53: 4373.40998 | G53: 3510.71948 | H53: 797.14061
B54: Gminy wiejskie:
B55: Rural gminas:
B56: Janowice Wielkie | D56: 3567.12438 | E56: 1483.6829 | F56: 3427.30585 | G56: 2422.4751 | H56: 1004.83075
B57: Jeżów Sudecki | D57: 3111.3993 | E57: 1886.31193 | F57: 2816.25903 | G57: 2160.12129 | H57: 656.13773
B58: Mysłakowice | D58: 2982.8147 | E58: 1647.2858 | F58: 2878.286 | G58: 2686.55055 | H58: 191.73545
B59: Podgórzyn | D59: 2883.0881 | E59: 1588.3621 | F59: 2785.01751 | G59: 2490.11556 | H59: 294.90195
B60: Stara Kamienica | D60: 3104.8795 | E60: 1368.6033 | F60: 3119.31776 | G60: 2587.52748 | H60: 494.60173
B61: POWIAT KAMIENNOGÓRSKI | D61: 2912.16785 | E61: 1378.54987 | F61: 2797.16246 | G61: 2418.05552 | H61: 368.05599
B62: Gminy miejskie:
B63: Urban gminas:
B64: Kamienna Góra | D64: 2811.83299 | E64: 1548.34322 | F64: 2697.48425 | G64: 2458.63981 | H64: 214.06252
B65: Gminy miejsko-wiejskie:
B66: Urban-rural gminas:
B67: Lubawka | D67: 2981.61063 | E67: 1169.74133 | F67: 2779.47513 | G67: 2135.17464 | H67: 644.30049
B68: Gminy wiejskie:
B69: Rural gminas:
B70: Kamienna Góra | D70: 3050.11225 | E70: 1411.67911 | F70: 3084.96031 | G70: 2672.80247 | H70: 412.15785
B71: Marciszów | D71: 2910.03572 | E71: 1090.74027 | F71: 2716.41886 | G71: 2444.46829 | H71: 271.95057
B72: POWIAT LUBAŃSKI | D72: 3544.25542 | E72: 1601.92856 | F72: 3490.46731 | G72: 2760.47362 | H72: 691.42688
B73: Gminy miejskie:
B74: Urban gminas:
B75: Lubań | D75: 2655.59552 | E75: 1598.67838 | F75: 2507.06036 | G75: 2257.48718 | H75: 150.98611
B76: Świeradów-Zdrój | D76: 5811.68429 | E76: 3465.94086 | F76: 6046.16605 | G76: 4378.41035 | H76: 1667.7557
B77: Gminy miejsko-wiejskie:
B78: Urban-rural gminas:
B79: Leśna | D79: 3671.89872 | E79: 1229.60173 | F79: 3790.60863 | G79: 2965.50016 | H79: 825.10847
B80: Olszyna | D80: 5773.40078 | E80: 1287.07421 | F80: 5659.20389 | G80: 3406.52362 | H80: 2252.68027
B81: Gminy wiejskie:
B82: Rural gminas:
B83: Lubań | D83: 2970.59442 | E83: 1280.67522 | F83: 2861.13134 | G83: 2436.75289 | H83: 424.37845
B84: Platerówka | D84: 2743.99232 | E84: 1529.5847 | F84: 2802.72667 | G84: 2707.63582 | H84: 95.09085
B85: Siekierczyn | D85: 3252.57561 | E85: 1633.00821 | F85: 3110.66751 | G85: 2715.95546 | H85: 394.71205
B86: POWIAT LWÓWECKI | D86: 3084.75448 | E86: 1376.54009 | F86: 2913.39928 | G86: 2486.09815 | H86: 426.03691
B87: Gminy miejsko-wiejskie:
B88: Urban-rural gminas:
B89: Gryfów Śląski | D89: 2550.74089 | E89: 1039.69776 | F89: 2281.84591 | G89: 2229.05679 | H89: 52.78912
B90: Lubomierz | D90: 3603.77533 | E90: 1051.64989 | F90: 3380.97081 | G90: 3172.03638 | H90: 208.93442
B91: Lwówek Śląski | D91: 3014.69077 | E91: 1624.68397 | F91: 2691.02798 | G91: 2317.61778 | H91: 370.05581
B92: Mirsk | D92: 3606.26805 | E92: 1657.70122 | F92: 3744.37777 | G92: 2705.07791 | H92: 1039.29986
B93: Wleń | D93: 2816.38128 | E93: 1035.4197 | F93: 2939.0891 | G93: 2353.64862 | H93: 585.44048
B94: POWIAT ZGORZELECKI | D94: 3984.52325 | E94: 2513.05393 | F94: 4056.32606 | G94: 3128.22373 | H94: 887.18427
B95: Gminy miejskie:
B96: Urban gminas:
B97: Zawidów | D97: 2729.10791 | E97: 1267.31741 | F97: 2633.61804 | G97: 2214.25461 | H97: 419.36343
B98: Zgorzelec | D98: 3207.29088 | E98: 1671.34896 | F98: 3502.97367 | G98: 2240.41339 | H98: 1209.38102
B99: Gminy miejsko-wiejskie:
B100: Urban-rural gminas:
B101: Bogatynia | D101: 6162.74912 | E101: 4919.56791 | F101: 5978.50975 | G101: 5067.75764 | H101: 825.0693
B102: Pieńsk | D102: 2901.00788 | E102: 1543.17723 | F102: 3059.75987 | G102: 2267.29616 | H102: 792.4637
B103: Węgliniec | D103: 3018.87486 | E103: 1200.50083 | F103: 2996.43024 | G103: 2398.81387 | H103: 597.61637
B104: Gminy wiejskie:
B105: Rural gminas:
B106: Sulików | D106: 3408.33622 | E106: 1955.69445 | F106: 3468.06217 | G106: 3188.40091 | H106: 276.76789
B107: Zgorzelec | D107: 3860.2095 | E107: 2182.17117 | F107: 3922.33042 | G107: 2988.48879 | H107: 933.84162
B108: POWIAT ZŁOTORYJSKI | D108: 3387.11289 | E108: 1664.06595 | F108: 3298.21714 | G108: 2773.21845 | H108: 520.95431
B109: Gminy miejskie:
B110: Urban gminas:
B111: Wojcieszów | D111: 4464.57812 | E111: 1803.98839 | F111: 4430.21217 | G111: 3918.55003 | H111: 511.66214
B112: Złotoryja | D112: 2898.18645 | E112: 1778.72457 | F112: 2841.2458 | G112: 2487.21447 | H112: 354.03134
B113: Gminy miejsko-wiejskie:
B114: Urban-rural gminas:
B115: Świerzawa | D115: 3187.32682 | E115: 1160.85688 | F115: 3242.68086 | G115: 2589.29756 | H115: 653.3833
B116: Gminy wiejskie:
B117: Rural gminas:
B118: Pielgrzymka | D118: 4036.97883 | E118: 1577.9353 | F118: 4138.15342 | G118: 3274.5168 | H118: 824.3578
B119: Zagrodno | D119: 3812.05733 | E119: 2079.07901 | F119: 3197.52611 | G119: 2630.63024 | H119: 566.89587
B120: Złotoryja | D120: 3385.27705 | E120: 1611.78803 | F120: 3316.81387 | G120: 2787.26298 | H120: 529.55088
B121: PODREGION LEGNICKO-GŁOGOWSKI | D121: 3928.89847 | E121: 2611.30707 | F121: 3964.14817 | G121: 3245.44963 | H121: 678.36349
B122: SUBREGION
B123: POWIAT GŁOGOWSKI | D123: 3485.86969 | E123: 2445.16937 | F123: 3796.21383 | G123: 2831.57036 | H123: 922.36164
B124: Gminy miejskie:
B125: Urban gminas:
B126: Głogów | D126: 3290.61661 | E126: 2397.80229 | F126: 3677.22562 | G126: 2685.04852 | H126: 936.87345
B127: Gminy wiejskie:
B128: Rural gminas:
B129: Głogów | D129: 3025.22565 | E129: 1976.79855 | F129: 3115.79924 | G129: 2670.44184 | H129: 445.3574
B130: Jerzmanowa | D130: 7081.19768 | E130: 5829.66105 | F130: 7418.32813 | G130: 5071.72246 | H130: 2346.60567
B131: Kotla | D131: 3350.11488 | E131: 1525.61855 | F131: 3503.51751 | G131: 2862.10964 | H131: 641.40787
B132: Pęcław | D132: 3660.03666 | E132: 1389.4746 | F132: 3473.90524 | G132: 3201.19602 | H132: 272.70922
B133: Żukowice | D133: 3596.57717 | E133: 1741.2993 | F133: 3312.57146 | G133: 2842.49961 | H133: 470.07185
B134: POWIAT GÓROWSKI | D134: 3251.00079 | E134: 1266.18432 | F134: 3294.17874 | G134: 2741.03126 | H134: 553.14747
B135: Gminy miejsko-wiejskie:
B136: Urban-rural gminas:
B137: Góra | D137: 3313.69719 | E137: 1309.32382 | F137: 3257.90416 | G137: 2722.4795 | H137: 535.42467
B138: Wąsosz | D138: 3146.35888 | E138: 1381.69778 | F138: 3572.50319 | G138: 2683.11413 | H138: 889.38906
B139: Gminy wiejskie:
B140: Rural gminas:
B141: Jemielno | D141: 3537.13111 | E141: 1191.72709 | F141: 3388.92643 | G141: 3066.553 | H141: 322.37344
B142: Niechlów | D142: 2975.30349 | E142: 970.10886 | F142: 2977.45536 | G142: 2700.44875 | H142: 277.00661
B143: POWIAT LEGNICKI | D143: 3052.2249 | E143: 1683.65211 | F143: 3054.11837 | G143: 2609.04607 | H143: 445.0723
B144: Gminy miejskie:
B145: Urban gminas:
B146: Chojnów | D146: 2696.6988 | E146: 1323.2131 | F146: 2595.63459 | G146: 2364.48315 | H146: 231.15144
B147: Gminy miejsko-wiejskie:
B148: Urban-rural gminas:
B149: Prochowice | D149: 3034.95732 | E149: 1748.68915 | F149: 3023.05085 | G149: 2638.6717 | H149: 384.37915
B150: Gminy wiejskie:
B151: Rural gminas:
B152: Chojnów | D152: 2662.28278 | E152: 1404.00279 | F152: 2582.7809 | G152: 2370.89538 | H152: 211.88552
B153: Krotoszyce | D153: 3826.64413 | E153: 2153.22133 | F153: 3342.50486 | G153: 3022.95286 | H153: 319.552
B154: Kunice | D154: 3228.69474 | E154: 2078.54592 | F154: 3408.61695 | G154: 2858.05453 | H154: 550.56242
B155: Legnickie Pole | D155: 4436.44498 | E155: 3147.7047 | F155: 4222.91847 | G155: 3186.92044 | H155: 1035.99804
B156: Miłkowice | D156: 2657.78735 | E156: 1194.04811 | F156: 3130.0705 | G156: 2387.29172 | H156: 742.77877
B157: Ruja | D157: 3282.81492 | E157: 1259.68139 | F157: 3613.86526 | G157: 2991.93122 | H157: 621.93404
B158: POWIAT LUBIŃSKI | D158: 3855.16695 | E158: 2633.67229 | F158: 3677.27047 | G158: 3258.9778 | H158: 396.8494
B159: Gminy miejskie:
B160: Urban gminas:
B161: Lubin | D161: 3745.64122 | E161: 2482.59763 | F161: 3499.08661 | G161: 3249.50281 | H161: 218.83484
B162: Gminy miejsko-wiejskie:
B163: Urban-rural gminas:
B164: Ścinawa | D164: 2686.38113 | E164: 1235.51777 | F164: 2690.4457 | G164: 2330.77474 | H164: 359.67096
B165: Gminy wiejskie:
B166: Rural gminas:
B167: Lubin | D167: 3837.28203 | E167: 3070.31574 | F167: 3961.86543 | G167: 3166.9532 | H167: 794.91223
B168: Rudna | D168: 6554.96432 | E168: 5202.87636 | F168: 6233.14834 | G168: 4791.99744 | H168: 1441.1509
B169: POWIAT POLKOWICKI | D169: 5840.31951 | E169: 4394.25594 | F169: 5866.39809 | G169: 4658.87864 | H169: 1079.72581
B170: Gminy miejsko-wiejskie:
B171: Urban-rural gminas:
B172: Chocianów | D172: 2632.95133 | E172: 1368.60925 | F172: 2790.24594 | G172: 2299.86036 | H172: 478.91594
B173: Polkowice | D173: 9010.54017 | E173: 7773.14749 | F173: 9007.0995 | G173: 7108.58978 | H173: 1608.62494
B174: Przemków | D174: 2988.58109 | E174: 1111.09328 | F174: 2840.27537 | G174: 2582.43979 | H174: 255.81675
B175: Gminy wiejskie:
B176: Rural gminas:
B177: Gaworzyce | D177: 3190.45372 | E177: 1192.77274 | F177: 3286.55252 | G177: 2730.39397 | H177: 556.15855
B178: Grębocice | D178: 5405.85987 | E178: 3709.86937 | F178: 5617.92579 | G178: 4227.2165 | H178: 1390.70929
B179: Radwanice | D179: 4457.85482 | E179: 2855.0517 | F179: 4345.46381 | G179: 3024.02482 | H179: 1321.43899
B180: PODREGION WAŁBRZYSKI | D180: 2922.05007 | E180: 1596.51885 | F180: 2869.69622 | G180: 2429.13906 | H180: 413.59054
B181: SUBREGION
B182: POWIAT DZIERŻONIOWSKI | D182: 2827.43451 | E182: 1476.66023 | F182: 2723.64993 | G182: 2327.02462 | H182: 325.40217
B183: Gminy miejskie:
B184: Urban gminas:
B185: Bielawa | D185: 3151.425 | E185: 1543.44124 | F185: 3036.93298 | G185: 2626.47942 | H185: 297.75165
B186: Dzierżoniów | D186: 2709.81393 | E186: 1740.74718 | F186: 2498.46772 | G186: 2185.79144 | H186: 234.13238
B187: Pieszyce | D187: 2292.1279 | E187: 1049.21095 | F187: 2361.65542 | G187: 1965.17301 | H187: 355.01014
B188: Piława Górna | D188: 2353.37252 | E188: 1243.91259 | F188: 2277.90348 | G188: 2019.30143 | H188: 258.60205
B189: Gminy miejsko-wiejskie:
B190: Urban-rural gminas:
B191: Niemcza | D191: 2604.06852 | E191: 1227.67473 | F191: 2679.55053 | G191: 2488.53793 | H191: 67.67812
B192: Gminy wiejskie:
B193: Rural gminas:
B194: Dzierżoniów | D194: 2672.96103 | E194: 1237.99206 | F194: 2775.54067 | G194: 2231.01431 | H194: 539.86697
B195: Łagiewniki | D195: 3490.24772 | E195: 1231.74673 | F195: 3282.88049 | G195: 2461.22924 | H195: 812.3625
B196: POWIAT KŁODZKI | D196: 2960.71879 | E196: 1529.51224 | F196: 2868.58982 | G196: 2487.4213 | H196: 360.75364
B197: Gminy miejskie:
B198: Urban gminas:
B199: Duszniki-Zdrój | D199: 3533.05758 | E199: 2313.76495 | F199: 3626.53405 | G199: 3124.54587 | H199: 501.98818
B200: Kłodzko | D200: 2776.53462 | E200: 1776.8845 | F200: 2780.05083 | G200: 2557.63901 | H200: 121.33724
B201: Kudowa-Zdrój | D201: 3095.87956 | E201: 1796.68004 | F201: 3375.23999 | G201: 2721.33443 | H201: 653.90555
B202: Nowa Ruda | D202: 2194.05022 | E202: 1145.17 | F202: 2124.97783 | G202: 2021.84864 | H202: 103.12918
B203: Polanica-Zdrój | D203: 4286.60828 | E203: 3075.92265 | F203: 3813.69094 | G203: 2958.08454 | H203: 852.93653
B204: Gminy miejsko-wiejskie:
... 145 more rows

Sheet Tabl. 17.
B4: Tabl. 17. Dochody, wydatki i wynik finansowy budżetów gmin a
B5: Revenue, expenditure and financial results of gminas a budgets
B6: WYSZCZEGÓLNIENIE SPECIFICATION | D6: Dochody Revenue | E6: Wydatki Expenditure | F6: Wynik finansowy Financial result deficyt (-) lub nadwyżka (+) deficit (-) or surplus (+)
D7: w tys. w zł in thous. zl
B8: OGÓŁEM | C8: 2012 | D8: 6634836.572 | E8: 6595255.268 | F8: 39581.30413
B9: TOTAL | C9: 2013 | D9: 6477720.21 | E9: 6419477.846 | F9: =D9-E9 -> 58242.36416
B11: Gminy miejskie | D11: 2135723.111 | E11: 2105023.904 | F11: =D11-E11 -> 30699.2071
B12: Urban gminas
B13: Gminy miejsko-wiejskie | D13: 2457167.366 | E13: 2451858.473 | F13: 5308.89319
B14: Urban-rural gminas
B15: Gminy wiejskie | D15: 1884829.732 | E15: 1862595.468 | F15: 22234.26387
B16: Rural gminas
B17: PODREGION JELENIOGÓRSKI | D17: 1672723.459 | E17: 1624438.084 | F17: 48285.37574
B18: SUBREGION
B19: POWIAT BOLESŁAWIECKI | D19: 288216.6126 | E19: 272826.2141 | F19: 15390.39847
B20: Gminy miejskie:
B21: Urban gminas:
B22: Bolesławiec | D22: 130223.5993 | E22: 122924.4023 | F22: 7299.19697
B23: Gminy miejsko-wiejskie:
B24: Urban-rural gminas:
B25: Nowogrodziec | D25: 38303.59485 | E25: 38146.00819 | F25: 157.58666
B26: Gminy wiejskie:
B27: Rural gminas:
B28: Bolesławiec | D28: 40170.02247 | E28: 40093.22667 | F28: 76.7958
B29: Gromadka | D29: 22705.60892 | E29: 20992.11228 | F29: 1713.49664
B30: Osiecznica | D30: 28139.25393 | E30: 25348.68189 | F30: 2790.57204
B31: Warta Bolesławiecka | D31: 28674.53306 | E31: 25321.7827 | F31: 3352.75036
B32: POWIAT JAWORSKI | D32: 155368.7636 | E32: 147181.5518 | F32: 8187.2118
B33: Gminy miejskie:
B34: Urban gminas:
B35: Jawor | D35: 65563.61506 | E35: 62828.41341 | F35: 2735.20165
B36: Gminy miejsko-wiejskie:
B37: Urban-rural gminas:
B38: Bolków | D38: 29895.72951 | E38: 28580.33203 | F38: 1315.39748
B39: Gminy wiejskie:
B40: Rural gminas:
B41: Męcinka | D41: 17243.26792 | E41: 16846.32673 | F41: 396.94119
B42: Mściwojów | D42: 16681.31961 | E42: 15528.66222 | F42: 1152.65739
B43: Paszowice | D43: 13582.08188 | E43: 11801.03637 | F43: 1781.04551
B44: Wądroże Wielkie | D44: 12402.74963 | E44: 11596.78105 | F44: 805.96858
B45: POWIAT JELENIOGÓRSKI | D45: 226250.5369 | E45: 215223.1333 | F45: 11027.40358
B46: Gminy miejskie:
B47: Urban gminas:
B48: Karpacz | D48: 36526.16795 | E48: 34332.90256 | F48: 2193.26539
B49: Kowary | D49: 29330.2171 | E49: 29555.75225 | F49: -225.53515
B50: Piechowice | D50: 19242.78025 | E50: 17621.09999 | F50: 1621.68026
B51: Szklarska Poręba | D51: 32987.44819 | E51: 30023.45954 | F51: 2963.98865
B52: Gminy wiejskie:
B53: Rural gminas:
B54: Janowice Wielkie | D54: 15345.76908 | E54: 14744.26975 | F54: 601.49933
B55: Jeżów Sudecki | D55: 21851.35731 | E55: 19778.58714 | F55: 2072.77017
B56: Mysłakowice | D56: 30538.05686 | E56: 29467.89203 | F56: 1070.16483
B57: Podgórzyn | D57: 23730.69816 | E57: 22923.47912 | F57: 807.21904
B58: Stara Kamienica | D58: 16698.04195 | E58: 16775.69089 | F58: -77.64894
B59: POWIAT KAMIENNOGÓRSKI | D59: 131761.0342 | E59: 126557.6155 | F59: 5203.41871
B60: Gminy miejskie:
B61: Urban gminas:
B62: Kamienna Góra | D62: 56731.5424 | E62: 54424.44228 | F62: 2307.10012
B63: Gminy miejsko-wiejskie:
B64: Urban-rural gminas:
B65: Lubawka | D65: 34073.84628 | E65: 31763.84174 | F65: 2310.00454
B66: Gminy wiejskie:
B67: Rural gminas:
B68: Kamienna Góra | D68: 27432.70958 | E68: 27746.13305 | F68: -313.42347
B69: Marciszów | D69: 13522.93598 | E69: 12623.19846 | F69: 899.73752
B70: POWIAT LUBAŃSKI | D70: 199421.0757 | E70: 196394.6336 | F70: 3026.44214
B71: Gminy miejskie:
B72: Urban gminas:
B73: Lubań | D73: 58452.31294 | E73: 55182.90557 | F73: 3269.40737
B74: Świeradów-Zdrój | D74: 25397.06035 | E74: 26421.74564 | F74: =D74-E74 -> -1024.68529
B75: Gminy miejsko-wiejskie:
B76: Urban-rural gminas:
B77: Leśna | D77: 38466.81101 | E77: 39710.41604 | F77: -1243.60503
B78: Olszyna | D78: 38185.27273 | E78: 37429.97452 | F78: 755.29821
B79: Gminy wiejskie:
B80: Rural gminas:
B81: Lubań | D81: 19540.57009 | E81: 18820.52195 | F81: 720.04814
B82: Platerówka | D82: 4544.05128 | E82: 4641.31537 | F82: -97.26409
B83: Siekierczyn | D83: 14834.99734 | E83: 14187.75451 | F83: 647.24283
B84: POWIAT LWÓWECKI | D84: 146402.4477 | E84: 138269.9299 | F84: 8132.51772
B85: Gminy miejsko-wiejskie:
B86: Urban-rural gminas:
B87: Gryfów Śląski | D87: 25810.94702 | E87: 23089.99877 | F87: 2720.94825
B88: Lubomierz | D88: 22379.44483 | E88: 20995.82872 | F88: 1383.61611
B89: Lwówek Śląski | D89: 53923.77386 | E89: 48134.41756 | F89: 5789.3563
B90: Mirsk | D90: 31904.65344 | E90: 33126.51011 | F90: -1221.85667
B91: Wleń | D91: 12383.62851 | E91: 12923.17478 | F91: -539.54627
B92: POWIAT ZGORZELECKI | D92: 372042.9047 | E92: 378747.2765 | F92: -6704.37179
B93: Gminy miejskie:
B94: Urban gminas:
B95: Zawidów | D95: 11847.05743 | E95: 11432.53592 | F95: 414.52151
B96: Zgorzelec | D96: 102697.4539 | E96: 112165.2168 | F96: -9467.76289
B97: Gminy miejsko-wiejskie:
B98: Urban-rural gminas:
B99: Bogatynia | D99: 151042.8182 | E99: 146527.2956 | F99: 4515.52263
B100: Pieńsk | D100: 26953.26422 | E100: 28428.22894 | F100: -1474.96472
B101: Węgliniec | D101: 26255.15466 | E101: 26059.95381 | F101: 195.20085
B102: Gminy wiejskie:
B103: Rural gminas:
B104: Sulików | D104: 20968.08444 | E104: 21335.51848 | F104: -367.43404
B105: Zgorzelec | D105: 32279.07183 | E105: 32798.52696 | F105: -519.45513
B106: POWIAT ZŁOTORYJSKI | D106: 153260.084 | E106: 149237.7289 | F106: 4022.35511
B107: Gminy miejskie:
B108: Urban gminas:
B109: Wojcieszów | D109: 17327.02768 | E109: 17193.65344 | F109: 133.37424
B110: Złotoryja | D110: 47269.42098 | E110: 46340.71907 | F110: 928.70191
B111: Gminy miejsko-wiejskie:
B112: Urban-rural gminas:
B113: Świerzawa | D113: 24826.0886 | E113: 25257.24122 | F113: -431.15262
B114: Gminy wiejskie:
B115: Rural gminas:
B116: Pielgrzymka | D116: 18808.28435 | E116: 19279.65679 | F116: -471.37244
B117: Zagrodno | D117: 20939.63091 | E117: 17564.01092 | F117: 3375.61999
B118: Złotoryja | D118: 24089.63152 | E118: 23602.44749 | F118: 487.18403
B119: PODREGION LEGNICKO-GŁOGOWSKI | D119: 1380324.183 | E119: 1392708.319 | F119: -12384.13609
B120: SUBREGION
B121: POWIAT GŁOGOWSKI | D121: 314728.7163 | E121: 342748.7584 | F121: -28020.04206
B122: Gminy miejskie:
B123: Urban gminas:
B124: Głogów | D124: 227144.6832 | E124: 253831.5301 | F124: -26686.84692
B125: Gminy wiejskie:
B126: Rural gminas:
B127: Głogów | D127: 19533.88199 | E127: 20118.71569 | F127: -584.8337
B128: Jerzmanowa | D128: 31999.93232 | E128: 33523.42481 | F128: -1523.49249
B129: Kotla | D129: 14690.25376 | E129: 15362.92428 | F129: -672.67052
B130: Pęcław | D130: 8498.60513 | E130: 8066.40797 | F130: 432.19716
B131: Żukowice | D131: 12861.35995 | E131: 11845.75554 | F131: 1015.60441
B132: POWIAT GÓROWSKI | D132: 118570.5009 | E132: 120145.2869 | F132: -1574.78594
B133: Gminy miejsko-wiejskie:
B134: Urban-rural gminas:
B135: Góra | D135: 68606.78657 | E135: 67451.6478 | F135: 1155.13877
B136: Wąsosz | D136: 23522.17895 | E136: 26708.03387 | F136: -3185.85492
B137: Gminy wiejskie:
B138: Rural gminas:
B139: Jemielno | D139: 11145.50014 | E139: 10678.50719 | F139: =D139-E139 -> 466.99295
B140: Niechlów | D140: 15296.03526 | E140: 15307.098 | F140: -11.06274
B141: POWIAT LEGNICKI | D141: 167420.6401 | E141: 167524.5008 | F141: -103.86075
B142: Gminy miejskie:
B143: Urban gminas:
B144: Chojnów | D144: 38109.74746 | E144: 36681.50801 | F144: 1428.23945
B145: Gminy miejsko-wiejskie:
B146: Urban-rural gminas:
B147: Prochowice | D147: 22847.15873 | E147: 22757.52682 | F147: 89.63191
B148: Gminy wiejskie:
B149: Rural gminas:
B150: Chojnów | D150: 25166.55909 | E150: 24415.02784 | F150: 751.53125
B151: Krotoszyce | D151: 12398.32698 | E151: 10829.71575 | F151: 1568.61123
B152: Kunice | D152: 20114.76822 | E152: 21235.68359 | F152: -1120.91537
B153: Legnickie Pole | D153: 22878.74676 | E153: 21777.59057 | F153: 1101.15619
B154: Miłkowice | D154: 17041.73252 | E154: 20070.01202 | F154: -3028.2795
B155: Ruja | D155: 8863.60029 | E155: 9757.4362 | F155: -893.83591
B156: POWIAT LUBIŃSKI | D156: 410899.1147 | E156: 391938.1953 | F156: 18960.9194
B157: Gminy miejskie:
B158: Urban gminas:
B159: Lubin | D159: 278406.0206 | E159: 260080.1098 | F159: 18325.91082
B160: Gminy miejsko-wiejskie:
B161: Urban-rural gminas:
B162: Ścinawa | D162: 27957.1684 | E162: 27999.46843 | F162: -42.30003
B163: Gminy wiejskie:
B164: Rural gminas:
B165: Lubin | D165: 54619.87241 | E165: 56393.19246 | F165: -1773.32005
B166: Rudna | D166: 49916.05326 | E166: 47465.4246 | F166: 2450.62866
B167: POWIAT POLKOWICKI | D167: 368705.211 | E167: 370351.5777 | F167: -1646.36674
B168: Gminy miejsko-wiejskie:
B169: Urban-rural gminas:
B170: Chocianów | D170: 34433.73743 | E170: 36490.83636 | F170: -2057.09893
B171: Polkowice | D171: 245555.2407 | E171: 245461.4755 | F171: 93.76517
B172: Przemków | D172: 26350.31945 | E172: 25042.70797 | F172: 1307.61148
B173: Gminy wiejskie:
B174: Rural gminas:
B175: Gaworzyce | D175: 12682.05352 | E175: 13064.04626 | F175: -381.99274
B176: Grębocice | D176: 28883.50931 | E176: 30016.57751 | F176: -1133.0682
B177: Radwanice | D177: 20800.3506 | E177: 20275.93412 | F177: 524.41648
B178: PODREGION WAŁBRZYSKI | D178: 1629487.066 | E178: 1600291.838 | F178: 29195.2284
B179: SUBREGION
B180: POWIAT DZIERŻONIOWSKI | D180: 296490.4374 | E180: 285607.3786 | F180: 10883.05881
B181: Gminy miejskie:
B182: Urban gminas:
B183: Bielawa | D183: 98721.53954 | E183: 95134.9625 | F183: 3586.57704
B184: Dzierżoniów | D184: 93496.71014 | E184: 86204.63158 | F184: 7292.07856
B185: Pieszyce | D185: 22107.57359 | E185: 22778.1665 | F185: -670.59291
B186: Piława Górna | D186: 15819.37009 | E186: 15312.06719 | F186: 507.3029
B187: Gminy miejsko-wiejskie:
B188: Urban-rural gminas:
B189: Niemcza | D189: 15087.973 | E189: 15525.31578 | F189: -437.34278
B190: Gminy wiejskie:
B191: Rural gminas:
B192: Dzierżoniów | D192: 24954.76419 | E192: 25912.44766 | F192: -957.68347
B193: Łagiewniki | D193: 26302.50681 | E193: 24739.78734 | F193: 1562.71947
B194: POWIAT KŁODZKI | D194: 489264.7019 | E194: 474040.2049 | F194: 15224.49696
B195: Gminy miejskie:
B196: Urban gminas:
B197: Duszniki-Zdrój | D197: 17463.90362 | E197: 17925.95782 | F197: -462.0542
B198: Kłodzko | D198: 78289.94665 | E198: 78389.09325 | F198: -99.1466
B199: Kudowa-Zdrój | D199: 31865.88833 | E199: 34741.34517 | F199: -2875.45684
B200: Nowa Ruda | D200: 51224.49047 | E200: 49611.8573 | F200: 1612.63317
B201: Polanica-Zdrój | D201: 28578.81737 | E201: 25425.87748 | F201: 3152.93989
B202: Gminy miejsko-wiejskie:
B203: Urban-rural gminas:
B204: Bystrzyca Kłodzka | D204: 72358.06779 | E204: 68997.64141 | F204: =D204-E204 -> 3360.42638
... 143 more rows

Sheet Tabl. 18.
B4: Tabl. 18. Dochody budżetów powiatów według rodzajów
B5: Revenue of powiats budgets by types
B6: WYSZCZEGÓLNIENIE SPECIFICATION | D6: Ogółem Total | E6: Dochody własne Own revenue | H6: Dotacje celowe a Appropriated allocations a | K6: Subwencja ogólna General subsidies
E7: razem total | F7: w tym udział w podatku dochodowym of which share in income tax | H7: razem total | I7: w tym of which | K7: razem total | L7: w tym na zadania oświatowe of which for educational tasks
F8: od osób prawnych corporate income tax | G8: od osób fizycznych personal income tax | I8: z budżetu państwa from state budget | J8: z funduszy celowych from appropriated funds
B9: w tys. zł in thous. zl
B10: OGÓŁEM | C10: 2012 | D10: 1944519.513 | E10: 617362.839 | F10: 49071.09745 | G10: 306266.985 | H10: 503446.4323 | I10: 437332.8757 | J10: 1963.95761 | K10: 823710.242 | L10: 675685.509
B11: TOTAL | C11: 2013 | D11: 1881676.178 | E11: 601481.1244 | F11: 31262.2421 | G11: 306150.38 | H11: 494738.0484 | I11: 439546.6358 | J11: 11647.37332 | K11: 785457.005 | L11: 637668.228
B13: Powiaty:
B14: Powiats:
B15: bolesławiecki | D15: 73543.55542 | E15: 19551.9419 | F15: 361.88266 | G15: 12471.965 | H15: 17550.49052 | I15: 13735.93745 | J15: - | K15: 36441.123 | L15: 31947.741
B16: dzierżoniowski | D16: 88672.54684 | E16: 23082.77851 | F16: 448.99028 | G16: 12953.061 | H16: 19007.87533 | I16: 18141.17192 | J16: 474.11241 | K16: 46581.893 | L16: 35263.111
B17: głogowski | D17: 102082.3845 | E17: 35556.99065 | F17: 3471.11559 | G17: 18632.541 | H17: 19179.85581 | I17: 13216.5004 | J17: 28 | K17: 47345.538 | L17: 46829.151
B18: górowski | D18: 47070.60504 | E18: 9395.55563 | F18: 161.17268 | G18: 3391.256 | H18: 18855.31641 | I18: 17043.17438 | J18: - | K18: 18819.733 | L18: 12349.295
B19: jaworski | D19: 57258.14854 | E19: 15471.81765 | F19: 153.87964 | G19: 6222.919 | H19: 19472.29589 | I19: 18799.26302 | J19: - | K19: 22314.035 | L19: 15681.356
B20: jeleniogórski | D20: 65619.20812 | E20: 20084.42122 | F20: 154.31696 | G20: 8486.931 | H20: 24739.1349 | I20: 23994.34223 | J20: 534.2 | K20: 20795.652 | L20: 14706.361
B21: kamiennogórski | D21: 42723.56125 | E21: 10529.99653 | F21: 112.77781 | G21: 5144.057 | H21: 15930.20272 | I21: 15177.00487 | J21: 4 | K21: 16263.362 | L21: 11016.72
B22: kłodzki | D22: 176290.4526 | E22: 45181.92697 | F22: 548.06626 | G22: 20186.486 | H22: 42577.08262 | I22: 37838.13448 | J22: 80 | K22: 88531.443 | L22: 68324.545
B23: legnicki | D23: 63385.03221 | E23: 23166.61785 | F23: 193.33938 | G23: 7327.123 | H23: 29395.17636 | I23: 28355.89475 | J23: 6501.42804 | K23: 10823.238 | L23: 4756.343
B24: lubański | D24: 59183.61453 | E24: 11588.70232 | F24: 178.35246 | G24: 7244.32 | H24: 18037.23521 | I24: 15736.67085 | J24: 21.78496 | K24: 29557.677 | L24: 21976.319
B25: lubiński | D25: 84235.8826 | E25: 50524.35147 | F25: 5990.71464 | G25: 27519.314 | H25: 11013.17113 | I25: 10302.91279 | J25: - | K25: 22698.36 | L25: 20421.307
B26: lwówecki | D26: 59748.73746 | E26: 13529.97159 | F26: 98.36141 | G26: 4780.283 | H26: 19583.77187 | I26: 18363.66854 | J26: 600 | K26: 26634.994 | L26: 18552.781
B27: milicki | D27: 49076.95281 | E27: 14619.91962 | F27: 90.88631 | G27: 4370.305 | H27: 13847.44319 | I27: 11732.05405 | J27: - | K27: 20609.59 | L27: 16008.387
B28: oleśnicki | D28: 96737.84993 | E28: 29097.3489 | F28: 640.11234 | G28: 15597.733 | H28: 25155.70203 | I28: 21370.41155 | J28: 121 | K28: 42484.799 | L28: 37478.004
B29: oławski | D29: 56541.23621 | E29: 21176.08586 | F29: 613.72716 | G29: 13095.665 | H29: 12259.06535 | I29: 11723.32178 | J29: 886.016 | K29: 23106.085 | L29: 21282.742
B30: polkowicki | D30: 59095.46056 | E30: 32105.94598 | F30: 12216.76275 | G30: 12803.073 | H30: 11866.00758 | I30: 10554.07289 | J30: 15.7 | K30: 15123.507 | L30: 10007.992
B31: strzeliński | D31: 47738.5381 | E31: 9282.71247 | F31: 428.48377 | G31: 5302.132 | H31: 11467.25563 | I31: 10107.97539 | J31: 859 | K31: 26988.57 | L31: 21428.632
B32: średzki | D32: 38866.83154 | E32: 13151.99804 | F32: 434.76173 | G32: 7608.446 | H32: 11896.3365 | I32: 11493.14834 | J32: 101.30878 | K32: 13818.497 | L32: 10223.217
B33: świdnicki | D33: 138544.7008 | E33: 37707.30744 | F33: 1055.40986 | G33: 25394.845 | H33: 28725.30933 | I33: 21214.91474 | J33: 1.9 | K33: 72112.084 | L33: 66754.863
B34: trzebnicki | D34: 68184.33256 | E34: 27640.87751 | F34: 216.26967 | G34: 12467.266 | H34: 14062.65405 | I34: 13083.59471 | J34: - | K34: 26480.801 | L34: 21936.752
B35: wałbrzyski | D35: 47687.88704 | E35: 15160.81696 | F35: -15.64972 | G35: 9221.995 | H35: 19845.45408 | I35: 18038.18863 | J35: 303.49 | K35: 12681.616 | L35: 10055.057
B36: wołowski | D36: 57934.51332 | E36: 11015.82006 | F36: 286.38307 | G36: 6235.374 | H36: 16872.49826 | I36: 14636.76471 | J36: - | K36: 30046.195 | L36: 25821.287
B37: wrocławski | D37: 91410.27603 | E37: 47707.0525 | F37: 1497.37694 | G37: 29101.147 | H37: 18705.33253 | I37: 18359.86755 | J37: 114.95356 | K37: 24997.891 | L37: 20621.122
B38: ząbkowicki | D38: 79096.05779 | E38: 22896.10833 | F38: 326.29419 | G38: 8251.004 | H38: 22175.58846 | I38: 20976.57182 | J38: 146.61756 | K38: 34024.361 | L38: 25248.754
B39: zgorzelecki | D39: 84558.02446 | E39: 32594.34607 | F39: 1475.36618 | G39: 16694.455 | H39: 17305.13239 | I39: 16127.01714 | J39: - | K39: 34658.546 | L39: 33746.627
B40: złotoryjski | D40: 46389.78754 | E40: 9659.71234 | F40: 123.08808 | G40: 5646.684 | H40: 15212.6602 | I40: 9424.05681 | J40: 853.86201 | K40: 21517.415 | L40: 15229.762
B41: w % in %
B42: OGÓŁEM | C42: 2012 | D42: 100 | E42: 31.74886 | F42: 2.52356 | G42: 15.75027 | H42: 25.89053 | I42: 22.49054 | J42: 0.101 | K42: 42.36061 | L42: 34.7482
B43: TOTAL | C43: 2013 | D43: 100 | E43: 31.96518 | F43: 1.6614 | G43: 16.27009 | H43: 26.29241 | I43: 23.35931 | J43: 0.61899 | K43: 41.74241 | L43: 33.88831
B45: Powiaty:
B46: Powiats:
B47: bolesławiecki | D47: 100 | E47: 26.58553 | F47: 0.49207 | G47: 16.95861 | H47: 23.86408 | I47: 18.67728 | J47: - | K47: 49.5504 | L47: 43.44057
B48: dzierżoniowski | D48: 100 | E48: 26.03148 | F48: 0.50635 | G48: 14.60775 | H48: 21.43603 | I48: 20.45861 | J48: 0.53468 | K48: 52.53249 | L48: 39.76779
B49: głogowski | D49: 100 | E49: 34.83166 | F49: 3.40031 | G49: 18.25245 | H49: 18.7886 | I49: 12.9469 | J49: 0.02743 | K49: 46.37973 | L49: 45.87388
B50: górowski | D50: 100 | E50: 19.96056 | F50: 0.34241 | G50: 7.20462 | H50: 40.05752 | I50: 36.20768 | J50: - | K50: 39.98192 | L50: 26.23568
B51: jaworski | D51: 100 | E51: 27.02116 | F51: 0.26875 | G51: 10.86818 | H51: 34.0079 | I51: 32.83247 | J51: - | K51: 38.97093 | L51: 27.38712
B52: jeleniogórski | D52: 100 | E52: 30.60753 | F52: 0.23517 | G52: 12.93361 | H52: 37.70106 | I52: 36.56603 | J52: 0.81409 | K52: 31.69141 | L52: 22.41167
B53: kamiennogórski | D53: 100 | E53: 24.64681 | F53: 0.26397 | G53: 12.04033 | H53: 37.28669 | I53: 35.52374 | J53: 0.00936 | K53: 38.06649 | L53: 25.78605
B54: kłodzki | D54: 100 | E54: 25.62925 | F54: 0.31089 | G54: 11.4507 | H54: 24.15167 | I54: 21.46352 | J54: 0.04538 | K54: 50.21908 | L54: 38.7568
B55: legnicki | D55: 100 | E55: 36.54904 | F55: 0.30502 | G55: 11.55971 | H55: 46.37558 | I55: 44.73595 | J55: 10.25704 | K55: 17.07538 | L55: 7.50389
B56: lubański | D56: 100 | E56: 19.58093 | F56: 0.30135 | G56: 12.24041 | H56: 30.47674 | I56: 26.58957 | J56: 0.03681 | K56: 49.94233 | L56: 37.13244
B57: lubiński | D57: 100 | E57: 59.97961 | F57: 7.11183 | G57: 32.66935 | H57: 13.0742 | I57: 12.23103 | J57: - | K57: 26.94619 | L57: 24.243
B58: lwówecki | D58: 100 | E58: 22.64478 | F58: 0.16463 | G58: 8.00064 | H58: 32.77688 | I58: 30.73482 | J58: 1.00421 | K58: 44.57834 | L58: 31.05134
B59: milicki | D59: 100 | E59: 29.78979 | F59: 0.18519 | G59: 8.905 | H59: 28.21578 | I59: 23.90542 | J59: - | K59: 41.99444 | L59: 32.61895
B60: oleśnicki | D60: 100 | E60: 30.07856 | F60: 0.6617 | G60: 16.12371 | H60: 26.00399 | I60: 22.09105 | J60: 0.12508 | K60: 43.91745 | L60: 38.74182
B61: oławski | D61: 100 | E61: 37.45246 | F61: 1.08545 | G61: 23.16126 | H61: 21.68164 | I61: 20.73411 | J61: 1.56703 | K61: 40.8659 | L61: 37.6411
B62: polkowicki | D62: 100 | E62: 54.32895 | F62: 20.67293 | G62: 21.66507 | H62: 20.07939 | I62: 17.85936 | J62: 0.02657 | K62: 25.59166 | L62: 16.9353
B63: strzeliński | D63: 100 | E63: 19.4449 | F63: 0.89756 | G63: 11.10661 | H63: 24.02096 | I63: 21.17362 | J63: 1.79938 | K63: 56.53414 | L63: 44.88749
B64: średzki | D64: 100 | E64: 33.83862 | F64: 1.11859 | G64: 19.57568 | H64: 30.60794 | I64: 29.57058 | J64: 0.26066 | K64: 35.55344 | L64: 26.30319
B65: świdnicki | D65: 100 | E65: 27.21671 | F65: 0.76178 | G65: 18.32971 | H65: 20.7336 | I65: 15.31269 | J65: 0.00137 | K65: 52.04969 | L65: 48.18291
B66: trzebnicki | D66: 100 | E66: 40.53846 | F66: 0.31718 | G66: 18.28465 | H66: 20.62447 | I66: 19.18856 | J66: - | K66: 38.83708 | L66: 32.17272
B67: wałbrzyski | D67: 100 | E67: 31.79176 | F67: -0.03282 | G67: 19.33823 | H67: 41.61529 | I67: 37.82551 | J67: 0.63641 | K67: 26.59295 | L67: 21.08514
B68: wołowski | D68: 100 | E68: 19.01426 | F68: 0.49432 | G68: 10.7628 | H68: 29.1234 | I68: 25.26433 | J68: - | K68: 51.86234 | L68: 44.56978
B69: wrocławski | D69: 100 | E69: 52.19003 | F69: 1.63808 | G69: 31.83575 | H69: 20.46305 | I69: 20.08512 | J69: 0.12576 | K69: 27.34692 | L69: 22.55887
B70: ząbkowicki | D70: 100 | E70: 28.94722 | F70: 0.41253 | G70: 10.43162 | H70: 28.03628 | I70: 26.52038 | J70: 0.18537 | K70: 43.01651 | L70: 31.92163
B71: zgorzelecki | D71: 100 | E71: 38.54672 | F71: 1.7448 | G71: 19.74319 | H71: 20.46539 | I71: 19.07213 | J71: - | K71: 40.98789 | L71: 39.90943
B72: złotoryjski | D72: 100 | E72: 20.82293 | F72: 0.26533 | G72: 12.17226 | H72: 32.79312 | I72: 20.31494 | J72: 1.84062 | K72: 46.38395 | L72: 32.82999
B74: a Łącznie z dotacjami z paragrafów 200 i 620 klasyfikacji dochodów i wydatków budżetowych (w 2009 r. określanymi jako dotacje rozwojowe).
B75: a Including allocations from paragraphs 200 and 620 of the classification of budget revenue and expenditure (in 2009 defined as development allocations).

Sheet Tabl. 19.
B4: Tabl. 19. Dochody budżetów powiatów według działów
B5: Revenue of powiats budgets by divisions
B6: WYSZCZEGÓLNIENIE SPECIFICATION | D6: Ogółem Total | E6: W tym Of which
E7: transport i łączność transport and communication | F7: gospodarka mieszkaniowa dwelling economy | G7: działalność usługowa service activity | H7: administracja publiczna public administration | I7: oświata i wychowanie education | J7: ochrona zdrowia health care | K7: pomoc społeczna social welfare | L7: gospodarka komunalna i ochrona środowiska municipal economy and environmental protection | M7: kultura i ochrona dziedzictwa narodowego culture and national heritage | N7: kultura fizyczna physical education
B9: w tys. zł in thous. zl
B10: OGÓŁEM | C10: 2012 | D10: 1944519.513 | E10: 98837.24066 | F10: 50225.4727 | G10: 31850.53296 | H10: 24103.98495 | I10: 54383.02468 | J10: 86034.6897 | K10: 175287.7201 | L10: 17795.82445 | M10: 258.32903 | N10: 3968.23555
B11: TOTAL | C11: 2013 | D11: 1881676.178 | E11: 97203.39235 | F11: 37375.73076 | G11: 33048.02002 | H11: 21943.39508 | I11: 49516.40311 | J11: 106522.741 | K11: 189355.0737 | L11: 7111.46598 | M11: 391.40118 | N11: 2262.11351
B13: Powiaty:
B14: Powiats:
B15: bolesławiecki | D15: 73543.55542 | E15: 5467.09736 | F15: 961.69761 | G15: 1675.69399 | H15: 334.29731 | I15: 4239.65152 | J15: 2704.19375 | K15: 960.50843 | L15: 129.03705 | M15: - | N15: -
B16: dzierżoniowski | D16: 88672.54684 | E16: 6241.88596 | F16: 1265.76204 | G16: 1066.99348 | H16: 618.79015 | I16: 900.30306 | J16: 3656.84637 | K16: 5479.19531 | L16: 120.56224 | M16: - | N16: 330.3
B17: głogowski | D17: 102082.3845 | E17: 250.3438 | F17: 1654.13804 | G17: 1185.64758 | H17: 807.37941 | I17: 8160.09548 | J17: 3247.17077 | K17: 7634.03439 | L17: 1392.77229 | M17: - | N17: -
B18: górowski | D18: 47070.60504 | E18: 1274.34167 | F18: 413.9386 | G18: 747.45502 | H18: 138.86817 | I18: 2338.39768 | J18: 2096.98493 | K18: 3079.13566 | L18: 84.23873 | M18: - | N18: -
B19: jaworski | D19: 57258.14854 | E19: 5872.4597 | F19: 353.30102 | G19: 888.71801 | H19: 1103.85266 | I19: 692.05026 | J19: 2520.2564 | K19: 7835.111 | L19: 47.05227 | M19: - | N19: -
B20: jeleniogórski | D20: 65619.20812 | E20: 5042.21733 | F20: 1292.86664 | G20: 1345.36576 | H20: 738.18497 | I20: 4109.18926 | J20: 4705.89052 | K20: 12452.82208 | L20: 325.36687 | M20: - | N20: -
B21: kamiennogórski | D21: 42723.56125 | E21: 5957.25469 | F21: 364.33984 | G21: 851.04876 | H21: 459.49045 | I21: 252.54523 | J21: 1965.057 | K21: 6077.74565 | L21: 151.63754 | M21: - | N21: -
B22: kłodzki | D22: 176290.4526 | E22: 9872.24556 | F22: 1960.33871 | G22: 1567.18248 | H22: 734.40078 | I22: 2542.69097 | J22: 8538.30256 | K22: 25678.90601 | L22: 166.41936 | M22: 40.58528 | N22: -
B23: legnicki | D23: 63385.03221 | E23: 209.27038 | F23: 478.80776 | G23: 1088.47828 | H23: 1228.80817 | I23: 153.65517 | J23: 5456.10083 | K23: 28611.36818 | L23: 47.174 | M23: 302.75563 | N23: 557.71017
B24: lubański | D24: 59183.61453 | E24: 7330.77356 | F24: 415.74683 | G24: 911.84638 | H24: 291.41785 | I24: 2025.04981 | J24: 2589.00662 | K24: 847.54349 | L24: 115.42929 | M24: - | N24: -
B25: lubiński | D25: 84235.8826 | E25: 1321.88178 | F25: 1622.90789 | G25: 1247.18187 | H25: 618.16845 | I25: 460.99779 | J25: 13679.47009 | K25: 542.08753 | L25: 176.29989 | M25: 1.14638 | N25: 0.14991
B26: lwówecki | D26: 59748.73746 | E26: 9308.74321 | F26: 3509.74376 | G26: 932.38642 | H26: 289.97169 | I26: 135.79951 | J26: 2414.71165 | K26: 6049.58105 | L26: 129.70798 | M26: - | N26: -
B27: milicki | D27: 49076.95281 | E27: 0.90533 | F27: 451.43711 | G27: 920.38013 | H27: 341.21854 | I27: 825.05189 | J27: 1529.88378 | K27: 10438.29149 | L27: 48.53015 | M27: - | N27: 500
B28: oleśnicki | D28: 96737.84993 | E28: 3549.46212 | F28: 1586.90877 | G28: 1368.44319 | H28: 478.77673 | I28: 4347.84011 | J28: 3881.72824 | K28: 11896.88302 | L28: 240.75786 | M28: - | N28: 0.11829
B29: oławski | D29: 56541.23621 | E29: 288.70538 | F29: 1074.49326 | G29: 1242.20635 | H29: 341.45063 | I29: 2077.10526 | J29: 2425.20501 | K29: 3988.22174 | L29: 175.35851 | M29: - | N29: -
B30: polkowicki | D30: 59095.46056 | E30: 1540.14854 | F30: 884.35036 | G30: 1124.3982 | H30: 1052.2686 | I30: 1398.48109 | J30: 2234.32355 | K30: 1078.16509 | L30: 226.20862 | M30: - | N30: -
B31: strzeliński | D31: 47738.5381 | E31: 1638.64567 | F31: 462.45812 | G31: 1134.95117 | H31: 323.29835 | I31: 968.86471 | J31: 1788.53178 | K31: 1979.43199 | L31: 49.90574 | M31: - | N31: 800
B32: średzki | D32: 38866.83154 | E32: 3709.17104 | F32: 2245.68979 | G32: 1418.35576 | H32: 510.28311 | I32: 275.41547 | J32: 1606.7165 | K32: 1473.00456 | L32: 81.26213 | M32: 46.91045 | N32: -
B33: świdnicki | D33: 138544.7008 | E33: 3628.15261 | F33: 2102.49166 | G33: 1630.26106 | H33: 733.09905 | I33: 6722.88893 | J33: 5442.6618 | K33: 6532.06579 | L33: 708.84209 | M33: - | N33: -
B34: trzebnicki | D34: 68184.33256 | E34: 2402.46453 | F34: 4118.07785 | G34: 1766.5994 | H34: 249.77256 | I34: 756.896 | J34: 2691.97523 | K34: 10157.20187 | L34: 128.09769 | M34: 1e-05 | N34: 2.30868
B35: wałbrzyski | D35: 47687.88704 | E35: 3618.84607 | F35: 2886.52463 | G35: 1058.26485 | H35: 1014.2278 | I35: 203.6878 | J35: 7085.21754 | K35: 4973.05352 | L35: 103.37703 | M35: - | N35: -
B36: wołowski | D36: 57934.51332 | E36: 3957.07332 | F36: 618.529 | G36: 1046.69343 | H36: 981.39639 | I36: 2547.8229 | J36: 2309.06535 | K36: 2748.75717 | L36: 229.40997 | M36: - | N36: -
B37: wrocławski | D37: 91410.27603 | E37: 8013.93486 | F37: 2867.50974 | G37: 3678.19622 | H37: 1527.27469 | I37: 125.2675 | J37: 13171.433 | K37: 1035.8612 | L37: 292.28865 | M37: 0.00343 | N37: 71.52646
B38: ząbkowicki | D38: 79096.05779 | E38: 4512.25216 | F38: 1826.75564 | G38: 922.99992 | H38: 2068.87348 | I38: 1098.13018 | J38: 3138.57313 | K38: 15079.02588 | L38: 83.05379 | M38: - | N38: -
B39: zgorzelecki | D39: 84558.02446 | E39: 810.82612 | F39: 1787.28164 | G39: 1203.55554 | H39: 526.66195 | I39: 1022.31025 | J39: 3054.8672 | K39: 11364.83653 | L39: 1675.82164 | M39: - | N39: -
B40: złotoryjski | D40: 46389.78754 | E40: 1384.2896 | F40: 169.63445 | G40: 1024.71677 | H40: 4431.16314 | I40: 1136.21528 | J40: 2588.56737 | K40: 1362.23502 | L40: 182.8546 | M40: - | N40: -
B41: w % in %
B42: OGÓŁEM | C42: 2012 | D42: 100 | E42: 5.082861 | F42: 2.582924 | G42: 1.637964 | H42: 1.239585 | I42: 2.796733 | J42: 4.42447 | K42: 9.014449 | L42: 0.915178 | M42: 0.013284 | N42: 0.204072
B43: TOTAL | C43: 2013 | D43: 100 | E43: 5.165787 | F43: 1.986299 | G43: 1.756307 | H43: 1.166162 | I43: 2.631505 | J43: 5.661055 | K43: 10.063106 | L43: 0.377932 | M43: 0.0208 | N43: 0.120218
B45: Powiaty:
B46: Powiats:
B47: bolesławiecki | D47: 100 | E47: 7.433822 | F47: 1.307657 | G47: 2.278505 | H47: 0.454556 | I47: 5.764817 | J47: 3.676996 | K47: 1.30604 | L47: 0.175456 | M47: - | N47: -
B48: dzierżoniowski | D48: 100 | E48: 7.039254 | F48: 1.427456 | G48: 1.203296 | H48: 0.697837 | I48: 1.015312 | J48: 4.123989 | K48: 6.179133 | L48: 0.135963 | M48: - | N48: 0.372494
B49: głogowski | D49: 100 | E49: 0.245237 | F49: 1.620395 | G49: 1.161461 | H49: 0.790909 | I49: 7.993637 | J49: 3.180931 | K49: 7.478307 | L49: 1.364361 | M49: - | N49: -
B50: górowski | D50: 100 | E50: 2.707298 | F50: 0.879399 | G50: 1.587944 | H50: 0.295021 | I50: 4.967851 | J50: 4.454977 | K50: 6.541525 | L50: 0.178962 | M50: - | N50: -
B51: jaworski | D51: 100 | E51: 10.256111 | F51: 0.617031 | G51: 1.552124 | H51: 1.927852 | I51: 1.208649 | J51: 4.401568 | K51: 13.683835 | L51: 0.082175 | M51: - | N51: -
B52: jeleniogórski | D52: 100 | E52: 7.684056 | F52: 1.970256 | G52: 2.050262 | H52: 1.124952 | I52: 6.262174 | J52: 7.171513 | K52: 18.977403 | L52: 0.49584 | M52: - | N52: -
B53: kamiennogórski | D53: 100 | E53: 13.943722 | F53: 0.852784 | G53: 1.991989 | H53: 1.075496 | I53: 0.591114 | J53: 4.599469 | K53: 14.225746 | L53: 0.354927 | M53: - | N53: -
B54: kłodzki | D54: 100 | E54: 5.599988 | F54: 1.111993 | G54: 0.888977 | H54: 0.416585 | I54: 1.44233 | J54: 4.843315 | K54: 14.566248 | L54: 0.0944 | M54: 0.023021 | N54: -
B55: legnicki | D55: 100 | E55: 0.330157 | F55: 0.755395 | G55: 1.717248 | H55: 1.93864 | I55: 0.242415 | J55: 8.607869 | K55: 45.138997 | L55: 0.074424 | M55: 0.477645 | N55: 0.879876
B56: lubański | D56: 100 | E56: 12.386491 | F56: 0.702469 | G56: 1.540707 | H56: 0.492396 | I56: 3.421639 | J56: 4.374532 | K56: 1.432057 | L56: 0.195035 | M56: - | N56: -
B57: lubiński | D57: 100 | E57: 1.569262 | F57: 1.926623 | G57: 1.480582 | H57: 0.733854 | I57: 0.54727 | J57: 16.23948 | K57: 0.643535 | L57: 0.209293 | M57: 0.00136 | N57: 0.000177
B58: lwówecki | D58: 100 | E58: 15.579815 | F58: 5.874172 | G58: 1.560512 | H58: 0.485318 | I58: 0.227284 | J58: 4.041443 | K58: 10.125035 | L58: 0.217089 | M58: - | N58: -
B59: milicki | D59: 100 | E59: 0.001844 | F59: 0.919855 | G59: 1.875381 | H59: 0.695272 | I59: 1.681139 | J59: 3.117316 | K59: 21.269233 | L59: 0.098885 | M59: - | N59: 1.018808
B60: oleśnicki | D60: 100 | E60: 3.669155 | F60: 1.640421 | G60: 1.414589 | H60: 0.494921 | I60: 4.494456 | J60: 4.012626 | K60: 12.298064 | L60: 0.248876 | M60: - | N60: 0.000122
B61: oławski | D61: 100 | E61: 0.51061 | F61: 1.900371 | G61: 2.196991 | H61: 0.603896 | I61: 3.673611 | J61: 4.289267 | K61: 7.053651 | L61: 0.310142 | M61: - | N61: -
B62: polkowicki | D62: 100 | E62: 2.606204 | F62: 1.496477 | G62: 1.902681 | H62: 1.780625 | I62: 2.366478 | J62: 3.780871 | K62: 1.824446 | L62: 0.382785 | M62: - | N62: -
B63: strzeliński | D63: 100 | E63: 3.432542 | F63: 0.968731 | G63: 2.377431 | H63: 0.677227 | I63: 2.029523 | J63: 3.746515 | K63: 4.146402 | L63: 0.104539 | M63: - | N63: 1.675794
B64: średzki | D64: 100 | E64: 9.543281 | F64: 5.777908 | G64: 3.64927 | H64: 1.312901 | I64: 0.708613 | J64: 4.133901 | K64: 3.789875 | L64: 0.209078 | M64: 0.120695 | N64: -
B65: świdnicki | D65: 100 | E65: 2.618759 | F65: 1.517554 | G65: 1.176704 | H65: 0.529142 | I65: 4.852505 | J65: 3.928451 | K65: 4.714771 | L65: 0.511634 | M65: - | N65: -
B66: trzebnicki | D66: 100 | E66: 3.523484 | F66: 6.039624 | G66: 2.590916 | H66: 0.366319 | I66: 1.110073 | J66: 3.948084 | K66: 14.89668 | L66: 0.187869 | M66: - | N66: 0.003385
B67: wałbrzyski | D67: 100 | E67: 7.588606 | F67: 6.052951 | G67: 2.219148 | H67: 2.126803 | I67: 0.427126 | J67: 14.857478 | K67: 10.428336 | L67: 0.216778 | M67: - | N67: -
B68: wołowski | D68: 100 | E68: 6.830252 | F68: 1.067634 | G68: 1.806683 | H68: 1.693975 | I68: 4.397763 | J68: 3.985647 | K68: 4.744593 | L68: 0.395981 | M68: - | N68: -
B69: wrocławski | D69: 100 | E69: 8.766995 | F69: 3.136966 | G69: 4.023832 | H69: 1.670791 | I69: 0.137038 | J69: 14.409138 | K69: 1.133199 | L69: 0.319754 | M69: 3e-06 | N69: 0.078247
B70: ząbkowicki | D70: 100 | E70: 5.704775 | F70: 2.30954 | G70: 1.166935 | H70: 2.615646 | I70: 1.38835 | J70: 3.968052 | K70: 19.064193 | L70: 0.105003 | M70: - | N70: -
B71: zgorzelecki | D71: 100 | E71: 0.958899 | F71: 2.113674 | G71: 1.423348 | H71: 0.62284 | I71: 1.209004 | J71: 3.612746 | K71: 13.440281 | L71: 1.981859 | M71: - | N71: -
B72: złotoryjski | D72: 100 | E72: 2.984039 | F72: 0.365671 | G72: 2.208927 | H72: 9.552022 | I72: 2.449278 | J72: 5.580037 | K72: 2.936497 | L72: 0.394169 | M72: - | N72: -

Sheet Tabl. 20.
B4: Tabl. 20. Wydatki budżetów powiatów według rodzajów
B5: Expenditure of powiats budgets by types
B6: WYSZCZEGÓLNIENIE SPECIFICATION | D6: Ogółem Total | E6: Wydatki majątkowe Property expenditure | G6: Wydatki bieżace Current expenditure
E7: razem total | F7: w tym inwestycyjne a of which investment expenditure a | G7: razem total | H7: w tym of which
H8: dotacje allocations | I8: świadczenia na rzecz osób fizycznych benefits for natural persons | J8: wydatki bieżące jednostek budżetowych current expenditures of budgetary entities | N8: na obsługę długu publicznego on public dept servicing | O8: pozostałe others
J9: razem total | K9: w tym of which
K10: wynagrodzenia wages and salaries | L10: składki na ubezpieczenia społeczne i Fundusz Pracy contributions to compulsory social security and the Labour Fund | M10: zakup materiałów i usług purchase of materials and services
B11: w tys. zł in thous. zl
B12: OGÓŁEM | C12: 2012 | D12: 1920551.169 | E12: 188655.654 | F12: 184270.7175 | G12: 1731895.515 | H12: 139216.5257 | I12: 72321.53779 | J12: 1460673.426 | K12: 851974.9583 | L12: 137576.7803 | M12: 334701.1185 | N12: 40994.9574 | O12: 489037.6379
B13: TOTAL | C13: 2013 | D13: 1870169.706 | E13: 199831.2944 | F13: 197826.2944 | G13: 1670338.412 | H13: 127417.1344 | I13: 71350.09705 | J13: 1415707.354 | K13: 825370.1218 | L13: 136771.8141 | M13: 307407.1361 | N13: 31706.45312 | O13: 476924.7398
B15: Powiaty:
B16: Powiats:
B17: bolesławiecki | D17: 70522.90562 | E17: 10772.60211 | F17: 10772.60211 | G17: 59750.30351 | H17: 2798.57365 | I17: 2515.32318 | J17: 53617.26888 | K17: 33009.27449 | L17: 5329.09428 | M17: 10310.1794 | N17: 817.79159 | O17: 15268.33307
B18: dzierżoniowski | D18: 90799.63421 | E18: 14021.01431 | F18: 13821.01431 | G18: 76778.6199 | H18: 5602.79109 | I18: 3976.06474 | J18: 66828.47198 | K18: 40024.45265 | L18: 6661.51337 | M18: 13802.55714 | N18: 345.72378 | O18: 20168.07427
B19: głogowski | D19: 106319.2716 | E19: 10213.80267 | F19: 10213.80267 | G19: 96105.46892 | H19: 4959.80916 | I19: 3743.56158 | J19: 83138.40309 | K19: 51786.6058 | L19: 8808.18835 | M19: 12231.75853 | N19: 1592.45309 | O19: 25206.31903
B20: górowski | D20: 47406.99728 | E20: 94.43419 | F20: 94.43419 | G20: 47312.56309 | H20: 352.41415 | I20: 2085.90224 | J20: 44522.1992 | K20: 20485.71903 | L20: 3295.06959 | M20: 14557.57727 | N20: 352.02622 | O20: 20725.27495
B21: jaworski | D21: 55181.16747 | E21: 4399.92172 | F21: 4399.92172 | G21: 50781.24575 | H21: 693.91026 | I21: 1800.85977 | J21: 47471.67919 | K21: 26522.79369 | L21: 4323.19305 | M21: 12474.90234 | N21: 797.55653 | O21: 16642.93245
B22: jeleniogórski | D22: 66125.80554 | E22: 7516.92927 | F22: 7516.92927 | G22: 58608.87627 | H22: 4954.57718 | I22: 2136.64303 | J22: 50808.81611 | K22: 27899.58593 | L22: 5156.47669 | M22: 10467.0589 | N22: 708.83995 | O22: 17685.70639
B23: kamiennogórski | D23: 42312.99454 | E23: 6995.84796 | F23: 6995.84796 | G23: 35317.14658 | H23: 192.51887 | I23: 1958.03175 | J23: 32876.59447 | K23: 18982.49111 | L23: 2983.04506 | M23: 7778.02018 | N23: 289.00238 | O23: 10885.10452
B24: kłodzki | D24: 165410.1288 | E24: 11954.70158 | F24: 11954.70158 | G24: 153455.4272 | H24: 24809.64472 | I24: 7404.01249 | J24: 117078.8978 | K24: 68556.20082 | L24: 11441.49556 | M24: 23777.91886 | N24: 3419.29062 | O24: 37742.23667
B25: legnicki | D25: 65415.16662 | E25: 11741.74021 | F25: 11741.74021 | G25: 53673.42641 | H25: 1355.46697 | I25: 1425.68628 | J25: 49720.40387 | K25: 24892.25651 | L25: 4597.2513 | M25: 12996.32642 | N25: 1163.24155 | O25: 20182.8913
